Workbook

Sheet Sheet1

Sheet ProjectInformation
A1: CPN DATA
A2: INFORMATION ADDED BY DESIGNER
A3: Section Engineer | B3: Gustafson
A4: Design Team | B4: Smyth
B5: Ringgenberg
A6: County | B6: MARSHALL
A7: Project Number | B7: STPN-146-4(8)--2J-64
A8: English or Metric | B8: ENGLISH
A9: Revised
A10: Bridge Block
A11: File No.

Sheet PrintSheets
B94: FILE NO. | I94: =IF(ProjectInformation!$B$11<>"",ProjectInformation!$B$11,"") ->  | P94: =UPPER(ProjectInformation!B8) -> ENGLISH | W94: DESIGN TEAM | AF94: =IF(AND(ProjectInformation!$B$3<>"",ProjectInformation!$B$4<>"",ProjectInformation!$B$5<>""),ProjectInformation!$B$3&"\"&ProjectInformation!$B$4&"\"&ProjectInformation!$B$5,IF(AND(ProjectInformation!$B$3<>"",ProjectInformation!$B$4<>""),ProjectInformation!$B$3&"\"&ProjectInformation!$B$4,IF(ProjectInformation!$B$3<>"",ProjectInformation!$B$3,""))) -> Gustafson\Smyth\Ringgenberg | BN94: =IF(ProjectInformation!$B$6<>"",ProjectInformation!$B$6,"") -> MARSHALL | CX94: COUNTY | DD94: PROJECT NUMBER | DP94: =IF(ProjectInformation!$B$7<>"",ProjectInformation!$B$7,"") -> STPN-146-4(8)--2J-64 | ET94: SHEET NUMBER | FD94: C.1 | FJ94: =IF(FP94<>"","REVISED","") ->  | FP94: =IF(ProjectInformation!$B$9<>"",ProjectInformation!$B$9,"") -> 
B95: 8/14/2017 9:15:25 AM rringge c:\pw_work\pwmain\rringge\d0543816\64146008_C2.xlsm
B189: FILE NO. | I189: =IF(ProjectInformation!$B$11<>"",ProjectInformation!$B$11,"") ->  | P189: =UPPER(ProjectInformation!B8) -> ENGLISH | W189: DESIGN TEAM | AF189: =IF(AND(ProjectInformation!$B$3<>"",ProjectInformation!$B$4<>"",ProjectInformation!$B$5<>""),ProjectInformation!$B$3&"\"&ProjectInformation!$B$4&"\"&ProjectInformation!$B$5,IF(AND(ProjectInformation!$B$3<>"",ProjectInformation!$B$4<>""),ProjectInformation!$B$3&"\"&ProjectInformation!$B$4,IF(ProjectInformation!$B$3<>"",ProjectInformation!$B$3,""))) -> Gustafson\Smyth\Ringgenberg | BN189: =IF(ProjectInformation!$B$6<>"",ProjectInformation!$B$6,"") -> MARSHALL | CX189: COUNTY | DD189: PROJECT NUMBER | DP189: =IF(ProjectInformation!$B$7<>"",ProjectInformation!$B$7,"") -> STPN-146-4(8)--2J-64 | ET189: SHEET NUMBER | FD189: =IF($FD$94<>"","C."& MID(OFFSET($FD$189,-95,0),3,LEN(OFFSET($FD$189,-95,0))-2)+1,"") -> C.2 | FJ189: =IF(FP189<>"","REVISED","") ->  | FP189: =IF(ProjectInformation!$B$9<>"",ProjectInformation!$B$9,"") -> 
B190: 8/14/2017 9:15:25 AM rringge c:\pw_work\pwmain\rringge\d0543816\64146008_C2.xlsm
B284: FILE NO. | I284: =IF(ProjectInformation!$B$11<>"",ProjectInformation!$B$11,"") ->  | P284: =UPPER(ProjectInformation!B8) -> ENGLISH | W284: DESIGN TEAM | AF284: =IF(AND(ProjectInformation!$B$3<>"",ProjectInformation!$B$4<>"",ProjectInformation!$B$5<>""),ProjectInformation!$B$3&"\"&ProjectInformation!$B$4&"\"&ProjectInformation!$B$5,IF(AND(ProjectInformation!$B$3<>"",ProjectInformation!$B$4<>""),ProjectInformation!$B$3&"\"&ProjectInformation!$B$4,IF(ProjectInformation!$B$3<>"",ProjectInformation!$B$3,""))) -> Gustafson\Smyth\Ringgenberg | BN284: =IF(ProjectInformation!$B$6<>"",ProjectInformation!$B$6,"") -> MARSHALL | CX284: COUNTY | DD284: PROJECT NUMBER | DP284: =IF(ProjectInformation!$B$7<>"",ProjectInformation!$B$7,"") -> STPN-146-4(8)--2J-64 | ET284: SHEET NUMBER | FD284: =IF($FD$189<>"","C."& MID(OFFSET($FD$284,-95,0),3,LEN(OFFSET($FD$284,-95,0))-2)+1,"") -> C.3 | FJ284: =IF(FP284<>"","REVISED","") ->  | FP284: =IF(ProjectInformation!$B$9<>"",ProjectInformation!$B$9,"") -> 
B285: 8/14/2017 9:15:25 AM rringge c:\pw_work\pwmain\rringge\d0543816\64146008_C2.xlsm
B379: FILE NO. | I379: =IF(ProjectInformation!$B$11<>"",ProjectInformation!$B$11,"") ->  | P379: =UPPER(ProjectInformation!B8) -> ENGLISH | W379: DESIGN TEAM | AF379: =IF(AND(ProjectInformation!$B$3<>"",ProjectInformation!$B$4<>"",ProjectInformation!$B$5<>""),ProjectInformation!$B$3&"\"&ProjectInformation!$B$4&"\"&ProjectInformation!$B$5,IF(AND(ProjectInformation!$B$3<>"",ProjectInformation!$B$4<>""),ProjectInformation!$B$3&"\"&ProjectInformation!$B$4,IF(ProjectInformation!$B$3<>"",ProjectInformation!$B$3,""))) -> Gustafson\Smyth\Ringgenberg | BN379: =IF(ProjectInformation!$B$6<>"",ProjectInformation!$B$6,"") -> MARSHALL | CX379: COUNTY | DD379: PROJECT NUMBER | DP379: =IF(ProjectInformation!$B$7<>"",ProjectInformation!$B$7,"") -> STPN-146-4(8)--2J-64 | ET379: SHEET NUMBER | FD379: =IF($FD$284<>"","C."& MID(OFFSET($FD$379,-95,0),3,LEN(OFFSET($FD$379,-95,0))-2)+1,"") -> C.4 | FJ379: =IF(FP379<>"","REVISED","") ->  | FP379: =IF(ProjectInformation!$B$9<>"",ProjectInformation!$B$9,"") -> 
B380: 8/14/2017 9:15:25 AM rringge c:\pw_work\pwmain\rringge\d0543816\64146008_C2.xlsm
B474: FILE NO. | I474: =IF(ProjectInformation!$B$11<>"",ProjectInformation!$B$11,"") ->  | P474: =UPPER(ProjectInformation!B8) -> ENGLISH | W474: DESIGN TEAM | AF474: =IF(AND(ProjectInformation!$B$3<>"",ProjectInformation!$B$4<>"",ProjectInformation!$B$5<>""),ProjectInformation!$B$3&"\"&ProjectInformation!$B$4&"\"&ProjectInformation!$B$5,IF(AND(ProjectInformation!$B$3<>"",ProjectInformation!$B$4<>""),ProjectInformation!$B$3&"\"&ProjectInformation!$B$4,IF(ProjectInformation!$B$3<>"",ProjectInformation!$B$3,""))) -> Gustafson\Smyth\Ringgenberg | BN474: =IF(ProjectInformation!$B$6<>"",ProjectInformation!$B$6,"") -> MARSHALL | CX474: COUNTY | DD474: PROJECT NUMBER | DP474: =IF(ProjectInformation!$B$7<>"",ProjectInformation!$B$7,"") -> STPN-146-4(8)--2J-64 | ET474: SHEET NUMBER | FD474: =IF($FD$379<>"","C."& MID(OFFSET($FD$474,-95,0),3,LEN(OFFSET($FD$474,-95,0))-2)+1,"") -> C.5 | FJ474: =IF(FP474<>"","REVISED","") ->  | FP474: =IF(ProjectInformation!$B$9<>"",ProjectInformation!$B$9,"") -> 
B475: 8/14/2017 9:15:25 AM rringge c:\pw_work\pwmain\rringge\d0543816\64146008_C2.xlsm
B569: FILE NO. | I569: =IF(ProjectInformation!$B$11<>"",ProjectInformation!$B$11,"") ->  | P569: =UPPER(ProjectInformation!B8) -> ENGLISH | W569: DESIGN TEAM | AF569: =IF(AND(ProjectInformation!$B$3<>"",ProjectInformation!$B$4<>"",ProjectInformation!$B$5<>""),ProjectInformation!$B$3&"\"&ProjectInformation!$B$4&"\"&ProjectInformation!$B$5,IF(AND(ProjectInformation!$B$3<>"",ProjectInformation!$B$4<>""),ProjectInformation!$B$3&"\"&ProjectInformation!$B$4,IF(ProjectInformation!$B$3<>"",ProjectInformation!$B$3,""))) -> Gustafson\Smyth\Ringgenberg | BN569: =IF(ProjectInformation!$B$6<>"",ProjectInformation!$B$6,"") -> MARSHALL | CX569: COUNTY | DD569: PROJECT NUMBER | DP569: =IF(ProjectInformation!$B$7<>"",ProjectInformation!$B$7,"") -> STPN-146-4(8)--2J-64 | ET569: SHEET NUMBER | FD569: =IF($FD$474<>"","C."& MID(OFFSET($FD$569,-95,0),3,LEN(OFFSET($FD$569,-95,0))-2)+1,"") -> C.6 | FJ569: =IF(FP569<>"","REVISED","") ->  | FP569: =IF(ProjectInformation!$B$9<>"",ProjectInformation!$B$9,"") -> 
B570: 8/14/2017 9:15:25 AM rringge c:\pw_work\pwmain\rringge\d0543816\64146008_C2.xlsm
B664: FILE NO. | I664: =IF(ProjectInformation!$B$11<>"",ProjectInformation!$B$11,"") ->  | P664: =UPPER(ProjectInformation!B8) -> ENGLISH | W664: DESIGN TEAM | AF664: =IF(AND(ProjectInformation!$B$3<>"",ProjectInformation!$B$4<>"",ProjectInformation!$B$5<>""),ProjectInformation!$B$3&"\"&ProjectInformation!$B$4&"\"&ProjectInformation!$B$5,IF(AND(ProjectInformation!$B$3<>"",ProjectInformation!$B$4<>""),ProjectInformation!$B$3&"\"&ProjectInformation!$B$4,IF(ProjectInformation!$B$3<>"",ProjectInformation!$B$3,""))) -> Gustafson\Smyth\Ringgenberg | BN664: =IF(ProjectInformation!$B$6<>"",ProjectInformation!$B$6,"") -> MARSHALL | CX664: COUNTY | DD664: PROJECT NUMBER | DP664: =IF(ProjectInformation!$B$7<>"",ProjectInformation!$B$7,"") -> STPN-146-4(8)--2J-64 | ET664: SHEET NUMBER | FD664: =IF($FD$569<>"","C."& MID(OFFSET($FD$664,-95,0),3,LEN(OFFSET($FD$664,-95,0))-2)+1,"") -> C.7 | FJ664: =IF(FP664<>"","REVISED","") ->  | FP664: =IF(ProjectInformation!$B$9<>"",ProjectInformation!$B$9,"") -> 
B665: 8/14/2017 9:15:25 AM rringge c:\pw_work\pwmain\rringge\d0543816\64146008_C2.xlsm
B759: FILE NO. | I759: =IF(ProjectInformation!$B$11<>"",ProjectInformation!$B$11,"") ->  | P759: =UPPER(ProjectInformation!B8) -> ENGLISH | W759: DESIGN TEAM | AF759: =IF(AND(ProjectInformation!$B$3<>"",ProjectInformation!$B$4<>"",ProjectInformation!$B$5<>""),ProjectInformation!$B$3&"\"&ProjectInformation!$B$4&"\"&ProjectInformation!$B$5,IF(AND(ProjectInformation!$B$3<>"",ProjectInformation!$B$4<>""),ProjectInformation!$B$3&"\"&ProjectInformation!$B$4,IF(ProjectInformation!$B$3<>"",ProjectInformation!$B$3,""))) -> Gustafson\Smyth\Ringgenberg | BN759: =IF(ProjectInformation!$B$6<>"",ProjectInformation!$B$6,"") -> MARSHALL | CX759: COUNTY | DD759: PROJECT NUMBER | DP759: =IF(ProjectInformation!$B$7<>"",ProjectInformation!$B$7,"") -> STPN-146-4(8)--2J-64 | ET759: SHEET NUMBER | FD759: =IF($FD$664<>"","C."& MID(OFFSET($FD$759,-95,0),3,LEN(OFFSET($FD$759,-95,0))-2)+1,"") -> C.8 | FJ759: =IF(FP759<>"","REVISED","") ->  | FP759: =IF(ProjectInformation!$B$9<>"",ProjectInformation!$B$9,"") -> 
B760: 8/14/2017 9:15:25 AM rringge c:\pw_work\pwmain\rringge\d0543816\64146008_C2.xlsm
B854: FILE NO. | I854: =IF(ProjectInformation!$B$11<>"",ProjectInformation!$B$11,"") ->  | P854: =UPPER(ProjectInformation!B8) -> ENGLISH | W854: DESIGN TEAM | AF854: =IF(AND(ProjectInformation!$B$3<>"",ProjectInformation!$B$4<>"",ProjectInformation!$B$5<>""),ProjectInformation!$B$3&"\"&ProjectInformation!$B$4&"\"&ProjectInformation!$B$5,IF(AND(ProjectInformation!$B$3<>"",ProjectInformation!$B$4<>""),ProjectInformation!$B$3&"\"&ProjectInformation!$B$4,IF(ProjectInformation!$B$3<>"",ProjectInformation!$B$3,""))) -> Gustafson\Smyth\Ringgenberg | BN854: =IF(ProjectInformation!$B$6<>"",ProjectInformation!$B$6,"") -> MARSHALL | CX854: COUNTY | DD854: PROJECT NUMBER | DP854: =IF(ProjectInformation!$B$7<>"",ProjectInformation!$B$7,"") -> STPN-146-4(8)--2J-64 | ET854: SHEET NUMBER | FD854: =IF($FD$759<>"","C."& MID(OFFSET($FD$854,-95,0),3,LEN(OFFSET($FD$854,-95,0))-2)+1,"") -> C.9 | FJ854: =IF(FP854<>"","REVISED","") ->  | FP854: =IF(ProjectInformation!$B$9<>"",ProjectInformation!$B$9,"") -> 
B855: 8/14/2017 9:15:25 AM rringge c:\pw_work\pwmain\rringge\d0543816\64146008_C2.xlsm
B949: FILE NO. | I949: =IF(ProjectInformation!$B$11<>"",ProjectInformation!$B$11,"") ->  | P949: =UPPER(ProjectInformation!B8) -> ENGLISH | W949: DESIGN TEAM | AF949: =IF(AND(ProjectInformation!$B$3<>"",ProjectInformation!$B$4<>"",ProjectInformation!$B$5<>""),ProjectInformation!$B$3&"\"&ProjectInformation!$B$4&"\"&ProjectInformation!$B$5,IF(AND(ProjectInformation!$B$3<>"",ProjectInformation!$B$4<>""),ProjectInformation!$B$3&"\"&ProjectInformation!$B$4,IF(ProjectInformation!$B$3<>"",ProjectInformation!$B$3,""))) -> Gustafson\Smyth\Ringgenberg | BN949: =IF(ProjectInformation!$B$6<>"",ProjectInformation!$B$6,"") -> MARSHALL | CX949: COUNTY | DD949: PROJECT NUMBER | DP949: =IF(ProjectInformation!$B$7<>"",ProjectInformation!$B$7,"") -> STPN-146-4(8)--2J-64 | ET949: SHEET NUMBER | FD949: =IF($FD$854<>"","C."& MID(OFFSET($FD$949,-95,0),3,LEN(OFFSET($FD$949,-95,0))-2)+1,"") -> C.10 | FJ949: =IF(FP949<>"","REVISED","") ->  | FP949: =IF(ProjectInformation!$B$9<>"",ProjectInformation!$B$9,"") -> 
B950: 8/14/2017 9:15:26 AM rringge c:\pw_work\pwmain\rringge\d0543816\64146008_C2.xlsm

Sheet DE100_1C
A1: TabTitle | B1: =C15 -> ESTIMATED PROJECT QUANTITIES (UP TO A 5 DIVISION PROJECT)
A2: Number of Tab Columns | B2: 15
A3: DE Starter Row Number | B3: 24
A4: TabSheet Starter Row Number | B4: 11
A5: TabSheet Header Row Count | B5: 10
A6: Top Header Cell | B6: S15
A7: Bottom Header Cell | B7: AG24
A8: DESheet Row Count | B8: 85
A9: Fixed Empty Rows | B9: 3
A10: Usable Empty Rows | B10: 0
A11: Total Rows Placed | B11: 91 | C11: xlCenter | D11: xlCenter | E11: xlLeft(1) | F11: xlLeft(1) | G11: xlRight(1) | H11: xlRight(1) | I11: xlRight(1) | J11: xlRight(1) | K11: xlRight(1) | L11: xlRight(1) | M11: xlRight(1) | N11: xlRight(1) | O11: xlRight(1) | P11: xlRight(1) | Q11: xlRight(1) | S11: =C11 -> xlCenter | T11: xlCenter | U11: xlLeft(1) | V11: xlLeft(1) | W11: xlRight(1) | X11: xlRight(1) | Y11: xlRight(1) | Z11: xlRight(1) | AA11: xlRight(1) | AB11: xlRight(1) | AC11: xlRight(1) | AD11: xlRight(1) | AE11: xlRight(1) | AF11: xlRight(1) | AG11: xlRight(1)
A12: Total Rows Needed | B12: =SUM(B8:B10) -> 88 | C12: General | D12: General | E12: General | F12: General | G12: General | H12: General | I12: General | J12: General | K12: General | L12: General | M12: General | N12: General | O12: General | P12: General | Q12: General | S12: General | T12: General | U12: General | V12: General | W12: General | X12: General | Y12: General | Z12: General | AA12: General | AB12: General | AC12: General | AD12: General | AE12: General | AF12: General | AG12: General
A13: Last Tab DE Starter Row | B13: 91 | C13: =CELL("width",C13) -> 12 | D13: 16 | E13: 95 | F13: 11 | G13: 16 | H13: 16 | I13: 16 | J13: 16 | K13: 16 | L13: 20 | M13: 16 | N13: 16 | O13: 16 | P13: 16 | Q13: 16 | S13: =CELL("width",S13) -> 0 | T13: 0 | U13: 0 | V13: 0 | W13: 0 | X13: 0 | Y13: 0 | Z13: 0 | AA13: 0 | AB13: 0 | AC13: 0 | AD13: 0 | AE13: 0 | AF13: 0 | AG13: 0
A14: Last Tab Tabsheet Starter Row | B14: 88 | C14: A | D14: B | E14: C | F14: D | G14: E | H14: F | I14: G | J14: H | K14: I | L14: J | M14: K | N14: L | O14: M | P14: N | Q14: O | S14: =LOWER(C14) -> a | T14: b | U14: c | V14: d | W14: e | X14: f | Y14: g | Z14: h | AA14: i | AB14: j | AC14: k | AD14: l | AE14: m | AF14: n | AG14: o
A15: Last Copy Starter Row | B15: 78 | C15: ESTIMATED PROJECT QUANTITIES (UP TO A 5 DIVISION PROJECT) | I15: Division 1: | J15: DOT Funded | S15: 100-1C
A16: Tab Loop Number | B16: 3 | I16: Division 2: | J16: Marshall County Funded | S16: =B17 -> 2012-04-17
A17: Revision Date | B17: 2012-04-17 | I17: Division 3: | S17: =C15 -> ESTIMATED PROJECT QUANTITIES (UP TO A 5 DIVISION PROJECT) | Z17: =IF(J15>"",I15,"") -> Division 1: | AA17: =IF(J15>"",J15,"") -> DOT Funded
A18: Tabulation Width | B18: 4 | I18: Division 4: | Z18: =IF(J16>"",I16,"") -> Division 2: | AA18: =IF(J16>"",J16,"") -> Marshall County Funded
A19: Horizontal Grid Lines | B19: Yes | I19: Division 5: | Z19: =IF(J17>"",I17,"") ->  | AA19: =IF(J17>"",J17,"") -> 
C20: ="This Data Entry Sheet fills Tab "&S15&" effective "&TEXT(B17,"mm-dd-yy") -> This Data Entry Sheet fills Tab 100-1C effective 04-17-12 | Z20: =IF(J18>"",I18,"") ->  | AA20: =IF(J18>"",J18,"") -> 
C21: Item No. | D21: Item Code | E21: Item | F21: Unit | G21: Quantities | Z21: =IF(J19>"",I19,"") ->  | AA21: =IF(J19>"",J19,"") -> 
G22: Estimated | M22: As Built | S22: Item No. | T22: Item Code | U22: Item | V22: Unit | W22: Quantities
G23: Division 1 | H23: Division 2 | I23: Division 3 | J23: Division 4 | K23: Division 5 | L23: Total | M23: Division 1 | N23: Division 2 | O23: Division 3 | P23: Division 4 | Q23: Division 5 | W23: Estimated | AC23: As Built
C24: 1 | D24: 2102-2625001 | E24: EMBANKMENT-IN-PLACE, CONTRACTOR FURNISHED | F24: CY | G24: 185,867.0 | L24: 185,867.0
C25: 2 | D25: 2102-2710070 | E25: EXCAVATION, CLASS 10, ROADWAY AND BORROW | F25: CY | G25: 54,995.0 | L25: 54,995.0
C26: 3 | D26: 2102-2712015 | E26: EXCAVATION, CLASS 12, BOULDERS OR ROCK FRAGMENTS | F26: CY | G26: 20.0 | L26: 20.0
C27: 4 | D27: 2102-2713070 | E27: EXCAVATION, CLASS 13, ROADWAY AND BORROW | F27: CY | G27: 8,596.0 | L27: 8,596.0
C28: 5 | D28: 2105-8425015 | E28: TOPSOIL, STRIP, SALVAGE AND SPREAD | F28: CY | G28: 36,574.0 | L28: 36,574.0
C29: 6 | D29: 2107-0875100 | E29: COMPACTION WITH MOISTURE CONTROL | F29: CY | G29: 228,171.0 | L29: 228,171.0
C30: 7 | D30: 2115-0100000 | E30: MODIFIED SUBBASE | F30: CY | G30: 13,365.9 | H30: 334.2 | L30: 13,700.1
C31: 8 | D31: 2121-7425010 | E31: GRANULAR SHOULDERS, TYPE A | F31: TON | G31: 10,656.9 | L31: 10,656.9
C32: 9 | D32: 2122-5190008 | E32: PAVED SHOULDER, P.C. CONCRETE, 8 IN. | F32: SY | G32: 449.6 | L32: 449.6
C33: 10 | D33: 2122-5190501 | E33: PAVED SHOULDER, PORTLAND CEMENT CONCRETE (PAVED SHOULDER PANEL FOR | F33: SY | G33: 93.3 | L33: 93.3
E34: BRIDGE END DRAIN)
C35: 11 | D35: 2123-7450000 | E35: SHOULDER CONSTRUCTION, EARTH | F35: STA | G35: 194.60 | L35: 194.60
C36: 12 | D36: 2123-7450020 | E36: SHOULDER FINISHING, EARTH | F36: STA | G36: 5.62 | L36: 5.62
C37: 13 | D37: 2301-0690203 | E37: BRIDGE APPROACH, BR-203 | F37: SY | G37: 604.6 | L37: 604.6
C38: 14 | D38: 2301-1003080 | E38: STANDARD OR SLIP-FORM PORTLAND CEMENT CONCRETE PAVEMENT, QM-C, CLASS | F38: SY | H38: 668.4 | L38: 668.4
E39: 3 DURABILITY, 8 IN.
C40: 15 | D40: 2301-1003095 | E40: STANDARD OR SLIP-FORM PORTLAND CEMENT CONCRETE PAVEMENT, QM-C, CLASS | F40: SY | G40: 33,267.9 | L40: 33,267.9
E41: 3 DURABILITY, 9.5 IN.
C42: 16 | D42: 2312-8260051 | E42: GRANULAR SURFACING ON ROAD, CLASS A CRUSHED STONE | F42: TON | G42: 774.8 | L42: 774.8
C43: 17 | D43: 2315-8275055 | E43: SURFACING, DRIVEWAY | F43: TON | G43: 823.3 | L43: 823.3
C44: 18 | D44: 2402-0425040 | E44: FLOODED BACKFILL | F44: CY | G44: 5,688.2 | L44: 5,688.2
C45: 19 | D45: 2402-2720100 | E45: EXCAVATION, CLASS 20, FOR ROADWAY PIPE CULVERT | F45: CY | G45: 543.9 | L45: 543.9
C46: 20 | D46: 2412-0000100 | E46: LONGITUDINAL GROOVING IN CONCRETE | F46: SY | G46: 1,780.0 | L46: 1,780.0
C47: 21 | D47: 2416-0100024 | E47: APRONS, CONCRETE, 24 IN. DIA. | F47: EACH | G47: 4 | L47: 4
C48: 22 | D48: 2416-0100036 | E48: APRONS, CONCRETE, 36 IN. DIA. | F48: EACH | G48: 2 | L48: 2
C49: 23 | D49: 2416-0100042 | E49: APRONS, CONCRETE, 42 IN. DIA. | F49: EACH | G49: 5 | L49: 5
C50: 24 | D50: 2416-0100054 | E50: APRONS, CONCRETE, 54 IN. DIA. | F50: EACH | G50: 2 | L50: 2
C51: 25 | D51: 2416-0100072 | E51: APRONS, CONCRETE, 72 IN. DIA. | F51: EACH | G51: 2 | L51: 2
C52: 26 | D52: 2416-1180024 | E52: CULVERT, CONCRETE ROADWAY PIPE, 24 IN. DIA. | F52: LF | G52: 184 | L52: 184
C53: 27 | D53: 2416-1180036 | E53: CULVERT, CONCRETE ROADWAY PIPE, 36 IN. DIA. | F53: LF | G53: 126 | L53: 126
C54: 28 | D54: 2416-1180042 | E54: CULVERT, CONCRETE ROADWAY PIPE, 42 IN. DIA. | F54: LF | G54: 136 | L54: 136
C55: 29 | D55: 2416-1180054 | E55: CULVERT, CONCRETE ROADWAY PIPE, 54 IN. DIA. | F55: LF | G55: 140 | L55: 140
C56: 30 | D56: 2416-1180072 | E56: CULVERT, CONCRETE ROADWAY PIPE, 72 IN. DIA. | F56: LF | G56: 150 | L56: 150
C57: 31 | D57: 2416-1200224 | E57: CULVERT, LOW CLEARANCE CONCRETE ROADWAY PIPE, EQUIVALENT DIAMETER 24 | F57: LF | G57: 34 | L57: 34
E58: IN.
C59: 32 | D59: 2416-1245042 | E59: CULVERT, 3750D CONCRETE ROADWAY PIPE, 42 IN. DIA. | F59: LF | G59: 224 | L59: 224
C60: 33 | D60: 2418-0000010 | E60: TEMPORARY STREAM DIVERSION | F60: EACH | G60: 1 | L60: 1
C61: 34 | D61: 2422-0360024 | E61: APRONS, UNCLASSIFIED, 24 IN. DIA. | F61: EACH | G61: 6 | L61: 6
C62: 35 | D62: 2422-1722024 | E62: CULVERT, UNCLASSIFIED ENTRANCE PIPE, 24 IN. DIA. | F62: LF | G62: 200 | L62: 200
C63: 36 | D63: 2435-0250900 | E63: INTAKE, SW-509 | F63: EACH | G63: 2 | L63: 2
C64: 37 | D64: 2502-6745952 | E64: REMOVAL OF SUBDRAIN | F64: LF | G64: 9,671.0 | L64: 9,671.0
C65: 38 | D65: 2502-8212034 | E65: SUBDRAIN, LONGITUDINAL, (SHOULDER) 4 IN. DIA. | F65: LF | G65: 20,501.0 | L65: 20,501.0
C66: 39 | D66: 2502-8221306 | E66: SUBDRAIN OUTLET, DR-306 | F66: EACH | G66: 77 | L66: 77
C67: 40 | D67: 2503-0500402 | E67: BRIDGE END DRAIN, DR-402 | F67: EACH | G67: 4 | L67: 4
C68: 41 | D68: 2505-4008300 | E68: STEEL BEAM GUARDRAIL | F68: LF | G68: 213.0 | L68: 213.0
C69: 42 | D69: 2505-4021010 | E69: STEEL BEAM GUARDRAIL END ANCHOR, BOLTED | F69: EACH | G69: 4 | L69: 4
C70: 43 | D70: 2505-4021720 | E70: STEEL BEAM GUARDRAIL TANGENT END TERMINAL, BA-205 | F70: EACH | G70: 4 | L70: 4
C71: 44 | D71: 2507-3250005 | E71: ENGINEERING FABRIC | F71: SY | G71: 179.1 | L71: 179.1
C72: 45 | D72: 2507-6800061 | E72: REVETMENT, CLASS E | F72: TON | G72: 169.3 | L72: 169.3
C73: 46 | D73: 2510-6745850 | E73: REMOVAL OF PAVEMENT | F73: SY | G73: 29,577.5 | L73: 29,577.5
C74: 47 | D74: 2510-6750600 | E74: REMOVAL OF INTAKES AND UTILITY ACCESSES | F74: EACH | G74: 2 | L74: 2
C75: 48 | D75: 2511-7526004 | E75: SIDEWALK, P.C. CONCRETE, 4 IN. | F75: SY | G75: 18.9 | L75: 18.9
C76: 49 | D76: 2511-7526006 | E76: SIDEWALK, P.C. CONCRETE, 6 IN. | F76: SY | G76: 25.0 | L76: 25.0
C77: 50 | D77: 2511-7528101 | E77: DETECTABLE WARNINGS | F77: SF | G77: 20 | L77: 20
C78: 51 | D78: 2512-1725256 | E78: CURB AND GUTTER, P.C. CONCRETE, 2.5 FT. | F78: LF | G78: 562.5 | L78: 562.5
C79: 52 | D79: 2515-2475006 | E79: DRIVEWAY, P.C. CONCRETE, 6 IN. | F79: SY | G79: 118.7 | L79: 118.7
C80: 53 | D80: 2515-6745600 | E80: REMOVAL OF PAVED DRIVEWAY | F80: SY | G80: 118.7 | L80: 118.7
C81: 54 | D81: 2518-6910000 | E81: SAFETY CLOSURE | F81: EACH | G81: 4 | L81: 4
C82: 55 | D82: 2526-8285000 | E82: CONSTRUCTION SURVEY | F82: LS | G82: 1.00 | L82: 1.00
C83: 56 | D83: 2527-9263109 | E83: PAINTED PAVEMENT MARKING, WATERBORNE OR SOLVENT-BASED | F83: STA | G83: 299.32 | L83: 299.32
C84: 57 | D84: 2527-9263137 | E84: PAINTED SYMBOLS AND LEGENDS, WATERBORNE OR SOLVENT-BASED | F84: EACH | G84: 3 | L84: 3
C85: 58 | D85: 2527-9263180 | E85: PAVEMENT MARKINGS REMOVED | F85: STA | G85: 20.00 | L85: 20.00
C86: 59 | D86: 2528-8445110 | E86: TRAFFIC CONTROL | F86: LS | G86: 1.00 | L86: 1.00
C87: 60 | D87: 2528-8445113 | E87: FLAGGERS | F87: EACH | L87: See Proposal
C88: 61 | D88: 2533-4980005 | E88: MOBILIZATION | F88: LS | G88: 1.00 | L88: 1.00
C89: 62 | D89: 2548-0000200 | E89: MILLED SHOULDER RUMBLE STRIPS, PCC SURFACE | F89: STA | G89: 190.7 | L89: 190.7
C90: 63 | D90: 2548-0000320 | E90: MILLED CENTERLINE RUMBLE STRIPS, PCC SURFACE | F90: STA | G90: 89.4 | L90: 89.4
C91: 64 | D91: 2601-2633100 | E91: MOWING | F91: ACRE | G91: 52.6 | L91: 52.6
C92: 65 | D92: 2601-2634100 | E92: MULCHING | F92: ACRE | G92: 26.3 | L92: 26.3
C93: 66 | D93: 2601-2634105 | E93: MULCHING, BONDED FIBER MATRIX | F93: ACRE | G93: 4.2 | L93: 4.2
C94: 67 | D94: 2601-2636060 | E94: SALT TOLERANT SEEDING | F94: ACRE | G94: 4.2 | L94: 4.2
C95: 68 | D95: 2601-2642100 | E95: STABILIZING CROP - SEEDING AND FERTILIZING | F95: ACRE | G95: 26.3 | L95: 26.3
C96: 69 | D96: 2602-0000020 | E96: SILT FENCE | F96: LF | G96: 37,262.5 | L96: 37,262.5
C97: 70 | D97: 2602-0000030 | E97: SILT FENCE FOR DITCH CHECKS | F97: LF | G97: 5,442.0 | L97: 5,442.0
C98: 71 | D98: 2602-0000071 | E98: REMOVAL OF SILT FENCE OR SILT FENCE FOR DITCH CHECKS | F98: LF | G98: 21,352.3 | L98: 21,352.3
C99: 72 | D99: 2602-0000101 | E99: MAINTENANCE OF SILT FENCE OR SILT FENCE FOR DITCH CHECK | F99: LF | G99: 4,270.5 | L99: 4,270.5
C100: 73 | D100: 2602-0000130 | E100: TEMPORARY SEDIMENT CONTROL BASIN | F100: EACH | G100: 5 | L100: 5
C101: 74 | D101: 2602-0000135 | E101: REMOVAL OF TEMPORARY SEDIMENT CONTROL BASIN | F101: EACH | G101: 5 | L101: 5
C102: 75 | D102: 2602-0000140 | E102: MAINTENANCE OF TEMPORARY SEDIMENT CONTROL BASIN | F102: EACH | G102: 15 | L102: 15
C103: 76 | D103: 2602-0000312 | E103: PERIMETER AND SLOPE SEDIMENT CONTROL DEVICE, 12 IN. DIA. | F103: LF | G103: 2,000.0 | L103: 2,000.0
C104: 77 | D104: 2602-0000320 | E104: PERIMETER AND SLOPE SEDIMENT CONTROL DEVICE, 20 IN. DIA. | F104: LF | G104: 2,000.0 | L104: 2,000.0
C105: 78 | D105: 2602-0000350 | E105: REMOVAL OF PERIMETER AND SLOPE SEDIMENT CONTROL DEVICE | F105: LF | G105: 4,000.0 | L105: 4,000.0
C106: 79 | D106: 2602-0010010 | E106: MOBILIZATIONS, EROSION CONTROL | F106: EACH | G106: 1 | L106: 1
C107: 80 | D107: 2602-0010020 | E107: MOBILIZATIONS, EMERGENCY EROSION CONTROL | F107: EACH | G107: 1 | L107: 1
C108: 81 | D108: 2612-0000520 | E108: ROADSIDE SPRAY FOR WEED CONTROL | F108: ACRE | G108: 5.0 | L108: 5.0

Sheet DE100_1D
A1: TabTitle | B1: =C15 -> PROJECT DESCRIPTION
A2: Number of Tab Columns | B2: 1
A3: DE Starter Row Number | B3: 18
A4: TabSheet Starter Row Number | B4: 5
A5: TabSheet Header Row Count | B5: 4
A6: Top Header Cell | B6: E15
A7: Bottom Header Cell | B7: E18
A8: DESheet Row Count | B8: 2
A9: Fixed Empty Rows | B9: 6
A10: Usable Empty Rows | B10: 0
A11: Total Rows Placed | B11: 8 | C11: xlLeft(1) | E11: =C11 -> xlLeft(1)
A12: Total Rows Needed | B12: =SUM(B8:B10) -> 8 | C12: General | E12: =C12 -> General
A13: Last Tab DE Starter Row | B13: 18 | C13: =CELL("width",C13) -> 159 | E13: =CELL("width",E13) -> 0
A14: Last Tab Tabsheet Starter Row | B14: 5 | C14: A | E14: a
A15: Last Copy Starter Row | B15: 1 | C15: PROJECT DESCRIPTION | E15: 100-1D
A16: Tab Loop Number | B16: 2 | E16: =B17 -> 2005-10-18
A17: Revision Date | B17: 2005-10-18 | C17: ="This Data Entry Sheet fills Tab "&E15&" effective "&TEXT(B17,"mm-dd-yy") -> This Data Entry Sheet fills Tab 100-1D effective 10-18-05 | E17: =C15 -> PROJECT DESCRIPTION
A18: Tabulation Width | B18: 2 | C18: Project is located in Marshall Co. on Ia 146 from Co.Rd. E-49 to U.S. 30. The project consists of obliterating existing roadway, grade
A19: Horizontal Grid Lines | B19: No | C19: and pave new PCC roadway and construct new bridge over U.P. Railroad.

Sheet DE100_4A
A1: TabTitle | B1: =C15 -> ESTIMATE REFERENCE INFORMATION
A2: Number of Tab Columns | B2: 3
A3: DE Starter Row Number | B3: 20
A4: TabSheet Starter Row Number | B4: 7
A5: TabSheet Header Row Count | B5: 6
A6: Top Header Cell | B6: G15
A7: Bottom Header Cell | B7: I20
A8: DESheet Row Count | B8: 286
A9: Fixed Empty Rows | B9: 10
A10: Usable Empty Rows | B10: 0
A11: Total Rows Placed | B11: 296 | C11: xlCenter | D11: xlCenter | E11: xlLeft(1) | G11: =C11 -> xlCenter | H11: xlCenter | I11: xlLeft(1)
A12: Total Rows Needed | B12: =SUM(B8:B10) -> 296 | C12: General | D12: General | E12: General | G12: General | H12: General | I12: General
A13: Last Tab DE Starter Row | B13: 282 | C13: =CELL("width",C13) -> 12 | D13: 16 | E13: 129 | G13: =CELL("width",G13) -> 0 | H13: 0 | I13: 0
A14: Last Tab Tabsheet Starter Row | B14: 293 | C14: A | D14: B | E14: C | G14: =LOWER(C14) -> a | H14: =LOWER(D14) -> b | I14: =LOWER(E14) -> c
A15: Last Copy Starter Row | B15: 287 | C15: ESTIMATE REFERENCE INFORMATION | G15: 100-4A
A16: Tab Loop Number | B16: 6 | G16: =B17 -> 2002-10-29
A17: Revision Date | B17: 2002-10-29 | C17: ="This Data Entry Sheet fills Tab "&G15&" effective "&TEXT(B17,"mm-dd-yy") -> This Data Entry Sheet fills Tab 100-4A effective 10-29-02 | G17: =C15 -> ESTIMATE REFERENCE INFORMATION
A18: Tabulation Width | B18: 2 | C18: Item No. | D18: Item Code | E18: Description
A19: Horizontal Grid Lines | B19: Yes | G19: =C18 -> Item No. | H19: =D18 -> Item Code | I19: =E18 -> Description
C20: 1 | D20: 2102-2625001 | E20: EMBANKMENT-IN-PLACE, CONTRACTOR FURNISHED
C21: 2 | D21: 2102-2710070 | E21: EXCAVATION, CLASS 10, ROADWAY AND BORROW
E22: Refer to Tab. 107-28 on Sheets T.1-T.8 and Rural details on Sheets T.1A and T.1B.
C23: - | D23: - | E23: -
C24: 3 | D24: 2102-2712015 | E24: EXCAVATION, CLASS 12, BOULDERS OR ROCK FRAGMENTS
E25: A. Refer to Tab. 103-7 on Sheet CS.1.
E26: B. Dispose of excess material according to Article 1106.07 of the current
E27: specifications.
C28: - | D28: - | E28: -
C29: 4 | D29: 2102-2713070 | E29: EXCAVATION, CLASS 13, ROADWAY AND BORROW
E30: Refer to Tab. RLS-2 on Sheet CS.4.
E31: Item is for the removal of material found during the removal of exisiting longitudinal subdrains.
C32: - | D32: - | E32: -
C33: 5 | D33: 2105-8425015 | E33: TOPSOIL, STRIP, SALVAGE AND SPREAD
C34: 6 | D34: 2107-0875100 | E34: COMPACTION WITH MOISTURE CONTROL
E35: Refer to Tab. 107-28 on Sheets T.1-T.8 and Rural details on Sheets T.1A and T.1B.
C36: - | D36: - | E36: -
C37: 7 | D37: 2115-0100000 | E37: MODIFIED SUBBASE
E38: Refer to Tab. 100-24 on Sheet C.5 and Typical 7149 on Sheet B.4.
E40: Refer to Typical 2_G_ on Sheet B.1, Typical 7156 on Sheet B.5 and Tab. 100-24 on Sheet C.5 and
E41: Tab. 112-9 on Sheet C.6.
C42: - | D42: - | E42: -
C43: 8 | D43: 2121-7425010 | E43: GRANULAR SHOULDERS, TYPE A
E44: Refer to Tab. 112-9 on Sheet C.6 and Mainline Typical on Sheet B.2.
C45: - | D45: - | E45: -
C46: 9 | D46: 2122-5190008 | E46: PAVED SHOULDER, P.C. CONCRETE, 8 IN.
E47: Refer to Tab. 112-9 on Sheet C.6.
C48: - | D48: - | E48: -
C49: 10 | D49: 2122-5190501 | E49: PAVED SHOULDER, PORTLAND CEMENT CONCRETE (PAVED SHOULDER PANEL FOR BRIDGE END DRAIN)
E50: Refer to Tab. 104-8A on Sheet C.8.
C51: - | D51: - | E51: -
C52: 11 | D52: 2123-7450000 | E52: SHOULDER CONSTRUCTION, EARTH
E53: Refer to Tab. 112-9 on Sheet C.6.
E54: 2,788 cu. yds. of Topsoil available for Earth Shoulder Fill.
E55: No payment for overhaul allowed for this material.
C56: - | D56: - | E56: -
C57: 12 | D57: 2123-7450020 | E57: SHOULDER FINISHING, EARTH
E58: Item is for shoulder finishing behind curbed sections.
E59: Refer to Tab. 112-4 on sheet C.6 for locations.
C60: - | D60: - | E60: -
C61: 13 | D61: 2301-0690203 | E61: BRIDGE APPROACH, BR-203
E62: Refer to Tab. 112-6 on Sheet C.8.
C63: - | D63: - | E63: -
C64: 14 | D64: 2301-1003080 | E64: STANDARD OR SLIP-FORM PORTLAND CEMENT CONCRETE PAVEMENT, QM-C, CLASS 3 DURABILITY, 8 IN.
E65: Refer to Tab. 100-24 on Sheet C.5 and Typical 7149 on Sheet B.4.
C66: - | D66: - | E66: -
C67: 15 | D67: 2301-1003095 | E67: STANDARD OR SLIP-FORM PORTLAND CEMENT CONCRETE PAVEMENT, QM-C, CLASS 3 DURABILITY, 9.5 IN.
E68: Refer to Tab. 100-24 on Sheet C.5 and Typical 2_G_ on Sheet B.1.
C69: - | D69: - | E69: -
C70: 16 | D70: 2312-8260051 | E70: GRANULAR SURFACING ON ROAD, CLASS A CRUSHED STONE
E71: Refer to Tab. 102-3 on Sheet C.7.
C72: - | D72: - | E72: -
C73: 17 | D73: 2315-8275055 | E73: SURFACING, DRIVEWAY
E74: Refer to Tab. 102-3 on Sheet C.7.
C75: - | D75: - | E75: -
C76: 18 | D76: 2402-0425040 | E76: FLOODED BACKFILL
C77: 19 | D77: 2402-2720100 | E77: EXCAVATION, CLASS 20, FOR ROADWAY PIPE CULVERT
E78: Refer to Tab. 104-3 on Sheet CD.1.
C79: - | D79: - | E79: -
C80: 20 | D80: 2412-0000100 | E80: LONGITUDINAL GROOVING IN CONCRETE
E81: Refer to Tab. 100-28 on Sheet C.8.
C82: - | D82: - | E82: -
C83: 21 | D83: 2416-0100024 | E83: APRONS, CONCRETE, 24 IN. DIA.
C84: 22 | D84: 2416-0100036 | E84: APRONS, CONCRETE, 36 IN. DIA.
C85: 23 | D85: 2416-0100042 | E85: APRONS, CONCRETE, 42 IN. DIA.
C86: 24 | D86: 2416-0100054 | E86: APRONS, CONCRETE, 54 IN. DIA.
C87: 25 | D87: 2416-0100072 | E87: APRONS, CONCRETE, 72 IN. DIA.
C88: 26 | D88: 2416-1180024 | E88: CULVERT, CONCRETE ROADWAY PIPE, 24 IN. DIA.
C89: 27 | D89: 2416-1180036 | E89: CULVERT, CONCRETE ROADWAY PIPE, 36 IN. DIA.
C90: 28 | D90: 2416-1180042 | E90: CULVERT, CONCRETE ROADWAY PIPE, 42 IN. DIA.
C91: 29 | D91: 2416-1180054 | E91: CULVERT, CONCRETE ROADWAY PIPE, 54 IN. DIA.
C92: 30 | D92: 2416-1180072 | E92: CULVERT, CONCRETE ROADWAY PIPE, 72 IN. DIA.
C93: 31 | D93: 2416-1200224 | E93: CULVERT, LOW CLEARANCE CONCRETE ROADWAY PIPE, EQUIVALENT DIAMETER 24 IN.
C94: 32 | D94: 2416-1245042 | E94: CULVERT, 3750D CONCRETE ROADWAY PIPE, 42 IN. DIA.
E95: Refer to Tab. 104-3 on Sheet CD-1.
C96: - | D96: - | E96: -
C97: 33 | D97: 2418-0000010 | E97: TEMPORARY STREAM DIVERSION
E98: Refer to Tab. 100-17 on Sheet CE.3 for silt fence to be used for stream diversion.
C99: - | D99: - | E99: -
C100: 34 | D100: 2422-0360024 | E100: APRONS, UNCLASSIFIED, 24 IN. DIA.
C101: 35 | D101: 2422-1722024 | E101: CULVERT, UNCLASSIFIED ENTRANCE PIPE, 24 IN. DIA.
E102: Refer to Tab. 102-3 on Sheet C.7.
C103: - | D103: - | E103: -
C104: 36 | D104: 2435-0250900 | E104: INTAKE, SW-509
E105: Refer to Tab. 104-5A on Sheet C.8.
E106: New intake shall require extension of 15" pipe to connect to existing pipe.
C107: - | D107: - | E107: -
C108: 37 | D108: 2502-6745952 | E108: REMOVAL OF SUBDRAIN
E109: Refer to Tab. RLS-2 on Sheet CS.3.
C110: - | D110: - | E110: -
C114: 38 | D114: 2502-8212034 | E114: SUBDRAIN, LONGITUDINAL, (SHOULDER) 4 IN. DIA.
C115: 39 | D115: 2502-8221306 | E115: SUBDRAIN OUTLET, DR-306
E116: Refer to Tab. 104-9 on Sheets CS.2 & CS.3.
C117: - | D117: - | E117: -
C118: 40 | D118: 2503-0500402 | E118: BRIDGE END DRAIN, DR-402
E119: Refer to Tab. 104-8A on Sheet C.8.
C120: - | D120: - | E120: -
C121: 41 | D121: 2505-4008300 | E121: STEEL BEAM GUARDRAIL
C122: 42 | D122: 2505-4021010 | E122: STEEL BEAM GUARDRAIL END ANCHOR, BOLTED
C123: 43 | D123: 2505-4021720 | E123: STEEL BEAM GUARDRAIL TANGENT END TERMINAL, BA-205
E124: Refer to Tab. 108-8A on Sheet C.8.
C125: - | D125: - | E125: -
C126: 44 | D126: 2507-3250005 | E126: ENGINEERING FABRIC
E127: Refer to Tab. 100-23 on Sheet C.9.
E129: Use material specified for embankment erosion control according to Article 4196.01, B, 3.
E130: Material will be measured in sq. yds. of actual area covered.
C131: - | D131: - | E131: -
C132: 45 | D132: 2507-6800061 | E132: REVETMENT, CLASS E
E133: Refer to Tab. 100-23 on Sheet C.9.
C134: - | D134: - | E134: -
C135: 46 | D135: 2510-6745850 | E135: REMOVAL OF PAVEMENT
E136: A. Refer to Tabs.110-1 on Sheet C.8 and 102-5 on Sheet C.5.
C137: - | D137: - | E137: -
C138: 47 | D138: 2510-6750600 | E138: REMOVAL OF INTAKES AND UTILITY ACCESSES
E139: Refer to Tab. 110-15 on Sheet C.8.
C140: - | D140: - | E140: -
C141: 48 | D141: 2511-7526004 | E141: SIDEWALK, P.C. CONCRETE, 4 IN.
C142: 49 | D142: 2511-7526006 | E142: SIDEWALK, P.C. CONCRETE, 6 IN.
C143: 50 | D143: 2511-7528101 | E143: DETECTABLE WARNINGS
E144: Refer to Tabs. 113-1 and 113-10 on Sheet S.1 and S.2 for locations.
E145: See traffic control plan for pedestrian staging or closings.
C146: - | D146: - | E146: -
C147: 51 | D147: 2512-1725256 | E147: CURB AND GUTTER, P.C. CONCRETE, 2.5 FT.
E148: Refer to Typical Curbed Shoulder on Sheet B.2 and Tab. 112-4 on Sheet C.6.
C149: - | D149: - | E149: -
C150: 52 | D150: 2515-2475006 | E150: DRIVEWAY, P.C. CONCRETE, 6 IN.
E151: Refer to Tab. 102-3 on Sheet C.7.
C152: - | D152: - | E152: -
C153: 53 | D153: 2515-6745600 | E153: REMOVAL OF PAVED DRIVEWAY
E154: A. Refer to Tab. 110-8 on Sheet C.7.
E155: B. Requires 20 linear foot of full depth saw cut.
C156: - | D156: - | E156: -
C157: 54 | D157: 2518-6910000 | E157: SAFETY CLOSURE
E158: Refer to Tab. 108-13A on Sheet C.8.
C159: - | D159: - | E159: -
C160: 55 | D160: 2526-8285000 | E160: CONSTRUCTION SURVEY
E161: Refer to TC-283 for traffic control layout.
C162: - | D162: - | E162: -
C163: 56 | D163: 2527-9263109 | E163: PAINTED PAVEMENT MARKING, WATERBORNE OR SOLVENT-BASED
C164: 57 | D164: 2527-9263137 | E164: PAINTED SYMBOLS AND LEGENDS, WATERBORNE OR SOLVENT-BASED
C165: 58 | D165: 2527-9263180 | E165: PAVEMENT MARKINGS REMOVED
E166: Refer to Tabs. 108-29 on Sheet C.10.
C167: - | D167: - | E167: -
C168: 59 | D168: 2528-8445110 | E168: TRAFFIC CONTROL
E169: Refer to Traffic Control Plan on Sheet J.1.
C170: - | D170: - | E170: -
C171: 60 | D171: 2528-8445113 | E171: FLAGGERS
E172: - -
C173: - | D173: - | E173: -
C174: 61 | D174: 2533-4980005 | E174: MOBILIZATION
E175: - -
C176: - | D176: - | E176: -
C177: 62 | D177: 2548-0000200 | E177: MILLED SHOULDER RUMBLE STRIPS, PCC SURFACE
C178: 63 | D178: 2548-0000320 | E178: MILLED CENTERLINE RUMBLE STRIPS, PCC SURFACE
E179: Refer to Tab. 112-10 on Sheet C.7.
C180: - | D180: - | E180: -
C181: 64 | D181: 2601-2633100 | E181: MOWING
E182: Estimate based on two mowings of entire seeded area when the vegetation reaches a
E183: height between 12 and 18 inches.
E185: Mow to a height of 4 to six inches.
E187: Complete all mowings with a flail-type mower. No rotary, disk, or sickle-type mowers will be allowed.
E189: Areas inaccessible to field equipment shall be cut with appropriate hand equipment and kept current with the
E190: mowing of adjacent areas.
C191: - | D191: - | E191: -
C198: 65 | D198: 2601-2634100 | E198: MULCHING
E199: Mulching per Article 2601.03, E, 2. Anchor mulch into the soil using mulch anchoring equipment with a
E200: minimum of two passes.
E202: Included for areas requiring reshaping and seedbed preparation. Mulch shall be Certified Noxious Weed Seed
E203: Free Mulch as certified by the Iowa Crop Improvement Association or adjacent states Crop Improvement
E204: Associations.
E206: Mulch Rate: 1 1/2 tons of dry cereal straw or native grass straw per acre.
C207: - | D207: - | E207: -
C208: 66 | D208: 2601-2634105 | E208: MULCHING, BONDED FIBER MATRIX
E209: A Bonded Fiber Matrix shall be applied as the mulch for all areas eight feet adjacent to the outside shoulder
E210: and seeded as "Salt Tolerant Seeding".
E212: The seed and fertilizer for the area to be covered shall be applied before the Bonded Fiber
E213: Matrix Hydraulic Mulch application.
E215: Application rate shall be a minimum of 3000 lbs per acre.
C216: - | D216: - | E216: -
C217: 67 | D217: 2601-2636060 | E217: SALT TOLERANT SEEDING
E218: - -
... 65 more rows

Sheet DE100_23
A1: TabTitle | B1: =C16 -> ROCK EROSION CONTROL
A2: Number of Tab Columns | B2: 15 | AJ2: Possible Contract Items
A3: DE Starter Row Number | B3: 25 | AI3: 2507-8029000 | AJ3: EROSION STONE | AK3: =N15 -> 0
A4: TabSheet Starter Row Number | B4: 11 | AI4: 2507-6800061 | AJ4: REVETMENT, CLASS E | AK4: =O15 -> 338.52
A5: TabSheet Header Row Count | B5: 10 | AI5: 2507-3250005 | AJ5: ENGINEERING FABRIC | AK5: =P15 -> 358.2222222
A6: Top Header Cell | B6: S15
A7: Bottom Header Cell | B7: AG24
A8: DESheet Row Count | B8: 10
A9: Fixed Empty Rows | B9: 2
A10: Usable Empty Rows | B10: 0
A11: Total Rows Placed | B11: 12 | C11: xlLeft(1) | D11: xlRight(1) | E11: xlCenter | F11: xlCenter | G11: xlCenter | H11: xlCenter | I11: xlCenter | J11: xlCenter | K11: xlCenter | L11: xlCenter | M11: xlCenter | N11: xlRight(1) | O11: xlRight(1) | P11: xlRight(1) | Q11: xlLeft(1) | S11: =C11 -> xlLeft(1) | T11: xlRight(1) | U11: xlCenter | V11: xlCenter | W11: xlCenter | X11: xlCenter | Y11: xlCenter | Z11: xlCenter | AA11: xlCenter | AB11: xlCenter | AC11: xlCenter | AD11: xlRight(1) | AE11: xlRight(1) | AF11: xlRight(1) | AG11: xlLeft(1)
A12: Total Rows Needed | B12: =SUM(B8:B10) -> 12 | C12: General | D12: #+00.00 | E12: #+00.00 | F12: General | G12: General | H12: General | I12: General | J12: General | K12: General | L12: General | M12: General | N12: 0.0 | O12: 0.0 | P12: 0.0 | Q12: General | S12: General | T12: #+00.00 | U12: #+00.00 | V12: General | W12: General | X12: General | Y12: General | Z12: General | AA12: General | AB12: General | AC12: General | AD12: 0.0 | AE12: 0.0 | AF12: 0.0 | AG12: General
A13: Last Tab DE Starter Row | B13: 25 | C13: =CELL("width",C13) -> 47 | D13: 16 | E13: 16 | F13: 10 | G13: 10 | H13: 10 | I13: 13 | J13: 11 | K13: 11 | L13: 14 | M13: 13 | N13: 12 | O13: 12 | P13: 12 | Q13: 22 | S13: =CELL("width",S13) -> 0 | T13: 0 | U13: 0 | V13: 0 | W13: 0 | X13: 0 | Y13: 0 | Z13: 0 | AA13: 0 | AB13: 0 | AC13: 0 | AD13: 0 | AE13: 0 | AF13: 0 | AG13: 0
A14: Last Tab Tabsheet Starter Row | B14: 11 | C14: A | D14: B | E14: C | F14: D | G14: E | H14: F | I14: G | J14: H | K14: I | L14: J | M14: K | N14: L | O14: M | P14: N | Q14: O | S14: =LOWER(C14) -> a | T14: b | U14: c | V14: d | W14: e | X14: f | Y14: g | Z14: h | AA14: i | AB14: j | AC14: k | AD14: l | AE14: m | AF14: n | AG14: o
A15: Last Copy Starter Row | B15: 1 | M15: Totals: | N15: =SUBTOTAL(9,N25:N6000) -> 0 | O15: =SUBTOTAL(9,O25:O6000) -> 338.52 | P15: =SUBTOTAL(9,P25:P6000) -> 358.2222222 | S15: 100-23
A16: Tab Loop Number | B16: 2 | C16: ROCK EROSION CONTROL | S16: =B17 -> 2015-04-21
A17: Revision Date | B17: 2015-04-21 | S17: =C16 -> ROCK EROSION CONTROL
A18: Tabulation Width | B18: 3 | C18: Refer to EC-301
A19: Horizontal Grid Lines | B19: Yes | C19: ="This Data Entry Sheet fills Tab "&S15&" effective "&TEXT(B17,"mm-dd-yy") -> This Data Entry Sheet fills Tab 100-23 effective 04-21-15 | S19: =C18 -> Refer to EC-301
C20: Location | I20: Rock Erosion Control (REC) | N20: Material Bid Quantities | Q20: Remarks | S20: =C20 -> Location | Y20: =I20 -> Rock Erosion Control (REC) | AD20: =N20 -> Material Bid Quantities | AG20: =Q20 -> Remarks
C21: Road Identification | D21: Begin Station | E21: End Station | F21: Side | I21: Type 1 | J21: Type 2 | K21: Type 3 | L21: Type 4 | M21: Type 5 | N21: Erosion Stone | O21: Class E Revetment | P21: Eng. Fabric | S21: =C21 -> Road Identification | T21: =D21 -> Begin Station | U21: =E21 -> End Station | V21: =F21 -> Side | Y21: =I21 -> Type 1 | Z21: =J21 -> Type 2 | AA21: Type 3 | AB21: Type 4 | AC21: Type 5 | AD21: =N21 -> Erosion Stone | AE21: =O21 -> Class E Revetment | AF21: =P21 -> Eng. Fabric
I22: Rock Ditch Check | J22: Rock Ditch | K22: Rock Flume | L22: Rock Splash Basin | M22: Rock Slope Protection | Y22: =I22 -> Rock Ditch Check | Z22: Rock Ditch | AA22: Rock Flume | AB22: Rock Splash Basin | AC22: Rock Slope Protection
F24: Lt./Rt. | G24: FT | H24: FT | N24: TON | O24: TON | P24: SY | V24: =F24 -> Lt./Rt. | W24: =G24 -> FT | X24: =H24 -> FT | AD24: =N24 -> TON | AE24: =O24 -> TON | AF24: =P24 -> SY
C26: IA 146 Culvert Splash Basins | D26: 523+89.20 | F26: Rt | G26: 20 | H26: 14.4 | O26: =(288*2)*105/2000 -> 30.24 | P26: =H26*G26/9 -> 32
D27: 523+89.20 | F27: Lt | G27: 20 | H27: 14.4 | O27: =(288*2)*105/2000 -> 30.24 | P27: =H27*G27/9 -> 32
D29: 53510 | F29: Rt | G29: 14 | H29: 14 | O29: =(196*2)*105/2000 -> 20.58 | P29: =H29*G29/9 -> 21.77777778
D30: 53510 | F30: Lt | G30: 60 | H30: 14 | O30: =(840*2)*105/2000 -> 88.2 | P30: 93.33333333
M34: Totals | O34: =SUM(O26:O33) -> 169.26 | P34: =SUM(P26:P33) -> 179.1111111

Sheet DE100_24
A1: TabTitle | B1: =C16 -> PCC PAVEMENT
A2: Number of Tab Columns | B2: 21
A3: DE Starter Row Number | B3: 55
A4: TabSheet Starter Row Number | B4: 41
A5: TabSheet Header Row Count | B5: 40
A6: Top Header Cell | B6: Y15
A7: Bottom Header Cell | B7: AS54
A8: DESheet Row Count | B8: 20
A9: Fixed Empty Rows | B9: 10
A10: Usable Empty Rows | B10: 0
A11: Total Rows Placed | B11: 30 | C11: xlLeft(1) | D11: xlLeft(1) | E11: xlRight(1) | F11: xlRight(1) | G11: xlRight(1) | H11: xlRight(1) | I11: xlRight(1) | J11: xlRight(1) | K11: xlRight(1) | L11: xlRight(1) | M11: xlRight(1) | N11: xlRight(1) | O11: xlRight(1) | P11: xlRight(1) | Q11: xlRight(1) | R11: xlRight(1) | S11: xlRight(1) | T11: xlRight(1) | U11: xlRight(1) | V11: xlRight(1) | W11: xlLeft(1) | Y11: =C11 -> xlLeft(1) | Z11: xlLeft(1) | AA11: xlRight(1) | AB11: xlRight(1) | AC11: xlRight(1) | AD11: xlRight(1) | AE11: xlRight(1) | AF11: xlRight(1) | AG11: xlRight(1) | AH11: xlRight(1) | AI11: xlRight(1) | AJ11: xlRight(1) | AK11: xlRight(1) | AL11: xlRight(1) | AM11: xlRight(1) | AN11: xlRight(1) | AO11: =S11 -> xlRight(1) | AP11: xlRight(1) | AQ11: xlRight(1) | AR11: xlRight(1) | AS11: xlLeft(1)
A12: Total Rows Needed | B12: =SUM(B8:B10) -> 30 | C12: General | D12: General | E12: #+00.00 | F12: #+00.00 | G12: 0.0 | H12: 0.0 | I12: 0.0 | J12: 0.0 | K12: 0.0 | L12: 0.0 | M12: 0.0 | N12: 0.0 | O12: 0.0 | P12: 0.0 | Q12: 0.0 | R12: 0.0 | S12: 0.0 | T12: 0.0 | U12: 0.0 | V12: 0.0 | W12: General | Y12: General | Z12: General | AA12: #+00.00 | AB12: #+00.00 | AC12: 0.0 | AD12: 0.0 | AE12: 0.0 | AF12: 0.0 | AG12: 0.0 | AH12: 0.0 | AI12: 0.0 | AJ12: 0.0 | AK12: 0.0 | AL12: 0.0 | AM12: 0.0 | AN12: 0.0 | AO12: 0.0 | AP12: 0.0 | AQ12: 0.0 | AR12: 0.0 | AS12: General
A13: Last Tab DE Starter Row | B13: 55 | C13: =CELL("width",C13) -> 34 | D13: 11 | E13: 16 | F13: 16 | G13: 9 | H13: 11 | I13: 11 | J13: 10 | K13: 10 | L13: 10 | M13: 10 | N13: 10 | O13: 10 | P13: 10 | Q13: 10 | R13: 10 | S13: 10 | T13: 10 | U13: 10 | V13: 10 | W13: 72 | Y13: =CELL("width",Y13) -> 0 | Z13: 0 | AA13: 0 | AB13: 0 | AC13: 0 | AD13: 0 | AE13: 0 | AF13: 0 | AG13: 0 | AH13: 0 | AI13: 0 | AJ13: 0 | AK13: 0 | AL13: 0 | AM13: 0 | AN13: 0 | AO13: 0 | AP13: 0 | AQ13: 0 | AR13: 0 | AS13: 0
A14: Last Tab TabSheet Starter Row | B14: 41 | C14: A | D14: B | E14: C | F14: D | G14: E | H14: F | I14: G | J14: H | K14: I | L14: J | M14: K | N14: L | O14: M | P14: N | Q14: O | R14: P | S14: Q | T14: R | U14: S | V14: T | W14: U | Y14: =LOWER(C14) -> a | Z14: b | AA14: c | AB14: d | AC14: e | AD14: f | AE14: g | AF14: h | AG14: i | AH14: j | AI14: k | AJ14: l | AK14: m | AL14: n | AM14: o | AN14: p | AO14: q | AP14: r | AQ14: s | AR14: t | AS14: u
A15: Last Copy Starter Row | B15: 1 | R15: =SUBTOTAL(9,R55:R6009) -> 66535.88 | S15: =SUBTOTAL(9,S55:S6009) -> 1336.733333 | U15: =SUBTOTAL(9,U54:U6009) -> 27250.40815 | V15: =SUBTOTAL(9,V54:V6009) -> 0 | Y15: 100-24
A16: Tab Loop Number | B16: 2 | C16: PCC PAVEMENT | Y16: =B17 -> 2015-04-21
A17: Revision Date | B17: 2015-04-21 | Y17: =C16 -> PCC PAVEMENT
A18: Tabulation Width | B18: 4 | C18: ="This Data Entry Sheet fills Tab "&Y15&" effective "&TEXT(B17,"mm-dd-yy") -> This Data Entry Sheet fills Tab 100-24 effective 04-21-15
A19: Horizontal Grid Lines | B19: Yes
W38: Does not include raised island area or curb. Refer to tabulation 112-4 for quantities. | AS38: =W38 -> Does not include raised island area or curb. Refer to tabulation 112-4 for quantities.
W41: Refer to PV-410, PV-411, PV-412, and PV-414. | AS41: =W41 -> Refer to PV-410, PV-411, PV-412, and PV-414.
W43: Quantity includes Pavement Header. | AS43: =W43 -> Quantity includes Pavement Header.
C49: Location | G49: Mainline | J49: Area | R49: Total Area By Pavement Thickness | T49: Special Backfill | U49: Modified Subbase | V49: Granular Subbase | W49: Remarks | Y49: =C49 -> Location | AC49: =G49 -> Mainline | AF49: =J49 -> Area | AN49: =R49 -> Total Area By Pavement Thickness | AP49: =T49 -> Special Backfill | AQ49: =U49 -> Modified Subbase | AR49: =V49 -> Granular Subbase | AS49: =W49 -> Remarks
C50: Road Identification | D50: Direction of Travel | E50: Station to Station | G50: Width | H50: Length | I50: Area | Y50: =C50 -> Road Identification | Z50: =D50 -> Direction of Travel | AA50: =E50 -> Station to Station | AC50: =G50 -> Width | AD50: =H50 -> Length | AE50: =I50 -> Area
R53: SY | AN53: =R53 -> SY
G54: FT | H54: FT | I54: SY | J54: SY | K54: SY | L54: SY | M54: SY | N54: SY | O54: SY | P54: SY | Q54: SY | R54: 9½ IN | S54: 8 IN | T54: TONS | U54: CY | V54: SY | AC54: =G54 -> FT | AD54: FT | AE54: SY | AF54: SY | AG54: SY | AH54: SY | AI54: SY | AJ54: SY | AK54: SY | AL54: SY | AM54: SY | AN54: =R54 -> 9½ IN | AO54: =S54 -> 8 IN | AP54: =T54 -> TONS | AQ54: =U54 -> CY | AR54: =V54 -> SY
H55: =IF(AND($E55<>"",$F55<>""),$F55-$E55,"") ->  | I55: =IF(AND($G55<>"",$H55<>""),$G55*$H55/9,"") -> 
C56: ML - Ia 146 | D56: NB | E56: 44450 | F56: 53400.56 | G56: 28 | H56: 8950.56 | I56: 27846.18667 | R56: =I56 -> 27846.18667 | U56: =(H56*(G56+3+3)*(12/12))/27 -> 11271.07556 | W56: To Bridge Approach
C57: ML - Ia 146 | D57: NB | E57: 53837.19 | F57: 54070 | G57: 28 | H57: 232.81 | I57: =IF(AND($G57<>"",$H57<>""),$G57*$H57/9,"") -> 724.2977778 | R57: =I57 -> 724.2977778 | U57: =(H57*(G57+3+3)*(12/12))/27 -> 293.1681481 | W57: From Bridge Approach
C58: ML - Ia 146 | D58: NB | E58: 54070 | F58: 54550 | G58: 28to44 | H58: 480 | I58: =19264.3/9 -> 2140.477778 | R58: 2140.477778 | U58: =22415.6/27 -> 830.2074074
C59: ML - Ia 146 | D59: NB | E59: 54550 | F59: 54595.16 | G59: 44 | H59: 45.16 | I59: 220.7822222 | R59: 220.7822222 | U59: 83.62962963
C60: ML - Ia 146 | D60: NB | E60: 54595.16 | F60: 54757.77 | G60: Var. | H60: 162.61 | I60: =15908/9 -> 1767.555556 | R60: 1767.555556 | U60: =16191.9/27 -> 599.7 | W60: Intersection Pavement
C61: ML - Ia 146 | D61: NB | E61: 54757.77 | F61: 54864.39 | G61: 48 | H61: 106.62 | I61: 568.64 | R61: 568.64 | U61: =(H61*(G61+3+3)*(12/12))/27 -> 213.24
C62: Julian St. | D62: EB | E62: 154029.31 | F62: 154055 | G62: 70to20 | H62: 25.69 | K62: =782.2/9 -> 86.91111111
C63: Julian St. | D63: EB | E63: 154055 | F63: 154200 | G63: 28 | H63: 145 | I63: 451.1111111
C66: 250th St Fillet Extension | D66: EB | E66: 494+77.53 | K66: =2956.7/9 -> 328.5222222 | S66: =K66 -> 328.5222222 | U66: =((S66*9)*(6/12))/9 -> 164.2611111
C67: 250th St Fillet Extension | D67: WB | E67: 49477.53 | K67: =3058.6/9 -> 339.8444444 | S67: =K67 -> 339.8444444 | U67: =((S67*9)*(6/12))/9 -> 169.9222222
O72: DOT Funded Totals | R72: =SUM(R56:R71) -> 33267.94 | U72: =SUM(U56:U61) -> 13291.02074
O74: Marshall County Funded | S74: =SUM(S66:S73) -> 668.3666667 | U74: =SUM(U66:U67) -> 334.1833333
H128: =IF(AND($E128<>"",$F128<>""),$F128-$E128,"") ->  | I128: =IF(AND($G128<>"",$H128<>""),$G128*$H128/9,"") -> 
H192: =IF(AND($E192<>"",$F192<>""),$F192-$E192,"") ->  | I192: =IF(AND($G192<>"",$H192<>""),$G192*$H192/9,"") -> 
H256: =IF(AND($E256<>"",$F256<>""),$F256-$E256,"") ->  | I256: =IF(AND($G256<>"",$H256<>""),$G256*$H256/9,"") -> 
H320: =IF(AND($E320<>"",$F320<>""),$F320-$E320,"") ->  | I320: =IF(AND($G320<>"",$H320<>""),$G320*$H320/9,"") -> 
H384: =IF(AND($E384<>"",$F384<>""),$F384-$E384,"") ->  | I384: =IF(AND($G384<>"",$H384<>""),$G384*$H384/9,"") -> 
H448: =IF(AND($E448<>"",$F448<>""),$F448-$E448,"") ->  | I448: =IF(AND($G448<>"",$H448<>""),$G448*$H448/9,"") -> 
H512: =IF(AND($E512<>"",$F512<>""),$F512-$E512,"") ->  | I512: =IF(AND($G512<>"",$H512<>""),$G512*$H512/9,"") -> 
H576: =IF(AND($E576<>"",$F576<>""),$F576-$E576,"") ->  | I576: =IF(AND($G576<>"",$H576<>""),$G576*$H576/9,"") -> 
H640: =IF(AND($E640<>"",$F640<>""),$F640-$E640,"") ->  | I640: =IF(AND($G640<>"",$H640<>""),$G640*$H640/9,"") -> 
H704: =IF(AND($E704<>"",$F704<>""),$F704-$E704,"") ->  | I704: =IF(AND($G704<>"",$H704<>""),$G704*$H704/9,"") -> 
H768: =IF(AND($E768<>"",$F768<>""),$F768-$E768,"") ->  | I768: =IF(AND($G768<>"",$H768<>""),$G768*$H768/9,"") -> 
H832: =IF(AND($E832<>"",$F832<>""),$F832-$E832,"") ->  | I832: =IF(AND($G832<>"",$H832<>""),$G832*$H832/9,"") -> 
H896: =IF(AND($E896<>"",$F896<>""),$F896-$E896,"") ->  | I896: =IF(AND($G896<>"",$H896<>""),$G896*$H896/9,"") -> 
H960: =IF(AND($E960<>"",$F960<>""),$F960-$E960,"") ->  | I960: =IF(AND($G960<>"",$H960<>""),$G960*$H960/9,"") -> 
H1024: =IF(AND($E1024<>"",$F1024<>""),$F1024-$E1024,"") ->  | I1024: =IF(AND($G1024<>"",$H1024<>""),$G1024*$H1024/9,"") -> 
H1088: =IF(AND($E1088<>"",$F1088<>""),$F1088-$E1088,"") ->  | I1088: =IF(AND($G1088<>"",$H1088<>""),$G1088*$H1088/9,"") -> 
H1152: =IF(AND($E1152<>"",$F1152<>""),$F1152-$E1152,"") ->  | I1152: =IF(AND($G1152<>"",$H1152<>""),$G1152*$H1152/9,"") -> 
H1216: =IF(AND($E1216<>"",$F1216<>""),$F1216-$E1216,"") ->  | I1216: =IF(AND($G1216<>"",$H1216<>""),$G1216*$H1216/9,"") -> 
H1280: =IF(AND($E1280<>"",$F1280<>""),$F1280-$E1280,"") ->  | I1280: =IF(AND($G1280<>"",$H1280<>""),$G1280*$H1280/9,"") -> 
H1344: =IF(AND($E1344<>"",$F1344<>""),$F1344-$E1344,"") ->  | I1344: =IF(AND($G1344<>"",$H1344<>""),$G1344*$H1344/9,"") -> 
H1408: =IF(AND($E1408<>"",$F1408<>""),$F1408-$E1408,"") ->  | I1408: =IF(AND($G1408<>"",$H1408<>""),$G1408*$H1408/9,"") -> 
H1472: =IF(AND($E1472<>"",$F1472<>""),$F1472-$E1472,"") ->  | I1472: =IF(AND($G1472<>"",$H1472<>""),$G1472*$H1472/9,"") -> 
H1536: =IF(AND($E1536<>"",$F1536<>""),$F1536-$E1536,"") ->  | I1536: =IF(AND($G1536<>"",$H1536<>""),$G1536*$H1536/9,"") -> 
H1600: =IF(AND($E1600<>"",$F1600<>""),$F1600-$E1600,"") ->  | I1600: =IF(AND($G1600<>"",$H1600<>""),$G1600*$H1600/9,"") -> 
H1664: =IF(AND($E1664<>"",$F1664<>""),$F1664-$E1664,"") ->  | I1664: =IF(AND($G1664<>"",$H1664<>""),$G1664*$H1664/9,"") -> 
H1728: =IF(AND($E1728<>"",$F1728<>""),$F1728-$E1728,"") ->  | I1728: =IF(AND($G1728<>"",$H1728<>""),$G1728*$H1728/9,"") -> 
H1792: =IF(AND($E1792<>"",$F1792<>""),$F1792-$E1792,"") ->  | I1792: =IF(AND($G1792<>"",$H1792<>""),$G1792*$H1792/9,"") -> 
H1856: =IF(AND($E1856<>"",$F1856<>""),$F1856-$E1856,"") ->  | I1856: =IF(AND($G1856<>"",$H1856<>""),$G1856*$H1856/9,"") -> 
H1920: =IF(AND($E1920<>"",$F1920<>""),$F1920-$E1920,"") ->  | I1920: =IF(AND($G1920<>"",$H1920<>""),$G1920*$H1920/9,"") -> 
H1984: =IF(AND($E1984<>"",$F1984<>""),$F1984-$E1984,"") ->  | I1984: =IF(AND($G1984<>"",$H1984<>""),$G1984*$H1984/9,"") -> 
H2048: =IF(AND($E2048<>"",$F2048<>""),$F2048-$E2048,"") ->  | I2048: =IF(AND($G2048<>"",$H2048<>""),$G2048*$H2048/9,"") -> 
H2112: =IF(AND($E2112<>"",$F2112<>""),$F2112-$E2112,"") ->  | I2112: =IF(AND($G2112<>"",$H2112<>""),$G2112*$H2112/9,"") -> 
H2176: =IF(AND($E2176<>"",$F2176<>""),$F2176-$E2176,"") ->  | I2176: =IF(AND($G2176<>"",$H2176<>""),$G2176*$H2176/9,"") -> 
H2240: =IF(AND($E2240<>"",$F2240<>""),$F2240-$E2240,"") ->  | I2240: =IF(AND($G2240<>"",$H2240<>""),$G2240*$H2240/9,"") -> 
H2304: =IF(AND($E2304<>"",$F2304<>""),$F2304-$E2304,"") ->  | I2304: =IF(AND($G2304<>"",$H2304<>""),$G2304*$H2304/9,"") -> 
H2368: =IF(AND($E2368<>"",$F2368<>""),$F2368-$E2368,"") ->  | I2368: =IF(AND($G2368<>"",$H2368<>""),$G2368*$H2368/9,"") -> 
H2432: =IF(AND($E2432<>"",$F2432<>""),$F2432-$E2432,"") ->  | I2432: =IF(AND($G2432<>"",$H2432<>""),$G2432*$H2432/9,"") -> 
H2496: =IF(AND($E2496<>"",$F2496<>""),$F2496-$E2496,"") ->  | I2496: =IF(AND($G2496<>"",$H2496<>""),$G2496*$H2496/9,"") -> 
H2560: =IF(AND($E2560<>"",$F2560<>""),$F2560-$E2560,"") ->  | I2560: =IF(AND($G2560<>"",$H2560<>""),$G2560*$H2560/9,"") -> 
H2624: =IF(AND($E2624<>"",$F2624<>""),$F2624-$E2624,"") ->  | I2624: =IF(AND($G2624<>"",$H2624<>""),$G2624*$H2624/9,"") -> 
H2688: =IF(AND($E2688<>"",$F2688<>""),$F2688-$E2688,"") ->  | I2688: =IF(AND($G2688<>"",$H2688<>""),$G2688*$H2688/9,"") -> 
H2752: =IF(AND($E2752<>"",$F2752<>""),$F2752-$E2752,"") ->  | I2752: =IF(AND($G2752<>"",$H2752<>""),$G2752*$H2752/9,"") -> 
H2816: =IF(AND($E2816<>"",$F2816<>""),$F2816-$E2816,"") ->  | I2816: =IF(AND($G2816<>"",$H2816<>""),$G2816*$H2816/9,"") -> 
H2880: =IF(AND($E2880<>"",$F2880<>""),$F2880-$E2880,"") ->  | I2880: =IF(AND($G2880<>"",$H2880<>""),$G2880*$H2880/9,"") -> 
H2944: =IF(AND($E2944<>"",$F2944<>""),$F2944-$E2944,"") ->  | I2944: =IF(AND($G2944<>"",$H2944<>""),$G2944*$H2944/9,"") -> 
H3008: =IF(AND($E3008<>"",$F3008<>""),$F3008-$E3008,"") ->  | I3008: =IF(AND($G3008<>"",$H3008<>""),$G3008*$H3008/9,"") -> 
H3072: =IF(AND($E3072<>"",$F3072<>""),$F3072-$E3072,"") ->  | I3072: =IF(AND($G3072<>"",$H3072<>""),$G3072*$H3072/9,"") -> 
H3136: =IF(AND($E3136<>"",$F3136<>""),$F3136-$E3136,"") ->  | I3136: =IF(AND($G3136<>"",$H3136<>""),$G3136*$H3136/9,"") -> 
H3200: =IF(AND($E3200<>"",$F3200<>""),$F3200-$E3200,"") ->  | I3200: =IF(AND($G3200<>"",$H3200<>""),$G3200*$H3200/9,"") -> 
H3264: =IF(AND($E3264<>"",$F3264<>""),$F3264-$E3264,"") ->  | I3264: =IF(AND($G3264<>"",$H3264<>""),$G3264*$H3264/9,"") -> 
H3328: =IF(AND($E3328<>"",$F3328<>""),$F3328-$E3328,"") ->  | I3328: =IF(AND($G3328<>"",$H3328<>""),$G3328*$H3328/9,"") -> 
H3392: =IF(AND($E3392<>"",$F3392<>""),$F3392-$E3392,"") ->  | I3392: =IF(AND($G3392<>"",$H3392<>""),$G3392*$H3392/9,"") -> 
H3456: =IF(AND($E3456<>"",$F3456<>""),$F3456-$E3456,"") ->  | I3456: =IF(AND($G3456<>"",$H3456<>""),$G3456*$H3456/9,"") -> 
H3520: =IF(AND($E3520<>"",$F3520<>""),$F3520-$E3520,"") ->  | I3520: =IF(AND($G3520<>"",$H3520<>""),$G3520*$H3520/9,"") -> 
H3584: =IF(AND($E3584<>"",$F3584<>""),$F3584-$E3584,"") ->  | I3584: =IF(AND($G3584<>"",$H3584<>""),$G3584*$H3584/9,"") -> 
H3648: =IF(AND($E3648<>"",$F3648<>""),$F3648-$E3648,"") ->  | I3648: =IF(AND($G3648<>"",$H3648<>""),$G3648*$H3648/9,"") -> 
H3712: =IF(AND($E3712<>"",$F3712<>""),$F3712-$E3712,"") ->  | I3712: =IF(AND($G3712<>"",$H3712<>""),$G3712*$H3712/9,"") -> 
H3776: =IF(AND($E3776<>"",$F3776<>""),$F3776-$E3776,"") ->  | I3776: =IF(AND($G3776<>"",$H3776<>""),$G3776*$H3776/9,"") -> 
H3840: =IF(AND($E3840<>"",$F3840<>""),$F3840-$E3840,"") ->  | I3840: =IF(AND($G3840<>"",$H3840<>""),$G3840*$H3840/9,"") -> 
H3904: =IF(AND($E3904<>"",$F3904<>""),$F3904-$E3904,"") ->  | I3904: =IF(AND($G3904<>"",$H3904<>""),$G3904*$H3904/9,"") -> 
H3968: =IF(AND($E3968<>"",$F3968<>""),$F3968-$E3968,"") ->  | I3968: =IF(AND($G3968<>"",$H3968<>""),$G3968*$H3968/9,"") -> 
H4032: =IF(AND($E4032<>"",$F4032<>""),$F4032-$E4032,"") ->  | I4032: =IF(AND($G4032<>"",$H4032<>""),$G4032*$H4032/9,"") -> 
H4096: =IF(AND($E4096<>"",$F4096<>""),$F4096-$E4096,"") ->  | I4096: =IF(AND($G4096<>"",$H4096<>""),$G4096*$H4096/9,"") -> 
H4160: =IF(AND($E4160<>"",$F4160<>""),$F4160-$E4160,"") ->  | I4160: =IF(AND($G4160<>"",$H4160<>""),$G4160*$H4160/9,"") -> 
H4224: =IF(AND($E4224<>"",$F4224<>""),$F4224-$E4224,"") ->  | I4224: =IF(AND($G4224<>"",$H4224<>""),$G4224*$H4224/9,"") -> 
H4288: =IF(AND($E4288<>"",$F4288<>""),$F4288-$E4288,"") ->  | I4288: =IF(AND($G4288<>"",$H4288<>""),$G4288*$H4288/9,"") -> 
H4352: =IF(AND($E4352<>"",$F4352<>""),$F4352-$E4352,"") ->  | I4352: =IF(AND($G4352<>"",$H4352<>""),$G4352*$H4352/9,"") -> 
H4416: =IF(AND($E4416<>"",$F4416<>""),$F4416-$E4416,"") ->  | I4416: =IF(AND($G4416<>"",$H4416<>""),$G4416*$H4416/9,"") -> 
H4480: =IF(AND($E4480<>"",$F4480<>""),$F4480-$E4480,"") ->  | I4480: =IF(AND($G4480<>"",$H4480<>""),$G4480*$H4480/9,"") -> 
H4544: =IF(AND($E4544<>"",$F4544<>""),$F4544-$E4544,"") ->  | I4544: =IF(AND($G4544<>"",$H4544<>""),$G4544*$H4544/9,"") -> 
H4608: =IF(AND($E4608<>"",$F4608<>""),$F4608-$E4608,"") ->  | I4608: =IF(AND($G4608<>"",$H4608<>""),$G4608*$H4608/9,"") -> 
H4672: =IF(AND($E4672<>"",$F4672<>""),$F4672-$E4672,"") ->  | I4672: =IF(AND($G4672<>"",$H4672<>""),$G4672*$H4672/9,"") -> 
H4736: =IF(AND($E4736<>"",$F4736<>""),$F4736-$E4736,"") ->  | I4736: =IF(AND($G4736<>"",$H4736<>""),$G4736*$H4736/9,"") -> 
H4800: =IF(AND($E4800<>"",$F4800<>""),$F4800-$E4800,"") ->  | I4800: =IF(AND($G4800<>"",$H4800<>""),$G4800*$H4800/9,"") -> 
H4864: =IF(AND($E4864<>"",$F4864<>""),$F4864-$E4864,"") ->  | I4864: =IF(AND($G4864<>"",$H4864<>""),$G4864*$H4864/9,"") -> 
H4928: =IF(AND($E4928<>"",$F4928<>""),$F4928-$E4928,"") ->  | I4928: =IF(AND($G4928<>"",$H4928<>""),$G4928*$H4928/9,"") -> 
H4992: =IF(AND($E4992<>"",$F4992<>""),$F4992-$E4992,"") ->  | I4992: =IF(AND($G4992<>"",$H4992<>""),$G4992*$H4992/9,"") -> 
H5056: =IF(AND($E5056<>"",$F5056<>""),$F5056-$E5056,"") ->  | I5056: =IF(AND($G5056<>"",$H5056<>""),$G5056*$H5056/9,"") -> 
H5120: =IF(AND($E5120<>"",$F5120<>""),$F5120-$E5120,"") ->  | I5120: =IF(AND($G5120<>"",$H5120<>""),$G5120*$H5120/9,"") -> 
H5184: =IF(AND($E5184<>"",$F5184<>""),$F5184-$E5184,"") ->  | I5184: =IF(AND($G5184<>"",$H5184<>""),$G5184*$H5184/9,"") -> 
H5248: =IF(AND($E5248<>"",$F5248<>""),$F5248-$E5248,"") ->  | I5248: =IF(AND($G5248<>"",$H5248<>""),$G5248*$H5248/9,"") -> 
H5312: =IF(AND($E5312<>"",$F5312<>""),$F5312-$E5312,"") ->  | I5312: =IF(AND($G5312<>"",$H5312<>""),$G5312*$H5312/9,"") -> 
H5376: =IF(AND($E5376<>"",$F5376<>""),$F5376-$E5376,"") ->  | I5376: =IF(AND($G5376<>"",$H5376<>""),$G5376*$H5376/9,"") -> 
H5440: =IF(AND($E5440<>"",$F5440<>""),$F5440-$E5440,"") ->  | I5440: =IF(AND($G5440<>"",$H5440<>""),$G5440*$H5440/9,"") -> 
H5504: =IF(AND($E5504<>"",$F5504<>""),$F5504-$E5504,"") ->  | I5504: =IF(AND($G5504<>"",$H5504<>""),$G5504*$H5504/9,"") -> 
H5568: =IF(AND($E5568<>"",$F5568<>""),$F5568-$E5568,"") ->  | I5568: =IF(AND($G5568<>"",$H5568<>""),$G5568*$H5568/9,"") -> 
H5632: =IF(AND($E5632<>"",$F5632<>""),$F5632-$E5632,"") ->  | I5632: =IF(AND($G5632<>"",$H5632<>""),$G5632*$H5632/9,"") -> 
H5696: =IF(AND($E5696<>"",$F5696<>""),$F5696-$E5696,"") ->  | I5696: =IF(AND($G5696<>"",$H5696<>""),$G5696*$H5696/9,"") -> 
H5760: =IF(AND($E5760<>"",$F5760<>""),$F5760-$E5760,"") ->  | I5760: =IF(AND($G5760<>"",$H5760<>""),$G5760*$H5760/9,"") -> 
H5824: =IF(AND($E5824<>"",$F5824<>""),$F5824-$E5824,"") ->  | I5824: =IF(AND($G5824<>"",$H5824<>""),$G5824*$H5824/9,"") -> 
H5888: =IF(AND($E5888<>"",$F5888<>""),$F5888-$E5888,"") ->  | I5888: =IF(AND($G5888<>"",$H5888<>""),$G5888*$H5888/9,"") -> 
H5952: =IF(AND($E5952<>"",$F5952<>""),$F5952-$E5952,"") ->  | I5952: =IF(AND($G5952<>"",$H5952<>""),$G5952*$H5952/9,"") -> 

Sheet DE100_27
A1: TabTitle | B1: =C15 -> PAVEMENT SMOOTHNESS + PCC TEXTURE
A2: Number of Tab Columns | B2: 7
A3: DE Starter Row Number | B3: 21
A4: TabSheet Starter Row Number | B4: 8
A5: TabSheet Header Row Count | B5: 7
A6: Top Header Cell | B6: K15
A7: Bottom Header Cell | B7: Q21
A8: DESheet Row Count | B8: 3
A9: Fixed Empty Rows | B9: 5
A10: Usable Empty Rows | B10: 0
A11: Total Rows Placed | B11: 8 | C11: xlLeft(1) | D11: xlRight(1) | E11: xlRight(1) | F11: xlLeft(1) | G11: xlLeft(1) | H11: xlLeft(1) | I11: xlLeft(1) | K11: =C11 -> xlLeft(1) | L11: xlRight(1) | M11: xlRight(1) | N11: xlLeft(1) | O11: xlLeft(1) | P11: xlLeft(1) | Q11: xlLeft(1)
A12: Total Rows Needed | B12: =SUM(B8:B10) -> 8 | C12: General | D12: #+00.00 | E12: #+00.00 | F12: General | G12: General | H12: General | I12: General | K12: General | L12: #+00.00 | M12: #+00.00 | N12: General | O12: General | P12: General | Q12: General
A13: Last Tab DE Starter Row | B13: 21 | C13: =CELL("width",C13) -> 30 | D13: 16 | E13: 16 | F13: 14 | G13: 14 | H13: 14 | I13: 50 | K13: =CELL("width",K13) -> 0 | L13: 0 | M13: 0 | N13: 0 | O13: 0 | P13: 0 | Q13: 0
A14: Last Tab Tabsheet Starter Row | B14: 8 | C14: A | D14: B | E14: C | F14: D | G14: E | H14: F | I14: G | K14: =LOWER(C14) -> a | L14: b | M14: c | N14: d | O14: e | P14: f | Q14: g
A15: Last Copy Starter Row | B15: 1 | C15: PAVEMENT SMOOTHNESS + PCC TEXTURE | K15: 100-27
A16: Tab Loop Number | B16: 2 | K16: =B17 -> 2009-10-20
A17: Revision Date | B17: 2009-10-20 | C17: ="This Data Entry Sheet fills Tab "&K15&" effective "&TEXT(B17,"mm-dd-yy") -> This Data Entry Sheet fills Tab 100-27 effective 10-20-09 | K17: =C15 -> PAVEMENT SMOOTHNESS + PCC TEXTURE
A18: Tabulation Width | B18: 2 | C18: Road Identification | D18: Begin Station | E18: End Station | F18: Proposed Posted Speed | I18: Remarks
A19: Horizontal Grid Lines | B19: Yes | K19: =C18 -> Road Identification | L19: =D18 -> Begin Station | M19: =E18 -> End Station | N19: =F18 -> Proposed Posted Speed | Q19: =I18 -> Remarks
F20: 35 or less | G20: 40 - 45 | H20: over 45
N21: =F20 -> 35 or less | O21: =G20 -> 40 - 45 | P21: =H20 -> over 45
C22: Ia 146 | D22: 44450 | E22: 53400 | H22: X
C23: Ia 146 | D23: 534+00 | E23: 54756.6 | F23: X

Sheet DE100_28
A1: TabTitle | B1: =C16 -> LONGITUDINAL GROOVING
A2: Number of Tab Columns | B2: 3 | O2: Possible Contract Items
A3: DE Starter Row Number | B3: 22 | N3: 2412-0000100 | O3: LONGITUDINAL GROOVING IN CONCRETE | P3: =G15 -> 3560.08
A4: TabSheet Starter Row Number | B4: 8
A5: TabSheet Header Row Count | B5: 7
A6: Top Header Cell | B6: J15
A7: Bottom Header Cell | B7: L21
A8: DESheet Row Count | B8: 5
A9: Fixed Empty Rows | B9: 10
A10: Usable Empty Rows | B10: 0
A11: Total Rows Placed | B11: 15 | C11: xlRight(1) | G11: xlRight(1) | H11: xlLeft(1) | J11: =C11 -> xlRight(1) | K11: =G11 -> xlRight(1) | L11: =H11 -> xlLeft(1)
A12: Total Rows Needed | B12: =SUM(B8:B10) -> 15 | C12: #+00.00 | G12: 0.0 | H12: General | J12: =C12 -> #+00.00 | K12: =G12 -> 0.0 | L12: =H12 -> General
A13: Last Tab DE Starter Row | B13: 22 | C13: =CELL("width",C13) -> 16 | G13: =CELL("width",G13) -> 12 | H13: =CELL("width",H13) -> 47 | J13: =CELL("width",J13) -> 0 | K13: =CELL("width",K13) -> 0 | L13: =CELL("width",L13) -> 0
A14: Last Tab Tabsheet Starter Row | B14: 8 | C14: A | G14: B | H14: C | J14: =LOWER(C14) -> a | K14: =LOWER(G14) -> b | L14: =LOWER(H14) -> c
A15: Last Copy Starter Row | B15: 1 | F15: Totals: | G15: =SUBTOTAL(9,G22:G6000) -> 3560.08 | J15: 100-28
A16: Tab Loop Number | B16: 2 | C16: LONGITUDINAL GROOVING | J16: =B17 -> 2010-10-19
A17: Revision Date | B17: 2010-10-19 | J17: =C16 -> LONGITUDINAL GROOVING
A18: Tabulation Width | B18: 1 | C18: ="This Data Entry Sheet fills Tab "&J15&" effective "&TEXT(B17,"mm-dd-yy") -> This Data Entry Sheet fills Tab 100-28 effective 10-19-10
A19: Horizontal Grid Lines | B19: Yes | C19: Location | D19: Length | E19: Width | F19: Area | G19: Total | H19: Remarks | J19: =C19 -> Location | K19: =G19 -> Total | L19: =H19 -> Remarks
D21: FT | E21: FT | F21: SF | G21: SY | K21: =G21 -> SY
C22: 53391 | F22: =IF(D22<>"",D22*E22,"") ->  | G22: 302.32 | H22: Begin Bridge Approach
C23: 53613.8 | D23: 287 | E23: 40 | F23: 11480 | G23: 1175.4 | H23: Bridge
C24: 53836.6 | G24: 302.32 | H24: End Bridge Approach
G25: =IF(F25<>"",F25/9,"") -> 
C26: Total | G26: =SUM(G22:G25) -> 1780.04
F86: =IF(D86<>"",D86*E86,"") ->  | G86: =IF(F86<>"",F86/9,"") -> 
F150: =IF(D150<>"",D150*E150,"") ->  | G150: =IF(F150<>"",F150/9,"") -> 
F214: =IF(D214<>"",D214*E214,"") ->  | G214: =IF(F214<>"",F214/9,"") -> 
F278: =IF(D278<>"",D278*E278,"") ->  | G278: =IF(F278<>"",F278/9,"") -> 
F342: =IF(D342<>"",D342*E342,"") ->  | G342: =IF(F342<>"",F342/9,"") -> 
F406: =IF(D406<>"",D406*E406,"") ->  | G406: =IF(F406<>"",F406/9,"") -> 
F470: =IF(D470<>"",D470*E470,"") ->  | G470: =IF(F470<>"",F470/9,"") -> 
F534: =IF(D534<>"",D534*E534,"") ->  | G534: =IF(F534<>"",F534/9,"") -> 
F598: =IF(D598<>"",D598*E598,"") ->  | G598: =IF(F598<>"",F598/9,"") -> 
F662: =IF(D662<>"",D662*E662,"") ->  | G662: =IF(F662<>"",F662/9,"") -> 
F726: =IF(D726<>"",D726*E726,"") ->  | G726: =IF(F726<>"",F726/9,"") -> 
F790: =IF(D790<>"",D790*E790,"") ->  | G790: =IF(F790<>"",F790/9,"") -> 
F854: =IF(D854<>"",D854*E854,"") ->  | G854: =IF(F854<>"",F854/9,"") -> 
F918: =IF(D918<>"",D918*E918,"") ->  | G918: =IF(F918<>"",F918/9,"") -> 
F982: =IF(D982<>"",D982*E982,"") ->  | G982: =IF(F982<>"",F982/9,"") -> 
F1046: =IF(D1046<>"",D1046*E1046,"") ->  | G1046: =IF(F1046<>"",F1046/9,"") -> 
F1110: =IF(D1110<>"",D1110*E1110,"") ->  | G1110: =IF(F1110<>"",F1110/9,"") -> 
F1174: =IF(D1174<>"",D1174*E1174,"") ->  | G1174: =IF(F1174<>"",F1174/9,"") -> 
F1238: =IF(D1238<>"",D1238*E1238,"") ->  | G1238: =IF(F1238<>"",F1238/9,"") -> 
F1302: =IF(D1302<>"",D1302*E1302,"") ->  | G1302: =IF(F1302<>"",F1302/9,"") -> 
F1366: =IF(D1366<>"",D1366*E1366,"") ->  | G1366: =IF(F1366<>"",F1366/9,"") -> 
F1430: =IF(D1430<>"",D1430*E1430,"") ->  | G1430: =IF(F1430<>"",F1430/9,"") -> 
F1494: =IF(D1494<>"",D1494*E1494,"") ->  | G1494: =IF(F1494<>"",F1494/9,"") -> 
F1558: =IF(D1558<>"",D1558*E1558,"") ->  | G1558: =IF(F1558<>"",F1558/9,"") -> 
F1622: =IF(D1622<>"",D1622*E1622,"") ->  | G1622: =IF(F1622<>"",F1622/9,"") -> 
F1686: =IF(D1686<>"",D1686*E1686,"") ->  | G1686: =IF(F1686<>"",F1686/9,"") -> 
F1750: =IF(D1750<>"",D1750*E1750,"") ->  | G1750: =IF(F1750<>"",F1750/9,"") -> 
F1814: =IF(D1814<>"",D1814*E1814,"") ->  | G1814: =IF(F1814<>"",F1814/9,"") -> 
F1878: =IF(D1878<>"",D1878*E1878,"") ->  | G1878: =IF(F1878<>"",F1878/9,"") -> 
F1942: =IF(D1942<>"",D1942*E1942,"") ->  | G1942: =IF(F1942<>"",F1942/9,"") -> 
F2006: =IF(D2006<>"",D2006*E2006,"") ->  | G2006: =IF(F2006<>"",F2006/9,"") -> 
F2070: =IF(D2070<>"",D2070*E2070,"") ->  | G2070: =IF(F2070<>"",F2070/9,"") -> 
F2134: =IF(D2134<>"",D2134*E2134,"") ->  | G2134: =IF(F2134<>"",F2134/9,"") -> 
F2198: =IF(D2198<>"",D2198*E2198,"") ->  | G2198: =IF(F2198<>"",F2198/9,"") -> 
F2262: =IF(D2262<>"",D2262*E2262,"") ->  | G2262: =IF(F2262<>"",F2262/9,"") -> 
F2326: =IF(D2326<>"",D2326*E2326,"") ->  | G2326: =IF(F2326<>"",F2326/9,"") -> 
F2390: =IF(D2390<>"",D2390*E2390,"") ->  | G2390: =IF(F2390<>"",F2390/9,"") -> 
F2454: =IF(D2454<>"",D2454*E2454,"") ->  | G2454: =IF(F2454<>"",F2454/9,"") -> 
F2518: =IF(D2518<>"",D2518*E2518,"") ->  | G2518: =IF(F2518<>"",F2518/9,"") -> 
F2582: =IF(D2582<>"",D2582*E2582,"") ->  | G2582: =IF(F2582<>"",F2582/9,"") -> 
F2646: =IF(D2646<>"",D2646*E2646,"") ->  | G2646: =IF(F2646<>"",F2646/9,"") -> 
F2710: =IF(D2710<>"",D2710*E2710,"") ->  | G2710: =IF(F2710<>"",F2710/9,"") -> 
F2774: =IF(D2774<>"",D2774*E2774,"") ->  | G2774: =IF(F2774<>"",F2774/9,"") -> 
F2838: =IF(D2838<>"",D2838*E2838,"") ->  | G2838: =IF(F2838<>"",F2838/9,"") -> 
F2902: =IF(D2902<>"",D2902*E2902,"") ->  | G2902: =IF(F2902<>"",F2902/9,"") -> 
F2966: =IF(D2966<>"",D2966*E2966,"") ->  | G2966: =IF(F2966<>"",F2966/9,"") -> 
F3030: =IF(D3030<>"",D3030*E3030,"") ->  | G3030: =IF(F3030<>"",F3030/9,"") -> 
F3094: =IF(D3094<>"",D3094*E3094,"") ->  | G3094: =IF(F3094<>"",F3094/9,"") -> 
F3158: =IF(D3158<>"",D3158*E3158,"") ->  | G3158: =IF(F3158<>"",F3158/9,"") -> 
F3222: =IF(D3222<>"",D3222*E3222,"") ->  | G3222: =IF(F3222<>"",F3222/9,"") -> 
F3286: =IF(D3286<>"",D3286*E3286,"") ->  | G3286: =IF(F3286<>"",F3286/9,"") -> 
F3350: =IF(D3350<>"",D3350*E3350,"") ->  | G3350: =IF(F3350<>"",F3350/9,"") -> 
F3414: =IF(D3414<>"",D3414*E3414,"") ->  | G3414: =IF(F3414<>"",F3414/9,"") -> 
F3478: =IF(D3478<>"",D3478*E3478,"") ->  | G3478: =IF(F3478<>"",F3478/9,"") -> 
F3542: =IF(D3542<>"",D3542*E3542,"") ->  | G3542: =IF(F3542<>"",F3542/9,"") -> 
F3606: =IF(D3606<>"",D3606*E3606,"") ->  | G3606: =IF(F3606<>"",F3606/9,"") -> 
F3670: =IF(D3670<>"",D3670*E3670,"") ->  | G3670: =IF(F3670<>"",F3670/9,"") -> 
F3734: =IF(D3734<>"",D3734*E3734,"") ->  | G3734: =IF(F3734<>"",F3734/9,"") -> 
F3798: =IF(D3798<>"",D3798*E3798,"") ->  | G3798: =IF(F3798<>"",F3798/9,"") -> 
F3862: =IF(D3862<>"",D3862*E3862,"") ->  | G3862: =IF(F3862<>"",F3862/9,"") -> 
F3926: =IF(D3926<>"",D3926*E3926,"") ->  | G3926: =IF(F3926<>"",F3926/9,"") -> 
F3990: =IF(D3990<>"",D3990*E3990,"") ->  | G3990: =IF(F3990<>"",F3990/9,"") -> 
F4054: =IF(D4054<>"",D4054*E4054,"") ->  | G4054: =IF(F4054<>"",F4054/9,"") -> 
F4118: =IF(D4118<>"",D4118*E4118,"") ->  | G4118: =IF(F4118<>"",F4118/9,"") -> 
F4182: =IF(D4182<>"",D4182*E4182,"") ->  | G4182: =IF(F4182<>"",F4182/9,"") -> 
F4246: =IF(D4246<>"",D4246*E4246,"") ->  | G4246: =IF(F4246<>"",F4246/9,"") -> 
F4310: =IF(D4310<>"",D4310*E4310,"") ->  | G4310: =IF(F4310<>"",F4310/9,"") -> 
F4374: =IF(D4374<>"",D4374*E4374,"") ->  | G4374: =IF(F4374<>"",F4374/9,"") -> 
F4438: =IF(D4438<>"",D4438*E4438,"") ->  | G4438: =IF(F4438<>"",F4438/9,"") -> 
F4502: =IF(D4502<>"",D4502*E4502,"") ->  | G4502: =IF(F4502<>"",F4502/9,"") -> 
F4566: =IF(D4566<>"",D4566*E4566,"") ->  | G4566: =IF(F4566<>"",F4566/9,"") -> 
F4630: =IF(D4630<>"",D4630*E4630,"") ->  | G4630: =IF(F4630<>"",F4630/9,"") -> 
F4694: =IF(D4694<>"",D4694*E4694,"") ->  | G4694: =IF(F4694<>"",F4694/9,"") -> 
F4758: =IF(D4758<>"",D4758*E4758,"") ->  | G4758: =IF(F4758<>"",F4758/9,"") -> 
F4822: =IF(D4822<>"",D4822*E4822,"") ->  | G4822: =IF(F4822<>"",F4822/9,"") -> 
F4886: =IF(D4886<>"",D4886*E4886,"") ->  | G4886: =IF(F4886<>"",F4886/9,"") -> 
F4950: =IF(D4950<>"",D4950*E4950,"") ->  | G4950: =IF(F4950<>"",F4950/9,"") -> 
F5014: =IF(D5014<>"",D5014*E5014,"") ->  | G5014: =IF(F5014<>"",F5014/9,"") -> 
F5078: =IF(D5078<>"",D5078*E5078,"") ->  | G5078: =IF(F5078<>"",F5078/9,"") -> 
F5142: =IF(D5142<>"",D5142*E5142,"") ->  | G5142: =IF(F5142<>"",F5142/9,"") -> 
F5206: =IF(D5206<>"",D5206*E5206,"") ->  | G5206: =IF(F5206<>"",F5206/9,"") -> 
F5270: =IF(D5270<>"",D5270*E5270,"") ->  | G5270: =IF(F5270<>"",F5270/9,"") -> 
F5334: =IF(D5334<>"",D5334*E5334,"") ->  | G5334: =IF(F5334<>"",F5334/9,"") -> 
F5398: =IF(D5398<>"",D5398*E5398,"") ->  | G5398: =IF(F5398<>"",F5398/9,"") -> 
F5462: =IF(D5462<>"",D5462*E5462,"") ->  | G5462: =IF(F5462<>"",F5462/9,"") -> 
F5526: =IF(D5526<>"",D5526*E5526,"") ->  | G5526: =IF(F5526<>"",F5526/9,"") -> 
F5590: =IF(D5590<>"",D5590*E5590,"") ->  | G5590: =IF(F5590<>"",F5590/9,"") -> 
F5654: =IF(D5654<>"",D5654*E5654,"") ->  | G5654: =IF(F5654<>"",F5654/9,"") -> 
F5718: =IF(D5718<>"",D5718*E5718,"") ->  | G5718: =IF(F5718<>"",F5718/9,"") -> 
F5782: =IF(D5782<>"",D5782*E5782,"") ->  | G5782: =IF(F5782<>"",F5782/9,"") -> 
F5846: =IF(D5846<>"",D5846*E5846,"") ->  | G5846: =IF(F5846<>"",F5846/9,"") -> 
F5910: =IF(D5910<>"",D5910*E5910,"") ->  | G5910: =IF(F5910<>"",F5910/9,"") -> 
F5974: =IF(D5974<>"",D5974*E5974,"") ->  | G5974: =IF(F5974<>"",F5974/9,"") -> 

Sheet DE262_5
A1: TabTitle | B1: =C15 -> UTILITIES (POINT 25 PROJECT)
A2: Number of Tab Columns | B2: 1
A3: DE Starter Row Number | B3: 20
A4: TabSheet Starter Row Number | B4: 7
A5: TabSheet Header Row Count | B5: 6
A6: Top Header Cell | B6: E15
A7: Bottom Header Cell | B7: E20
A8: DESheet Row Count | B8: 2
A9: Fixed Empty Rows | B9: 0
A10: Usable Empty Rows | B10: 0
A11: Total Rows Placed | B11: 2 | C11: xlLeft | E11: =C11 -> xlLeft
A12: Total Rows Needed | B12: =SUM(B8:B10) -> 2 | C12: General | E12: =C12 -> General
A13: Last Tab DE Starter Row | B13: 20 | C13: =CELL("width",C13) -> 78 | E13: =CELL("width",E13) -> 0
A14: Last Tab Tabsheet Starter Row | B14: 7 | C14: A | E14: a
A15: Last Copy Starter Row | B15: 1 | C15: UTILITIES (POINT 25 PROJECT) | E15: 262-5
A16: Tab Loop Number | B16: 2 | E16: =B17 -> 2005-10-18
A17: Revision Date | B17: 2005-10-18 | E17: =C15 -> UTILITIES (POINT 25 PROJECT)
A18: Tabulation Width | B18: 1
A19: Horizontal Grid Lines | B19: No | C19: ="This Data Entry Sheet fills Tab "&E15&" effective "&TEXT(B17,"mm-dd-yy") -> This Data Entry Sheet fills Tab 262-5 effective 10-18-05
C20: This is a POINT 25 project and is subject to the provisions of IAC
C21: 761-115.25.

Sheet DE281_1
A1: TabTitle | B1: =C15 -> SECTION 404 PERMIT AND CONDITIONS
A2: Number of Tab Columns | B2: 1
A3: DE Starter Row Number | B3: 18
A4: TabSheet Starter Row Number | B4: 5
A5: TabSheet Header Row Count | B5: 4
A6: Top Header Cell | B6: E15
A7: Bottom Header Cell | B7: E18
A8: DESheet Row Count | B8: 6
A9: Fixed Empty Rows | B9: 0
A10: Usable Empty Rows | B10: 0
A11: Total Rows Placed | B11: 6 | C11: xlLeft | E11: =C11 -> xlLeft
A12: Total Rows Needed | B12: =SUM(B8:B10) -> 6 | C12: General | E12: =C12 -> General
A13: Last Tab DE Starter Row | B13: 18 | C13: =CELL("width",C13) -> 78 | E13: =CELL("width",E13) -> 0
A14: Last Tab Tabsheet Starter Row | B14: 5 | C14: A | E14: a
A15: Last Copy Starter Row | B15: 1 | C15: SECTION 404 PERMIT AND CONDITIONS | E15: 281-1
A16: Tab Loop Number | B16: 2 | E16: =B17 -> 2016-10-18
A17: Revision Date | B17: 2016-10-18 | C17: ="This Data Entry Sheet fills Tab "&E15&" effective "&TEXT(B17,"mm-dd-yy") -> This Data Entry Sheet fills Tab 281-1 effective 10-18-16 | E17: =C15 -> SECTION 404 PERMIT AND CONDITIONS
A18: Tabulation Width | B18: 1 | C18: Construct this project according to the requirements of U.S. Army
A19: Horizontal Grid Lines | B19: No | C19: Corps of Engineers 2017-544, Permit No. NWP 14.
C20: A copy of this permit is available from the Iowa DOT website
C21: (http://www.envpermits.iowadot.gov/). The U.S. Army Corps of
C22: Engineers reserves the right to visit the site without prior
C23: notice.

Sheet DE102_3
A1: TabTitle | B1: =C16 -> ACCESS POINTS AND SAFETY RAMPS
A2: Number of Tab Columns | B2: 19
A3: DE Starter Row Number | B3: 33
A4: TabSheet Starter Row Number | B4: 19
A5: TabSheet Header Row Count | B5: 18
A6: Top Header Cell | B6: Y15
A7: Bottom Header Cell | B7: AQ32
A8: DESheet Row Count | B8: 25
A9: Fixed Empty Rows | B9: 3
A10: Usable Empty Rows | B10: 0
A11: Total Rows Placed | B11: 28 | C11: xlRight(1) | D11: xlLeft(1) | E11: xlLeft(1) | F11: xlLeft(1) | G11: xlRight(1) | H11: xlRight(1) | I11: xlRight(1) | J11: xlRight(1) | K11: xlRight(1) | L11: xlRight(1) | M11: xlRight(1) | N11: xlRight(1) | O11: xlRight(1) | P11: xlRight(1) | Q11: xlRight(1) | S11: xlRight(1) | U11: xlRight(1) | V11: xlRight(1) | W11: xlLeft(1) | Y11: =C11 -> xlRight(1) | Z11: xlLeft(1) | AA11: xlLeft(1) | AB11: xlLeft(1) | AC11: xlRight(1) | AD11: xlRight(1) | AE11: xlRight(1) | AF11: xlRight(1) | AG11: xlRight(1) | AH11: xlRight(1) | AI11: xlRight(1) | AJ11: xlRight(1) | AK11: xlRight(1) | AL11: xlRight(1) | AM11: xlRight(1) | AN11: =S11 -> xlRight(1) | AO11: =U11 -> xlRight(1) | AP11: xlRight(1) | AQ11: xlLeft(1)
A12: Total Rows Needed | B12: =SUM(B8:B10) -> 28 | C12: #+00.00 | D12: General | E12: General | F12: General | G12: 0.0 | H12: 0.0 | I12: 0.0 | J12: 0.0 | K12: 0.0 | L12: 0.0 | M12: 0.0 | N12: 0.0 | O12: 0.0 | P12: 0.0 | Q12: 0 | S12: 0.0 | U12: 0.0 | V12: 0.000 | W12: General | Y12: #+00.00 | Z12: General | AA12: General | AB12: General | AC12: 0.0 | AD12: 0.0 | AE12: 0.0 | AF12: 0.0 | AG12: 0.0 | AH12: 0.0 | AI12: 0.0 | AJ12: 0.0 | AK12: 0.0 | AL12: 0.0 | AM12: 0 | AN12: =S12 -> 0.0 | AO12: 0.0 | AP12: 0.000 | AQ12: General
A13: Last Tab DE Starter Row | B13: 33 | C13: =CELL("width",C13) -> 16 | D13: 6 | E13: 20 | F13: 12 | G13: 12 | H13: 12 | I13: 8 | J13: 8 | K13: 8 | L13: 8 | M13: 10 | N13: 10 | O13: 10 | P13: 10 | Q13: 10 | S13: =CELL("width",S13) -> 10 | U13: =CELL("width",U13) -> 10 | V13: =CELL("width",V13) -> 12 | W13: =CELL("width",W13) -> 34 | Y13: =CELL("width",Y13) -> 0 | Z13: 0 | AA13: 0 | AB13: 0 | AC13: 0 | AD13: 0 | AE13: 0 | AF13: 0 | AG13: 0 | AH13: 0 | AI13: 0 | AJ13: 0 | AK13: 0 | AL13: 0 | AM13: 0 | AN13: 0 | AO13: 0 | AP13: 0 | AQ13: 0
A14: Last Tab Tabsheet Starter Row | B14: 19 | C14: A | D14: B | E14: C | F14: D | G14: E | H14: F | I14: G | J14: H | K14: I | L14: J | M14: K | N14: L | O14: M | P14: N | Q14: O | S14: P | U14: Q | V14: R | W14: S | Y14: =LOWER(C14) -> a | Z14: b | AA14: c | AB14: d | AC14: e | AD14: f | AE14: g | AF14: h | AG14: i | AH14: j | AI14: k | AJ14: l | AK14: m | AL14: n | AM14: o | AN14: =LOWER(S14) -> p | AO14: =LOWER(U14) -> q | AP14: =LOWER(V14) -> r | AQ14: =LOWER(W14) -> s
A15: Last Copy Starter Row | B15: 1 | M15: Totals: | N15: =SUBTOTAL(9,N33:N6003) -> 400 | Q15: =SUBTOTAL(9,Q33:Q6003) -> 12 | S15: =SUBTOTAL(9,S33:S6003) -> 0 | U15: =SUBTOTAL(9,U33:U6003) -> 118.6666667 | V15: =SUBTOTAL(9,V33:V6003) -> 1646.61 | Y15: 102-3 | AS15: Pipe Type | AT15: =E26 -> Type
A16: Tab Loop Number | B16: 2 | C16: ACCESS POINTS AND SAFETY RAMPS | Y16: =B17 -> 2013-10-15 | AS16: Reinforced Concrete Pipe. | AT16: A
A17: Revision Date | B17: 2013-10-15 | Y17: =C16 -> ACCESS POINTS AND SAFETY RAMPS | AS17: Corrugated Metal Pipe. | AT17: B
A18: Tabulation Width | B18: 3 | AT18: C
A19: Horizontal Grid Lines | B19: Yes | C19: Refer to Cross-Sections | AT19: Safety Ramp
C20: Length of unclassified pipe calculated is based on using | H20: Corrugated Metal Pipe. | Y20: =C19 -> Refer to Cross-Sections | AT20: Predetermined
C21: Refer to MI-210 | Y21: =C20&H20 -> Length of unclassified pipe calculated is based on using Corrugated Metal Pipe.
C22: Refer to EW-501. | Y22: =C21 -> Refer to MI-210
C23: Refer to EW-501 or EW-502. | Y23: =C22 -> Refer to EW-501.
C24: *Predetermined for access point not constructed with this project. | Y24: =C23 -> Refer to EW-501 or EW-502.
C25: ="This Data Entry Sheet fills Tab "&Y15&" effective "&TEXT(B17,"mm-dd-yy") -> This Data Entry Sheet fills Tab 102-3 effective 10-15-13 | Y25: =C24 -> *Predetermined for access point not constructed with this project.
C26: Location | E26: Type | F26: Length of Opening | L26: Pipe Culvert | Q26: Aprons | R26: Driveway Surface Area | V26: Entrance Surfacing Material | W26: Remarks | Y26: =C26 -> Location | AA26: =E26 -> Type | AB26: =F26 -> Length of Opening | AE26: =I26 ->  | AF26: =J26 ->  | AG26: =K26 ->  | AH26: =L26 -> Pipe Culvert | AM26: Aprons | AN26: =R26 -> Driveway Surface Area | AP26: =V26 -> Entrance Surfacing Material | AQ26: =W26 -> Remarks
C28: Station | D28: Side | E28: A, B, C, Safety Ramp, or Predetermined* | F28: Case | G28: 1½" Dropped Curb | H28: 3" Dropped Curb | R28: HMA Sq. Ft. from Microstation | S28: HMA | T28: PCC Sq. Ft. from Microstation | U28: PCC | Y28: =C28 -> Station | Z28: Side | AA28: A, B, C, Safety Ramp, or Predetermined* | AB28: Case | AC28: 1½" Dropped Curb | AD28: 3" Dropped Curb
M29: Size | N29: Pipe Length | O29: Lt. | P29: Rt. | AH29: =L28 -> 0 | AI29: =M29 -> Size | AJ29: =N29 -> Pipe Length | AK29: =O29 -> Lt. | AL29: =P29 -> Rt. | AN29: =S28 -> HMA | AO29: =U28 -> PCC
F32: 1 or 2 | G32: LF | H32: LF | I32: FT | J32: FT | K32: FT | L32: FT | M32: IN | N32: LF | O32: LF | P32: LF | Q32: No. | R32: SF | S32: SY | T32: SF | U32: SY | V32: TON | AB32: =F32 -> 1 or 2 | AC32: LF | AD32: LF | AE32: FT | AF32: FT | AG32: FT | AH32: FT | AI32: IN | AJ32: LF | AK32: LF | AL32: LF | AM32: No. | AN32: =S32 -> SY | AO32: =U32 -> SY | AP32: =V32 -> TON
Q33: =IF(M33<>"",2,"") ->  | S33: =IF(R33<>"",R33/9,"") ->  | U33: =IF(T33<>"",T33/9,"") -> 
C34: 44922.61 | D34: Lt | E34: C | L34: 1.1 | M34: 24 | N34: 36 | O34: 23.5 | P34: 21.1 | Q34: 2 | V34: =1026*140/2000 -> 71.82
C35: 46158 | D35: Rt | E35: C | V35: =176.5*140/2000 -> 12.355
C36: 46350 | D36: Rt | E36: C | S36: =IF(R36<>"",R36/9,"") ->  | U36: =IF(T36<>"",T36/9,"") ->  | V36: =218*140/2000 -> 15.26
C37: 46838 | D37: Lt | E37: C | L37: 1 | M37: 24 | N37: 47.5 | O37: 35.5 | P37: 21 | Q37: 2 | V37: =937*140/2000 -> 65.59
C38: 47530 | D38: Lt | E38: C | V38: =1146*140/2000 -> 80.22
C39: Sideroad
C40: 50353 | D40: Lt | E40: C | V40: =637*140/2000 -> 44.59
C41: 52418 | D41: Lt | E41: C | V41: =1957*140/2000 -> 136.99
C42: 54005 | D42: Lt | E42: C | V42: =(2461+1161)*140/2000 -> 253.54
C43: Sideroad
C44: 54344 | D44: Rt | E44: C | L44: 2.8 | M44: 24 | N44: 50.9 | O44: 29.8 | P44: 25.4 | Q44: 1 | V44: =535*140/2000 -> 37.45 | W44: *Note
C45: 54404 | D45: Rt | E45: C | L45: 2.4 | N45: 65.6 | O45: 30.5 | P45: 39.4 | Q45: 1 | V45: =444*140/2000 -> 31.08 | W45: *Note
C46: 54507 | D46: Rt | E46: C | V46: =370*140/2000 -> 25.9 | W46: UAC Pipe
C48: 154150 | D48: Rt | E48: C | V48: =(693*140)/2000 -> 48.51
C49: 154156.4 | D49: Lt | E49: C | Q49: =IF(M49<>"",2,"") ->  | S49: =IF(R49<>"",R49/9,"") ->  | T49: 1068 | U49: =IF(T49<>"",T49/9,"") -> 118.6666667
N51: =SUM(N33:N50) -> 200 | Q51: =SUM(Q34:Q50) -> 6 | V51: =SUM(V34:V50) -> 823.305
H56: *Note - Install 30" (SW-512), Case 1, Type 4 Casting SW-604
H57: at ML Sta.534+74.4 - Rt. 40
Q100: =IF(M100<>"",2,"") ->  | S100: =IF(R100<>"",R100/9,"") ->  | U100: =IF(T100<>"",T100/9,"") -> 
Q164: =IF(M164<>"",2,"") ->  | S164: =IF(R164<>"",R164/9,"") ->  | U164: =IF(T164<>"",T164/9,"") -> 
Q228: =IF(M228<>"",2,"") ->  | S228: =IF(R228<>"",R228/9,"") ->  | U228: =IF(T228<>"",T228/9,"") -> 
Q292: =IF(M292<>"",2,"") ->  | S292: =IF(R292<>"",R292/9,"") ->  | U292: =IF(T292<>"",T292/9,"") -> 
Q356: =IF(M356<>"",2,"") ->  | S356: =IF(R356<>"",R356/9,"") ->  | U356: =IF(T356<>"",T356/9,"") -> 
Q420: =IF(M420<>"",2,"") ->  | S420: =IF(R420<>"",R420/9,"") ->  | U420: =IF(T420<>"",T420/9,"") -> 
Q484: =IF(M484<>"",2,"") ->  | S484: =IF(R484<>"",R484/9,"") ->  | U484: =IF(T484<>"",T484/9,"") -> 
Q548: =IF(M548<>"",2,"") ->  | S548: =IF(R548<>"",R548/9,"") ->  | U548: =IF(T548<>"",T548/9,"") -> 
Q612: =IF(M612<>"",2,"") ->  | S612: =IF(R612<>"",R612/9,"") ->  | U612: =IF(T612<>"",T612/9,"") -> 
Q676: =IF(M676<>"",2,"") ->  | S676: =IF(R676<>"",R676/9,"") ->  | U676: =IF(T676<>"",T676/9,"") -> 
Q740: =IF(M740<>"",2,"") ->  | S740: =IF(R740<>"",R740/9,"") ->  | U740: =IF(T740<>"",T740/9,"") -> 
Q804: =IF(M804<>"",2,"") ->  | S804: =IF(R804<>"",R804/9,"") ->  | U804: =IF(T804<>"",T804/9,"") -> 
Q868: =IF(M868<>"",2,"") ->  | S868: =IF(R868<>"",R868/9,"") ->  | U868: =IF(T868<>"",T868/9,"") -> 
Q932: =IF(M932<>"",2,"") ->  | S932: =IF(R932<>"",R932/9,"") ->  | U932: =IF(T932<>"",T932/9,"") -> 
Q996: =IF(M996<>"",2,"") ->  | S996: =IF(R996<>"",R996/9,"") ->  | U996: =IF(T996<>"",T996/9,"") -> 
Q1060: =IF(M1060<>"",2,"") ->  | S1060: =IF(R1060<>"",R1060/9,"") ->  | U1060: =IF(T1060<>"",T1060/9,"") -> 
Q1124: =IF(M1124<>"",2,"") ->  | S1124: =IF(R1124<>"",R1124/9,"") ->  | U1124: =IF(T1124<>"",T1124/9,"") -> 
Q1188: =IF(M1188<>"",2,"") ->  | S1188: =IF(R1188<>"",R1188/9,"") ->  | U1188: =IF(T1188<>"",T1188/9,"") -> 
Q1252: =IF(M1252<>"",2,"") ->  | S1252: =IF(R1252<>"",R1252/9,"") ->  | U1252: =IF(T1252<>"",T1252/9,"") -> 
Q1316: =IF(M1316<>"",2,"") ->  | S1316: =IF(R1316<>"",R1316/9,"") ->  | U1316: =IF(T1316<>"",T1316/9,"") -> 
Q1380: =IF(M1380<>"",2,"") ->  | S1380: =IF(R1380<>"",R1380/9,"") ->  | U1380: =IF(T1380<>"",T1380/9,"") -> 
Q1444: =IF(M1444<>"",2,"") ->  | S1444: =IF(R1444<>"",R1444/9,"") ->  | U1444: =IF(T1444<>"",T1444/9,"") -> 
Q1508: =IF(M1508<>"",2,"") ->  | S1508: =IF(R1508<>"",R1508/9,"") ->  | U1508: =IF(T1508<>"",T1508/9,"") -> 
Q1572: =IF(M1572<>"",2,"") ->  | S1572: =IF(R1572<>"",R1572/9,"") ->  | U1572: =IF(T1572<>"",T1572/9,"") -> 
Q1636: =IF(M1636<>"",2,"") ->  | S1636: =IF(R1636<>"",R1636/9,"") ->  | U1636: =IF(T1636<>"",T1636/9,"") -> 
Q1700: =IF(M1700<>"",2,"") ->  | S1700: =IF(R1700<>"",R1700/9,"") ->  | U1700: =IF(T1700<>"",T1700/9,"") -> 
Q1764: =IF(M1764<>"",2,"") ->  | S1764: =IF(R1764<>"",R1764/9,"") ->  | U1764: =IF(T1764<>"",T1764/9,"") -> 
Q1828: =IF(M1828<>"",2,"") ->  | S1828: =IF(R1828<>"",R1828/9,"") ->  | U1828: =IF(T1828<>"",T1828/9,"") -> 
Q1892: =IF(M1892<>"",2,"") ->  | S1892: =IF(R1892<>"",R1892/9,"") ->  | U1892: =IF(T1892<>"",T1892/9,"") -> 
Q1956: =IF(M1956<>"",2,"") ->  | S1956: =IF(R1956<>"",R1956/9,"") ->  | U1956: =IF(T1956<>"",T1956/9,"") -> 
... 40 more rows

Sheet DE102_5
A1: TabTitle | B1: =C15 -> EXISTING PAVEMENT
A2: Number of Tab Columns | B2: 22
A3: DE Starter Row Number | B3: 23
A4: TabSheet Starter Row Number | B4: 10
A5: TabSheet Header Row Count | B5: 9
A6: Top Header Cell | B6: Z15
A7: Bottom Header Cell | B7: AU23
A8: DESheet Row Count | B8: 6
A9: Fixed Empty Rows | B9: 2
A10: Usable Empty Rows | B10: 0
A11: Total Rows Placed | B11: 8 | C11: xlRight(1) | D11: xlRight(1) | E11: xlRight(1) | F11: xlRight(1) | G11: xlRight(1) | H11: xlRight(1) | I11: xlRight(1) | J11: xlRight(1) | K11: xlLeft(1) | L11: xlLeft(1) | M11: xlRight(1) | N11: xlLeft(1) | O11: xlRight(1) | P11: xlLeft(1) | Q11: xlRight(1) | R11: xlLeft(1) | S11: xlRight(1) | T11: xlLeft(1) | U11: xlLeft(1) | V11: xlRight(1) | W11: xlRight(1) | X11: xlLeft(1) | Z11: =C11 -> xlRight(1) | AA11: xlRight(1) | AB11: xlRight(1) | AC11: xlRight(1) | AD11: xlRight(1) | AE11: xlRight(1) | AF11: xlRight(1) | AG11: xlRight(1) | AH11: xlLeft(1) | AI11: xlLeft(1) | AJ11: xlRight(1) | AK11: xlLeft(1) | AL11: xlRight(1) | AM11: xlLeft(1) | AN11: xlRight(1) | AO11: xlLeft(1) | AP11: =S11 -> xlRight(1) | AQ11: xlLeft(1) | AR11: xlLeft(1) | AS11: xlRight(1) | AT11: xlRight(1) | AU11: xlLeft(1)
A12: Total Rows Needed | B12: =SUM(B8:B10) -> 8 | C12: General | D12: General | E12: General | F12: General | G12: General | H12: General | I12: General | J12: General | K12: General | L12: General | M12: General | N12: General | O12: General | P12: General | Q12: General | R12: General | S12: General | T12: General | U12: General | V12: General | W12: General | X12: General | Z12: General | AA12: General | AB12: General | AC12: General | AD12: General | AE12: General | AF12: General | AG12: General | AH12: General | AI12: General | AJ12: General | AK12: General | AL12: General | AM12: General | AN12: General | AO12: General | AP12: General | AQ12: General | AR12: General | AS12: General | AT12: General | AU12: General
A13: Last Tab DE Starter Row | B13: 23 | C13: =CELL("width",C13) -> 8 | D13: 10 | E13: 10 | F13: 10 | G13: 11 | H13: 11 | I13: 10 | J13: 9 | K13: 30 | L13: 10 | M13: 10 | N13: 10 | O13: 10 | P13: 10 | Q13: 10 | R13: 10 | S13: 10 | T13: 35 | U13: 12 | V13: 12 | W13: 16 | X13: 44 | Z13: =CELL("width",Z13) -> 0 | AA13: 0 | AB13: 0 | AC13: 0 | AD13: 0 | AE13: 0 | AF13: 0 | AG13: 0 | AH13: 0 | AI13: 0 | AJ13: 0 | AK13: 0 | AL13: 0 | AM13: 0 | AN13: 0 | AO13: 0 | AP13: 0 | AQ13: 0 | AR13: 0 | AS13: 0 | AT13: 0 | AU13: 0
A14: Last Tab Tabsheet Starter Row | B14: 10 | C14: A | D14: B | E14: C | F14: D | G14: E | H14: F | I14: G | J14: H | K14: I | L14: J | M14: K | N14: L | O14: M | P14: N | Q14: O | R14: P | S14: Q | T14: R | U14: S | V14: T | W14: U | X14: V | Z14: =LOWER(C14) -> a | AA14: b | AB14: c | AC14: d | AD14: e | AE14: f | AF14: g | AG14: h | AH14: =LOWER(J14) -> h | AI14: i | AJ14: j | AK14: k | AL14: l | AM14: m | AN14: n | AO14: o | AP14: p | AQ14: q | AR14: r | AS14: s | AT14: t | AU14: u | AV14: =LOWER(Y14) -> 
A15: Last Copy Starter Row | B15: 1 | C15: EXISTING PAVEMENT | Z15: 102-5
A16: Tab Loop Number | B16: 2 | Z16: =B17 -> 2012-10-16
A17: Revision Date | B17: 2012-10-16 | C17: ="This Data Entry Sheet fills Tab "&Z15&" effective "&TEXT(B17,"mm-dd-yy") -> This Data Entry Sheet fills Tab 102-5 effective 10-16-12 | Z17: =C15 -> EXISTING PAVEMENT
A18: Tabulation Width | B18: 4 | C18: No. | D18: Location | I18: Year | J18: Type | K18: Project Number | L18: Surface | N18: Base | P18: Subbase | R18: Removal | T18: Coarse Aggregate | W18: Reinforcement | X18: Remarks
A19: Horizontal Grid Lines | B19: Yes | Z19: =C18 -> No. | AA19: =D18 -> Location | AF19: =I18 -> Year | AG19: =J18 -> Type | AH19: =K18 -> Project Number | AI19: =L18 -> Surface | AK19: =N18 -> Base | AM19: =P18 -> Subbase | AO19: =R18 -> Removal | AQ19: =T18 -> Coarse Aggregate | AT19: =W18 -> Reinforcement | AU19: =X18 -> Remarks
D20: County | E20: Route | F20: Dir. of Travel | G20: Begin Milepost | H20: End Milepost | L20: Type | M20: Depth | N20: Type | O20: Depth | P20: Type | Q20: Depth | R20: Type | S20: Depth | T20: Source | U20: Type | V20: Durability Class | W20: Type
AA21: =D20 -> County | AB21: =E20 -> Route | AC21: =F20 -> Dir. of Travel | AD21: =G20 -> Begin Milepost | AE21: =H20 -> End Milepost | AI21: =L20 -> Type | AJ21: Depth | AK21: Type | AL21: Depth | AM21: Type | AN21: Depth | AO21: Type | AP21: Depth | AQ21: Source | AR21: Type | AS21: Durability Class | AT21: =W20 -> Type
M22: IN | O22: IN | Q22: IN | S22: IN
AJ23: =M22 -> IN | AL23: =O22 -> IN | AN23: =Q22 -> IN | AP23: =S22 -> IN
D24: 64 | E24: 146 | F24: 1 | G24: 40.72 | H24: 42.72 | I24: 2009 | K24: MP-146-1(706)23—76-79 | L24: SS
I25: 1996 | K25: STPN-146-4(19)--2J-64 | L25: AAC | M25: 2 | N25: AAC | O25: 2 | T25: Le Grand | U25: C.LST.
I26: 1976 | K26: FN-146-4(5)--21-64 | L26: BAC | M26: 1.5 | N26: TBB | O26: 1.5 | T26: Le Grand | U26: C.LST.
I27: 1952 | K27: P-1013 | L27: AAC | M27: 1.5 | N27: AAC | O27: 1.5 | T27: Le Grand | U27: C.LST.
I28: 1925 | K28: FA-211 | L28: PCC | M28: 8 | T28: Le Grand | U28: C.LST. | V28: 1

Sheet DE104_5A
A1: TabTitle | B1: =C15 -> INTAKES AND UTILITY ACCESSES
A2: Number of Tab Columns | B2: 7
A3: DE Starter Row Number | B3: 24
A4: TabSheet Starter Row Number | B4: 11
A5: TabSheet Header Row Count | B5: 10
A6: Top Header Cell | B6: P15
A7: Bottom Header Cell | B7: V24
A8: DESheet Row Count | B8: 3
A9: Fixed Empty Rows | B9: 2
A10: Usable Empty Rows | B10: 0
A11: Total Rows Placed | B11: 5 | C11: xlRight(1) | D11: xlRight(1) | E11: xlCenter | F11: xlRight(1) | G11: xlRight(1) | H11: xlRight(1) | N11: xlLeft(1) | P11: =C11 -> xlRight(1) | Q11: xlRight(1) | R11: xlCenter | S11: xlRight(1) | T11: xlRight(1) | U11: xlRight(1) | V11: =N11 -> xlLeft(1)
A12: Total Rows Needed | B12: =SUM(B8:B10) -> 5 | C12: General | D12: #+00.00 | E12: General | F12: 0.0 | G12: 0.0 | H12: 0.0 | N12: General | P12: General | Q12: #+00.00 | R12: General | S12: 0.0 | T12: 0.0 | U12: 0.0 | V12: =N12 -> General
A13: Last Tab DE Starter Row | B13: 24 | C13: =CELL("width",C13) -> 6 | D13: 19 | E13: 14 | F13: 13 | G13: 13 | H13: 14 | N13: =CELL("width",N13) -> 75 | P13: =CELL("width",P13) -> 0 | Q13: 0 | R13: 0 | S13: 0 | T13: 0 | U13: 0 | V13: 0
A14: Last Tab Tabsheet Starter Row | B14: 11 | C14: A | D14: B | E14: C | F14: D | G14: E | H14: F | N14: G | P14: =LOWER(C14) -> a | Q14: b | R14: c | S14: d | T14: e | U14: f | V14: =LOWER(N14) -> g
A15: Last Copy Starter Row | B15: 1 | C15: INTAKES AND UTILITY ACCESSES | P15: 104-5A
A16: Tab Loop Number | B16: 2 | P16: =B17 -> 2013-10-15
A17: Revision Date | B17: 2013-10-15 | C17: * Bid Item | P17: =C15 -> INTAKES AND UTILITY ACCESSES
A18: Tabulation Width | B18: 2 | C18: ** For SW-545
A19: Horizontal Grid Lines | B19: Yes | C19: ="This Data Entry Sheet fills Tab "&P15&" effective "&TEXT(B17,"mm-dd-yy") -> This Data Entry Sheet fills Tab 104-5A effective 10-15-13 | P19: =C17 -> * Bid Item
C20: No. | D20: Location Station | E20: Type or Standard Road Plan* | F20: Form Grade | G20: Bottom Well | H20: Extension Length** | I20: Length | J20: Width | K20: Depth | L20: Volume | M20: Weight | N20: Notes | P20: =C18 -> ** For SW-545
P21: =C20 -> No. | Q21: Location Station | R21: Type or Standard Road Plan* | S21: Form Grade | T21: Bottom Well | U21: Extension Length** | V21: =N20 -> Notes
F23: Elev. | G23: Elev. | H23: FT | I23: FT | J23: FT | K23: FT | L23: CF | M23: LBS
L24: =I24*J24*K24 -> 0 | M24: =L24*125 -> 0 | S24: =F23 -> Elev. | T24: =G23 -> Elev. | U24: =H23 -> FT
C25: 1 | D25: 13+55 (Rt) | E25: SW-509 | F25: 918.65 | L25: 0 | M25: 0 | N25: SE Corner of Intersection
C26: 1 | D26: 13+54 (Lt) | E26: SW-509 | F26: 918.79 | L26: =I26*J26*K26 -> 0 | M26: 0 | N26: NE Corner of Intersection
L27: 0 | M27: 0
L28: 0 | M28: 0
L29: 0 | M29: 0
L30: 0 | M30: 0
L31: 0 | M31: 0
L32: 0 | M32: 0
L33: 0 | M33: 0
L34: 0 | M34: 0
L35: 0 | M35: 0
L36: 0 | M36: 0
L37: 0 | M37: 0
L38: 0 | M38: 0
L39: 0 | M39: 0
L40: 0 | M40: 0
L41: 0 | M41: 0
L42: 0 | M42: 0
L43: 0 | M43: 0
L44: 0 | M44: 0
L45: 0 | M45: 0
L46: 0 | M46: 0
L47: 0 | M47: 0
L48: 0 | M48: 0
L49: 0 | M49: 0
L50: 0 | M50: 0
L51: 0 | M51: 0
L52: 0 | M52: 0
L53: 0 | M53: 0
L54: 0 | M54: 0
L55: 0 | M55: 0
L56: 0 | M56: 0
L57: 0 | M57: 0
L58: 0 | M58: 0
L59: 0 | M59: 0
L60: 0 | M60: 0
L61: 0 | M61: 0
L62: 0 | M62: 0
L63: 0 | M63: 0
L64: 0 | M64: 0
L65: 0 | M65: 0
L66: 0 | M66: 0
L67: 0 | M67: 0
L68: 0 | M68: 0
L69: 0 | M69: 0
L70: 0 | M70: 0
L71: 0 | M71: 0
L72: 0 | M72: 0
L73: 0 | M73: 0
L74: 0 | M74: 0
L75: 0 | M75: 0
L76: 0 | M76: 0
L77: 0 | M77: 0
L78: 0 | M78: 0
L79: 0 | M79: 0
L80: 0 | M80: 0
L81: 0 | M81: 0
L82: 0 | M82: 0
L83: 0 | M83: 0
L84: 0 | M84: 0
L85: 0 | M85: 0
L86: 0 | M86: 0
L87: 0 | M87: 0
L88: =I88*J88*K88 -> 0 | M88: =L88*125 -> 0
L89: 0 | M89: 0
L90: 0 | M90: 0
L91: 0 | M91: 0
L92: 0 | M92: 0
L93: 0 | M93: 0
L94: 0 | M94: 0
L95: 0 | M95: 0
L96: 0 | M96: 0
L97: 0 | M97: 0
L98: 0 | M98: 0
L99: 0 | M99: 0
L100: 0 | M100: 0
L101: 0 | M101: 0
L102: 0 | M102: 0
L103: 0 | M103: 0
L104: 0 | M104: 0
L105: 0 | M105: 0
L106: 0 | M106: 0
L107: 0 | M107: 0
L108: 0 | M108: 0
L109: 0 | M109: 0
L110: 0 | M110: 0
L111: 0 | M111: 0
L112: 0 | M112: 0
L113: 0 | M113: 0
L114: 0 | M114: 0
L115: 0 | M115: 0
L116: 0 | M116: 0
L117: 0 | M117: 0
L118: 0 | M118: 0
L119: 0 | M119: 0
L120: 0 | M120: 0
L121: 0 | M121: 0
L122: 0 | M122: 0
L123: 0 | M123: 0
L124: 0 | M124: 0
L125: 0 | M125: 0
L126: 0 | M126: 0
L127: 0 | M127: 0
L128: 0 | M128: 0
L129: 0 | M129: 0
L130: 0 | M130: 0
L131: 0 | M131: 0
L132: 0 | M132: 0
L133: 0 | M133: 0
L134: 0 | M134: 0
L135: 0 | M135: 0
L136: 0 | M136: 0
L137: 0 | M137: 0
L138: 0 | M138: 0
L139: 0 | M139: 0
L140: 0 | M140: 0
L141: 0 | M141: 0
L142: 0 | M142: 0
L143: 0 | M143: 0
L144: 0 | M144: 0
L145: 0 | M145: 0
L146: 0 | M146: 0
L147: 0 | M147: 0
L148: 0 | M148: 0
L149: 0 | M149: 0
L150: 0 | M150: 0
L151: 0 | M151: 0
L152: =I152*J152*K152 -> 0 | M152: =L152*125 -> 0
L153: 0 | M153: 0
L154: 0 | M154: 0
L155: 0 | M155: 0
L156: 0 | M156: 0
L157: 0 | M157: 0
L158: 0 | M158: 0
L159: 0 | M159: 0
L160: 0 | M160: 0
L161: 0 | M161: 0
L162: 0 | M162: 0
L163: 0 | M163: 0
L164: 0 | M164: 0
L165: 0 | M165: 0
L166: 0 | M166: 0
L167: 0 | M167: 0
L168: 0 | M168: 0
L169: 0 | M169: 0
L170: 0 | M170: 0
L171: 0 | M171: 0
L172: 0 | M172: 0
L173: 0 | M173: 0
L174: 0 | M174: 0
L175: 0 | M175: 0
L176: 0 | M176: 0
L177: 0 | M177: 0
L178: 0 | M178: 0
L179: 0 | M179: 0
L180: 0 | M180: 0
L181: 0 | M181: 0
L182: 0 | M182: 0
L183: 0 | M183: 0
L184: 0 | M184: 0
L185: 0 | M185: 0
L186: 0 | M186: 0
L187: 0 | M187: 0
L188: 0 | M188: 0
L189: 0 | M189: 0
L190: 0 | M190: 0
L191: 0 | M191: 0
L192: 0 | M192: 0
L193: 0 | M193: 0
L194: 0 | M194: 0
L195: 0 | M195: 0
L196: 0 | M196: 0
L197: 0 | M197: 0
L198: 0 | M198: 0
L199: 0 | M199: 0
L200: 0 | M200: 0
L201: 0 | M201: 0
... 5799 more rows

Sheet DE104_8A
A1: TabTitle | B1: =C16 -> SCOUR PROTECTION OR ROCK FLUME FOR BRIDGE END DRAIN
A2: Number of Tab Columns | B2: 14
A3: DE Starter Row Number | B3: 26
A4: TabSheet Starter Row Number | B4: 12
A5: TabSheet Header Row Count | B5: 11
A6: Top Header Cell | B6: R15
A7: Bottom Header Cell | B7: AE25
A8: DESheet Row Count | B8: 8
A9: Fixed Empty Rows | B9: 10
A10: Usable Empty Rows | B10: 0
A11: Total Rows Placed | B11: 18 | C11: xlRight(1) | D11: xlCenter | E11: xlRight(1) | F11: xlRight(1) | G11: xlCenter | H11: xlCenter | I11: xlRight(1) | J11: xlRight(1) | K11: xlRight(1) | L11: xlRight(1) | M11: xlRight(1) | N11: xlRight(1) | O11: xlRight(1) | P11: xlLeft(1) | R11: =C11 -> xlRight(1) | S11: xlCenter | T11: xlRight(1) | U11: xlRight(1) | V11: xlCenter | W11: xlCenter | X11: xlRight(1) | Y11: xlRight(1) | Z11: xlRight(1) | AA11: xlRight(1) | AB11: xlRight(1) | AC11: xlRight(1) | AD11: xlRight(1) | AE11: xlLeft(1)
A12: Total Rows Needed | B12: =SUM(B8:B10) -> 18 | C12: #+00.00 | D12: General | E12: 0.0 | F12: 0.0 | G12: General | H12: General | I12: 0.0 | J12: 0.000 | K12: 0.0 | L12: 0.0 | M12: 0.000 | N12: 0.0 | O12: 0.000 | P12: General | R12: #+00.00 | S12: General | T12: 0.0 | U12: 0.0 | V12: General | W12: General | X12: 0.0 | Y12: 0.000 | Z12: 0.0 | AA12: 0.0 | AB12: 0.000 | AC12: 0.0 | AD12: 0.000 | AE12: General
A13: Last Tab DE Starter Row | B13: 26 | C13: =CELL("width",C13) -> 16 | D13: 10 | E13: 12 | F13: 14 | G13: 20 | H13: 15 | I13: 15 | J13: 15 | K13: 21 | L13: 21 | M13: 15 | N13: 15 | O13: 15 | P13: 26 | R13: =CELL("width",R13) -> 0 | S13: 0 | T13: 0 | U13: 0 | V13: 0 | W13: 0 | X13: 0 | Y13: 0 | Z13: 0 | AA13: 0 | AB13: 0 | AC13: 0 | AD13: 0 | AE13: 0
A14: Last Tab TabSheet Starter Row | B14: 12 | C14: A | D14: B | E14: C | F14: D | G14: E | H14: F | I14: G | J14: H | K14: I | L14: J | M14: K | N14: L | O14: M | P14: N | R14: =LOWER(C14) -> a | S14: b | T14: c | U14: d | V14: e | W14: f | X14: g | Y14: h | Z14: i | AA14: j | AB14: k | AC14: l | AD14: m | AE14: n
A15: Last Copy Starter Row | B15: 1 | E15: Totals: | F15: =SUBTOTAL(9,F26:F6000) -> 186.68 | G15: DR-401: | H15: =COUNTIF(G26:H6000,"DR-401") -> 0 | I15: DR-402: | J15: =COUNTIF(G26:H6000,"DR-402") -> 4 | R15: 104-8A | AG15: =G21 -> Bridge End Drain
A16: Tab Loop Number | B16: 2 | C16: SCOUR PROTECTION OR ROCK FLUME FOR BRIDGE END DRAIN | R16: =B17 -> 2015-04-21 | AG16: DR-401
A17: Revision Date | B17: 2015-04-21 | R17: =C16 -> SCOUR PROTECTION OR ROCK FLUME FOR BRIDGE END DRAIN | AG17: DR-402
A18: Tabulation Width | B18: 3 | C18: Refer to Standard Road Plan DR-401 and DR-402
A19: Horizontal Grid Lines | B19: Yes | C19: ="This Data Entry Sheet fills Tab "&R15&" effective "&TEXT(B17,"mm-dd-yy") -> This Data Entry Sheet fills Tab 104-8A effective 04-21-15 | R19: =C18 -> Refer to Standard Road Plan DR-401 and DR-402
C20: Location | F20: Bid Items | H20: PCC Paved Shoulder | K20: Scour Protection (DR-401) | M20: Rock Flume (DR-402) | P20: Remarks | R20: =C20 -> Location | U20: =F20 -> Bid Items | W20: =H20 -> PCC Paved Shoulder | Z20: =K20 -> Scour Protection (DR-401) | AB20: =M20 -> Rock Flume (DR-402) | AE20: =P20 -> Remarks
C21: Bridge Station | D21: Bridge Corner | E21: Distance DI-1 or DI-2 | F21: PCC Paved Shoulder | G21: Bridge End Drain | H21: Panels Required | I21: Polymer Grid | J21: Modified Subbase | K21: Outlet or Channel Scour Protection | L21: Turf Reinforced Mat (TRM), Type 2 | M21: Macadam Stone Base | N21: Engineering Fabric | O21: Erosion Stone | R21: =C21 -> Bridge Station | S21: =D21 -> Bridge Corner | T21: =E21 -> Distance DI-1 or DI-2 | U21: =F21 -> PCC Paved Shoulder | V21: =G21 -> Bridge End Drain | W21: =H21 -> Panels Required | X21: =I21 -> Polymer Grid | Y21: =J21 -> Modified Subbase | Z21: =K21 -> Outlet or Channel Scour Protection | AA21: =L21 -> Turf Reinforced Mat (TRM), Type 2 | AB21: =M21 -> Macadam Stone Base | AC21: =N21 -> Engineering Fabric | AD21: =O21 -> Erosion Stone
E25: FT | F25: SY | G25: TYPE | H25: A B C or D | I25: SY | J25: TONS | K25: SF | L25: SQ | M25: TONS | N25: SY | O25: TONS | T25: =E25 -> FT | U25: SY | V25: TYPE | W25: A B C or D | X25: SY | Y25: TONS | Z25: SF | AA25: SQ | AB25: TONS | AC25: SY | AD25: TONS
C27: 53613.88 | D27: SW | E27: DI-2 = 58 | F27: 15.56 | G27: DR-402 | H27: A | M27: =(4.5*7.5)*(9.5/12)*130/2000 -> 1.73671875 | N27: =1041/9 -> 115.6666667 | O27: =(1080*2)*120/2000 -> 129.6
C28: 53613.88 | D28: SE | E28: DI-1 = 40 | F28: 31.11 | G28: DR-402 | H28: B & C | I28: 31.11 | J28: 25.06 | M28: =(4.5*7.5)*(9.5/12)*130/2000 -> 1.73671875 | N28: =675/9 -> 75 | O28: =(786*2)*120/2000 -> 94.32
C29: 53613.88 | D29: NW | E29: DI-1 = 40 | F29: 31.11 | G29: DR-402 | H29: B & C | I29: 31.1 | J29: 25.06 | M29: 1.73671875 | N29: =553/9 -> 61.44444444 | O29: =(600*2)*120/2000 -> 72
C30: 53613.88 | D30: NE | E30: DI-2 = 58 | F30: 15.56 | G30: DR-402 | H30: A | M30: 1.73671875 | N30: =165/9 -> 18.33333333 | O30: =(462.5*2)*120/2000 -> 55.5
C33: Totals | F33: =SUM(F27:F32) -> 93.34 | G33: 4 | I33: =SUM(I28:I32) -> 62.21 | J33: =SUM(J28:J32) -> 50.12 | M33: =SUM(M27:M32) -> 6.946875 | N33: =SUM(N27:N32) -> 270.4444444 | O33: 351.42

Sheet DE105_4
A1: TabTitle | B1: =C15 -> STANDARD ROAD PLANS
A2: Number of Tab Columns | B2: 3
A3: DE Starter Row Number | B3: 20
A4: TabSheet Starter Row Number | B4: 7
A5: TabSheet Header Row Count | B5: 6
A6: Top Header Cell | B6: G15
A7: Bottom Header Cell | B7: I20
A8: DESheet Row Count | B8: 60
A9: Fixed Empty Rows | B9: 10
A10: Usable Empty Rows | B10: 0
A11: Total Rows Placed | B11: 70 | C11: xlLeft | D11: xlCenter | E11: xlLeft | G11: =C11 -> xlLeft | H11: =D11 -> xlCenter | I11: =E11 -> xlLeft
A12: Total Rows Needed | B12: =SUM(B8:B10) -> 70 | C12: General | D12: Text | E12: General | G12: =C12 -> General | H12: =D12 -> Text | I12: General
A13: Last Tab DE Starter Row | B13: 20 | C13: =CELL("width",C13) -> 12 | D13: =CELL("width",D13) -> 12 | E13: 134 | G13: =CELL("width",G13) -> 0 | H13: =CELL("width",H13) -> 0 | I13: 0
A14: Last Tab Tabsheet Starter Row | B14: 7 | C14: A | D14: B | E14: C | G14: =LOWER(C14) -> a | H14: =LOWER(D14) -> b | I14: c
A15: Last Copy Starter Row | B15: 1 | C15: STANDARD ROAD PLANS | G15: 105-4
A16: Tab Loop Number | B16: 2 | G16: =B17 -> 2011-10-18
A17: Revision Date | B17: 2011-10-18 | C17: The following Standard Road Plans apply to construction work on this project. | G17: =C15 -> STANDARD ROAD PLANS
A18: Tabulation Width | B18: 2 | C18: ="This Data Entry Sheet fills Tab "&G15&" effective "&TEXT(B17,"mm-dd-yy") -> This Data Entry Sheet fills Tab 105-4 effective 10-18-11
A19: Horizontal Grid Lines | B19: Yes | C19: Number | D19: Date | E19: Title | G19: =C17 -> The following Standard Road Plans apply to construction work on this project.
B20: 2 | C20: BA-200 | D20: 10-18-16 | E20: Steel Beam Guardrail Components | G20: =C19 -> Number | H20: =D19 -> Date | I20: =E19 -> Title
C21: BA-202 | D21: 10-20-15 | E21: Steel Beam Guardrail Bolted End Anchor
C22: BA-205 | D22: 04-19-16 | E22: Steel Beam Guardrail Tangent End Terminal (MASH TL-3)
C23: BA-250 | D23: 10-18-16 | E23: Steel Beam Guardrail Installation at Concrete Barrier or Bridge End Post (MASH TL-3)
C24: BR-101 | D24: 04-21-15 | E24: Bridge Approach Section (General Details)
C25: BR-103 | D25: 10-17-17 | E25: Bridge Approach Section (Two-Lane for Bridge Reconstruction, PCC Pavement)
C26: BR-203 | D26: 10-17-17 | E26: Double Reinforced 12" Approach
C27: BR-211 | D27: 10-17-17 | E27: Bridge Approach (Abutting PCC or Composite Pavement)
C28: DR-101 | D28: 04-18-17 | E28: Pipe Culvert (Bedding and Backfill)
C29: DR-102 | D29: 04-21-15 | E29: Pipe Culvert (Cover and Camber)
C30: DR-103 | D30: 04-21-15 | E30: Pipe Culvert (Installation Details)
C31: DR-104 | D31: 04-19-16 | E31: Depth of Cover Tables for Concrete and Corrugated Pipe
C32: DR-111 | D32: 10-17-17 | E32: Box Culvert (Backfill)
C33: DR-121 | D33: 10-17-17 | E33: Connected Pipe Joints
C34: DR-122 | D34: 10-18-16 | E34: Construction of Type "C" Concrete Adaptors for Pipe Culvert Connections
C35: DR-202 | D35: 04-21-15 | E35: Low Clearance Concrete Pipe Aprons
C36: DR-203 | D36: 04-21-15 | E36: Metal Pipe Aprons and Beveled Ends
C37: DR-303 | D37: 10-17-17 | E37: Subdrains (Longitudinal)
C38: DR-306 | D38: 10-17-17 | E38: Precast Concrete Headwall for Subdrain Outlets
C39: DR-402 | D39: 10-17-17 | E39: Rock Flume for Bridge End Drain
C40: DR-601 | D40: 04-18-17 | E40: Reinforced Concrete Pipe Culvert
C41: DR-611 | D41: 04-18-17 | E41: Reinforced Concrete Pipe Culvert Letdown Structure
C42: DR-621 | D42: 04-18-17 | E42: Pipe Extension
C43: DR-651 | D43: 04-18-17 | E43: Unclassified Pipe Culvert
C44: EC-201 | D44: 10-17-17 | E44: Silt Fence
C45: EC-301 | D45: 10-18-16 | E45: Rock Erosion Control (REC)
C46: EW-101 | D46: 10-17-17 | E46: Embankment and Rebuilding Embankments
C47: EW-102 | D47: 10-20-15 | E47: Allowable Placement of Unsuitable Soil in Embankments
C48: EW-103 | D48: 10-20-15 | E48: Embankment Subgrade Treatment, Moisture Density Control and Special Compaction
C49: EW-201 | D49: 04-19-16 | E49: Bridge Berm Grading without Recoverable Slope (Barnroof Section)
C50: EW-212 | D50: 10-20-15 | E50: Settlement Plate
C51: EW-301 | D51: 10-20-15 | E51: Guardrail Grading
C52: EW-402 | D52: 04-18-17 | E52: Temporary Stream Diversion
C53: EW-501 | D53: 10-20-15 | E53: Rural Entrance
C54: MI-210 | D54: 10-20-15 | E54: PCC Driveways and Alleys
C55: MI-220 | D55: 10-20-15 | E55: Detectable Warnings and Pedestrian Ramp
C56: PM-110 | D56: 04-16-13 | E56: Line Types
C57: PM-111 | D57: 04-21-15 | E57: Symbols and Legends
C58: PM-120 | D58: 10-21-14 | E58: Stop Lines and Islands
C59: PM-210 | D59: 10-18-11 | E59: Separation in Two-Lane Roadway
C60: PM-220 | D60: 10-18-16 | E60: Passing Lane
C61: PV-3 | D61: 10-18-11 | E61: Safety Edge
C62: PV-12 | D62: 04-19-16 | E62: Milled Shoulder Rumble Strips
C63: PV-13 | D63: 10-17-17 | E63: Milled Centerline Rumble Strips
C64: PV-20 | D64: 10-21-14 | E64: Paved Islands
C65: PV-101 | D65: 10-17-17 | E65: Joints
C66: PV-102 | D66: 10-18-16 | E66: PCC Curb Details
C67: SI-173 | D67: 04-19-16 | E67: Object Markers
C68: SI-211 | D68: 10-18-16 | E68: Object Marker and Delineator Placement with Guardrail
C69: SW-301 | D69: 10-21-14 | E69: Circular Sanitary Sewer Manhole
C70: SW-303 | D70: 10-21-14 | E70: Sanitary Sewer Manhole over Existing Sewer
C71: SW-509 | D71: 10-21-14 | E71: Double Open-Throat Curb Intake, Small Box
C72: SW-512 | D72: 10-21-14 | E72: Circular Area Intake
C73: SW-601 | D73: 04-21-15 | E73: Castings for Sanitary Sewer Manholes
C74: SW-604 | D74: 10-20-09 | E74: Castings for Area Intakes
C75: TC-1 | D75: 04-16-13 | E75: Work Not Affecting Traffic (Two-Lane or Multi-Lane)
C76: TC-202 | D76: 04-21-15 | E76: Work Within 15 ft of Traveled Way
C77: TC-252 | D77: 04-19-16 | E77: Routes Closed to Traffic
C78: TC-283 | D78: 10-18-11 | E78: Surveying Operations
C79: TC-601 | D79: 10-18-11 | E79: Pedestrian Detour

Sheet DE107_23
A1: TabTitle | B1: =C16 -> GRADING FOR GUARDRAIL INSTALLATIONS
A2: Number of Tab Columns | B2: 17
A3: DE Starter Row Number | B3: 29
A4: TabSheet Starter Row Number | B4: 15
A5: TabSheet Header Row Count | B5: 14
A6: Top Header Cell | B6: U15
A7: Bottom Header Cell | B7: AK28
A8: DESheet Row Count | B8: 8
A9: Fixed Empty Rows | B9: 10
A10: Usable Empty Rows | B10: 0
A11: Total Rows Placed | B11: 18 | C11: xlRight(1) | D11: xlCenter | E11: xlRight(1) | F11: xlCenter | G11: xlRight(1) | H11: xlRight(1) | I11: xlRight(1) | J11: xlRight(1) | K11: xlRight(1) | L11: xlRight(1) | M11: xlRight(1) | N11: xlRight(1) | O11: xlRight(1) | P11: xlRight(1) | Q11: xlRight(1) | R11: xlRight(1) | S11: xlLeft(1) | U11: =C11 -> xlRight(1) | V11: xlCenter | W11: xlRight(1) | X11: xlCenter | Y11: xlRight(1) | Z11: xlRight(1) | AA11: xlRight(1) | AB11: xlRight(1) | AC11: xlRight(1) | AD11: xlRight(1) | AE11: xlRight(1) | AF11: xlRight(1) | AG11: xlRight(1) | AH11: xlRight(1) | AI11: xlRight(1) | AJ11: xlRight(1) | AK11: =S11 -> xlLeft(1)
A12: Total Rows Needed | B12: =SUM(B8:B10) -> 18 | C12: General | D12: General | E12: #+00.00 | F12: General | G12: General | H12: 0.0 | I12: 0.0 | J12: 0.0 | K12: 0.0 | L12: 0.0 | M12: 0.0 | N12: 0.0 | O12: 0.0 | P12: 0.0 | Q12: 0.0 | R12: 0.0 | S12: General | U12: General | V12: General | W12: #+00.00 | X12: General | Y12: General | Z12: 0.0 | AA12: 0.0 | AB12: 0.0 | AC12: 0.0 | AD12: 0.0 | AE12: 0.0 | AF12: 0.0 | AG12: 0.0 | AH12: 0.0 | AI12: 0.0 | AJ12: 0.0 | AK12: General
A13: Last Tab DE Starter Row | B13: 29 | C13: =CELL("width",C13) -> 7 | D13: 7 | E13: 18 | F13: 7 | G13: 15 | H13: 9 | I13: 9 | J13: 9 | K13: 9 | L13: 9 | M13: 9 | N13: 9 | O13: 9 | P13: 9 | Q13: 16 | R13: 16 | S13: 60 | U13: =CELL("width",U13) -> 0 | V13: 0 | W13: 0 | X13: 0 | Y13: 0 | Z13: 0 | AA13: 0 | AB13: 0 | AC13: 0 | AD13: 0 | AE13: 0 | AF13: 0 | AG13: 0 | AH13: 0 | AI13: 0 | AJ13: 0 | AK13: 0
A14: Last Tab Tabsheet Starter Row | B14: 15 | C14: A | D14: B | E14: C | F14: D | G14: E | H14: F | I14: G | J14: H | K14: I | L14: J | M14: K | N14: L | O14: M | P14: N | Q14: O | R14: P | S14: Q | U14: =LOWER(C14) -> a | V14: b | W14: c | X14: d | Y14: e | Z14: f | AA14: g | AB14: h | AC14: i | AD14: j | AE14: k | AF14: l | AG14: m | AH14: n | AI14: o | AJ14: p | AK14: q
A15: Last Copy Starter Row | B15: 1 | O15: Totals: | Q15: =SUBTOTAL(9,Q29:Q6000) -> 0 | R15: =SUBTOTAL(9,R29:R6000) -> 0 | U15: 107-23
A16: Tab Loop Number | B16: 2 | C16: GRADING FOR GUARDRAIL INSTALLATIONS | U16: =B17 -> 2011-10-18
A17: Revision Date | B17: 2011-10-18 | U17: =C16 -> GRADING FOR GUARDRAIL INSTALLATIONS
A18: Tabulation Width | B18: 3 | D18: Lane(s) to which the installation is adjacent. | K18: Refer to EW-301
A19: Horizontal Grid Lines | B19: Yes | C19: ="This Data Entry Sheet fills Tab "&U15&" effective "&TEXT(B17,"mm-dd-yy") -> This Data Entry Sheet fills Tab 107-23 effective 10-18-11 | V19: =D18 -> Lane(s) to which the installation is adjacent. | AC19: =K18 -> Refer to EW-301
C20: Location | G20: Foreslope at Guardrail | H20: Dimensions (Feet) | Q20: Earthwork | S20: Remarks | U20: =C20 -> Location | Y20: =G20 -> Foreslope at Guardrail | Z20: =H20 -> Dimensions (Feet) | AI20: =Q20 -> Earthwork | AK20: =S20 -> Remarks
C22: No. | D22: Direction of Traffic | E22: Station | F22: Side | Q22: Excavation Class 10 | R22: Embankment In Place | U22: =C22 -> No. | V22: =D22 -> Direction of Traffic | W22: =E22 -> Station | X22: =F22 -> Side | AI22: =Q22 -> Excavation Class 10 | AJ22: =R22 -> Embankment In Place
Q28: CY | R28: CY | AI28: =Q28 -> CY | AJ28: =R28 -> CY
D30: N | E30: 53442.8 | F30: Rt | H30: 78.6 | I30: 5.4 | J30: 90.9 | K30: 6.6 | N30: 141 | O30: 8.6 | P30: 52.8 | R30: *
D31: N | E31: 53476.39 | F31: Lt | H31: 77.9 | I31: 5.4 | J31: 90.2 | K31: 6.6 | N31: 141.2 | O31: 8.6 | P31: 51.6 | R31: *
D32: N | E32: 53751.61 | F32: Rt | H32: 77.9 | I32: 5.4 | J32: 9.8 | K32: 6.6 | N32: 140.3 | O32: 8.6 | P32: 51.6 | R32: *
D33: N | E33: 53785.18 | F33: Lt | H33: 90.4 | I33: 5.4 | J33: 102.7 | K33: 6.6 | N33: 152.8 | O33: 8.6 | P33: 48 | R33: *
S36: * Embankment quantities included in T Sheets.

Sheet DE108_8A
A1: TabTitle | B1: =C16 -> STEEL BEAM GUARDRAIL AT CONCRETE BARRIER OR BRIDGE RAIL END SECTION
A2: Number of Tab Columns | B2: 24
A3: DE Starter Row Number | B3: 30
A4: TabSheet Starter Row Number | B4: 16
A5: TabSheet Header Row Count | B5: 15
A6: Top Header Cell | B6: AC15
A7: Bottom Header Cell | B7: AZ29
A8: DESheet Row Count | B8: 8
A9: Fixed Empty Rows | B9: 10
A10: Usable Empty Rows | B10: 0
A11: Total Rows Placed | B11: 18 | C11: xlRight(1) | D11: xlLeft(1) | E11: xlLeft(1) | F11: xlRight(1) | G11: xlRight(1) | H11: xlRight(1) | I11: xlRight(1) | J11: xlRight(1) | K11: xlRight(1) | M11: xlRight(1) | N11: xlRight(1) | O11: xlRight(1) | P11: xlRight(1) | Q11: xlRight(1) | R11: xlRight(1) | S11: xlRight(1) | T11: xlRight(1) | U11: xlRight(1) | V11: xlRight(1) | W11: xlRight(1) | X11: xlRight(1) | Y11: xlRight(1) | Z11: xlRight(1) | AA11: xlLeft(1) | AC11: =C11 -> xlRight(1) | AD11: xlLeft(1) | AE11: xlLeft(1) | AF11: xlRight(1) | AG11: xlRight(1) | AH11: xlRight(1) | AI11: xlRight(1) | AJ11: xlRight(1) | AK11: xlRight(1) | AL11: =M11 -> xlRight(1) | AM11: xlRight(1) | AN11: xlRight(1) | AO11: xlRight(1) | AP11: xlRight(1) | AQ11: xlRight(1) | AR11: xlRight(1) | AS11: xlRight(1) | AT11: xlRight(1) | AU11: xlRight(1) | AV11: xlRight(1) | AW11: xlRight(1) | AX11: xlRight(1) | AY11: xlRight(1) | AZ11: xlLeft(1)
A12: Total Rows Needed | B12: =SUM(B8:B10) -> 18 | C12: General | D12: General | E12: General | F12: #+00.00 | G12: 0.0 | H12: 0.000 | I12: 0.00 | J12: 0.00 | K12: 0.0 | M12: #+00.00 | N12: General | O12: General | P12: 0 | Q12: 0 | R12: 0 | S12: 0 | T12: General | U12: 0 | V12: 0 | W12: 0.0 | X12: 0 | Y12: 0 | Z12: 0 | AA12: General | AC12: General | AD12: General | AE12: General | AF12: #+00.00 | AG12: 0.0 | AH12: 0.000 | AI12: 0.00 | AJ12: 0.00 | AK12: 0.0 | AL12: #+00.00 | AM12: General | AN12: General | AO12: 0 | AP12: 0 | AQ12: 0 | AR12: 0 | AS12: General | AT12: 0 | AU12: 0 | AV12: 0.0 | AW12: 0 | AX12: 0 | AY12: 0 | AZ12: General
A13: Last Tab DE Starter Row | B13: 30 | C13: =CELL("width",C13) -> 6 | D13: 6 | E13: 6 | F13: 16 | G13: 10 | H13: 10 | I13: 10 | J13: 10 | K13: 11 | M13: 16 | N13: 9 | O13: 9 | P13: 12 | Q13: 9 | R13: 9 | S13: 9 | T13: 7 | U13: 7 | V13: 14 | W13: 12 | X13: 12 | Y13: 12 | Z13: 12 | AA13: 74 | AC13: =CELL("width",AC13) -> 0 | AD13: 0 | AE13: 0 | AF13: 0 | AG13: 0 | AH13: 0 | AI13: 0 | AJ13: 0 | AK13: 0 | AL13: 0 | AM13: 0 | AN13: 0 | AO13: 0 | AP13: 0 | AQ13: 0 | AR13: 0 | AS13: 0 | AT13: 0 | AU13: 0 | AV13: 0 | AW13: 0 | AX13: 0 | AY13: 0 | AZ13: 0
A14: Last Tab TabSheet Starter Row | B14: 16 | C14: A | D14: B | E14: C | F14: D | G14: E | H14: F | I14: G | J14: H | K14: I | M14: J | N14: K | O14: L | P14: M | Q14: N | R14: O | S14: P | T14: Q | U14: R | V14: S | W14: T | X14: U | Y14: V | Z14: W | AA14: X | AC14: =LOWER(C14) -> a | AD14: b | AE14: c | AF14: d | AG14: e | AH14: f | AI14: g | AJ14: h | AK14: i | AL14: =LOWER(M14) -> j | AM14: k | AN14: l | AO14: m | AP14: n | AQ14: o | AR14: p | AS14: q | AT14: r | AU14: s | AV14: t | AW14: u | AX14: v | AY14: w | AZ14: x
A15: Last Copy Starter Row | B15: 1 | O15: Totals: | P15: =SUBTOTAL(9,P30:P6000) -> 0 | Q15: =SUBTOTAL(9,Q30:Q6000) -> 0 | R15: =SUBTOTAL(9,R30:R6000) -> 2 | S15: =SUBTOTAL(9,S30:S6000) -> 2 | U15: =SUBTOTAL(9,U30:U6000) -> 8 | V15: 0 | W15: 425 | X15: 8 | Y15: 0 | Z15: 0 | AC15: 108-8A | BB15: =M27 -> BA-211 | BC15: =O23 -> SI-211 | BD15: =T23 -> Bolted End Anchor
A16: Tab Loop Number | B16: 2 | C16: STEEL BEAM GUARDRAIL AT CONCRETE BARRIER OR BRIDGE RAIL END SECTION | AC16: =B17 -> 2015-10-20 | BB16: 1 | BC16: 1 | BD16: A
A17: Revision Date | B17: 2015-10-20 | AC17: =C16 -> STEEL BEAM GUARDRAIL AT CONCRETE BARRIER OR BRIDGE RAIL END SECTION | BB17: 2 | BC17: 2 | BD17: B
A18: Tabulation Width | B18: 4 | C18: Refer to BA-200, BA-201, BA-202, BA-205, BA-206, BA-210, BA-211, BA-250, SI-172, SI-173 and SI-211. | BB18: 3 | BC18: 3 | BD18: C
A19: Horizontal Grid Lines | B19: Yes | C19: Lane(s) to which the obstacle is adjacent. | AC19: =C18 -> Refer to BA-200, BA-201, BA-202, BA-205, BA-206, BA-210, BA-211, BA-250, SI-172, SI-173 and SI-211. | BC19: 4
C20: ="This Data Entry Sheet fills Tab "&AC15&" effective "&TEXT(B17,"mm-dd-yy") -> This Data Entry Sheet fills Tab 108-8A effective 10-20-15 | AC20: =C19 -> Lane(s) to which the obstacle is adjacent. | BC20: 5
C21: Location | H21: Layout Lengths | M21: Long-Span System | O21: Delineators and Object Markers | T21: Bid Items | AA21: Remarks | AC21: =C21 -> Location | AH21: =H21 -> Layout Lengths | AL21: =M21 -> Long-Span System | AN21: =O21 -> Delineators and Object Markers | AS21: =T21 -> Bid Items | AZ21: =AA21 -> Remarks | BC21: 6
C22: No. | D22: Direction of Traffic | E22: Side | F22: Station | G22: Offset | AC22: =C22 -> No. | AD22: =D22 -> Direction of Traffic | AE22: =E22 -> Side | AF22: =F22 -> Station | AG22: =G22 -> Offset | BC22: 7
E23: O = Outside M = Median | H23: BA-250 | O23: SI-211 | P23: Delineator | Q23: Object Marker | T23: Bolted End Anchor | V23: Barrier Transition Section | W23: Steel Beam Guardrail | X23: End Terminal | Z23: Post Adapter | AE23: =E23 -> O = Outside M = Median | AH23: =H23 -> BA-250 | AN23: =O23 -> SI-211 | AO23: =P23 -> Delineator | AP23: =Q23 -> Object Marker | AS23: =T23 -> Bolted End Anchor | AU23: =V23 -> Barrier Transition Section | AV23: =W23 -> Steel Beam Guardrail | AW23: =X23 -> End Terminal | AY23: =Z23 -> Post Adapter | BC23: 8
L24: (VT1+VF+VT2)-BTS ≥ ET check | X24: Standard | Y24: Flared | AW24: =X24 -> Standard | AX24: =Y24 -> Flared
P25: SI-172 | Q25: SI-173 | AO25: =P25 -> SI-172 | AP25: =Q25 -> SI-173
H26: (53.125' min.) | K26: (37.5' or 50.0') | P26: Type 1 | Q26: Type 2 | R26: Type 3 | AH26: =H26 -> (53.125' min.) | AK26: =K26 -> (37.5' or 50.0') | AO26: =P26 -> Type 1 | AP26: =Q26 -> Type 2 | AQ26: =R26 -> Type 3
M27: BA-211 | AL27: =M27 -> BA-211
P28: White | Q28: OM2-2 | R28: OM3-L | S28: OM3-R | T28: BA-202 | V28: BA-201 | W28: BA-200 | X28: BA-205 | Y28: BA-206 | Z28: BA-210 | AO28: =P28 -> White | AP28: OM2-2 | AQ28: OM3-L | AR28: OM3-R | AS28: BA-202 | AU28: =V28 -> BA-201 | AV28: BA-200 | AW28: BA-205 | AX28: BA-206 | AY28: BA-210
G29: FT | H29: LF | I29: LF | J29: LF | K29: LF | M29: STATION | N29: TYPE | O29: TYPE | P29: EACH | Q29: EACH | R29: EACH | S29: EACH | T29: TYPE | U29: EACH | V29: EACH | W29: LF | X29: EACH | Y29: EACH | Z29: EACH | AG29: =G29 -> FT | AH29: =H29 -> LF | AI29: =I29 -> LF | AJ29: =J29 -> LF | AK29: =K29 -> LF | AL29: =M29 -> STATION | AM29: TYPE | AN29: TYPE | AO29: EACH | AP29: EACH | AQ29: EACH | AR29: EACH | AS29: TYPE | AT29: =U29 -> EACH | AU29: EACH | AV29: LF | AW29: EACH | AX29: EACH | AY29: EACH
L30: =IF(K30<>"",IF((H30+I30+J30-40.625>=K30),"Meets minimum","Too short"),"") ->  | W30: =IF($H30<>"",IF((SUM($H30:$J30)-40.625)/12.5=INT((SUM($H30:$J30)-40.625)/12.5),SUM($H30:$J30)-40.625,"Error"),"") -> 
D31: N | E31: O | F31: 53442.82 | H31: 78.125 | I31: 12.5 | K31: 50 | L31: =IF(K31<>"",IF((H31+I31+J31-40.625>=K31),"Meets minimum","Too short"),"") -> Meets minimum | S31: 1 | T31: A | U31: 1 | W31: =IF($H31<>"",IF((SUM($H31:$J31)-40.625)/12.5=INT((SUM($H31:$J31)-40.625)/12.5),SUM($H31:$J31)-40.625,"Error"),"") -> 50 | X31: 1
D32: S | E32: O | F32: 53476.39 | H32: 78.125 | I32: 12.5 | K32: 50 | L32: Meets minimum | R32: 1 | T32: A | U32: 1 | W32: =IF($H32<>"",IF((SUM($H32:$J32)-40.625)/12.5=INT((SUM($H32:$J32)-40.625)/12.5),SUM($H32:$J32)-40.625,"Error"),"") -> 50 | X32: 1
D33: N | E33: O | F33: 53751.61 | H33: 78.125 | I33: 12.5 | K33: 50 | L33: Meets minimum | S33: 1 | T33: A | U33: 1 | W33: 50 | X33: 1
D34: S | E34: O | F34: 53785.18 | H34: 90.625 | I34: 12.5 | K34: 50 | L34: Meets minimum | R34: 1 | T34: A | U34: 1 | W34: 62.5 | X34: 1
M37: Totals | U37: =SUM(U31:U36) -> 4 | W37: 212.5 | X37: =SUM(X31:X36) -> 4
L95: =IF(K95<>"",IF((H95+I95+J95-40.625>=K95),"Meets minimum","Too short"),"") -> 
W96: =IF($H96<>"",IF((SUM($H96:$J96)-40.625)/12.5=INT((SUM($H96:$J96)-40.625)/12.5),SUM($H96:$J96)-40.625,"Error"),"") -> 
L159: =IF(K159<>"",IF((H159+I159+J159-40.625>=K159),"Meets minimum","Too short"),"") -> 
W160: =IF($H160<>"",IF((SUM($H160:$J160)-40.625)/12.5=INT((SUM($H160:$J160)-40.625)/12.5),SUM($H160:$J160)-40.625,"Error"),"") -> 
L223: =IF(K223<>"",IF((H223+I223+J223-40.625>=K223),"Meets minimum","Too short"),"") -> 
W224: =IF($H224<>"",IF((SUM($H224:$J224)-40.625)/12.5=INT((SUM($H224:$J224)-40.625)/12.5),SUM($H224:$J224)-40.625,"Error"),"") -> 
L287: =IF(K287<>"",IF((H287+I287+J287-40.625>=K287),"Meets minimum","Too short"),"") -> 
W288: =IF($H288<>"",IF((SUM($H288:$J288)-40.625)/12.5=INT((SUM($H288:$J288)-40.625)/12.5),SUM($H288:$J288)-40.625,"Error"),"") -> 
L351: =IF(K351<>"",IF((H351+I351+J351-40.625>=K351),"Meets minimum","Too short"),"") -> 
W352: =IF($H352<>"",IF((SUM($H352:$J352)-40.625)/12.5=INT((SUM($H352:$J352)-40.625)/12.5),SUM($H352:$J352)-40.625,"Error"),"") -> 
L415: =IF(K415<>"",IF((H415+I415+J415-40.625>=K415),"Meets minimum","Too short"),"") -> 
W416: =IF($H416<>"",IF((SUM($H416:$J416)-40.625)/12.5=INT((SUM($H416:$J416)-40.625)/12.5),SUM($H416:$J416)-40.625,"Error"),"") -> 
L479: =IF(K479<>"",IF((H479+I479+J479-40.625>=K479),"Meets minimum","Too short"),"") -> 
W480: =IF($H480<>"",IF((SUM($H480:$J480)-40.625)/12.5=INT((SUM($H480:$J480)-40.625)/12.5),SUM($H480:$J480)-40.625,"Error"),"") -> 
L543: =IF(K543<>"",IF((H543+I543+J543-40.625>=K543),"Meets minimum","Too short"),"") -> 
W544: =IF($H544<>"",IF((SUM($H544:$J544)-40.625)/12.5=INT((SUM($H544:$J544)-40.625)/12.5),SUM($H544:$J544)-40.625,"Error"),"") -> 
L607: =IF(K607<>"",IF((H607+I607+J607-40.625>=K607),"Meets minimum","Too short"),"") -> 
W608: =IF($H608<>"",IF((SUM($H608:$J608)-40.625)/12.5=INT((SUM($H608:$J608)-40.625)/12.5),SUM($H608:$J608)-40.625,"Error"),"") -> 
L671: =IF(K671<>"",IF((H671+I671+J671-40.625>=K671),"Meets minimum","Too short"),"") -> 
W672: =IF($H672<>"",IF((SUM($H672:$J672)-40.625)/12.5=INT((SUM($H672:$J672)-40.625)/12.5),SUM($H672:$J672)-40.625,"Error"),"") -> 
L735: =IF(K735<>"",IF((H735+I735+J735-40.625>=K735),"Meets minimum","Too short"),"") -> 
W736: =IF($H736<>"",IF((SUM($H736:$J736)-40.625)/12.5=INT((SUM($H736:$J736)-40.625)/12.5),SUM($H736:$J736)-40.625,"Error"),"") -> 
L799: =IF(K799<>"",IF((H799+I799+J799-40.625>=K799),"Meets minimum","Too short"),"") -> 
W800: =IF($H800<>"",IF((SUM($H800:$J800)-40.625)/12.5=INT((SUM($H800:$J800)-40.625)/12.5),SUM($H800:$J800)-40.625,"Error"),"") -> 
L863: =IF(K863<>"",IF((H863+I863+J863-40.625>=K863),"Meets minimum","Too short"),"") -> 
W864: =IF($H864<>"",IF((SUM($H864:$J864)-40.625)/12.5=INT((SUM($H864:$J864)-40.625)/12.5),SUM($H864:$J864)-40.625,"Error"),"") -> 
L927: =IF(K927<>"",IF((H927+I927+J927-40.625>=K927),"Meets minimum","Too short"),"") -> 
W928: =IF($H928<>"",IF((SUM($H928:$J928)-40.625)/12.5=INT((SUM($H928:$J928)-40.625)/12.5),SUM($H928:$J928)-40.625,"Error"),"") -> 
L991: =IF(K991<>"",IF((H991+I991+J991-40.625>=K991),"Meets minimum","Too short"),"") -> 
W992: =IF($H992<>"",IF((SUM($H992:$J992)-40.625)/12.5=INT((SUM($H992:$J992)-40.625)/12.5),SUM($H992:$J992)-40.625,"Error"),"") -> 
... 37 more rows

Sheet DE108_13A
A1: TabTitle | B1: =C16 -> SAFETY CLOSURES
A2: Number of Tab Columns | B2: 4
A3: DE Starter Row Number | B3: 22
A4: TabSheet Starter Row Number | B4: 8
A5: TabSheet Header Row Count | B5: 7
A6: Top Header Cell | B6: H15
A7: Bottom Header Cell | B7: K21
A8: DESheet Row Count | B8: 8
A9: Fixed Empty Rows | B9: 2
A10: Usable Empty Rows | B10: 0
A11: Total Rows Placed | B11: 10 | C11: xlRight(1) | D11: xlRight(1) | E11: xlRight(1) | F11: xlLeft(1) | H11: =C11 -> xlRight(1) | I11: =D11 -> xlRight(1) | J11: xlRight(1) | K11: xlLeft(1)
A12: Total Rows Needed | B12: =SUM(B8:B10) -> 10 | C12: #+00.00 | D12: General | E12: General | F12: General | H12: =C12 -> #+00.00 | I12: General | J12: General | K12: General
A13: Last Tab DE Starter Row | B13: 22 | C13: =CELL("width",C13) -> 16 | D13: =CELL("width",D13) -> 14 | E13: =CELL("width",E13) -> 14 | F13: =CELL("width",F13) -> 31 | H13: =CELL("width",H13) -> 0 | I13: =CELL("width",I13) -> 0 | J13: =CELL("width",J13) -> 0 | K13: =CELL("width",K13) -> 0
A14: Last Tab Tabsheet Starter Row | B14: 8 | C14: A | D14: B | E14: C | F14: D | H14: =LOWER(C14) -> a | I14: =LOWER(D14) -> b | J14: =LOWER(E14) -> c | K14: =LOWER(F14) -> d
A15: Last Copy Starter Row | B15: 1 | D15: =SUBTOTAL(9,D22:D6000) -> 0 | E15: =SUBTOTAL(9,E22:E6000) -> 8 | H15: 108-13A
A16: Tab Loop Number | B16: 2 | C16: SAFETY CLOSURES | H16: =B17 -> 2008-08-01
A17: Revision Date | B17: 2008-08-01 | H17: =C16 -> SAFETY CLOSURES
A18: Tabulation Width | B18: 1 | C18: Refer to Section 2518 of the Standard Specifications
A19: Horizontal Grid Lines | B19: Yes | C19: ="This Data Entry Sheet fills Tab "&H15&" effective "&TEXT(B17,"mm-dd-yy") -> This Data Entry Sheet fills Tab 108-13A effective 08-01-08 | H19: =C18 -> Refer to Section 2518 of the Standard Specifications
C20: Station | D20: Closure Type | F20: Remarks | H20: =C20 -> Station | I20: =D20 -> Closure Type | K20: =F20 -> Remarks
D21: Road Qty. | E21: Hazard Qty. | I21: =D21 -> Road Qty. | J21: =E21 -> Hazard Qty.
C23: 53000 | E23: 1 | F23: Culvert
C24: 53200 | E24: 1 | F24: Culvert
C25: 53400 | E25: 1 | F25: Bridge
C26: 53850 | E26: 1 | F26: Bridge
C29: Total | E29: =SUM(E23:E28) -> 4

Sheet DE108_22
A1: TabTitle | B1: =C44 -> PAVEMENT MARKING LINE TYPES
A2: Number of Tab Columns | B2: 24 | BB2: Old 9001 | BC2: Line Types (See PM-110) | BG2: Marking Type | BH2: =L54 -> ELW4 | BI2: BCY4* | BJ2: NPY4** | BK2: DCY4 | BL2: CHY8 | BM2: SLW4 | BN2: SLW2 | BO2: 0 | BP2: 0 | BQ2: 0 | BR2: 0 | BS2: 0 | BT2: 0 | BU2: 0 | BV2: 0 | BX2: Direction of Travel
A3: DE Starter Row Number | B3: 57 | BB3: Detail Number | BC3: Key | BD3: Description | BE3: Factor | BG3: Waterborne/Solvent Paint | BX3: NB
A4: TabSheet Starter Row Number | B4: 15 | BB4: 2 | BC4: BCY4* | BD4: BCY4: Broken Centerline (Yellow) @ 0.25 | BE4: 0.25 | BG4: Highbuild Waterborne Paint | BX4: EB
A5: TabSheet Header Row Count | B5: 14 | BB5: 6 | BC5: BLW4 | BD5: BLW4: Broken Lane Line (White) @ 0.25 | BE5: 0.25 | BG5: Durable Paint | BX5: SB
A6: Top Header Cell | B6: AC15 | BB6: new | BC6: CBW6 | BD6: CBW6: Crosswalk Bar (White) @ 15.00 | BE6: 15 | BG6: Permanent Regular Tape | BX6: WB
A7: Bottom Header Cell | B7: AZ28 | BB7: 11 | BC7: CHW8 | BD7: CHW8: Channelizing Line (White) @ 2.00 | BE7: 2 | BG7: Permanent Preform Polymer Tape | BX7: BOTH
A8: DESheet Row Count | B8: 25 | BB8: 12 | BC8: CHY8 | BD8: CHY8: Channelizing Line (Yellow) @ 2.00 | BE8: 2 | BG8: Permanent Profiled Tape
A9: Fixed Empty Rows | B9: 16 | BB9: 14 | BC9: CLW6 | BD9: CLW6: Crosswalk Line (White) @ 3.00 | BE9: 3 | BG9: Permanent Intersection Tape
A10: Usable Empty Rows | B10: 0 | BB10: 3 | BC10: DCY4 | BD10: DCY4: Double Centerline (Yellow) @ 2.00 | BE10: 2 | BG10: Grooves Cut for Pavement Markings
A11: Total Rows Placed | B11: 41 | C11: xlLeft(1) | D11: xlRight(1) | E11: xlRight(1) | G11: xlCenter | H11: xlCenter | I11: xlCenter | J11: xlCenter | K11: xlCenter | L11: xlRight(1) | M11: xlRight(1) | N11: xlRight(1) | O11: xlRight(1) | P11: xlRight(1) | Q11: xlRight(1) | R11: xlRight(1) | S11: xlRight(1) | T11: xlRight(1) | U11: xlRight(1) | V11: xlRight(1) | W11: xlRight(1) | X11: xlRight(1) | Y11: xlRight(1) | Z11: xlRight(1) | AA11: xlLeft(1) | AC11: =C11 -> xlLeft(1) | AD11: xlRight(1) | AE11: xlRight(1) | AF11: =G11 -> xlCenter | AG11: xlCenter | AH11: xlCenter | AI11: xlCenter | AJ11: xlCenter | AK11: xlRight(1) | AL11: xlRight(1) | AM11: xlRight(1) | AN11: xlRight(1) | AO11: xlRight(1) | AP11: xlRight(1) | AQ11: xlRight(1) | AR11: xlRight(1) | AS11: xlRight(1) | AT11: xlRight(1) | AU11: xlRight(1) | AV11: =W11 -> xlRight(1) | AW11: xlRight(1) | AX11: xlRight(1) | AY11: xlRight(1) | AZ11: xlLeft(1) | BB11: 18 | BC11: DDY4 | BD11: DDY4: Double Dotted Line (Yellow) @ 0.67 | BE11: =2/3 -> 0.6666666667 | BG11: Wet Retroreflective Removable Tape
A12: Total Rows Needed | B12: =SUM(B8:B10) -> 41 | C12: General | D12: #+00.00 | E12: #+00.00 | G12: General | H12: General | I12: General | J12: General | K12: General | L12: 0.00 | M12: 0.00 | N12: 0.00 | O12: 0.00 | P12: 0.00 | Q12: 0.00 | R12: 0.00 | S12: 0.00 | T12: 0.00 | U12: 0.00 | V12: 0.00 | W12: 0.00 | X12: 0.00 | Y12: 0.00 | Z12: 0.00 | AA12: General | AC12: General | AD12: #+00.00 | AE12: #+00.00 | AF12: General | AG12: General | AH12: General | AI12: General | AJ12: General | AK12: 0.00 | AL12: 0.00 | AM12: 0.00 | AN12: 0.00 | AO12: 0.00 | AP12: 0.00 | AQ12: 0.00 | AR12: 0.00 | AS12: 0.00 | AT12: 0.00 | AU12: 0.00 | AV12: 0.00 | AW12: 0.00 | AX12: 0.00 | AY12: 0.00 | AZ12: General | BB12: 9 | BC12: DLW4 | BD12: DLW4: Dotted Line (White) @ 0.33 | BE12: =1/3 -> 0.3333333333 | BG12: Nonreflective, Preformed Removable Tape
A13: Last Tab DE Starter Row | B13: 57 | C13: =CELL("width",C13) -> 15 | D13: =CELL("width",D13) -> 16 | E13: =CELL("width",E13) -> 16 | G13: =CELL("width",G13) -> 10 | H13: 54 | I13: 4 | J13: 4 | K13: 4 | L13: 10 | M13: 10 | N13: 10 | O13: 10 | P13: 10 | Q13: 10 | R13: 10 | S13: 10 | T13: 10 | U13: 10 | V13: 10 | W13: 10 | X13: 10 | Y13: 10 | Z13: 10 | AA13: 34 | AC13: =CELL("width",AC13) -> 0 | AD13: 0 | AE13: 0 | AF13: 0 | AG13: 0 | AH13: 0 | AI13: 0 | AJ13: 0 | AK13: 0 | AL13: 0 | AM13: 0 | AN13: 0 | AO13: 0 | AP13: 0 | AQ13: 0 | AR13: 0 | AS13: 0 | AT13: 0 | AU13: 0 | AV13: 0 | AW13: 0 | AX13: 0 | AY13: 0 | AZ13: 0 | BB13: new | BC13: DLY4 | BD13: DLY4: Dotted Line (Yellow) @ 0.33 | BE13: =1/3 -> 0.3333333333 | BG13: Removal of Paint
A14: Last Tab TabSheet Starter Row | B14: 15 | C14: A | D14: B | E14: C | G14: D | H14: E | I14: F | J14: G | K14: H | L14: I | M14: J | N14: K | O14: L | P14: M | Q14: N | R14: O | S14: P | T14: Q | U14: R | V14: S | W14: T | X14: U | Y14: V | Z14: W | AA14: X | AC14: =LOWER(C14) -> a | AD14: =LOWER(D14) -> b | AE14: =LOWER(E14) -> c | AF14: =LOWER(G14) -> d | AG14: e | AH14: f | AI14: g | AJ14: h | AK14: i | AL14: j | AM14: k | AN14: l | AO14: m | AP14: n | AQ14: o | AR14: p | AS14: q | AT14: r | AU14: s | AV14: t | AW14: u | AX14: v | AY14: w | AZ14: x | BB14: 7 | BC14: ELW4 | BD14: ELW4: Edge Line Right (White) @ 1.00 | BE14: 1 | BG14: Removal of Permanent Tape
A15: Last Copy Starter Row | B15: 1 | F15: =BB2 -> Old 9001 | H15: =BC2 -> Line Types (See PM-110) | AC15: 108-22 | BB15: 8 | BC15: ELY4 | BD15: ELY4: Edge Line Left (Yellow) @ 1.00 | BE15: 1 | BG15: Removal of Removable Tape
A16: Tab Loop Number | B16: 2 | F16: Detail Number | G16: Key | H16: Description | I16: Factor | J16: 0 | AC16: =B17 -> 2013-04-16 | BB16: new | BC16: LDW8 | BD16: LDW8: Lane Drop (White) @ 0.50 | BE16: 0.5 | BG16: ="Factored Total: "&BG3 -> Factored Total: Waterborne/Solvent Paint | BH16: =SUMIF($H$57:$H$2000,$BG3,L$57:L$2000)*L$43 -> 208.29 | BI16: 19.625 | BJ16: 27.125 | BK16: 17.22 | BL16: 21.52 | BM16: 2.36 | BN16: 3.18 | BO16: 0 | BP16: 0 | BQ16: 0 | BR16: 0 | BS16: 0 | BT16: 0 | BU16: 0 | BV16: 0
A17: Revision Date | B17: 2013-04-16 | F17: 2 | G17: BCY4* | H17: BCY4: Broken Centerline (Yellow) @ 0.25 | I17: 0.25 | J17: 0 | AC17: =C44 -> PAVEMENT MARKING LINE TYPES | BB17: new | BC17: MNY4*** | BD17: MNY4: Median Nose (Yellow) @ 1.00 | BE17: 1 | BG17: Factored Total: Highbuild Waterborne Paint | BH17: 0 | BI17: 0 | BJ17: 0 | BK17: 0 | BL17: 0 | BM17: 0 | BN17: 0 | BO17: 0 | BP17: 0 | BQ17: 0 | BR17: 0 | BS17: 0 | BT17: 0 | BU17: 0 | BV17: 0
A18: Tabulation Width | B18: 4 | F18: 6 | G18: BLW4 | H18: BLW4: Broken Lane Line (White) @ 0.25 | I18: 0.25 | J18: 0 | BB18: 5 | BC18: NPY4** | BD18: NPY4: No Passing Zone Line (Yellow) @ 1.25 | BE18: 1.25 | BG18: Factored Total: Durable Paint | BH18: 0 | BI18: 0 | BJ18: 0 | BK18: 0 | BL18: 0 | BM18: 0 | BN18: 0 | BO18: 0 | BP18: 0 | BQ18: 0 | BR18: 0 | BS18: 0 | BT18: 0 | BU18: 0 | BV18: 0
A19: Horizontal Grid Lines | B19: Yes | F19: new | G19: CBW6 | H19: CBW6: Crosswalk Bar (White) @ 15.00 | I19: 15 | J19: 0 | AC19: =C46 -> See PM-110 | BB19: new | BC19: RLW4 | BD19: RLW4: Ramp Edge Line Right (White) @ 1.00 | BE19: 1 | BG19: Factored Total: Permanent Regular Tape | BH19: 0 | BI19: 0 | BJ19: 0 | BK19: 0 | BL19: 0 | BM19: 0 | BN19: 0 | BO19: 0 | BP19: 0 | BQ19: 0 | BR19: 0 | BS19: 0 | BT19: 0 | BU19: 0 | BV19: 0
F20: 11 | G20: CHW8 | H20: CHW8: Channelizing Line (White) @ 2.00 | I20: 2 | J20: 0 | AC20: =C47 -> *BCY4 - Place on the same side of the roadway to match existing markings near the project. | AH20: =I47 -> ***MNY4 - Factor of 1.00 as value includes number of 4-inch passes to cover median nose area. | BB20: new | BC20: RLY4 | BD20: RLY4: Ramp Edge Line Left (Yellow) @ 1.00 | BE20: 1 | BG20: Factored Total: Permanent Preform Polymer Tape | BH20: 0 | BI20: 0 | BJ20: 0 | BK20: 0 | BL20: 0 | BM20: 0 | BN20: 0 | BO20: 0 | BP20: 0 | BQ20: 0 | BR20: 0 | BS20: 0 | BT20: 0 | BU20: 0 | BV20: 0
F21: 12 | G21: CHY8 | H21: CHY8: Channelizing Line (Yellow) @ 2.00 | I21: 2 | J21: 0 | AC21: =C48 -> **NPY4 - For estimating purposes only. No Passing Zone Lines will be located in the field. | BB21: 13 | BC21: SLW2 | BD21: SLW2: Stop Line (White) @ 6.00 | BE21: 6 | BG21: Factored Total: Permanent Profiled Tape | BH21: 0 | BI21: 0 | BJ21: 0 | BK21: 0 | BL21: 0 | BM21: 0 | BN21: 0 | BO21: 0 | BP21: 0 | BQ21: 0 | BR21: 0 | BS21: 0 | BT21: 0 | BU21: 0 | BV21: 0
F22: 14 | G22: CLW6 | H22: CLW6: Crosswalk Line (White) @ 3.00 | I22: 3 | J22: 0 | AC22: =C50 -> ELW4: Edge Line Right (White) @ 1.00 | AG22: =H50 -> BCY4: Broken Centerline (Yellow) @ 0.25 | AL22: =L50 -> NPY4: No Passing Zone Line (Yellow) @ 1.25 | AR22: =R50 -> DCY4: Double Centerline (Yellow) @ 2.00 | AX22: =X50 -> CHY8: Channelizing Line (Yellow) @ 2.00 | BB22: 13 | BC22: SLW4 | BD22: SLW4: Solid Lane Line (White) @ 1.00 | BE22: 1 | BG22: Factored Total: Permanent Intersection Tape | BH22: 0 | BI22: 0 | BJ22: 0 | BK22: 0 | BL22: 0 | BM22: 0 | BN22: 0 | BO22: 0 | BP22: 0 | BQ22: 0 | BR22: 0 | BS22: 0 | BT22: 0 | BU22: 0 | BV22: 0
F23: 3 | G23: DCY4 | H23: DCY4: Double Centerline (Yellow) @ 2.00 | I23: 2 | J23: 0 | AC23: =C51 -> SLW4: Solid Lane Line (White) @ 1.00 | AG23: =H51 -> SLW2: Stop Line (White) @ 6.00 | AL23: =L51 ->  | AR23: =R51 ->  | AX23: =X51 ->  | BB23: new | BC23: SPW4 | BD23: SPW4: Sloped Curb 4" (White) @ 3.23 | BE23: 3.23 | BG23: Factored Total: Grooves Cut for Pavement Markings | BH23: 0 | BI23: 0 | BJ23: 0 | BK23: 0 | BL23: 0 | BM23: 0 | BN23: 0 | BO23: 0 | BP23: 0 | BQ23: 0 | BR23: 0 | BS23: 0 | BT23: 0 | BU23: 0 | BV23: 0
F24: 18 | G24: DDY4 | H24: DDY4: Double Dotted Line (Yellow) @ 0.67 | I24: 0.6666666667 | J24: 0 | AC24: =C52 ->  | AG24: =H52 ->  | AL24: =L52 ->  | AR24: =R52 ->  | AX24: =X52 ->  | BB24: 16B | BC24: SPW6 | BD24: SPW6: Sloped Curb 6" (White) @ 3.40 | BE24: 3.4 | BG24: Factored Total: Wet Retroreflective Removable Tape | BH24: 0 | BI24: 0 | BJ24: 0 | BK24: 0 | BL24: 0 | BM24: 0 | BN24: 0 | BO24: 0 | BP24: 0 | BQ24: 0 | BR24: 0 | BS24: 0 | BT24: 0 | BU24: 0 | BV24: 0
F25: 9 | G25: DLW4 | H25: DLW4: Dotted Line (White) @ 0.33 | I25: 0.3333333333 | J25: 0 | AC25: =C53 -> Location | AK25: =L53 -> Length by Line Type (Unfactored) | AZ25: =AA53 -> Remarks | BB25: new | BC25: SPY4 | BD25: SPY4: Sloped Curb 4" (Yellow) @ 3.23 | BE25: 3.23 | BG25: Factored Total: Nonreflective, Preformed Removable Tape | BH25: 0 | BI25: 0 | BJ25: 0 | BK25: 0 | BL25: 0 | BM25: 0 | BN25: 0 | BO25: 0 | BP25: 0 | BQ25: 0 | BR25: 0 | BS25: 0 | BT25: 0 | BU25: 0 | BV25: 0
F26: new | G26: DLY4 | H26: DLY4: Dotted Line (Yellow) @ 0.33 | I26: 0.3333333333 | J26: 0 | AC26: =C54 -> Road ID | AD26: =D54 -> Station to Station | AF26: =G54 -> Dir. of Travel | AG26: =H54 -> Marking Type | AH26: =I54 -> Side | AK26: =IF(L54<>"",L54,"") -> ELW4 | AL26: BCY4* | AM26: NPY4** | AN26: DCY4 | AO26: CHY8 | AP26: SLW4 | AQ26: SLW2 | BB26: 15B | BC26: SPY6 | BD26: SPY6: Sloped Curb 6" (Yellow) @ 3.40 | BE26: 3.4 | BG26: Factored Total: Removal of Paint | BH26: 0 | BI26: 0 | BJ26: 0 | BK26: 0 | BL26: 20 | BM26: 0 | BN26: 0 | BO26: 0 | BP26: 0 | BQ26: 0 | BR26: 0 | BS26: 0 | BT26: 0 | BU26: 0 | BV26: 0
F27: 7 | G27: ELW4 | H27: ELW4: Edge Line Right (White) @ 1.00 | I27: 1 | J27: 0 | BB27: 16A | BC27: STW6 | BD27: STW6: Standard Curb 6" (White) @ 3.03 | BE27: 3.03 | BG27: Factored Total: Removal of Permanent Tape | BH27: 0 | BI27: 0 | BJ27: 0 | BK27: 0 | BL27: 0 | BM27: 0 | BN27: 0 | BO27: 0 | BP27: 0 | BQ27: 0 | BR27: 0 | BS27: 0 | BT27: 0 | BU27: 0 | BV27: 0
F28: 8 | G28: ELY4 | H28: ELY4: Edge Line Left (Yellow) @ 1.00 | I28: 1 | J28: 0 | AH28: =I56 -> L | AI28: C | AJ28: R | AK28: STA | AL28: STA | AM28: STA | AN28: STA | AO28: STA | AP28: STA | AQ28: STA | AR28: STA | AS28: STA | AT28: STA | AU28: STA | AV28: STA | AW28: STA | AX28: STA | AY28: STA | BB28: 15A | BC28: STY6 | BD28: STY6: Standard Curb 6" (Yellow) @ 3.03 | BE28: 3.03 | BG28: Factored Total: Removal of Removable Tape | BH28: 0 | BI28: 0 | BJ28: 0 | BK28: 0 | BL28: 0 | BM28: 0 | BN28: 0 | BO28: 0 | BP28: 0 | BQ28: 0 | BR28: 0 | BS28: 0 | BT28: 0 | BU28: 0 | BV28: 0
F29: new | G29: LDW8 | H29: LDW8: Lane Drop (White) @ 0.50 | I29: 0.5 | J29: 0 | BB29: 17 | BC29: YLW2 | BD29: YLW2: Yield Line (White) @ 1.71 | BE29: 1.71 | BG29: Bid Quantity: Painted Pavement Markings, Waterborne or Solvent-Based | BH29: =SUMIF(BH16:BV16,">0",BH16:BV16) -> 299.32
F30: new | G30: MNY4*** | H30: MNY4: Median Nose (Yellow) @ 1.00 | I30: 1 | J30: 0 | BG30: Bid Quantity: Painted Pavement Markings, Highbuild Waterborne | BH30: 0
F31: 5 | G31: NPY4** | H31: NPY4: No Passing Zone Line (Yellow) @ 1.25 | I31: 1.25 | J31: 0 | BG31: Bid Quantity: Painted Pavement Markings, Durable | BH31: 0
F32: new | G32: RLW4 | H32: RLW4: Ramp Edge Line Right (White) @ 1.00 | I32: 1 | J32: 0 | BG32: Bid Quantity: Permanent Tape Markings, Regular Marking Tape | BH32: 0
F33: new | G33: RLY4 | H33: RLY4: Ramp Edge Line Left (Yellow) @ 1.00 | I33: 1 | J33: 0 | BG33: Bid Quantity: Permanent Tape Markings, Preformed Polymer Marking Material | BH33: 0
F34: 13 | G34: SLW2 | H34: SLW2: Stop Line (White) @ 6.00 | I34: 6 | J34: 0 | BG34: Bid Quantity: Permanent Tape Markings, Profiled Pavement Marking Tape | BH34: 0
F35: 13 | G35: SLW4 | H35: SLW4: Solid Lane Line (White) @ 1.00 | I35: 1 | J35: 0 | BG35: Bid Quantity: Permanent Tape Markings, Intersection Marking Tape | BH35: 0
F36: new | G36: SPW4 | H36: SPW4: Sloped Curb 4" (White) @ 3.23 | I36: 3.23 | J36: 0 | BG36: Bid Quantity: Grooves Cut for Pavement Markings | BH36: 0
F37: 16B | G37: SPW6 | H37: SPW6: Sloped Curb 6" (White) @ 3.40 | I37: 3.4 | J37: 0 | BG37: Bid Quantity: Wet Retroreflective Removable Tape Markings | BH37: 0
F38: new | G38: SPY4 | H38: SPY4: Sloped Curb 4" (Yellow) @ 3.23 | I38: 3.23 | J38: 0 | BG38: Bid Quantity: Removable, Nonreflective, Preformed Tape | BH38: 0
F39: 15B | G39: SPY6 | H39: SPY6: Sloped Curb 6" (Yellow) @ 3.40 | I39: 3.4 | J39: 0 | BG39: Bid Quantity: Pavement Markings Removed | BH39: =SUMIF(BH26:BV26,">0",BH26:BV26)+SUMIF(BH27:BV27,">0",BH27:BV27) -> 20
F40: 16A | G40: STW6 | H40: STW6: Standard Curb 6" (White) @ 3.03 | I40: 3.03 | J40: 0 | BG40: Incidental Removal of Removable Tape | BH40: =SUMIF(BH28:BV28,">0",BH28:BV28) -> 0
F41: 15A | G41: STY6 | H41: STY6: Standard Curb 6" (Yellow) @ 3.03 | I41: 3.03 | J41: 0
F42: 17 | G42: YLW2 | H42: YLW2: Yield Line (White) @ 1.71 | I42: 1.71 | J42: 0
K43: Factors: | L43: =IF(L$54<>"",VLOOKUP(L$54,$BC$4:$BE$29,3,FALSE),0) -> 1 | M43: 0.25 | N43: 1.25 | O43: 2 | P43: 2 | Q43: 1 | R43: 6 | S43: 0 | T43: 0 | U43: 0 | V43: 0 | W43: 0 | X43: 0 | Y43: 0 | Z43: 0
C44: PAVEMENT MARKING LINE TYPES
C46: See PM-110
C47: *BCY4 - Place on the same side of the roadway to match existing markings near the project. | I47: ***MNY4 - Factor of 1.00 as value includes number of 4-inch passes to cover median nose area.
C48: **NPY4 - For estimating purposes only. No Passing Zone Lines will be located in the field.
C49: ="This Data Entry Sheet fills Tab "&AC15&" effective "&TEXT(B17,"mm-dd-yy") -> This Data Entry Sheet fills Tab 108-22 effective 04-16-13
C50: =IF(L54<>"",VLOOKUP(L54,BC4:BE29,2,FALSE),"") -> ELW4: Edge Line Right (White) @ 1.00 | H50: =IF(M54<>"",VLOOKUP(M54,BC4:BE29,2,FALSE),"") -> BCY4: Broken Centerline (Yellow) @ 0.25 | L50: =IF(N54<>"",VLOOKUP(N54,BC4:BE29,2,FALSE),"") -> NPY4: No Passing Zone Line (Yellow) @ 1.25 | R50: =IF(O54<>"",VLOOKUP(O54,BC4:BE29,2,FALSE),"") -> DCY4: Double Centerline (Yellow) @ 2.00 | X50: =IF(P54<>"",VLOOKUP(P54,BC4:BE29,2,FALSE),"") -> CHY8: Channelizing Line (Yellow) @ 2.00
C51: =IF(Q54<>"",VLOOKUP(Q54,BC4:BE29,2,FALSE),"") -> SLW4: Solid Lane Line (White) @ 1.00 | H51: =IF(R54<>"",VLOOKUP(R54,BC4:BE29,2,FALSE),"") -> SLW2: Stop Line (White) @ 6.00 | L51: =IF(S54<>"",VLOOKUP(S54,BC4:BE29,2,FALSE),"") ->  | R51: =IF(T54<>"",VLOOKUP(T54,BC4:BE29,2,FALSE),"") ->  | X51: =IF(U54<>"",VLOOKUP(U54,BC4:BE29,2,FALSE),"") -> 
C52: =IF(V54<>"",VLOOKUP(V54,BC4:BE29,2,FALSE),"") ->  | H52: =IF(W54<>"",VLOOKUP(W54,BC4:BE29,2,FALSE),"") ->  | L52: =IF(X54<>"",VLOOKUP(X54,BC4:BE29,2,FALSE),"") ->  | R52: =IF(Y54<>"",VLOOKUP(Y54,BC4:BE29,2,FALSE),"") ->  | X52: =IF(Z54<>"",VLOOKUP(Z54,BC4:BE29,2,FALSE),"") -> 
C53: Location | L53: Length by Line Type (Unfactored) | AA53: Remarks
C54: Road ID | D54: Station to Station | F54: Length (STA) | G54: Dir. of Travel | H54: Marking Type | I54: Side | L54: ELW4 | M54: BCY4* | N54: NPY4** | O54: DCY4 | P54: CHY8 | Q54: SLW4 | R54: SLW2
I56: L | J56: C | K56: R | L56: STA | M56: STA | N56: STA | O56: STA | P56: STA | Q56: STA | R56: STA | S56: STA | T56: STA | U56: STA | V56: STA | W56: STA | X56: STA | Y56: STA | Z56: STA
F57: =(ABS(E57-D57))/100 -> 0
C58: IA 146 | D58: 44450 | E58: 54864.4 | F58: 104.144 | G58: NB | H58: Waterborne/Solvent Paint | I58: X | K58: X | L58: 208.29 | AA58: Included Returns at W.Main St.
D59: 44450 | E59: 52300 | F59: 78.5 | G59: NB | H59: Waterborne/Solvent Paint | J59: X | M59: 78.5
D60: 52300 | E60: 53500 | F60: 12 | G60: NB | H60: Waterborne/Solvent Paint | J60: X | N60: 12
D61: 53500 | E61: 54070 | F61: 5.7 | G61: NB | H61: Waterborne/Solvent Paint | J61: X | O61: 5.7
D62: 54070 | E62: 54608 | F62: 5.38 | G62: NB | H62: Waterborne/Solvent Paint | J62: X | P62: 10.76 | AA62: Painted Island
D63: 54741 | E63: 54864 | F63: 1.23 | G63: NB | H63: Waterborne/Solvent Paint | J63: X | O63: 1.23 | Q63: 1.23
D64: 54864 | E64: * | F64: 5 | G64: NB | H64: Waterborne/Solvent Paint | J64: X | N64: 5
D65: 54900 | E65: * | F65: 4.7 | G65: NB | H65: Waterborne/Solvent Paint | J65: X | N65: 4.7
F66: 0
D67: 54864 | E67: * | F67: 5 | G67: NB | H67: Removal of Paint | J67: X | P67: 10 | AA67: Remove painted island
F68: 0
D69: 1206 | E69: 1261 | F69: 0.55 | G69: EB | H69: Waterborne/Solvent Paint | J69: X | O69: 0.55
D70: 1227 | E70: 1227 | F70: 0 | G70: EB | H70: Waterborne/Solvent Paint | K70: X | R70: 0.23
D71: 1327 | E71: 1327 | F71: 0 | G71: EB | H71: Waterborne/Solvent Paint | I71: X | R71: 0.3
D72: 1327 | E72: 1440 | F72: 1.13 | G72: EB | H72: Waterborne/Solvent Paint | I72: X | J72: X | O72: 1.13 | Q72: 1.13
F73: 0
F74: 0
F75: 0
F76: 0
F77: 0 | H77: Factored Total: Waterborne/Solvent Paint | L77: =IF(BH16<>0,BH16, "-") -> 208.29 | M77: 19.625 | N77: 27.125 | O77: 17.22 | P77: 21.52 | Q77: 2.36 | R77: 3.18 | S77: - | T77: - | U77: - | V77: - | W77: - | X77: - | Y77: - | Z77: -
F78: 0 | H78: Factored Total: Removal of Paint | L78: =IF(BH26<>0,BH26, "-") -> - | M78: - | N78: - | O78: - | P78: 20 | Q78: - | R78: - | S78: - | T78: - | U78: - | V78: - | W78: - | X78: - | Y78: - | Z78: -
F79: 0
F80: 0 | H80: Bid Quantity: Painted Pavement Markings, Waterborne or Solvent-Based | O80: =BH29 -> 299.32
F81: 0 | H81: Bid Quantity: Pavement Markings Removed | O81: =BH39 -> 20
F82: 0
F83: 0
F84: 0
F85: 0
F86: 0
F87: 0
F88: 0
F89: 0
F90: 0
F91: 0
F92: 0
F93: 0
F94: 0
F95: 0
F96: 0
F97: 0
F98: 0
F99: 0
F100: 0
F101: 0
F102: 0
F103: 0
F104: 0
F105: 0
F106: 0
F107: 0
F108: 0
F109: 0
F110: 0
F111: 0
F112: 0
F113: 0
F114: 0
F115: 0
F116: 0
F117: 0
F118: 0
F119: 0
F120: 0
F121: =(ABS(E121-D121))/100 -> 0
F122: 0
F123: 0
F124: 0
F125: 0
F126: 0
F127: 0
F128: 0
F129: 0
F130: 0
F131: 0
F132: 0
F133: 0
F134: 0
F135: 0
F136: 0
F137: 0
F138: 0
F139: 0
F140: 0
F141: 0
F142: 0
F143: 0
F144: 0
F145: 0
F146: 0
F147: 0
F148: 0
F149: 0
F150: 0
F151: 0
F152: 0
F153: 0
F154: 0
F155: 0
F156: 0
F157: 0
F158: 0
F159: 0
F160: 0
F161: 0
F162: 0
F163: 0
F164: 0
F165: 0
F166: 0
F167: 0
F168: 0
F169: 0
F170: 0
F171: 0
F172: 0
F173: 0
F174: 0
F175: 0
F176: 0
F177: 0
F178: 0
F179: 0
F180: 0
F181: 0
F182: 0
F183: 0
F184: 0
F185: =(ABS(E185-D185))/100 -> 0
F186: 0
F187: 0
F188: 0
F189: 0
F190: 0
F191: 0
F192: 0
F193: 0
F194: 0
F195: 0
F196: 0
F197: 0
F198: 0
F199: 0
F200: 0
F201: 0
F202: 0
... 5798 more rows

Sheet DE108_29
A1: TabTitle | B1: =C16 -> PAVEMENT MARKING SYMBOLS AND LEGENDS
A2: Number of Tab Columns | B2: 27
A3: DE Starter Row Number | B3: 25
A4: TabSheet Starter Row Number | B4: 11
A5: TabSheet Header Row Count | B5: 10
A6: Top Header Cell | B6: AE15
A7: Bottom Header Cell | B7: BE24
A8: DESheet Row Count | B8: 4
A9: Fixed Empty Rows | B9: 6
A10: Usable Empty Rows | B10: 0
A11: Total Rows Placed | B11: 10 | C11: xlLeft(1) | D11: xlRight(1) | E11: xlRight(1) | F11: xlRight(1) | G11: xlRight(1) | H11: xlRight(1) | I11: xlRight(1) | J11: xlRight(1) | K11: xlRight(1) | L11: xlRight(1) | M11: xlRight(1) | N11: xlRight(1) | O11: xlRight(1) | P11: xlRight(1) | Q11: xlRight(1) | R11: xlRight(1) | S11: xlRight(1) | T11: xlRight(1) | U11: xlRight(1) | V11: xlRight(1) | W11: xlRight(1) | X11: xlRight(1) | Y11: xlRight(1) | Z11: xlRight(1) | AA11: xlRight(1) | AB11: xlRight(1) | AC11: xlLeft(1) | AE11: =C11 -> xlLeft(1) | AF11: xlRight(1) | AG11: xlRight(1) | AH11: xlRight(1) | AI11: xlRight(1) | AJ11: xlRight(1) | AK11: xlRight(1) | AL11: xlRight(1) | AM11: xlRight(1) | AN11: xlRight(1) | AO11: xlRight(1) | AP11: xlRight(1) | AQ11: =G11 -> xlRight(1) | AR11: =K11 -> xlRight(1) | AS11: xlRight(1) | AT11: xlRight(1) | AU11: xlRight(1) | AV11: xlRight(1) | AW11: xlRight(1) | AX11: xlRight(1) | AY11: xlRight(1) | AZ11: =X11 -> xlRight(1) | BA11: xlRight(1) | BB11: xlRight(1) | BC11: xlRight(1) | BD11: xlRight(1) | BE11: xlLeft(1)
A12: Total Rows Needed | B12: =SUM(B8:B10) -> 10 | C12: General | D12: #+00.00 | E12: General | F12: 0 | G12: 0 | H12: 0 | I12: 0 | J12: 0 | K12: 0 | L12: 0 | M12: 0 | N12: 0 | O12: 0 | P12: 0 | Q12: 0 | R12: 0 | S12: 0 | T12: 0 | U12: 0 | V12: 0 | W12: 0 | X12: 0 | Y12: 0 | Z12: 0 | AA12: 0 | AB12: 0 | AC12: General | AE12: General | AF12: #+00.00 | AG12: General | AH12: 0 | AI12: 0 | AJ12: 0 | AK12: 0 | AL12: 0 | AM12: 0 | AN12: 0 | AO12: 0 | AP12: 0 | AQ12: =G12 -> 0 | AR12: 0 | AS12: 0 | AT12: 0 | AU12: 0 | AV12: 0 | AW12: 0 | AX12: 0 | AY12: 0 | AZ12: 0 | BA12: 0 | BB12: 0 | BC12: 0 | BD12: 0 | BE12: General
A13: Last Tab DE Starter Row | B13: 25 | C13: =CELL("width", C13) -> 21 | D13: 16 | E13: 5 | F13: 10 | G13: 10 | H13: 10 | I13: 10 | J13: 10 | K13: 10 | L13: 10 | M13: 10 | N13: 10 | O13: 10 | P13: 10 | Q13: 10 | R13: 10 | S13: 10 | T13: 10 | U13: 10 | V13: 10 | W13: 10 | X13: 10 | Y13: 10 | Z13: 10 | AA13: 10 | AB13: 10 | AC13: 33 | AE13: =CELL("width", AE13) -> 0 | AF13: 0 | AG13: 0 | AH13: 0 | AI13: 0 | AJ13: 0 | AK13: 0 | AL13: 0 | AM13: 0 | AN13: 0 | AO13: 0 | AP13: 0 | AQ13: 0 | AR13: 0 | AS13: 0 | AT13: 0 | AU13: 0 | AV13: 0 | AW13: 0 | AX13: 0 | AY13: 0 | AZ13: 0 | BA13: 0 | BB13: 0 | BC13: 0 | BD13: 0 | BE13: 0
A14: Last Tab Tabsheet Starter Row | B14: 11 | C14: A | D14: B | E14: C | F14: D | G14: E | H14: F | I14: G | J14: H | K14: I | L14: J | M14: K | N14: L | O14: M | P14: N | Q14: O | R14: P | S14: Q | T14: R | U14: S | V14: T | W14: U | X14: V | Y14: W | Z14: X | AA14: Y | AB14: Z | AC14: AA | AE14: =LOWER(C14) -> a | AF14: b | AG14: c | AH14: d | AI14: e | AJ14: f | AK14: g | AL14: h | AM14: i | AN14: j | AO14: k | AP14: l | AQ14: m | AR14: n | AS14: o | AT14: p | AU14: q | AV14: r | AW14: s | AX14: t | AY14: u | AZ14: v | BA14: w | BB14: x | BC14: y | BD14: z | BE14: aa
A15: Last Copy Starter Row | B15: 1 | E15: Totals: | F15: =SUBTOTAL(9,F25:F600) -> 0 | G15: =SUBTOTAL(9,G25:G600) -> 0 | H15: 2 | I15: 0 | J15: 0 | K15: 0 | L15: 0 | M15: 0 | N15: 0 | O15: 0 | P15: 0 | Q15: 0 | R15: 0 | S15: 0 | T15: 0 | U15: 0 | V15: 0 | W15: 0 | X15: 1 | Y15: 0 | Z15: 0 | AA15: 0 | AB15: 0 | AE15: 108-29
A16: Tab Loop Number | B16: 2 | C16: PAVEMENT MARKING SYMBOLS AND LEGENDS | AE16: =B17 -> 2015-04-21
A17: Revision Date | B17: 2015-04-21 | AE17: =$C$16 -> PAVEMENT MARKING SYMBOLS AND LEGENDS
A18: Tabulation Width | B18: 4 | C18: Refer to PM-111
A19: Horizontal Grid Lines | B19: Yes | C19: ="This Data Entry Sheet fills Tab "&AE15&" effective "&TEXT(B17,"mm-dd-yy") -> This Data Entry Sheet fills Tab 108-29 effective 04-21-15 | AE19: =C18 -> Refer to PM-111
C20: Road Identification | D20: Location | AB20: Groove Cuts | AC20: Remarks | AE20: =C20 -> Road Identification | AF20: =D20 -> Location | BD20: =AB20 -> Groove Cuts | BE20: =$AC$20 -> Remarks
D21: Station | E21: Side | AF21: =D21 -> Station | AG21: =E21 -> Side
F24: STAW | G24: RTAW | H24: LTAW | I24: CSRW | J24: CSLW | K24: CSTW | L24: CRLW | M24: FERW | N24: LLRW | O24: RLRW | P24: RRCW | Q24: BLSW | R24: WCSW | S24: WPSB | T24: SCLW | U24: XNGW | V24: STPW | W24: AHDW | X24: ONLW | Y24: BIKW | Z24: LANW | AA24: XITW | AB24: EACH | AH24: =F24 -> STAW | AI24: RTAW | AJ24: LTAW | AK24: CSRW | AL24: CSLW | AM24: CSTW | AN24: CRLW | AO24: FERW | AP24: LLRW | AQ24: RLRW | AR24: RRCW | AS24: BLSW | AT24: WCSW | AU24: WPSB | AV24: SCLW | AW24: XNGW | AX24: STPW | AY24: AHDW | AZ24: ONLW | BA24: BIKW | BB24: LANW | BC24: XITW | BD24: EACH
C26: IA 146 | D26: 54880 | E26: C | H26: 1
C27: IA 146 | D27: 54813 | E27: C | X27: 1
C28: IA 146 | D28: 54778 | E28: C | H28: 1

Sheet DE110_1
A1: TabTitle | B1: =C16 -> REMOVAL OF PAVEMENT
A2: Number of Tab Columns | B2: 7
A3: DE Starter Row Number | B3: 26
A4: TabSheet Starter Row Number | B4: 12
A5: TabSheet Header Row Count | B5: 11
A6: Top Header Cell | B6: N15
A7: Bottom Header Cell | B7: T25
A8: DESheet Row Count | B8: 7
A9: Fixed Empty Rows | B9: 10
A10: Usable Empty Rows | B10: 0
A11: Total Rows Placed | B11: 17 | C11: xlRight(1) | D11: xlRight(1) | E11: xlCenter | F11: xlCenter | J11: xlRight(1) | K11: xlRight(1) | L11: xlLeft(1) | N11: =C11 -> xlRight(1) | O11: xlRight(1) | P11: xlCenter | Q11: xlCenter | R11: =J11 -> xlRight(1) | S11: xlRight(1) | T11: xlLeft(1)
A12: Total Rows Needed | B12: =SUM(B8:B10) -> 17 | C12: #+00.00 | D12: #+00.00 | E12: General | F12: General | J12: 0.0 | K12: 0.0 | L12: General | N12: #+00.00 | O12: #+00.00 | P12: General | Q12: General | R12: 0.0 | S12: 0.0 | T12: General
A13: Last Tab DE Starter Row | B13: 26 | C13: =CELL("width",C13) -> 16 | D13: =CELL("width",D13) -> 16 | E13: =CELL("width",E13) -> 14 | F13: =CELL("width",F13) -> 14 | J13: =CELL("width",J13) -> 14 | K13: =CELL("width",K13) -> 14 | L13: =CELL("width",L13) -> 65 | N13: =CELL("width",N13) -> 0 | O13: 0 | P13: 0 | Q13: 0 | R13: 0 | S13: 0 | T13: 0
A14: Last Tab Tabsheet Starter Row | B14: 12 | C14: A | D14: B | E14: C | F14: D | J14: E | K14: F | L14: G | N14: =LOWER(C14) -> a | O14: =LOWER(D14) -> b | P14: =LOWER(E14) -> c | Q14: =LOWER(F14) -> d | R14: =LOWER(J14) -> e | S14: =LOWER(K14) -> f | T14: =LOWER(L14) -> g
A15: Last Copy Starter Row | B15: 1 | I15: Totals: | J15: =SUBTOTAL(9,J26:J6000) -> 59154.97778 | N15: 110-1
A16: Tab Loop Number | B16: 2 | C16: REMOVAL OF PAVEMENT | N16: =B17 -> 2013-04-16
A17: Revision Date | B17: 2013-04-16 | N17: =C16 -> REMOVAL OF PAVEMENT
A18: Tabulation Width | B18: 2 | C18: Refer to Tabulation 102-5
A19: Horizontal Grid Lines | B19: Yes | C19: * Not a Bid Item | N19: =C18 -> Refer to Tabulation 102-5
C20: ="This Data Entry Sheet fills Tab "&N15&" effective "&TEXT(B17,"mm-dd-yy") -> This Data Entry Sheet fills Tab 110-1 effective 04-16-13 | N20: =C19 -> * Not a Bid Item
C21: Begin Station | D21: End Station | E21: Side | F21: Pavement Type | G21: Length | H21: Width | I21: Area | J21: Area | K21: Saw Cut* | L21: Remarks | N21: =C21 -> Begin Station | O21: =D21 -> End Station | P21: =E21 -> Side | Q21: =F21 -> Pavement Type | R21: =J21 -> Area | S21: =K21 -> Saw Cut* | T21: =L21 -> Remarks
G25: FT | H25: FT | I25: FT | J25: SY | K25: LF | R25: =J25 -> SY | S25: =K25 -> LF
G26: =ABS(D26-C26) -> 0 | I26: =G26*H26 -> 0 | J26: =IF(I26<>0,I26/9,"") -> 
C27: 44450 | D27: 54519.3 | F27: ACC/PCC | G27: 10069.3 | H27: 24 | I27: =G27*H27 -> 241663.2 | J27: 26851.46667 | K27: 24
C28: 54519.3 | D28: 54864.4 | F28: ACC/PCC | G28: 345.1 | H28: Vari. | I28: 20855 | J28: 2317.222222 | K28: 48 | L28: Variable Widths through intersection
C29: 154029.34 | D29: 154200 | F29: ACC/PCC | G29: 170.66 | H29: Vari. | I29: 3679.2 | J29: 408.8 | K29: 20 | L29: Julian St.
G30: 0 | I30: 0
G31: 0 | I31: 0
F32: Total | G32: 0 | I32: 0 | J32: =SUM(J27:J29) -> 29577.48889
G33: 0 | I33: 0
G34: 0 | I34: 0
G35: 0 | I35: 0
G36: 0 | I36: 0
G37: 0 | I37: 0
G38: 0 | I38: 0
G39: 0 | I39: 0
G40: 0 | I40: 0
G41: 0 | I41: 0
G42: 0 | I42: 0
G43: 0 | I43: 0
G44: 0 | I44: 0
G45: 0 | I45: 0
G46: 0 | I46: 0
G47: 0 | I47: 0
G48: 0 | I48: 0
G49: 0 | I49: 0
G50: 0 | I50: 0
G51: 0 | I51: 0
G52: 0 | I52: 0
G53: 0 | I53: 0
G54: 0 | I54: 0
G55: 0 | I55: 0
G56: 0 | I56: 0
G57: 0 | I57: 0
G58: 0 | I58: 0
G59: 0 | I59: 0
G60: 0 | I60: 0
G61: 0 | I61: 0
G62: 0 | I62: 0
G63: 0 | I63: 0
G64: 0 | I64: 0
G65: 0 | I65: 0
G66: 0 | I66: 0
G67: 0 | I67: 0
G68: 0 | I68: 0
G69: 0 | I69: 0
G70: 0 | I70: 0
G71: 0 | I71: 0
G72: 0 | I72: 0
G73: 0 | I73: 0
G74: 0 | I74: 0
G75: 0 | I75: 0
G76: 0 | I76: 0
G77: 0 | I77: 0
G78: 0 | I78: 0
G79: 0 | I79: 0
G80: 0 | I80: 0
G81: 0 | I81: 0
G82: 0 | I82: 0
G83: 0 | I83: 0
G84: 0 | I84: 0
G85: 0 | I85: 0
G86: 0 | I86: 0
G87: 0 | I87: 0
G88: 0 | I88: 0
G89: 0 | I89: 0
G90: =ABS(D90-C90) -> 0 | I90: =G90*H90 -> 0 | J90: =IF(I90<>0,I90/9,"") -> 
G91: 0 | I91: 0
G92: 0 | I92: 0
G93: 0 | I93: 0
G94: 0 | I94: 0
G95: 0 | I95: 0
G96: 0 | I96: 0
G97: 0 | I97: 0
G98: 0 | I98: 0
G99: 0 | I99: 0
G100: 0 | I100: 0
G101: 0 | I101: 0
G102: 0 | I102: 0
G103: 0 | I103: 0
G104: 0 | I104: 0
G105: 0 | I105: 0
G106: 0 | I106: 0
G107: 0 | I107: 0
G108: 0 | I108: 0
G109: 0 | I109: 0
G110: 0 | I110: 0
G111: 0 | I111: 0
G112: 0 | I112: 0
G113: 0 | I113: 0
G114: 0 | I114: 0
G115: 0 | I115: 0
G116: 0 | I116: 0
G117: 0 | I117: 0
G118: 0 | I118: 0
G119: 0 | I119: 0
G120: 0 | I120: 0
G121: 0 | I121: 0
G122: 0 | I122: 0
G123: 0 | I123: 0
G124: 0 | I124: 0
G125: 0 | I125: 0
G126: 0 | I126: 0
G127: 0 | I127: 0
G128: 0 | I128: 0
G129: 0 | I129: 0
G130: 0 | I130: 0
G131: 0 | I131: 0
G132: 0 | I132: 0
G133: 0 | I133: 0
G134: 0 | I134: 0
G135: 0 | I135: 0
G136: 0 | I136: 0
G137: 0 | I137: 0
G138: 0 | I138: 0
G139: 0 | I139: 0
G140: 0 | I140: 0
G141: 0 | I141: 0
G142: 0 | I142: 0
G143: 0 | I143: 0
G144: 0 | I144: 0
G145: 0 | I145: 0
G146: 0 | I146: 0
G147: 0 | I147: 0
G148: 0 | I148: 0
G149: 0 | I149: 0
G150: 0 | I150: 0
G151: 0 | I151: 0
G152: 0 | I152: 0
G153: 0 | I153: 0
G154: =ABS(D154-C154) -> 0 | I154: =G154*H154 -> 0 | J154: =IF(I154<>0,I154/9,"") -> 
G155: 0 | I155: 0
G156: 0 | I156: 0
G157: 0 | I157: 0
G158: 0 | I158: 0
G159: 0 | I159: 0
G160: 0 | I160: 0
G161: 0 | I161: 0
G162: 0 | I162: 0
G163: 0 | I163: 0
G164: 0 | I164: 0
G165: 0 | I165: 0
G166: 0 | I166: 0
G167: 0 | I167: 0
G168: 0 | I168: 0
G169: 0 | I169: 0
G170: 0 | I170: 0
G171: 0 | I171: 0
G172: 0 | I172: 0
G173: 0 | I173: 0
G174: 0 | I174: 0
G175: 0 | I175: 0
G176: 0 | I176: 0
G177: 0 | I177: 0
G178: 0 | I178: 0
G179: 0 | I179: 0
G180: 0 | I180: 0
G181: 0 | I181: 0
G182: 0 | I182: 0
G183: 0 | I183: 0
G184: 0 | I184: 0
G185: 0 | I185: 0
G186: 0 | I186: 0
G187: 0 | I187: 0
G188: 0 | I188: 0
G189: 0 | I189: 0
G190: 0 | I190: 0
G191: 0 | I191: 0
G192: 0 | I192: 0
G193: 0 | I193: 0
G194: 0 | I194: 0
G195: 0 | I195: 0
G196: 0 | I196: 0
G197: 0 | I197: 0
G198: 0 | I198: 0
G199: 0 | I199: 0
G200: 0 | I200: 0
G201: 0 | I201: 0
G202: 0 | I202: 0
G203: 0 | I203: 0
... 5797 more rows

Sheet DE110_8
A1: TabTitle | B1: =C16 -> REMOVAL OF CONCRETE DRIVES
A2: Number of Tab Columns | B2: 4
A3: DE Starter Row Number | B3: 21
A4: TabSheet Starter Row Number | B4: 7
A5: TabSheet Header Row Count | B5: 6
A6: Top Header Cell | B6: K15
A7: Bottom Header Cell | B7: N20
A8: DESheet Row Count | B8: 2
A9: Fixed Empty Rows | B9: 2
A10: Usable Empty Rows | B10: 0
A11: Total Rows Placed | B11: 4 | C11: xlRight(1) | D11: xlCenter | H11: xlRight(1) | I11: xlLeft(1) | K11: =C11 -> xlRight(1) | L11: =D11 -> xlCenter | M11: =H11 -> xlRight(1) | N11: =I11 -> xlLeft(1)
A12: Total Rows Needed | B12: =SUM(B8:B10) -> 4 | C12: #+00.00 | D12: General | H12: 0.0 | I12: General | K12: =C12 -> #+00.00 | L12: =D12 -> General | M12: =H12 -> 0.0 | N12: =I12 -> General
A13: Last Tab DE Starter Row | B13: 21 | C13: =CELL("width",C13) -> 16 | D13: =CELL("width",D13) -> 5 | H13: =CELL("width",H13) -> 8 | I13: =CELL("width",I13) -> 46 | K13: =CELL("width",K13) -> 0 | L13: =CELL("width",L13) -> 0 | M13: =CELL("width",M13) -> 0 | N13: =CELL("width",N13) -> 0
A14: Last Tab Tabsheet Starter Row | B14: 7 | C14: A | D14: B | H14: C | I14: D | K14: =LOWER(C14) -> a | L14: =LOWER(D14) -> b | M14: =LOWER(H14) -> c | N14: =LOWER(I14) -> d
A15: Last Copy Starter Row | B15: 1 | H15: =SUBTOTAL(9,H21:H6000) -> 118.6666667 | K15: 110-8
A16: Tab Loop Number | B16: 2 | C16: REMOVAL OF CONCRETE DRIVES | K16: =B17 -> 2008-08-01
A17: Revision Date | B17: 2008-08-01 | K17: =C16 -> REMOVAL OF CONCRETE DRIVES
A18: Tabulation Width | B18: 1 | C18: ="This Data Entry Sheet fills Tab "&K15&" effective "&TEXT(B17,"mm-dd-yy") -> This Data Entry Sheet fills Tab 110-8 effective 08-01-08
A19: Horizontal Grid Lines | B19: Yes | C19: Location | E19: Length | F19: Width | G19: Area | H19: Area | I19: Remarks | K19: =C19 -> Location | M19: =H19 -> Area | N19: =I19 -> Remarks
C20: Station | D20: Side | E20: FT | F20: FT | G20: SF | H20: SY | K20: =C20 -> Station | L20: =D20 -> Side | M20: =H20 -> SY
G21: =E21*F21 -> 0 | H21: =IF(G21<>0,G21/9,"") -> 
C22: 154156.4 | D22: Lt | G22: 1068 | H22: =IF(G22<>0,G22/9,"") -> 118.6666667
G23: =E23*F23 -> 0 | H23: =IF(G23<>0,G23/9,"") -> 
G24: 0
G25: 0
G26: 0
G27: 0
G28: 0
G29: 0
G30: 0
G31: 0
G32: 0
G33: 0
G34: 0
G35: 0
G36: 0
G37: 0
G38: 0
G39: 0
G40: 0
G41: 0
G42: 0
G43: 0
G44: 0
G45: 0
G46: 0
G47: 0
G48: 0
G49: 0
G50: 0
G51: 0
G52: 0
G53: 0
G54: 0
G55: 0
G56: 0
G57: 0
G58: 0
G59: 0
G60: 0
G61: 0
G62: 0
G63: 0
G64: 0
G65: 0
G66: 0
G67: 0
G68: 0
G69: 0
G70: 0
G71: 0
G72: 0
G73: 0
G74: 0
G75: 0
G76: 0
G77: 0
G78: 0
G79: 0
G80: 0
G81: 0
G82: 0
G83: 0
G84: 0
G85: 0
G86: 0
G87: =E87*F87 -> 0 | H87: =IF(G87<>0,G87/9,"") -> 
G88: 0
G89: 0
G90: 0
G91: 0
G92: 0
G93: 0
G94: 0
G95: 0
G96: 0
G97: 0
G98: 0
G99: 0
G100: 0
G101: 0
G102: 0
G103: 0
G104: 0
G105: 0
G106: 0
G107: 0
G108: 0
G109: 0
G110: 0
G111: 0
G112: 0
G113: 0
G114: 0
G115: 0
G116: 0
G117: 0
G118: 0
G119: 0
G120: 0
G121: 0
G122: 0
G123: 0
G124: 0
G125: 0
G126: 0
G127: 0
G128: 0
G129: 0
G130: 0
G131: 0
G132: 0
G133: 0
G134: 0
G135: 0
G136: 0
G137: 0
G138: 0
G139: 0
G140: 0
G141: 0
G142: 0
G143: 0
G144: 0
G145: 0
G146: 0
G147: 0
G148: 0
G149: 0
G150: 0
G151: =E151*F151 -> 0 | H151: =IF(G151<>0,G151/9,"") -> 
G152: 0
G153: 0
G154: 0
G155: 0
G156: 0
G157: 0
G158: 0
G159: 0
G160: 0
G161: 0
G162: 0
G163: 0
G164: 0
G165: 0
G166: 0
G167: 0
G168: 0
G169: 0
G170: 0
G171: 0
G172: 0
G173: 0
G174: 0
G175: 0
G176: 0
G177: 0
G178: 0
G179: 0
G180: 0
G181: 0
G182: 0
G183: 0
G184: 0
G185: 0
G186: 0
G187: 0
G188: 0
G189: 0
G190: 0
G191: 0
G192: 0
G193: 0
G194: 0
G195: 0
G196: 0
G197: 0
G198: 0
G199: 0
G200: 0
... 5800 more rows

Sheet DE110_15
A1: TabTitle | B1: =C15 -> REMOVAL OF INTAKES AND UTILITY ACCESSES
A2: Number of Tab Columns | B2: 4
A3: DE Starter Row Number | B3: 21
A4: TabSheet Starter Row Number | B4: 7
A5: TabSheet Header Row Count | B5: 6
A6: Top Header Cell | B6: H15
A7: Bottom Header Cell | B7: K24
A8: DESheet Row Count | B8: 2
A9: Fixed Empty Rows | B9: 2
A10: Usable Empty Rows | B10: 0
A11: Total Rows Placed | B11: 4 | C11: xlLeft(1) | D11: xlLeft(1) | E11: xlLeft(1) | F11: xlLeft(1) | H11: =C11 -> xlLeft(1) | I11: xlLeft(1) | J11: xlLeft(1) | K11: xlLeft(1)
A12: Total Rows Needed | B12: =SUM(B8:B10) -> 4 | C12: General | D12: General | E12: General | F12: General | H12: General | I12: General | J12: General | K12: General
A13: Last Tab DE Starter Row | B13: 21 | C13: =CELL("Width",C13) -> 8 | D13: =CELL("Width",D13) -> 66 | E13: =CELL("Width",E13) -> 18 | F13: =CELL("Width",F13) -> 64 | H13: =CELL("Width",H13) -> 0 | I13: =CELL("Width",I13) -> 0 | J13: =CELL("Width",J13) -> 0 | K13: =CELL("Width",K13) -> 0
A14: Last Tab TabSheet Starter Row | B14: 7 | C14: A | D14: B | E14: C | F14: D | H14: =LOWER(C14) -> a | I14: =LOWER(D14) -> b | J14: =LOWER(E14) -> c | K14: =LOWER(F14) -> d
A15: Last Copy Starter Row | B15: 1 | C15: REMOVAL OF INTAKES AND UTILITY ACCESSES | H15: 110-15 | M15: =E19 -> Type
A16: Tab Loop Number | B16: 2 | H16: =B17 -> 2013-04-16 | M16: Intakes
A17: Revision Date | B17: 2013-04-16 | H17: =C15 -> REMOVAL OF INTAKES AND UTILITY ACCESSES | M17: Utilities
A18: Tabulation Width | B18: 2 | C18: ="This Data Entry Sheet fills Tab "&H15&" effective "&TEXT(B17,"mm-dd-yy") -> This Data Entry Sheet fills Tab 110-15 effective 04-16-13
A19: Horizontal Grid Lines | B19: Yes | C19: No. | D19: Location/Description | E19: Type | F19: Remarks | H19: =C19 -> No. | I19: =D19 -> Location/Description | J19: =E19 -> Type | K19: =F19 -> Remarks
C21: 1 | D21: 13+54, Rt. 28.6 (SE Corner) | E21: Intakes
C22: 1 | D22: 13+53, Lt. 28.8 (NE Corner) | E22: Intakes

Sheet DE111_25
A1: TabTitle | B1: =C15 -> INDEX OF TABULATIONS
A2: Number of Tab Columns | B2: 3
A3: DE Starter Row Number | B3: 20
A4: TabSheet Starter Row Number | B4: 7
A5: TabSheet Header Row Count | B5: 6
A6: Top Header Cell | B6: G15
A7: Bottom Header Cell | B7: I20
A8: DESheet Row Count | B8: 42
A9: Fixed Empty Rows | B9: 1
A10: Usable Empty Rows | B10: 0
A11: Total Rows Placed | B11: 43 | C11: xlLeft(1) | D11: xlLeft(1) | E11: xlLeft(1) | G11: =C11 -> xlLeft(1) | H11: =D11 -> xlLeft(1) | I11: xlLeft(1)
A12: Total Rows Needed | B12: =SUM(B8:B10) -> 43 | C12: General | D12: General | E12: General | G12: =C12 -> General | H12: General | I12: General
A13: Last Tab DE Starter Row | B13: 20 | C13: =CELL("width",C13) -> 13 | D13: =CELL("width",D13) -> 128 | E13: =CELL("width",E13) -> 15 | G13: =CELL("width",G13) -> 0 | H13: =CELL("width",H13) -> 0 | I13: =CELL("width",I13) -> 0
A14: Last Tab TabSheet Starter Row | B14: 7 | C14: A | D14: B | E14: C | G14: =LOWER(C14) -> a | H14: =LOWER(D14) -> b | I14: =LOWER(E14) -> c
A15: Last Copy Starter Row | B15: 1 | C15: INDEX OF TABULATIONS | G15: 111-25
A16: Tab Loop Number | B16: 2 | G16: =B17 -> 2011-10-18
A17: Revision Date | B17: 2011-10-18 | C17: ="This Data Entry Sheet fills Tab "&G15&" effective "&TEXT(B17,"mm-dd-yy") -> This Data Entry Sheet fills Tab 111-25 effective 10-18-11 | G17: =C15 -> INDEX OF TABULATIONS
A18: Tabulation Width | B18: 2 | C18: Tabulation | D18: Tabulation Title | E18: Sheet No.
A19: Horizontal Grid Lines | B19: Yes | G19: =C18 -> Tabulation | H19: =D18 -> Tabulation Title | I19: =E18 -> Sheet No.
C20: C Sheets
C21: 100-1C | D21: ESTIMATED PROJECT QUANTITIES (UP TO A 5 DIVISION PROJECT) | E21: C.1 - C.2
C22: 100-1D | D22: PROJECT DESCRIPTION | E22: C.1
C23: 100-4A | D23: ESTIMATE REFERENCE INFORMATION | E23: C.2 - C.3
C24: 100-23 | D24: ROCK EROSION CONTROL | E24: C.9
C25: 100-24 | D25: PCC PAVEMENT | E25: C.5
C26: 100-27 | D26: PAVEMENT SMOOTHNESS + PCC TEXTURE | E26: C.6
C27: 100-28 | D27: LONGITUDINAL GROOVING | E27: C.8
C28: 102-3 | D28: ACCESS POINTS AND SAFETY RAMPS | E28: C.7
C29: 102-5 | D29: EXISTING PAVEMENT | E29: C.5
C30: 104-5A | D30: INTAKES AND UTILITY ACCESSES | E30: C.8
C31: 104-8A | D31: SCOUR PROTECTION OR ROCK FLUME FOR BRIDGE END DRAIN | E31: C.8
C32: 105-4 | D32: STANDARD ROAD PLANS | E32: C.4
C33: 107-23 | D33: GRADING FOR GUARDRAIL INSTALLATIONS | E33: C.9
C34: 108-8A | D34: STEEL BEAM GUARDRAIL AT CONCRETE BARRIER OR BRIDGE RAIL END SECTION | E34: C.9
C35: 108-13A | D35: SAFETY CLOSURES | E35: C.8
C36: 108-22 | D36: PAVEMENT MARKING LINE TYPES | E36: C.10
C37: 108-29 | D37: PAVEMENT MARKING SYMBOLS AND LEGENDS | E37: C.10
C38: 110-1 | D38: REMOVAL OF PAVEMENT | E38: C.8
C39: 110-8 | D39: REMOVAL OF CONCRETE DRIVES | E39: C.7
C40: 110-15 | D40: REMOVAL OF INTAKES AND UTILITY ACCESSES | E40: C.8
C41: 111-25 | D41: INDEX OF TABULATIONS | E41: C.4
C42: 112-4 | D42: CURBS AND RAISED ISLANDS | E42: C.6
C43: 112-6 | D43: BRIDGE APPROACH SECTION | E43: C.8
C44: 112-9 | D44: SHOULDERS | E44: C.6
C45: 112-10 | D45: MILLED RUMBLE STRIPS | E45: C.7
C48: CD Sheets
C49: 104-3 | D49: DRAINAGE STRUCTURE BY ROAD CONTRACTOR | E49: CD.1
C50: 104-4 | D50: ROADWAY ITEMS FOR DRAINAGE STRUCTURES INSTALLED BY CULVERT CONTRACTOR | E50: CD.1
C52: CE Sheets
C53: 110-12A | D53: POLLUTIONS PREVENTION PLAN | E53: CE.1-CE.2
C54: 100-17 | D54: TABULATION OF SILT FENCE | E54: CE.3
C55: 100-18 | D55: SILT FENCE FOR DITCH CHECKS | E55: CE.3-CE.4
C56: 100-33 | D56: TEMPORARY SEDIMENT CONTROL BASIN | E56: CE.2
C57: 100-34 | D57: STORMWATER DRAINAGE BASIN AND STORAGE | E57: CE.2
C59: S Sheets
C60: 113-10 | D60: SIDEWALK COMPLIANCE | E60: S.01
C61: 113-1 | D61: SIDEWALKS | E61: S.02

Sheet DE112_4
A1: TabTitle | B1: =C16 -> CURBS AND RAISED ISLANDS
A2: Number of Tab Columns | B2: 8
A3: DE Starter Row Number | B3: 24
A4: TabSheet Starter Row Number | B4: 10
A5: TabSheet Header Row Count | B5: 9
A6: Top Header Cell | B6: L15
A7: Bottom Header Cell | B7: S23
A8: DESheet Row Count | B8: 10
A9: Fixed Empty Rows | B9: 4
A10: Usable Empty Rows | B10: 0
A11: Total Rows Placed | B11: 14 | C11: xlLeft(1) | D11: xlRight(1) | E11: xlRight(1) | F11: xlRight(1) | G11: xlLeft(1) | H11: xlRight(1) | I11: xlRight(1) | J11: xlLeft(1) | L11: =C11 -> xlLeft(1) | M11: xlRight(1) | N11: xlRight(1) | O11: xlRight(1) | P11: xlLeft(1) | Q11: xlRight(1) | R11: xlRight(1) | S11: xlLeft(1)
A12: Total Rows Needed | B12: =SUM(B8:B10) -> 14 | C12: General | D12: #+00.00 | E12: General | F12: 0.0 | G12: General | H12: 0.0 | I12: 0.0 | J12: General | L12: General | M12: #+00.00 | N12: General | O12: 0.0 | P12: General | Q12: 0.0 | R12: 0.0 | S12: General
A13: Last Tab DE Starter Row | B13: 24 | C13: =CELL("width",C13) -> 12 | D13: 16 | E13: 12 | F13: 18 | G13: 30 | H13: 15 | I13: 14 | J13: 36 | L13: =CELL("width",L13) -> 0 | M13: 0 | N13: 0 | O13: 0 | P13: 0 | Q13: 0 | R13: 0 | S13: 0
A14: Last Tab Tabsheet Starter Row | B14: 10 | C14: A | D14: B | E14: C | F14: D | G14: E | H14: F | I14: G | J14: H | L14: =LOWER(C14) -> a | M14: b | N14: c | O14: d | P14: e | Q14: f | R14: g | S14: h
A15: Last Copy Starter Row | B15: 1 | E15: Totals: | F15: =SUBTOTAL(9,F24:F6000) -> 0 | I15: =SUBTOTAL(9,I24:I6000) -> 1124.92 | L15: 112-4 | U15: =G22 -> Curb Type | V15: =H22 -> Gutter Width
A16: Tab Loop Number | B16: 2 | C16: CURBS AND RAISED ISLANDS | L16: =B17 -> 2014-10-21 | U16: 4" Sloped PCC | V16: 1.5
A17: Revision Date | B17: 2014-10-21 | L17: =C16 -> CURBS AND RAISED ISLANDS | U17: 6" Sloped PCC | V17: 2
A18: Tabulation Width | B18: 2 | C18: Refer to PV-20, PV-102, and 6000s Detail Series. | U18: 6" Standard PCC | V18: 2.5
A19: Horizontal Grid Lines | B19: Yes | C19: Bid Item | L19: =C18 -> Refer to PV-20, PV-102, and 6000s Detail Series. | U19: X" Driveway Drop PCC | V19: 3
C20: ="This Data Entry Sheet fills Tab "&L15&" effective "&TEXT(B17,"mm-dd-yy") -> This Data Entry Sheet fills Tab 112-4 effective 10-21-14 | L20: =C19 -> Bid Item | U20: X" Dowelled PCC | V20: 3.5
C21: Point No. | D21: Station | E21: Offset | F21: Island Interior Area | G21: Curb and Gutter | J21: Remarks | L21: =C21 -> Point No. | M21: =D21 -> Station | N21: =E21 -> Offset | O21: =F21 -> Island Interior Area | P21: =G21 -> Curb and Gutter | S21: =J21 -> Remarks | V21: 4
G22: Curb Type | H22: Gutter Width | I22: Length | P22: =G22 -> Curb Type | Q22: =H22 -> Gutter Width | R22: =I22 -> Length | V22: 4.5
F23: SY | H23: FT | I23: LF | O23: =F23 -> SY | Q23: =H23 -> FT | R23: =I23 -> LF | V23: 5
V24: 5.5
C25: 1 | D25: 54628.3 | E25: Lt 36.06 | G25: 6" Sloped PCC | H25: 2.5 | I25: 63.3 | J25: SW Corner/runout at sidewalk | V25: X.X
C26: 2 | D26: 54595.16 | E26: Rt 20 | G26: 6" Sloped PCC | H26: 2.5 | I26: 97.9 | J26: SE Corner/Runout at 545+90
C27: 3 | D27: 1206.85 | E27: Lt 22.5 | G27: 6" Sloped PCC | H27: 2.5 | I27: 83.21 | J27: NW Corner
C28: 4 | D28: 54757.77 | E28: Lt 32 | G28: 6" Driveway Drop PCC | I28: 107.49 | J28: NW Corner
C29: 5 | D29: 1375.6 | E29: Rt 22.5 | G29: 6" Sloped PCC | H29: 2.5 | I29: 99.6 | J29: NE Corner
C30: 6 | D30: 54753 | E30: Rt 16 | G30: 6" Driveway Drop PCC | I30: 110.96 | J30: NE Corner
G33: Total | I33: =SUM(I25:I32) -> 562.46

Sheet DE112_6
A1: TabTitle | B1: =C16 -> BRIDGE APPROACH SECTION
A2: Number of Tab Columns | B2: 20
A3: DE Starter Row Number | B3: 28
A4: TabSheet Starter Row Number | B4: 14
A5: TabSheet Header Row Count | B5: 13
A6: Top Header Cell | B6: X15
A7: Bottom Header Cell | B7: AQ27
A8: DESheet Row Count | B8: 5
A9: Fixed Empty Rows | B9: 10
A10: Usable Empty Rows | B10: 0
A11: Total Rows Placed | B11: 15 | C11: xlRight(1) | D11: xlRight(1) | E11: xlRight(1) | F11: xlRight(1) | G11: xlRight(1) | H11: xlRight(1) | I11: xlRight(1) | J11: xlRight(1) | K11: xlRight(1) | L11: xlCenter | M11: xlCenter | N11: xlCenter | O11: xlRight(1) | P11: xlRight(1) | Q11: xlCenter | R11: xlRight(1) | S11: xlRight(1) | T11: xlRight(1) | U11: xlRight(1) | V11: xlLeft(1) | X11: =C11 -> xlRight(1) | Y11: xlRight(1) | Z11: xlRight(1) | AA11: xlRight(1) | AB11: xlRight(1) | AC11: xlRight(1) | AD11: xlRight(1) | AE11: xlRight(1) | AF11: xlRight(1) | AG11: xlCenter | AH11: xlCenter | AI11: xlCenter | AJ11: xlRight(1) | AK11: xlRight(1) | AL11: xlCenter | AM11: xlRight(1) | AN11: =S11 -> xlRight(1) | AO11: xlRight(1) | AP11: xlRight(1) | AQ11: xlLeft(1)
A12: Total Rows Needed | B12: =SUM(B8:B10) -> 15 | C12: #+00.00 | D12: General | E12: General | F12: General | G12: 0.0 | H12: 0.0 | I12: 0.0 | J12: 0.0 | K12: 0.0 | L12: General | M12: General | N12: General | O12: 0.0 | P12: #+00.00 | Q12: General | R12: 0.0 | S12: 0.0 | T12: 0.000 | U12: 0.0 | V12: General | X12: #+00.00 | Y12: General | Z12: General | AA12: General | AB12: 0.0 | AC12: 0.0 | AD12: 0.0 | AE12: 0.0 | AF12: 0.0 | AG12: General | AH12: General | AI12: General | AJ12: 0.0 | AK12: #+00.00 | AL12: General | AM12: 0.0 | AN12: 0.0 | AO12: 0.000 | AP12: 0.0 | AQ12: General
A13: Last Tab DE Starter Row | B13: 28 | C13: =CELL("width",C13) -> 16 | D13: 6 | E13: 12 | F13: 12 | G13: 12 | H13: 8 | I13: 12 | J13: 11 | K13: 11 | L13: =CELL("width",L13) -> 11 | M13: =CELL("width",M13) -> 11 | N13: 11 | O13: 14 | P13: 16 | Q13: 6 | R13: 11 | S13: 15 | T13: 11 | U13: 10 | V13: 10 | X13: =CELL("width",X13) -> 0 | Y13: 0 | Z13: 0 | AA13: 0 | AB13: 0 | AC13: 0 | AD13: 0 | AE13: 0 | AF13: 0 | AG13: 0 | AH13: 0 | AI13: 0 | AJ13: 0 | AK13: 0 | AL13: 0 | AM13: 0 | AN13: 0 | AO13: 0 | AP13: 0 | AQ13: 0
A14: Last Tab Tabsheet Starter Row | B14: 14 | C14: A | D14: B | E14: C | F14: D | G14: E | H14: F | I14: G | J14: H | K14: I | L14: J | M14: K | N14: L | O14: M | P14: N | Q14: O | R14: P | S14: Q | T14: R | U14: S | V14: T | X14: =LOWER(C14) -> a | Y14: b | Z14: c | AA14: d | AB14: e | AC14: f | AD14: g | AE14: h | AF14: i | AG14: j | AH14: k | AI14: l | AJ14: m | AK14: n | AL14: o | AM14: p | AN14: q | AO14: r | AP14: s | AQ14: t
A15: Last Copy Starter Row | B15: 1 | H15: Totals: | I15: =SUBTOTAL(9,I28:I6000) -> 373.32 | J15: =SUBTOTAL(9,J28:J6000) -> 248.88 | K15: =SUBTOTAL(9,K28:K6000) -> 587.04 | X15: 112-6 | AS15: =L24 -> Approach | AT15: =M24 -> Fixed or Movable Abutment | AU15: Abutting Pavement
A16: Tab Loop Number | B16: 2 | C16: BRIDGE APPROACH SECTION | X16: =B17 -> 2015-10-20 | AS16: BR-201 | AT16: Fixed | AU16: BR-211
A17: Revision Date | B17: 2015-10-20 | X17: =C16 -> BRIDGE APPROACH SECTION | AS17: BR-202 | AT17: Movable | AU17: BR-212
A18: Tabulation Width | B18: 3 | C18: Refer to the BR Series. | AS18: BR-203 | AU18: BR-213
A19: Horizontal Grid Lines | B19: Yes | C19: * Not a bid item | X19: =C18 -> Refer to the BR Series. | AS19: BR-204 | AU19: BR-231
C20: ="This Data Entry Sheet fills Tab "&X15&" effective "&TEXT(B17,"mm-dd-yy") -> This Data Entry Sheet fills Tab 112-6 effective 10-20-15 | X20: =C19 -> * Not a bid item | AS20: BR-205
C21: Location | G21: Approach Pavement | L21: Standard Road Plans BR Series | O21: Subdrain | T21: * | U21: * | V21: Remarks | X21: =C21 -> Location | AB21: =G21 -> Approach Pavement | AG21: =L21 -> Standard Road Plans BR Series | AJ21: =O21 -> Subdrain | AO21: =T21 -> * | AP21: =U21 -> * | AQ21: =V21 -> Remarks
C22: Bridge Station | D22: End | E22: Skew Ahead | H22: Pay Length | I22: Non-Reinf. Pavement Area | J22: Single- Reinf. Pavement Area | K22: Double- Reinf. Pavement Area | O22: * | P22: * | R22: * | S22: * | X22: =C22 -> Bridge Station | Y22: =D22 -> End | Z22: =E22 -> Skew Ahead | AC22: =H22 -> Pay Length | AD22: =I22 -> Non-Reinf. Pavement Area | AE22: =J22 -> Single- Reinf. Pavement Area | AF22: =K22 -> Double- Reinf. Pavement Area | AJ22: =O22 -> * | AK22: =P22 -> * | AM22: =R22 -> * | AN22: =S22 -> *
O23: Perforated Subdrain 4" | P23: Subdrain Outlet | R23: Porous Backfill | S23: Class 'A' Crushed Stone Backfill | T23: Modified Subbase | U23: Polymer Grid | AJ23: =O23 -> Perforated Subdrain 4" | AK23: =P23 -> Subdrain Outlet | AM23: =R23 -> Porous Backfill | AN23: =S23 -> Class 'A' Crushed Stone Backfill | AO23: =T23 -> Modified Subbase | AP23: =U23 -> Polymer Grid
G24: Thickness | L24: Approach | M24: Fixed or Movable Abutment | N24: Abutting Pavement | AB24: =G24 -> Thickness | AG24: =L24 -> Approach | AH24: =M24 -> Fixed or Movable Abutment | AI24: =N24 -> Abutting Pavement
E26: Degrees | Z26: =E26 -> Degrees
E27: LEFT | F27: RIGHT | G27: Inches | H27: FT | I27: SY | J27: SY | K27: SY | O27: LF | P27: STA | Q27: Side | R27: CY | S27: CY | T27: TON | U27: SY | Z27: =E27 -> LEFT | AA27: =F27 -> RIGHT | AB27: Inches | AC27: FT | AD27: SY | AE27: SY | AF27: SY | AJ27: =O27 -> LF | AK27: STA | AL27: Side | AM27: CY | AN27: CY | AO27: TON | AP27: SY
C29: 53613.88 | D29: S | E29: 40 | G29: 12 | H29: 81.78 | I29: 93.33 | J29: 62.22 | K29: 146.76 | L29: BR-203 | M29: Movable | N29: BR-211 | O29: 62 | P29: 53401.1 | Q29: Rt | R29: 10
C30: 53613.88 | D30: N | E30: 40 | G30: 12 | H30: 81.78 | I30: 93.33 | J30: 62.22 | K30: 146.76 | L30: BR-203 | M30: Movable | N30: BR-211 | O30: 62 | P30: 53826.66 | Q30: Lt | R30: 10
C32: Totals | H32: =SUM(H29:H31) -> 163.56 | I32: =SUM(I29:I31) -> 186.66 | J32: 124.44 | K32: 293.52

Sheet DE112_9
A1: TabTitle | B1: =C16 -> SHOULDERS
A2: Number of Tab Columns | B2: 25
A3: DE Starter Row Number | B3: 32
A4: TabSheet Starter Row Number | B4: 18
A5: TabSheet Header Row Count | B5: 17
A6: Top Header Cell | B6: AM15
A7: Bottom Header Cell | B7: BK31
A8: DESheet Row Count | B8: 38
A9: Fixed Empty Rows | B9: 6
A10: Usable Empty Rows | B10: 0
A11: Total Rows Placed | B11: 44 | C11: xlLeft(1) | D11: xlCenter | E11: xlRight(1) | F11: xlRight(1) | G11: xlCenter | J11: xlRight(1) | M11: xlRight(1) | N11: xlRight(1) | O11: xlRight(1) | Q11: xlRight(1) | R11: xlRight(1) | S11: xlRight(1) | T11: xlRight(1) | U11: xlRight(1) | X11: xlRight(1) | Y11: xlRight(1) | Z11: xlRight(1) | AA11: xlRight(1) | AB11: xlRight(1) | AD11: xlRight(1) | AE11: xlRight(1) | AH11: xlRight(1) | AI11: xlRight(1) | AJ11: xlRight(1) | AK11: xlLeft(1) | AM11: =C11 -> xlLeft(1) | AN11: xlCenter | AO11: xlRight(1) | AP11: xlRight(1) | AQ11: xlCenter | AR11: =J11 -> xlRight(1) | AS11: =M11 -> xlRight(1) | AT11: xlRight(1) | AU11: xlRight(1) | AV11: =Q11 -> xlRight(1) | AW11: xlRight(1) | AX11: xlRight(1) | AY11: xlRight(1) | AZ11: xlRight(1) | BA11: =X11 -> xlRight(1) | BB11: xlRight(1) | BC11: xlRight(1) | BD11: xlRight(1) | BE11: xlRight(1) | BF11: =AD11 -> xlRight(1) | BG11: =AE11 -> xlRight(1) | BH11: =AH11 -> xlRight(1) | BI11: xlRight(1) | BJ11: xlRight(1) | BK11: xlLeft(1)
A12: Total Rows Needed | B12: =SUM(B8:B10) -> 44 | C12: general | D12: general | E12: #+00.00 | F12: #+00.00 | G12: general | J12: 0.0 | M12: 0.0 | N12: 0.0 | O12: 0.0 | Q12: 0.0 | R12: 0.0 | S12: 0.0 | T12: 0.0 | U12: 0.0 | X12: 0.0 | Y12: 0.0 | Z12: 0.0 | AA12: 0.0 | AB12: 0.0 | AD12: 0.0 | AE12: 0.0 | AH12: 0.0 | AI12: 0.0 | AJ12: 0.0 | AK12: general | AM12: general | AN12: general | AO12: #+00.00 | AP12: #+00.00 | AQ12: general | AR12: =J12 -> 0.0 | AS12: 0.0 | AT12: 0.0 | AU12: 0.0 | AV12: 0.0 | AW12: 0.0 | AX12: 0.0 | AY12: 0.0 | AZ12: 0.0 | BA12: 0.0 | BB12: 0.0 | BC12: 0.0 | BD12: 0.0 | BE12: 0.0 | BF12: =AD12 -> 0.0 | BG12: =AE12 -> 0.0 | BH12: 0.0 | BI12: 0.0 | BJ12: 0.0 | BK12: general
A13: Last Tab DE Starter Row | B13: 32 | C13: =CELL("width",C13) -> 20 | D13: =CELL("width",D13) -> 7 | E13: =CELL("width",E13) -> 16 | F13: =CELL("width",F13) -> 16 | G13: =CELL("width",G13) -> 6 | J13: =CELL("width",J13) -> 12 | M13: =CELL("width",M13) -> 12 | N13: =CELL("width",N13) -> 12 | O13: =CELL("width",O13) -> 16 | Q13: =CELL("width",Q13) -> 11 | R13: =CELL("width",R13) -> 11 | S13: =CELL("width",S13) -> 11 | T13: =CELL("width",T13) -> 11 | U13: =CELL("width",U13) -> 13 | X13: =CELL("width",X13) -> 11 | Y13: =CELL("width",Y13) -> 11 | Z13: =CELL("width",Z13) -> 11 | AA13: =CELL("width",AA13) -> 11 | AB13: =CELL("width",AB13) -> 11 | AD13: =CELL("width",AD13) -> 11 | AE13: =CELL("width",AE13) -> 11 | AH13: =CELL("width",AH13) -> 11 | AI13: =CELL("width",AI13) -> 10 | AJ13: =CELL("width",AJ13) -> 10 | AK13: =CELL("width",AK13) -> 25 | AM13: =CELL("width",AM13) -> 0 | AN13: 0 | AO13: 0 | AP13: 0 | AQ13: 0 | AR13: 0 | AS13: 0 | AT13: 0 | AU13: 0 | AV13: 0 | AW13: 0 | AX13: 0 | AY13: 0 | AZ13: 0 | BA13: 0 | BB13: 0 | BC13: 0 | BD13: 0 | BE13: 0 | BF13: 0 | BG13: 0 | BH13: 0 | BI13: 0 | BJ13: 0 | BK13: 0
A14: Last Tab Tabsheet Starter Row | B14: 18 | C14: A | D14: B | E14: C | F14: D | G14: E | J14: F | M14: G | N14: H | O14: I | Q14: J | R14: K | S14: L | T14: M | U14: N | X14: O | Y14: P | Z14: Q | AA14: R | AB14: S | AD14: T | AE14: U | AH14: V | AI14: W | AJ14: X | AK14: Y | AM14: =LOWER(C14) -> a | AN14: =LOWER(D14) -> b | AO14: =LOWER(E14) -> c | AP14: =LOWER(F14) -> d | AQ14: =LOWER(G14) -> e | AR14: =LOWER(J14) -> f | AS14: =LOWER(M14) -> g | AT14: =LOWER(N14) -> h | AU14: =LOWER(O14) -> i | AV14: =LOWER(Q14) -> j | AW14: =LOWER(R14) -> k | AX14: =LOWER(S14) -> l | AY14: =LOWER(T14) -> m | AZ14: =LOWER(U14) -> n | BA14: =LOWER(X14) -> o | BB14: =LOWER(X14) -> o | BC14: =LOWER(Y14) -> p | BD14: =LOWER(Z14) -> q | BE14: =LOWER(AA14) -> r | BF14: =LOWER(AD14) -> t | BG14: =LOWER(AE14) -> u | BH14: =LOWER(AH14) -> v | BI14: =LOWER(AI14) -> w | BJ14: =LOWER(AJ14) -> x | BK14: =LOWER(AK14) -> y
A15: Last Copy Starter Row | B15: 1 | N15: Totals: | O15: =SUBTOTAL(9,O32:O6007) -> 0 | T15: =SUBTOTAL(9,T32:T6007) -> 899.201 | U15: =SUBTOTAL(9,U32:U6007) -> 0 | Z15: =SUBTOTAL(9,Z32:Z6007) -> 0 | AB15: =SUBTOTAL(9,AB32:AB6007) -> 149.8668333 | AD15: =SUBTOTAL(9,AD32:AD6007) -> 21313.8688 | AJ15: =SUBTOTAL(9,AJ32:AJ6007) -> 2717.392593 | AM15: 112-9
A16: Tab Loop Number | B16: 2 | C16: SHOULDERS | AM16: =B17 -> 2013-10-15
A17: Revision Date | B17: 2013-10-15 | AM17: =C16 -> SHOULDERS
A18: Tabulation Width | B18: 4 | C18: Lane(s) to which the shoulder is adjacent.
A19: Horizontal Grid Lines | B19: Yes | C19: Bid Item | AM19: =C18 -> Lane(s) to which the shoulder is adjacent.
C20: Applies only for Paved Shoulders constructed on project with existing granular shoulders. | AM20: =C19 -> Bid Item
C21: Does not include shrink. | AM21: =C20 -> Applies only for Paved Shoulders constructed on project with existing granular shoulders.
AM22: =C21 -> Does not include shrink.
C23: Calculations assume a HMA unit weight (lbs/cf) of | G23: 0 | J23: , a Special Backfill unit weight (lbs/cf) of | N23: 140 | O23: , and a Granular Shoulder unit weight (lbs/cf) of | T23: 140 | U23: .
C24: ="This Data Entry Sheet fills Tab "&AM15&" effective "&TEXT(B17,"mm-dd-yy") -> This Data Entry Sheet fills Tab 112-9 effective 10-15-13 | AM24: =C23&G23&J23&N23&O23&T23&U23 -> Calculations assume a HMA unit weight (lbs/cf) of 0, a Special Backfill unit weight (lbs/cf) of 140, and a Granular Shoulder unit weight (lbs/cf) of 140.
C25: Location | O25: Quantities | AK25: Remarks | AM25: =C25 -> Location | AU25: =O25 -> Quantities | BK25: =AK25 -> Remarks
C26: Road Identification | D26: Direction Of Traffic | E26: Station to Station | G26: Side | O26: Class 13 Excavation | P26: HMA Cross Section Area | Q26: Hot Mix Asphalt | S26: Binder | T26: Paved Shoulder | U26: Reinforced Paved Shoulder | V26: Special Backfill Cross Section Area (HMA) | W26: Special Backfill Cross Section Area (PCC) | X26: Special Backfill | AB26: Modified Subbase | AC26: Granular Shoulder Cross Section Area | AD26: Granular Shoulder | AF26: Earth Shoulder Construction Cross Section Area (HMA) | AG26: Earth Shoulder Construction Cross Section Area (PCC) | AH26: Earth Shoulder Construction Alternates | AM26: =C26 -> Road Identification | AN26: =D26 -> Direction Of Traffic | AO26: =E26 -> Station to Station | AQ26: =G26 -> Side | AU26: =O26 -> Class 13 Excavation | AV26: =Q26 -> Hot Mix Asphalt | AX26: =S26 -> Binder | AY26: =T26 -> Paved Shoulder | AZ26: =U26 -> Reinforced Paved Shoulder | BA26: =X26 -> Special Backfill | BE26: =AB26 -> Modified Subbase | BF26: =AD26 -> Granular Shoulder | BH26: =AH26 -> Earth Shoulder Construction Alternates
H28: Start | I28: End | J28: Width | K28: Start | L28: End | M28: Width | N28: Length | AR28: =J28 -> Width | AS28: =M28 -> Width | AT28: =N28 -> Length
X29: HMA Alternate | Z29: PCC Alternate | AH29: STA | AI29: HMA | AJ29: PCC | BA29: =X29 -> HMA Alternate | BC29: =Z29 -> PCC Alternate | BH29: =AH29 -> STA | BI29: =AI29 -> HMA | BJ29: =AJ29 -> PCC
H30: FT | I30: FT | J30: FT | K30: FT | L30: FT | M30: FT | N30: FT | O30: CY | Q30: TON | R30: TON/STA | S30: TONS | T30: SY | U30: SY | X30: TON | Y30: TON/STA | Z30: TON | AA30: TON/STA | AB30: CY | AD30: TON | AE30: TON/STA | AI30: CY | AJ30: CY | AR30: =J30 -> FT | AS30: =M30 -> FT | AT30: =N30 -> FT | AU30: =O30 -> CY | AV30: =Q30 -> TON | AW30: =R30 -> TON/STA | AX30: =S30 -> TONS | AY30: =T30 -> SY | AZ30: =U30 -> SY | BA30: =X30 -> TON | BB30: =Y30 -> TON/STA | BC30: =Z30 -> TON | BD30: =AA30 -> TON/STA | BE30: =AB30 -> CY | BF30: =AD30 -> TON | BG30: =AE30 -> TON/STA | BI30: =AI30 -> CY | BJ30: =AJ30 -> CY
P31: SF | V31: SF | W31: SF | AC31: SF | AF31: SF | AG31: SF
J32: =IF(H32<>"",IF(H32=I32,(H32+I32)/2,H32&" to "&I32),"") ->  | M32: =IF(K32<>"",IF(K32=L32,(K32+L32)/2,K32&" to "&L32),"") ->  | N32: =IF(E32+F32=0,"",ABS(F32-E32)) ->  | Q32: =IF(P32="","",P32*N32*$G$23/2000) ->  | R32: =IF(P32="","",P32*100*$G$23/2000) ->  | S32: =IF(Q32<>"",Q32*0.06,"") ->  | T32: =IF(H32<>"",((H32+I32)/2)*N32/9,"") ->  | X32: =IF(V32="","",V32*N32*$N$23/2000) ->  | Y32: =IF(V32="","",V32*100*$N$23/2000) ->  | Z32: =IF(W32="","",W32*N32*$N$23/2000) ->  | AA32: =IF(W32="","",W32*100*$N$23/2000) ->  | AD32: =IF(AC32="","",AC32*N32*$T$23/2000) ->  | AE32: =IF(AC32="","",AC32*100*$T$23/2000) ->  | AH32: =IF(N32="","",N32/100) ->  | AI32: =IF(AF32=0,"",(AF32*N32)/27) ->  | AJ32: =IF(AG32=0,"",(AG32*N32)/27) -> 
C33: ML146 | D33: NB | E33: 44450 | F33: 53315.19 | G33: Lt | K33: 6 | L33: 6 | M33: 6 | N33: 8865.19 | AC33: 8.3 | AD33: 5150.67539 | AE33: 58.1 | AG33: 4 | AH33: 88.6519 | AJ33: 1313.361481
E34: 53315.19 | F34: 53348.15 | G34: Lt | H34: 10.3 | I34: 10.3 | J34: 10.3 | N34: 32.96 | T34: =IF(H34<>"",((H34+I34)/2)*N34/9,"") -> 37.72088889 | X34: =IF(V34="","",V34*N34*$N$23/2000) ->  | AB34: =(N34*((H34+I34)/2)*(6/12))/27 -> 6.286814815 | AF34: 5 | AH34: 0.3296 | AI34: 6.103703704 | AK34: *Note
E35: 53348.15 | F35: 53385.61 | G35: Lt | H35: 10.3 | I35: 8.8 | J35: 10.3 to 8.8 | N35: 37.46 | T35: =IF(H35<>"",((H35+I35)/2)*N35/9,"") -> 39.74922222 | AB35: =(N35*((H35+I35)/2)*(6/12))/27 -> 6.62487037 | AF35: 5.4 | AH35: 0.3746 | AI35: 7.492 | AK35: *Note
E36: 53385.61 | F36: 53398.09 | G36: Lt | H36: 8.8 | I36: 7.6 | J36: 8.8 to 7.6 | N36: 12.48 | T36: 11.37066667 | AB36: 1.895111111 | AF36: 5.4 | AH36: 0.1248 | AI36: 2.496 | AK36: *Note
E37: 53398.09 | F37: 53420.51 | G37: Lt | H37: 7.6 | I37: 7.6 | J37: 7.6 | N37: 22.42 | T37: 18.93244444 | AB37: 3.155407407 | AF37: 5.4 | AH37: 0.2242 | AI37: 4.484 | AK37: *Note
J38: =IF(H38<>"",IF(H38=I38,(H38+I38)/2,H38&" to "&I38),"") ->  | M38: =IF(K38<>"",IF(K38=L38,(K38+L38)/2,K38&" to "&L38),"") ->  | N38: =IF(E38+F38=0,"",ABS(F38-E38)) ->  | Q38: =IF(P38="","",P38*N38*$G$23/2000) ->  | R38: =IF(P38="","",P38*100*$G$23/2000) ->  | S38: =IF(Q38<>"",Q38*0.06,"") ->  | T38: =IF(H38<>"",((H38+I38)/2)*N38/9,"") ->  | X38: =IF(V38="","",V38*N38*$N$23/2000) ->  | Y38: =IF(V38="","",V38*100*$N$23/2000) ->  | Z38: =IF(W38="","",W38*N38*$N$23/2000) ->  | AA38: =IF(W38="","",W38*100*$N$23/2000) ->  | AD38: =IF(AC38="","",AC38*N38*$T$23/2000) ->  | AE38: =IF(AC38="","",AC38*100*$T$23/2000) ->  | AH38: =IF(N38="","",N38/100) ->  | AI38: =IF(AF38=0,"",(AF38*N38)/27) ->  | AJ38: =IF(AG38=0,"",(AG38*N38)/27) -> 
E39: 53827.14 | F39: 53875.97 | G39: Lt | H39: 7.6 | I39: 7.6 | J39: 7.6 | N39: 48.83 | T39: 41.23422222 | AB39: 6.87237037 | AF39: 1.4 | AH39: 0.4883 | AI39: 2.531925926 | AK39: *Note
E40: 53878.97 | F40: 53887.94 | G40: Lt | H40: 7.6 | I40: 8.8 | J40: 7.6 to 8.8 | N40: 8.97 | T40: 8.172666667 | AB40: 1.362111111 | AF40: 4.1 | AH40: 0.0897 | AI40: 1.362111111 | AK40: *Note
E41: 53897.94 | F41: 53925.91 | G41: Lt | H41: 8.8 | I41: 10.3 | J41: 8.8 to 10.3 | N41: 27.97 | T41: 29.67927778 | AB41: 4.946546296 | AF41: 4.1 | AH41: 0.2797 | AI41: 4.247296296 | AK41: *Note
E42: 53925.91 | F42: 53958.2 | G42: Lt | H42: 10.3 | I42: 10.3 | J42: 10.3 | N42: 32.29 | T42: 36.95411111 | AB42: 6.159018519 | AF42: 3.9 | AH42: 0.3229 | AI42: 4.664111111 | AK42: *Note
E44: 53958.2 | F44: 54628.14 | G44: Lt | J44: =IF(H44<>"",IF(H44=I44,(H44+I44)/2,H44&" to "&I44),"") ->  | K44: 6 | L44: 6 | M44: =IF(K44<>"",IF(K44=L44,(K44+L44)/2,K44&" to "&L44),"") -> 6 | N44: =IF(E44+F44=0,"",ABS(F44-E44)) -> 669.94 | Q44: =IF(P44="","",P44*N44*$G$23/2000) ->  | R44: =IF(P44="","",P44*100*$G$23/2000) ->  | S44: =IF(Q44<>"",Q44*0.06,"") ->  | T44: =IF(H44<>"",((H44+I44)/2)*N44/9,"") ->  | X44: =IF(V44="","",V44*N44*$N$23/2000) ->  | Y44: =IF(V44="","",V44*100*$N$23/2000) ->  | Z44: =IF(W44="","",W44*N44*$N$23/2000) ->  | AA44: =IF(W44="","",W44*100*$N$23/2000) ->  | AD44: =IF(AC44="","",AC44*N44*$T$23/2000) ->  | AE44: =IF(AC44="","",AC44*100*$T$23/2000) ->  | AH44: =IF(N44="","",N44/100) -> 6.6994 | AI44: =IF(AF44=0,"",(AF44*N44)/27) ->  | AJ44: =IF(AG44=0,"",(AG44*N44)/27) -> 
J45: =IF(H45<>"",IF(H45=I45,(H45+I45)/2,H45&" to "&I45),"") ->  | M45: =IF(K45<>"",IF(K45=L45,(K45+L45)/2,K45&" to "&L45),"") ->  | N45: =IF(E45+F45=0,"",ABS(F45-E45)) ->  | Q45: =IF(P45="","",P45*N45*$G$23/2000) ->  | R45: =IF(P45="","",P45*100*$G$23/2000) ->  | S45: =IF(Q45<>"",Q45*0.06,"") ->  | T45: =IF(H45<>"",((H45+I45)/2)*N45/9,"") ->  | X45: =IF(V45="","",V45*N45*$N$23/2000) ->  | Y45: =IF(V45="","",V45*100*$N$23/2000) ->  | Z45: =IF(W45="","",W45*N45*$N$23/2000) ->  | AA45: =IF(W45="","",W45*100*$N$23/2000) ->  | AD45: =IF(AC45="","",AC45*N45*$T$23/2000) ->  | AE45: =IF(AC45="","",AC45*100*$T$23/2000) ->  | AH45: =IF(N45="","",N45/100) ->  | AI45: =IF(AF45=0,"",(AF45*N45)/27) ->  | AJ45: =IF(AG45=0,"",(AG45*N45)/27) -> 
C47: ML146 | D47: NB | E47: 44450 | F47: 53282.3 | G47: Rt | J47: =IF(H47<>"",IF(H47=I47,(H47+I47)/2,H47&" to "&I47),"") ->  | K47: 6 | L47: 6 | M47: =IF(K47<>"",IF(K47=L47,(K47+L47)/2,K47&" to "&L47),"") -> 6 | N47: =IF(E47+F47=0,"",ABS(F47-E47)) -> 8832.3 | Q47: =IF(P47="","",P47*N47*$G$23/2000) ->  | R47: =IF(P47="","",P47*100*$G$23/2000) ->  | S47: =IF(Q47<>"",Q47*0.06,"") ->  | T47: =IF(H47<>"",((H47+I47)/2)*N47/9,"") ->  | X47: =IF(V47="","",V47*N47*$N$23/2000) ->  | Y47: =IF(V47="","",V47*100*$N$23/2000) ->  | Z47: =IF(W47="","",W47*N47*$N$23/2000) ->  | AA47: =IF(W47="","",W47*100*$N$23/2000) ->  | AC47: 8.3 | AD47: =IF(AC47="","",AC47*N47*$T$23/2000) -> 5131.5663 | AE47: =IF(AC47="","",AC47*100*$T$23/2000) -> 58.1 | AG47: 4 | AH47: =IF(N47="","",N47/100) -> 88.323 | AI47: =IF(AF47=0,"",(AF47*N47)/27) ->  | AJ47: =IF(AG47=0,"",(AG47*N47)/27) -> 1308.488889
E48: 53282.3 | F48: 53314.59 | G48: Rt | H48: 10.3 | I48: 10.3 | J48: 10.3 | N48: 32.29 | T48: 36.95411111 | AB48: 6.159018519 | AF48: 5.2 | AH48: 0.3229 | AI48: 6.218814815 | AK48: *Note
E49: 53314.59 | F49: 53352.06 | G49: Rt | H49: 10.3 | I49: 8.8 | J49: 10.3 to 8.8 | N49: 37.47 | T49: 39.75983333 | AB49: 6.626638889 | AF49: 5.4 | AH49: 0.3747 | AI49: 7.494 | AK49: *Note
E50: 53352.06 | F50: 53365.03 | G50: Rt | H50: 8.8 | I50: 7.6 | J50: 8.8 to 7.6 | N50: 12.97 | T50: 11.81711111 | AB50: 1.969518519 | AF50: 3.9 | AH50: 0.1297 | AI50: 1.873444444 | AK50: *Note
E51: 53365.03 | F51: 53400.61 | G51: Rt | H51: 7.6 | I51: 7.6 | J51: 7.6 | N51: 35.58 | T51: 30.04533333 | AB51: 5.007555556 | AF51: 3.9 | AH51: 0.3558 | AI51: 5.139333333 | AK51: *Note
E53: 53807.25 | F53: 53829.91 | G53: Rt | H53: 7.6 | I53: 7.6 | J53: 7.6 | N53: 22.66 | T53: 19.13511111 | AB53: 3.189185185 | AF53: 1.4 | AH53: 0.2266 | AI53: 1.174962963 | AK53: *Note
E54: 53829.91 | F54: 53842.38 | G54: Rt | H54: 7.6 | I54: 8.8 | J54: 7.6 to 8.8 | N54: 12.47 | T54: 11.36155556 | AB54: 1.893592593 | AF54: 5.4 | AH54: 0.1247 | AI54: 2.494 | AK54: *Note
E55: 53842.38 | F55: 53879.85 | G55: Rt | H55: 8.8 | I55: 10.3 | J55: 8.8 to 10.3 | N55: 37.47 | T55: 39.75983333 | AB55: 6.626638889 | AF55: 5.1 | AH55: 0.3747 | AI55: 7.077666667 | AK55: *Note
E56: 53879.85 | F56: 53912.14 | G56: Rt | H56: 10.3 | I56: 10.3 | J56: 10.3 | N56: 32.29 | T56: 36.95411111 | AB56: 6.159018519 | AF56: 5.1 | AH56: 0.3229 | AI56: 6.099222222 | AK56: *Note
E58: 53912.14 | F58: 53980.39 | G58: Rt | K58: 6 | L58: 6 | M58: 6 | N58: 68.25 | AC58: 8.3 | AD58: 39.65325 | AE58: 58.1 | AG58: 4 | AH58: 0.6825 | AJ58: 10.11111111
E59: 54018.5 | F59: 54595.16 | G59: Rt | K59: 6 | L59: 6 | M59: 6 | N59: 576.66 | AC59: 8.3 | AD59: 335.03946 | AE59: 58.1 | AG59: 4 | AH59: 5.7666 | AJ59: 85.43111111
AH64: *Note: For paved shoulders at guardrail.
AH66: =IF(N66="","",N66/100) ->  | AI66: =IF(AF66=0,"",(AF66*N66)/27) ->  | AJ66: =IF(AG66=0,"",(AG66*N66)/27) -> 
O68: Totals | T68: =SUM(T33:T67) -> 449.6005 | AB68: =SUM(AB33:AB67) -> 74.93341667 | AD68: =SUM(AD32:AD67) -> 10656.9344 | AH68: =SUM(AH33:AH60) -> 194.5892
J103: =IF(H103<>"",IF(H103=I103,(H103+I103)/2,H103&" to "&I103),"") ->  | M103: =IF(K103<>"",IF(K103=L103,(K103+L103)/2,K103&" to "&L103),"") ->  | N103: =IF(E103+F103=0,"",ABS(F103-E103)) ->  | Q103: =IF(P103="","",P103*N103*$G$23/2000) ->  | R103: =IF(P103="","",P103*100*$G$23/2000) ->  | S103: =IF(Q103<>"",Q103*0.06,"") ->  | T103: =IF(H103<>"",((H103+I103)/2)*N103/9,"") ->  | X103: =IF(V103="","",V103*N103*$N$23/2000) ->  | Y103: =IF(V103="","",V103*100*$N$23/2000) ->  | Z103: =IF(W103="","",W103*N103*$N$23/2000) ->  | AA103: =IF(W103="","",W103*100*$N$23/2000) ->  | AD103: =IF(AC103="","",AC103*N103*$T$23/2000) ->  | AE103: =IF(AC103="","",AC103*100*$T$23/2000) ->  | AH103: =IF(N103="","",N103/100) ->  | AI103: =IF(AF103=0,"",(AF103*N103)/27) ->  | AJ103: =IF(AG103=0,"",(AG103*N103)/27) -> 
J167: =IF(H167<>"",IF(H167=I167,(H167+I167)/2,H167&" to "&I167),"") ->  | M167: =IF(K167<>"",IF(K167=L167,(K167+L167)/2,K167&" to "&L167),"") ->  | N167: =IF(E167+F167=0,"",ABS(F167-E167)) ->  | Q167: =IF(P167="","",P167*N167*$G$23/2000) ->  | R167: =IF(P167="","",P167*100*$G$23/2000) ->  | S167: =IF(Q167<>"",Q167*0.06,"") ->  | T167: =IF(H167<>"",((H167+I167)/2)*N167/9,"") ->  | X167: =IF(V167="","",V167*N167*$N$23/2000) ->  | Y167: =IF(V167="","",V167*100*$N$23/2000) ->  | Z167: =IF(W167="","",W167*N167*$N$23/2000) ->  | AA167: =IF(W167="","",W167*100*$N$23/2000) ->  | AD167: =IF(AC167="","",AC167*N167*$T$23/2000) ->  | AE167: =IF(AC167="","",AC167*100*$T$23/2000) ->  | AH167: =IF(N167="","",N167/100) ->  | AI167: =IF(AF167=0,"",(AF167*N167)/27) ->  | AJ167: =IF(AG167=0,"",(AG167*N167)/27) -> 
J231: =IF(H231<>"",IF(H231=I231,(H231+I231)/2,H231&" to "&I231),"") ->  | M231: =IF(K231<>"",IF(K231=L231,(K231+L231)/2,K231&" to "&L231),"") ->  | N231: =IF(E231+F231=0,"",ABS(F231-E231)) ->  | Q231: =IF(P231="","",P231*N231*$G$23/2000) ->  | R231: =IF(P231="","",P231*100*$G$23/2000) ->  | S231: =IF(Q231<>"",Q231*0.06,"") ->  | T231: =IF(H231<>"",((H231+I231)/2)*N231/9,"") ->  | X231: =IF(V231="","",V231*N231*$N$23/2000) ->  | Y231: =IF(V231="","",V231*100*$N$23/2000) ->  | Z231: =IF(W231="","",W231*N231*$N$23/2000) ->  | AA231: =IF(W231="","",W231*100*$N$23/2000) ->  | AD231: =IF(AC231="","",AC231*N231*$T$23/2000) ->  | AE231: =IF(AC231="","",AC231*100*$T$23/2000) ->  | AH231: =IF(N231="","",N231/100) ->  | AI231: =IF(AF231=0,"",(AF231*N231)/27) ->  | AJ231: =IF(AG231=0,"",(AG231*N231)/27) -> 
J295: =IF(H295<>"",IF(H295=I295,(H295+I295)/2,H295&" to "&I295),"") ->  | M295: =IF(K295<>"",IF(K295=L295,(K295+L295)/2,K295&" to "&L295),"") ->  | N295: =IF(E295+F295=0,"",ABS(F295-E295)) ->  | Q295: =IF(P295="","",P295*N295*$G$23/2000) ->  | R295: =IF(P295="","",P295*100*$G$23/2000) ->  | S295: =IF(Q295<>"",Q295*0.06,"") ->  | T295: =IF(H295<>"",((H295+I295)/2)*N295/9,"") ->  | X295: =IF(V295="","",V295*N295*$N$23/2000) ->  | Y295: =IF(V295="","",V295*100*$N$23/2000) ->  | Z295: =IF(W295="","",W295*N295*$N$23/2000) ->  | AA295: =IF(W295="","",W295*100*$N$23/2000) ->  | AD295: =IF(AC295="","",AC295*N295*$T$23/2000) ->  | AE295: =IF(AC295="","",AC295*100*$T$23/2000) ->  | AH295: =IF(N295="","",N295/100) ->  | AI295: =IF(AF295=0,"",(AF295*N295)/27) ->  | AJ295: =IF(AG295=0,"",(AG295*N295)/27) -> 
J359: =IF(H359<>"",IF(H359=I359,(H359+I359)/2,H359&" to "&I359),"") ->  | M359: =IF(K359<>"",IF(K359=L359,(K359+L359)/2,K359&" to "&L359),"") ->  | N359: =IF(E359+F359=0,"",ABS(F359-E359)) ->  | Q359: =IF(P359="","",P359*N359*$G$23/2000) ->  | R359: =IF(P359="","",P359*100*$G$23/2000) ->  | S359: =IF(Q359<>"",Q359*0.06,"") ->  | T359: =IF(H359<>"",((H359+I359)/2)*N359/9,"") ->  | X359: =IF(V359="","",V359*N359*$N$23/2000) ->  | Y359: =IF(V359="","",V359*100*$N$23/2000) ->  | Z359: =IF(W359="","",W359*N359*$N$23/2000) ->  | AA359: =IF(W359="","",W359*100*$N$23/2000) ->  | AD359: =IF(AC359="","",AC359*N359*$T$23/2000) ->  | AE359: =IF(AC359="","",AC359*100*$T$23/2000) ->  | AH359: =IF(N359="","",N359/100) ->  | AI359: =IF(AF359=0,"",(AF359*N359)/27) ->  | AJ359: =IF(AG359=0,"",(AG359*N359)/27) -> 
J423: =IF(H423<>"",IF(H423=I423,(H423+I423)/2,H423&" to "&I423),"") ->  | M423: =IF(K423<>"",IF(K423=L423,(K423+L423)/2,K423&" to "&L423),"") ->  | N423: =IF(E423+F423=0,"",ABS(F423-E423)) ->  | Q423: =IF(P423="","",P423*N423*$G$23/2000) ->  | R423: =IF(P423="","",P423*100*$G$23/2000) ->  | S423: =IF(Q423<>"",Q423*0.06,"") ->  | T423: =IF(H423<>"",((H423+I423)/2)*N423/9,"") ->  | X423: =IF(V423="","",V423*N423*$N$23/2000) ->  | Y423: =IF(V423="","",V423*100*$N$23/2000) ->  | Z423: =IF(W423="","",W423*N423*$N$23/2000) ->  | AA423: =IF(W423="","",W423*100*$N$23/2000) ->  | AD423: =IF(AC423="","",AC423*N423*$T$23/2000) ->  | AE423: =IF(AC423="","",AC423*100*$T$23/2000) ->  | AH423: =IF(N423="","",N423/100) ->  | AI423: =IF(AF423=0,"",(AF423*N423)/27) ->  | AJ423: =IF(AG423=0,"",(AG423*N423)/27) -> 
J487: =IF(H487<>"",IF(H487=I487,(H487+I487)/2,H487&" to "&I487),"") ->  | M487: =IF(K487<>"",IF(K487=L487,(K487+L487)/2,K487&" to "&L487),"") ->  | N487: =IF(E487+F487=0,"",ABS(F487-E487)) ->  | Q487: =IF(P487="","",P487*N487*$G$23/2000) ->  | R487: =IF(P487="","",P487*100*$G$23/2000) ->  | S487: =IF(Q487<>"",Q487*0.06,"") ->  | T487: =IF(H487<>"",((H487+I487)/2)*N487/9,"") ->  | X487: =IF(V487="","",V487*N487*$N$23/2000) ->  | Y487: =IF(V487="","",V487*100*$N$23/2000) ->  | Z487: =IF(W487="","",W487*N487*$N$23/2000) ->  | AA487: =IF(W487="","",W487*100*$N$23/2000) ->  | AD487: =IF(AC487="","",AC487*N487*$T$23/2000) ->  | AE487: =IF(AC487="","",AC487*100*$T$23/2000) ->  | AH487: =IF(N487="","",N487/100) ->  | AI487: =IF(AF487=0,"",(AF487*N487)/27) ->  | AJ487: =IF(AG487=0,"",(AG487*N487)/27) -> 
J551: =IF(H551<>"",IF(H551=I551,(H551+I551)/2,H551&" to "&I551),"") ->  | M551: =IF(K551<>"",IF(K551=L551,(K551+L551)/2,K551&" to "&L551),"") ->  | N551: =IF(E551+F551=0,"",ABS(F551-E551)) ->  | Q551: =IF(P551="","",P551*N551*$G$23/2000) ->  | R551: =IF(P551="","",P551*100*$G$23/2000) ->  | S551: =IF(Q551<>"",Q551*0.06,"") ->  | T551: =IF(H551<>"",((H551+I551)/2)*N551/9,"") ->  | X551: =IF(V551="","",V551*N551*$N$23/2000) ->  | Y551: =IF(V551="","",V551*100*$N$23/2000) ->  | Z551: =IF(W551="","",W551*N551*$N$23/2000) ->  | AA551: =IF(W551="","",W551*100*$N$23/2000) ->  | AD551: =IF(AC551="","",AC551*N551*$T$23/2000) ->  | AE551: =IF(AC551="","",AC551*100*$T$23/2000) ->  | AH551: =IF(N551="","",N551/100) ->  | AI551: =IF(AF551=0,"",(AF551*N551)/27) ->  | AJ551: =IF(AG551=0,"",(AG551*N551)/27) -> 
J615: =IF(H615<>"",IF(H615=I615,(H615+I615)/2,H615&" to "&I615),"") ->  | M615: =IF(K615<>"",IF(K615=L615,(K615+L615)/2,K615&" to "&L615),"") ->  | N615: =IF(E615+F615=0,"",ABS(F615-E615)) ->  | Q615: =IF(P615="","",P615*N615*$G$23/2000) ->  | R615: =IF(P615="","",P615*100*$G$23/2000) ->  | S615: =IF(Q615<>"",Q615*0.06,"") ->  | T615: =IF(H615<>"",((H615+I615)/2)*N615/9,"") ->  | X615: =IF(V615="","",V615*N615*$N$23/2000) ->  | Y615: =IF(V615="","",V615*100*$N$23/2000) ->  | Z615: =IF(W615="","",W615*N615*$N$23/2000) ->  | AA615: =IF(W615="","",W615*100*$N$23/2000) ->  | AD615: =IF(AC615="","",AC615*N615*$T$23/2000) ->  | AE615: =IF(AC615="","",AC615*100*$T$23/2000) ->  | AH615: =IF(N615="","",N615/100) ->  | AI615: =IF(AF615=0,"",(AF615*N615)/27) ->  | AJ615: =IF(AG615=0,"",(AG615*N615)/27) -> 
J679: =IF(H679<>"",IF(H679=I679,(H679+I679)/2,H679&" to "&I679),"") ->  | M679: =IF(K679<>"",IF(K679=L679,(K679+L679)/2,K679&" to "&L679),"") ->  | N679: =IF(E679+F679=0,"",ABS(F679-E679)) ->  | Q679: =IF(P679="","",P679*N679*$G$23/2000) ->  | R679: =IF(P679="","",P679*100*$G$23/2000) ->  | S679: =IF(Q679<>"",Q679*0.06,"") ->  | T679: =IF(H679<>"",((H679+I679)/2)*N679/9,"") ->  | X679: =IF(V679="","",V679*N679*$N$23/2000) ->  | Y679: =IF(V679="","",V679*100*$N$23/2000) ->  | Z679: =IF(W679="","",W679*N679*$N$23/2000) ->  | AA679: =IF(W679="","",W679*100*$N$23/2000) ->  | AD679: =IF(AC679="","",AC679*N679*$T$23/2000) ->  | AE679: =IF(AC679="","",AC679*100*$T$23/2000) ->  | AH679: =IF(N679="","",N679/100) ->  | AI679: =IF(AF679=0,"",(AF679*N679)/27) ->  | AJ679: =IF(AG679=0,"",(AG679*N679)/27) -> 
J743: =IF(H743<>"",IF(H743=I743,(H743+I743)/2,H743&" to "&I743),"") ->  | M743: =IF(K743<>"",IF(K743=L743,(K743+L743)/2,K743&" to "&L743),"") ->  | N743: =IF(E743+F743=0,"",ABS(F743-E743)) ->  | Q743: =IF(P743="","",P743*N743*$G$23/2000) ->  | R743: =IF(P743="","",P743*100*$G$23/2000) ->  | S743: =IF(Q743<>"",Q743*0.06,"") ->  | T743: =IF(H743<>"",((H743+I743)/2)*N743/9,"") ->  | X743: =IF(V743="","",V743*N743*$N$23/2000) ->  | Y743: =IF(V743="","",V743*100*$N$23/2000) ->  | Z743: =IF(W743="","",W743*N743*$N$23/2000) ->  | AA743: =IF(W743="","",W743*100*$N$23/2000) ->  | AD743: =IF(AC743="","",AC743*N743*$T$23/2000) ->  | AE743: =IF(AC743="","",AC743*100*$T$23/2000) ->  | AH743: =IF(N743="","",N743/100) ->  | AI743: =IF(AF743=0,"",(AF743*N743)/27) ->  | AJ743: =IF(AG743=0,"",(AG743*N743)/27) -> 
J807: =IF(H807<>"",IF(H807=I807,(H807+I807)/2,H807&" to "&I807),"") ->  | M807: =IF(K807<>"",IF(K807=L807,(K807+L807)/2,K807&" to "&L807),"") ->  | N807: =IF(E807+F807=0,"",ABS(F807-E807)) ->  | Q807: =IF(P807="","",P807*N807*$G$23/2000) ->  | R807: =IF(P807="","",P807*100*$G$23/2000) ->  | S807: =IF(Q807<>"",Q807*0.06,"") ->  | T807: =IF(H807<>"",((H807+I807)/2)*N807/9,"") ->  | X807: =IF(V807="","",V807*N807*$N$23/2000) ->  | Y807: =IF(V807="","",V807*100*$N$23/2000) ->  | Z807: =IF(W807="","",W807*N807*$N$23/2000) ->  | AA807: =IF(W807="","",W807*100*$N$23/2000) ->  | AD807: =IF(AC807="","",AC807*N807*$T$23/2000) ->  | AE807: =IF(AC807="","",AC807*100*$T$23/2000) ->  | AH807: =IF(N807="","",N807/100) ->  | AI807: =IF(AF807=0,"",(AF807*N807)/27) ->  | AJ807: =IF(AG807=0,"",(AG807*N807)/27) -> 
J871: =IF(H871<>"",IF(H871=I871,(H871+I871)/2,H871&" to "&I871),"") ->  | M871: =IF(K871<>"",IF(K871=L871,(K871+L871)/2,K871&" to "&L871),"") ->  | N871: =IF(E871+F871=0,"",ABS(F871-E871)) ->  | Q871: =IF(P871="","",P871*N871*$G$23/2000) ->  | R871: =IF(P871="","",P871*100*$G$23/2000) ->  | S871: =IF(Q871<>"",Q871*0.06,"") ->  | T871: =IF(H871<>"",((H871+I871)/2)*N871/9,"") ->  | X871: =IF(V871="","",V871*N871*$N$23/2000) ->  | Y871: =IF(V871="","",V871*100*$N$23/2000) ->  | Z871: =IF(W871="","",W871*N871*$N$23/2000) ->  | AA871: =IF(W871="","",W871*100*$N$23/2000) ->  | AD871: =IF(AC871="","",AC871*N871*$T$23/2000) ->  | AE871: =IF(AC871="","",AC871*100*$T$23/2000) ->  | AH871: =IF(N871="","",N871/100) ->  | AI871: =IF(AF871=0,"",(AF871*N871)/27) ->  | AJ871: =IF(AG871=0,"",(AG871*N871)/27) -> 
J935: =IF(H935<>"",IF(H935=I935,(H935+I935)/2,H935&" to "&I935),"") ->  | M935: =IF(K935<>"",IF(K935=L935,(K935+L935)/2,K935&" to "&L935),"") ->  | N935: =IF(E935+F935=0,"",ABS(F935-E935)) ->  | Q935: =IF(P935="","",P935*N935*$G$23/2000) ->  | R935: =IF(P935="","",P935*100*$G$23/2000) ->  | S935: =IF(Q935<>"",Q935*0.06,"") ->  | T935: =IF(H935<>"",((H935+I935)/2)*N935/9,"") ->  | X935: =IF(V935="","",V935*N935*$N$23/2000) ->  | Y935: =IF(V935="","",V935*100*$N$23/2000) ->  | Z935: =IF(W935="","",W935*N935*$N$23/2000) ->  | AA935: =IF(W935="","",W935*100*$N$23/2000) ->  | AD935: =IF(AC935="","",AC935*N935*$T$23/2000) ->  | AE935: =IF(AC935="","",AC935*100*$T$23/2000) ->  | AH935: =IF(N935="","",N935/100) ->  | AI935: =IF(AF935=0,"",(AF935*N935)/27) ->  | AJ935: =IF(AG935=0,"",(AG935*N935)/27) -> 
J999: =IF(H999<>"",IF(H999=I999,(H999+I999)/2,H999&" to "&I999),"") ->  | M999: =IF(K999<>"",IF(K999=L999,(K999+L999)/2,K999&" to "&L999),"") ->  | N999: =IF(E999+F999=0,"",ABS(F999-E999)) ->  | Q999: =IF(P999="","",P999*N999*$G$23/2000) ->  | R999: =IF(P999="","",P999*100*$G$23/2000) ->  | S999: =IF(Q999<>"",Q999*0.06,"") ->  | T999: =IF(H999<>"",((H999+I999)/2)*N999/9,"") ->  | X999: =IF(V999="","",V999*N999*$N$23/2000) ->  | Y999: =IF(V999="","",V999*100*$N$23/2000) ->  | Z999: =IF(W999="","",W999*N999*$N$23/2000) ->  | AA999: =IF(W999="","",W999*100*$N$23/2000) ->  | AD999: =IF(AC999="","",AC999*N999*$T$23/2000) ->  | AE999: =IF(AC999="","",AC999*100*$T$23/2000) ->  | AH999: =IF(N999="","",N999/100) ->  | AI999: =IF(AF999=0,"",(AF999*N999)/27) ->  | AJ999: =IF(AG999=0,"",(AG999*N999)/27) -> 
... 21 more rows

Sheet DE112_10
A1: TabTitle | B1: =C16 -> MILLED RUMBLE STRIPS | AE1: Rumble Strip Type
A2: Number of Tab Columns | B2: 11 | AE2: Centerline
A3: DE Starter Row Number | B3: 26 | AE3: Left Shoulder
A4: TabSheet Starter Row Number | B4: 12 | AE4: Right Shoulder
A5: TabSheet Header Row Count | B5: 11
A6: Top Header Cell | B6: S15
A7: Bottom Header Cell | B7: AC25
A8: DESheet Row Count | B8: 10
A9: Fixed Empty Rows | B9: 4
A10: Usable Empty Rows | B10: 0
A11: Total Rows Placed | B11: 14 | C11: xlLeft(1) | D11: xlRight(1) | E11: xlRight(1) | H11: xlRight(1) | I11: xlRight(1) | J11: xlCenter | M11: xlRight(1) | N11: xlRight(1) | O11: xlRight(1) | P11: xlRight(1) | Q11: xlLeft(1) | S11: =C11 -> xlLeft(1) | T11: =D11 -> xlRight(1) | U11: xlRight(1) | V11: =H11 -> xlRight(1) | W11: =I11 -> xlRight(1) | X11: xlCenter | Y11: =M11 -> xlRight(1) | Z11: =N11 -> xlRight(1) | AA11: xlRight(1) | AB11: xlRight(1) | AC11: xlLeft(1)
A12: Total Rows Needed | B12: =SUM(B8:B10) -> 14 | C12: General | D12: #+00.00 | E12: #+00.00 | H12: 0.00 | I12: 0.00 | J12: General | M12: 0.0 | N12: 0.0 | O12: 0.0 | P12: 0.0 | Q12: General | S12: =C12 -> General | T12: #+00.00 | U12: #+00.00 | V12: =H12 -> 0.00 | W12: 0.00 | X12: General | Y12: =M12 -> 0.0 | Z12: 0.0 | AA12: 0.0 | AB12: 0.0 | AC12: General
A13: Last Tab DE Starter Row | B13: 26 | C13: =CELL("width",C13) -> 32 | D13: =CELL("width",D13) -> 18 | E13: =CELL("width",E13) -> 18 | H13: =CELL("width",H13) -> 12 | I13: =CELL("width",I13) -> 12 | J13: =CELL("width",J13) -> 26 | M13: =CELL("width",M13) -> 29 | N13: =CELL("width",N13) -> 16 | O13: =CELL("width",O13) -> 16 | P13: =CELL("width",P13) -> 16 | Q13: =CELL("width",Q13) -> 38 | S13: =CELL("width",S13) -> 0 | T13: 0 | U13: 0 | V13: 0 | W13: 0 | X13: 0 | Y13: 0 | Z13: 0 | AA13: 0 | AB13: 0 | AC13: 0
A14: Last Tab Tabsheet Starter Row | B14: 12 | C14: A | D14: B | E14: C | H14: D | I14: E | J14: F | M14: G | N14: H | O14: I | P14: J | Q14: K | S14: =LOWER(C14) -> a | T14: =LOWER(D14) -> b | U14: =LOWER(E14) -> c | V14: =LOWER(H14) -> d | W14: =LOWER(I14) -> e | X14: =LOWER(J14) -> f | Y14: =LOWER(M14) -> g | Z14: =LOWER(N14) -> h | AA14: =LOWER(O14) -> i | AB14: =LOWER(P14) -> j | AC14: =LOWER(Q14) -> k
A15: Last Copy Starter Row | B15: 1 | E15: Totals: | H15: =SUBTOTAL(9,H26:H6000) -> 560.24 | I15: =SUBTOTAL(9,I26:I6000) -> 0 | M15: =SUBTOTAL(9,M26:M6000) -> 0 | S15: 112-10
A16: Tab Loop Number | B16: 2 | C16: MILLED RUMBLE STRIPS | S16: =B17 -> 2011-04-19
A17: Revision Date | B17: 2011-04-19 | S17: =C16 -> MILLED RUMBLE STRIPS
A18: Tabulation Width | B18: 3 | C18: See PV-12 and PV-13.
A19: Horizontal Grid Lines | B19: Yes | C19: * Calculated at 18" width for Shoulder. | S19: =C18 -> See PV-12 and PV-13.
C20: ="This Data Entry Sheet fills Tab "&S15&" effective "&TEXT(B17,"mm-dd-yy") -> This Data Entry Sheet fills Tab 112-10 effective 04-19-11 | S20: =C19 -> * Calculated at 18" width for Shoulder.
C21: Location | J21: Type (Centerline, Rt or Lt Shoulder | K21: Area | L21: Area | M21: Fog Seal* (Milled Rumble Strip) | N21: Effective Shoulder Width | Q21: Remarks | S21: =C21 -> Location | Y21: =M21 -> Fog Seal* (Milled Rumble Strip) | Z21: =N21 -> Effective Shoulder Width | AC21: =Q21 -> Remarks
C22: Road Identification | D22: Station to Station | F22: Length | H22: Length | N22: PCC Paved | O22: HMA Paved | P22: Granular\ Earth | S22: =C22 -> Road Identification | T22: =D22 -> Station to Station | V22: =H22 -> Length | X22: =J21 -> Type (Centerline, Rt or Lt Shoulder | Z22: =N22 -> PCC Paved | AA22: =O22 -> HMA Paved | AB22: =P22 -> Granular\ Earth
H23: PCC | I23: HMA | V23: =H23 -> PCC | W23: =I23 -> HMA
M24: Shoulder | Y24: =M24 -> Shoulder
F25: FT | G25: STA | H25: STA | I25: STA | K25: SF | L25: SY | M25: GAL | N25: FT | O25: FT | P25: FT | V25: =H25 -> STA | W25: =I25 -> STA | Y25: =M25 -> GAL | Z25: =N25 -> FT | AA25: =O25 -> FT | AB25: =P25 -> FT
F26: =IF(D26<>"",ABS(D26-E26),"") ->  | G26: =IF(F26<>"",F26/100,"") ->  | K26: =IF(OR(J26="Left Shoulder",J26="Right Shoulder"),(H26+I26)*100*(18/12),"") ->  | L26: =IF(K26<>"",(K26/9),"") ->  | M26: =IF(AND(OR(J26="Left Shoulder",J26="Right Shoulder"),I26<>""),L26*0.5*0.13,IF(J26<>"","0.0","")) -> 
C27: Mainline Ia 146 | D27: 44450 | E27: 53316 | F27: 8866 | G27: 88.66 | H27: 88.66 | J27: Left Shoulder | K27: 13299 | L27: 1477.666667 | M27: =IF(AND(OR(J27="Left Shoulder",J27="Right Shoulder"),I27<>""),L27*0.5*0.13,IF(J27<>"","0.0","")) -> 0.0 | N27: 2
D28: 53958 | E28: 54628 | F28: 670 | G28: 6.7 | H28: 6.7 | J28: Left Shoulder | K28: 1005 | L28: 111.6666667 | M28: =IF(AND(OR(J28="Left Shoulder",J28="Right Shoulder"),I28<>""),L28*0.5*0.13,IF(J28<>"","0.0","")) -> 0.0 | N28: 2
D29: 44450 | E29: 53316 | F29: 8866 | G29: 88.66 | H29: 88.66 | J29: Right Shoulder | K29: 13299 | L29: 1477.666667 | M29: 0.0 | N29: 2
D30: 53958 | E30: 54628 | F30: 670 | G30: 6.7 | H30: 6.7 | J30: Right Shoulder | K30: 1005 | L30: 111.6666667 | M30: 0.0 | N30: 2
D32: 44450 | E32: 53388 | F32: 8938 | G32: 89.38 | H32: 89.4 | J32: Centerline | K32: =IF(OR(J32="Left Shoulder",J32="Right Shoulder"),(H32+I32)*100*(18/12),"") ->  | M32: =IF(AND(OR(J32="Left Shoulder",J32="Right Shoulder"),I32<>""),L32*0.5*0.13,IF(J32<>"","0.0","")) -> 0.0
E34: Totals: | H34: =SUM(H27:H30) -> 190.72 | I34: Shoulder Rumbles
H35: =H32 -> 89.4 | I35: Centerline Rumbles
F90: =IF(D90<>"",ABS(D90-E90),"") ->  | G90: =IF(F90<>"",F90/100,"") ->  | K90: =IF(OR(J90="Left Shoulder",J90="Right Shoulder"),(H90+I90)*100*(18/12),"") ->  | L90: =IF(K90<>"",(K90/9),"") -> 
M92: =IF(AND(OR(J92="Left Shoulder",J92="Right Shoulder"),I92<>""),L92*0.5*0.13,IF(J92<>"","0.0","")) -> 
F154: =IF(D154<>"",ABS(D154-E154),"") ->  | G154: =IF(F154<>"",F154/100,"") ->  | K154: =IF(OR(J154="Left Shoulder",J154="Right Shoulder"),(H154+I154)*100*(18/12),"") ->  | L154: =IF(K154<>"",(K154/9),"") -> 
M156: =IF(AND(OR(J156="Left Shoulder",J156="Right Shoulder"),I156<>""),L156*0.5*0.13,IF(J156<>"","0.0","")) -> 
F218: =IF(D218<>"",ABS(D218-E218),"") ->  | G218: =IF(F218<>"",F218/100,"") ->  | K218: =IF(OR(J218="Left Shoulder",J218="Right Shoulder"),(H218+I218)*100*(18/12),"") ->  | L218: =IF(K218<>"",(K218/9),"") -> 
M220: =IF(AND(OR(J220="Left Shoulder",J220="Right Shoulder"),I220<>""),L220*0.5*0.13,IF(J220<>"","0.0","")) -> 
F282: =IF(D282<>"",ABS(D282-E282),"") ->  | G282: =IF(F282<>"",F282/100,"") ->  | K282: =IF(OR(J282="Left Shoulder",J282="Right Shoulder"),(H282+I282)*100*(18/12),"") ->  | L282: =IF(K282<>"",(K282/9),"") -> 
M284: =IF(AND(OR(J284="Left Shoulder",J284="Right Shoulder"),I284<>""),L284*0.5*0.13,IF(J284<>"","0.0","")) -> 
F346: =IF(D346<>"",ABS(D346-E346),"") ->  | G346: =IF(F346<>"",F346/100,"") ->  | K346: =IF(OR(J346="Left Shoulder",J346="Right Shoulder"),(H346+I346)*100*(18/12),"") ->  | L346: =IF(K346<>"",(K346/9),"") -> 
M348: =IF(AND(OR(J348="Left Shoulder",J348="Right Shoulder"),I348<>""),L348*0.5*0.13,IF(J348<>"","0.0","")) -> 
F410: =IF(D410<>"",ABS(D410-E410),"") ->  | G410: =IF(F410<>"",F410/100,"") ->  | K410: =IF(OR(J410="Left Shoulder",J410="Right Shoulder"),(H410+I410)*100*(18/12),"") ->  | L410: =IF(K410<>"",(K410/9),"") -> 
M412: =IF(AND(OR(J412="Left Shoulder",J412="Right Shoulder"),I412<>""),L412*0.5*0.13,IF(J412<>"","0.0","")) -> 
F474: =IF(D474<>"",ABS(D474-E474),"") ->  | G474: =IF(F474<>"",F474/100,"") ->  | K474: =IF(OR(J474="Left Shoulder",J474="Right Shoulder"),(H474+I474)*100*(18/12),"") ->  | L474: =IF(K474<>"",(K474/9),"") -> 
M476: =IF(AND(OR(J476="Left Shoulder",J476="Right Shoulder"),I476<>""),L476*0.5*0.13,IF(J476<>"","0.0","")) -> 
F538: =IF(D538<>"",ABS(D538-E538),"") ->  | G538: =IF(F538<>"",F538/100,"") ->  | K538: =IF(OR(J538="Left Shoulder",J538="Right Shoulder"),(H538+I538)*100*(18/12),"") ->  | L538: =IF(K538<>"",(K538/9),"") -> 
M540: =IF(AND(OR(J540="Left Shoulder",J540="Right Shoulder"),I540<>""),L540*0.5*0.13,IF(J540<>"","0.0","")) -> 
F602: =IF(D602<>"",ABS(D602-E602),"") ->  | G602: =IF(F602<>"",F602/100,"") ->  | K602: =IF(OR(J602="Left Shoulder",J602="Right Shoulder"),(H602+I602)*100*(18/12),"") ->  | L602: =IF(K602<>"",(K602/9),"") -> 
M604: =IF(AND(OR(J604="Left Shoulder",J604="Right Shoulder"),I604<>""),L604*0.5*0.13,IF(J604<>"","0.0","")) -> 
F666: =IF(D666<>"",ABS(D666-E666),"") ->  | G666: =IF(F666<>"",F666/100,"") ->  | K666: =IF(OR(J666="Left Shoulder",J666="Right Shoulder"),(H666+I666)*100*(18/12),"") ->  | L666: =IF(K666<>"",(K666/9),"") -> 
M668: =IF(AND(OR(J668="Left Shoulder",J668="Right Shoulder"),I668<>""),L668*0.5*0.13,IF(J668<>"","0.0","")) -> 
F730: =IF(D730<>"",ABS(D730-E730),"") ->  | G730: =IF(F730<>"",F730/100,"") ->  | K730: =IF(OR(J730="Left Shoulder",J730="Right Shoulder"),(H730+I730)*100*(18/12),"") ->  | L730: =IF(K730<>"",(K730/9),"") -> 
M732: =IF(AND(OR(J732="Left Shoulder",J732="Right Shoulder"),I732<>""),L732*0.5*0.13,IF(J732<>"","0.0","")) -> 
F794: =IF(D794<>"",ABS(D794-E794),"") ->  | G794: =IF(F794<>"",F794/100,"") ->  | K794: =IF(OR(J794="Left Shoulder",J794="Right Shoulder"),(H794+I794)*100*(18/12),"") ->  | L794: =IF(K794<>"",(K794/9),"") -> 
M796: =IF(AND(OR(J796="Left Shoulder",J796="Right Shoulder"),I796<>""),L796*0.5*0.13,IF(J796<>"","0.0","")) -> 
F858: =IF(D858<>"",ABS(D858-E858),"") ->  | G858: =IF(F858<>"",F858/100,"") ->  | K858: =IF(OR(J858="Left Shoulder",J858="Right Shoulder"),(H858+I858)*100*(18/12),"") ->  | L858: =IF(K858<>"",(K858/9),"") -> 
M860: =IF(AND(OR(J860="Left Shoulder",J860="Right Shoulder"),I860<>""),L860*0.5*0.13,IF(J860<>"","0.0","")) -> 
F922: =IF(D922<>"",ABS(D922-E922),"") ->  | G922: =IF(F922<>"",F922/100,"") ->  | K922: =IF(OR(J922="Left Shoulder",J922="Right Shoulder"),(H922+I922)*100*(18/12),"") ->  | L922: =IF(K922<>"",(K922/9),"") -> 
M924: =IF(AND(OR(J924="Left Shoulder",J924="Right Shoulder"),I924<>""),L924*0.5*0.13,IF(J924<>"","0.0","")) -> 
F986: =IF(D986<>"",ABS(D986-E986),"") ->  | G986: =IF(F986<>"",F986/100,"") ->  | K986: =IF(OR(J986="Left Shoulder",J986="Right Shoulder"),(H986+I986)*100*(18/12),"") ->  | L986: =IF(K986<>"",(K986/9),"") -> 
M988: =IF(AND(OR(J988="Left Shoulder",J988="Right Shoulder"),I988<>""),L988*0.5*0.13,IF(J988<>"","0.0","")) -> 
F1050: =IF(D1050<>"",ABS(D1050-E1050),"") ->  | G1050: =IF(F1050<>"",F1050/100,"") ->  | K1050: =IF(OR(J1050="Left Shoulder",J1050="Right Shoulder"),(H1050+I1050)*100*(18/12),"") ->  | L1050: =IF(K1050<>"",(K1050/9),"") -> 
M1052: =IF(AND(OR(J1052="Left Shoulder",J1052="Right Shoulder"),I1052<>""),L1052*0.5*0.13,IF(J1052<>"","0.0","")) -> 
F1114: =IF(D1114<>"",ABS(D1114-E1114),"") ->  | G1114: =IF(F1114<>"",F1114/100,"") ->  | K1114: =IF(OR(J1114="Left Shoulder",J1114="Right Shoulder"),(H1114+I1114)*100*(18/12),"") ->  | L1114: =IF(K1114<>"",(K1114/9),"") -> 
M1116: =IF(AND(OR(J1116="Left Shoulder",J1116="Right Shoulder"),I1116<>""),L1116*0.5*0.13,IF(J1116<>"","0.0","")) -> 
F1178: =IF(D1178<>"",ABS(D1178-E1178),"") ->  | G1178: =IF(F1178<>"",F1178/100,"") ->  | K1178: =IF(OR(J1178="Left Shoulder",J1178="Right Shoulder"),(H1178+I1178)*100*(18/12),"") ->  | L1178: =IF(K1178<>"",(K1178/9),"") -> 
M1180: =IF(AND(OR(J1180="Left Shoulder",J1180="Right Shoulder"),I1180<>""),L1180*0.5*0.13,IF(J1180<>"","0.0","")) -> 
F1242: =IF(D1242<>"",ABS(D1242-E1242),"") ->  | G1242: =IF(F1242<>"",F1242/100,"") ->  | K1242: =IF(OR(J1242="Left Shoulder",J1242="Right Shoulder"),(H1242+I1242)*100*(18/12),"") ->  | L1242: =IF(K1242<>"",(K1242/9),"") -> 
M1244: =IF(AND(OR(J1244="Left Shoulder",J1244="Right Shoulder"),I1244<>""),L1244*0.5*0.13,IF(J1244<>"","0.0","")) -> 
F1306: =IF(D1306<>"",ABS(D1306-E1306),"") ->  | G1306: =IF(F1306<>"",F1306/100,"") ->  | K1306: =IF(OR(J1306="Left Shoulder",J1306="Right Shoulder"),(H1306+I1306)*100*(18/12),"") ->  | L1306: =IF(K1306<>"",(K1306/9),"") -> 
M1308: =IF(AND(OR(J1308="Left Shoulder",J1308="Right Shoulder"),I1308<>""),L1308*0.5*0.13,IF(J1308<>"","0.0","")) -> 
F1370: =IF(D1370<>"",ABS(D1370-E1370),"") ->  | G1370: =IF(F1370<>"",F1370/100,"") ->  | K1370: =IF(OR(J1370="Left Shoulder",J1370="Right Shoulder"),(H1370+I1370)*100*(18/12),"") ->  | L1370: =IF(K1370<>"",(K1370/9),"") -> 
M1372: =IF(AND(OR(J1372="Left Shoulder",J1372="Right Shoulder"),I1372<>""),L1372*0.5*0.13,IF(J1372<>"","0.0","")) -> 
F1434: =IF(D1434<>"",ABS(D1434-E1434),"") ->  | G1434: =IF(F1434<>"",F1434/100,"") ->  | K1434: =IF(OR(J1434="Left Shoulder",J1434="Right Shoulder"),(H1434+I1434)*100*(18/12),"") ->  | L1434: =IF(K1434<>"",(K1434/9),"") -> 
M1436: =IF(AND(OR(J1436="Left Shoulder",J1436="Right Shoulder"),I1436<>""),L1436*0.5*0.13,IF(J1436<>"","0.0","")) -> 
F1498: =IF(D1498<>"",ABS(D1498-E1498),"") ->  | G1498: =IF(F1498<>"",F1498/100,"") ->  | K1498: =IF(OR(J1498="Left Shoulder",J1498="Right Shoulder"),(H1498+I1498)*100*(18/12),"") ->  | L1498: =IF(K1498<>"",(K1498/9),"") -> 
M1500: =IF(AND(OR(J1500="Left Shoulder",J1500="Right Shoulder"),I1500<>""),L1500*0.5*0.13,IF(J1500<>"","0.0","")) -> 
F1562: =IF(D1562<>"",ABS(D1562-E1562),"") ->  | G1562: =IF(F1562<>"",F1562/100,"") ->  | K1562: =IF(OR(J1562="Left Shoulder",J1562="Right Shoulder"),(H1562+I1562)*100*(18/12),"") ->  | L1562: =IF(K1562<>"",(K1562/9),"") -> 
M1564: =IF(AND(OR(J1564="Left Shoulder",J1564="Right Shoulder"),I1564<>""),L1564*0.5*0.13,IF(J1564<>"","0.0","")) -> 
F1626: =IF(D1626<>"",ABS(D1626-E1626),"") ->  | G1626: =IF(F1626<>"",F1626/100,"") ->  | K1626: =IF(OR(J1626="Left Shoulder",J1626="Right Shoulder"),(H1626+I1626)*100*(18/12),"") ->  | L1626: =IF(K1626<>"",(K1626/9),"") -> 
M1628: =IF(AND(OR(J1628="Left Shoulder",J1628="Right Shoulder"),I1628<>""),L1628*0.5*0.13,IF(J1628<>"","0.0","")) -> 
F1690: =IF(D1690<>"",ABS(D1690-E1690),"") ->  | G1690: =IF(F1690<>"",F1690/100,"") ->  | K1690: =IF(OR(J1690="Left Shoulder",J1690="Right Shoulder"),(H1690+I1690)*100*(18/12),"") ->  | L1690: =IF(K1690<>"",(K1690/9),"") -> 
M1692: =IF(AND(OR(J1692="Left Shoulder",J1692="Right Shoulder"),I1692<>""),L1692*0.5*0.13,IF(J1692<>"","0.0","")) -> 
F1754: =IF(D1754<>"",ABS(D1754-E1754),"") ->  | G1754: =IF(F1754<>"",F1754/100,"") ->  | K1754: =IF(OR(J1754="Left Shoulder",J1754="Right Shoulder"),(H1754+I1754)*100*(18/12),"") ->  | L1754: =IF(K1754<>"",(K1754/9),"") -> 
M1756: =IF(AND(OR(J1756="Left Shoulder",J1756="Right Shoulder"),I1756<>""),L1756*0.5*0.13,IF(J1756<>"","0.0","")) -> 
F1818: =IF(D1818<>"",ABS(D1818-E1818),"") ->  | G1818: =IF(F1818<>"",F1818/100,"") ->  | K1818: =IF(OR(J1818="Left Shoulder",J1818="Right Shoulder"),(H1818+I1818)*100*(18/12),"") ->  | L1818: =IF(K1818<>"",(K1818/9),"") -> 
M1820: =IF(AND(OR(J1820="Left Shoulder",J1820="Right Shoulder"),I1820<>""),L1820*0.5*0.13,IF(J1820<>"","0.0","")) -> 
F1882: =IF(D1882<>"",ABS(D1882-E1882),"") ->  | G1882: =IF(F1882<>"",F1882/100,"") ->  | K1882: =IF(OR(J1882="Left Shoulder",J1882="Right Shoulder"),(H1882+I1882)*100*(18/12),"") ->  | L1882: =IF(K1882<>"",(K1882/9),"") -> 
M1884: =IF(AND(OR(J1884="Left Shoulder",J1884="Right Shoulder"),I1884<>""),L1884*0.5*0.13,IF(J1884<>"","0.0","")) -> 
F1946: =IF(D1946<>"",ABS(D1946-E1946),"") ->  | G1946: =IF(F1946<>"",F1946/100,"") ->  | K1946: =IF(OR(J1946="Left Shoulder",J1946="Right Shoulder"),(H1946+I1946)*100*(18/12),"") ->  | L1946: =IF(K1946<>"",(K1946/9),"") -> 
M1948: =IF(AND(OR(J1948="Left Shoulder",J1948="Right Shoulder"),I1948<>""),L1948*0.5*0.13,IF(J1948<>"","0.0","")) -> 
F2010: =IF(D2010<>"",ABS(D2010-E2010),"") ->  | G2010: =IF(F2010<>"",F2010/100,"") ->  | K2010: =IF(OR(J2010="Left Shoulder",J2010="Right Shoulder"),(H2010+I2010)*100*(18/12),"") ->  | L2010: =IF(K2010<>"",(K2010/9),"") -> 
M2012: =IF(AND(OR(J2012="Left Shoulder",J2012="Right Shoulder"),I2012<>""),L2012*0.5*0.13,IF(J2012<>"","0.0","")) -> 
F2074: =IF(D2074<>"",ABS(D2074-E2074),"") ->  | G2074: =IF(F2074<>"",F2074/100,"") ->  | K2074: =IF(OR(J2074="Left Shoulder",J2074="Right Shoulder"),(H2074+I2074)*100*(18/12),"") ->  | L2074: =IF(K2074<>"",(K2074/9),"") -> 
M2076: =IF(AND(OR(J2076="Left Shoulder",J2076="Right Shoulder"),I2076<>""),L2076*0.5*0.13,IF(J2076<>"","0.0","")) -> 
F2138: =IF(D2138<>"",ABS(D2138-E2138),"") ->  | G2138: =IF(F2138<>"",F2138/100,"") ->  | K2138: =IF(OR(J2138="Left Shoulder",J2138="Right Shoulder"),(H2138+I2138)*100*(18/12),"") ->  | L2138: =IF(K2138<>"",(K2138/9),"") -> 
M2140: =IF(AND(OR(J2140="Left Shoulder",J2140="Right Shoulder"),I2140<>""),L2140*0.5*0.13,IF(J2140<>"","0.0","")) -> 
F2202: =IF(D2202<>"",ABS(D2202-E2202),"") ->  | G2202: =IF(F2202<>"",F2202/100,"") ->  | K2202: =IF(OR(J2202="Left Shoulder",J2202="Right Shoulder"),(H2202+I2202)*100*(18/12),"") ->  | L2202: =IF(K2202<>"",(K2202/9),"") -> 
M2204: =IF(AND(OR(J2204="Left Shoulder",J2204="Right Shoulder"),I2204<>""),L2204*0.5*0.13,IF(J2204<>"","0.0","")) -> 
F2266: =IF(D2266<>"",ABS(D2266-E2266),"") ->  | G2266: =IF(F2266<>"",F2266/100,"") ->  | K2266: =IF(OR(J2266="Left Shoulder",J2266="Right Shoulder"),(H2266+I2266)*100*(18/12),"") ->  | L2266: =IF(K2266<>"",(K2266/9),"") -> 
M2268: =IF(AND(OR(J2268="Left Shoulder",J2268="Right Shoulder"),I2268<>""),L2268*0.5*0.13,IF(J2268<>"","0.0","")) -> 
F2330: =IF(D2330<>"",ABS(D2330-E2330),"") ->  | G2330: =IF(F2330<>"",F2330/100,"") ->  | K2330: =IF(OR(J2330="Left Shoulder",J2330="Right Shoulder"),(H2330+I2330)*100*(18/12),"") ->  | L2330: =IF(K2330<>"",(K2330/9),"") -> 
M2332: =IF(AND(OR(J2332="Left Shoulder",J2332="Right Shoulder"),I2332<>""),L2332*0.5*0.13,IF(J2332<>"","0.0","")) -> 
F2394: =IF(D2394<>"",ABS(D2394-E2394),"") ->  | G2394: =IF(F2394<>"",F2394/100,"") ->  | K2394: =IF(OR(J2394="Left Shoulder",J2394="Right Shoulder"),(H2394+I2394)*100*(18/12),"") ->  | L2394: =IF(K2394<>"",(K2394/9),"") -> 
M2396: =IF(AND(OR(J2396="Left Shoulder",J2396="Right Shoulder"),I2396<>""),L2396*0.5*0.13,IF(J2396<>"","0.0","")) -> 
F2458: =IF(D2458<>"",ABS(D2458-E2458),"") ->  | G2458: =IF(F2458<>"",F2458/100,"") ->  | K2458: =IF(OR(J2458="Left Shoulder",J2458="Right Shoulder"),(H2458+I2458)*100*(18/12),"") ->  | L2458: =IF(K2458<>"",(K2458/9),"") -> 
M2460: =IF(AND(OR(J2460="Left Shoulder",J2460="Right Shoulder"),I2460<>""),L2460*0.5*0.13,IF(J2460<>"","0.0","")) -> 
F2522: =IF(D2522<>"",ABS(D2522-E2522),"") ->  | G2522: =IF(F2522<>"",F2522/100,"") ->  | K2522: =IF(OR(J2522="Left Shoulder",J2522="Right Shoulder"),(H2522+I2522)*100*(18/12),"") ->  | L2522: =IF(K2522<>"",(K2522/9),"") -> 
M2524: =IF(AND(OR(J2524="Left Shoulder",J2524="Right Shoulder"),I2524<>""),L2524*0.5*0.13,IF(J2524<>"","0.0","")) -> 
F2586: =IF(D2586<>"",ABS(D2586-E2586),"") ->  | G2586: =IF(F2586<>"",F2586/100,"") ->  | K2586: =IF(OR(J2586="Left Shoulder",J2586="Right Shoulder"),(H2586+I2586)*100*(18/12),"") ->  | L2586: =IF(K2586<>"",(K2586/9),"") -> 
M2588: =IF(AND(OR(J2588="Left Shoulder",J2588="Right Shoulder"),I2588<>""),L2588*0.5*0.13,IF(J2588<>"","0.0","")) -> 
F2650: =IF(D2650<>"",ABS(D2650-E2650),"") ->  | G2650: =IF(F2650<>"",F2650/100,"") ->  | K2650: =IF(OR(J2650="Left Shoulder",J2650="Right Shoulder"),(H2650+I2650)*100*(18/12),"") ->  | L2650: =IF(K2650<>"",(K2650/9),"") -> 
M2652: =IF(AND(OR(J2652="Left Shoulder",J2652="Right Shoulder"),I2652<>""),L2652*0.5*0.13,IF(J2652<>"","0.0","")) -> 
F2714: =IF(D2714<>"",ABS(D2714-E2714),"") ->  | G2714: =IF(F2714<>"",F2714/100,"") ->  | K2714: =IF(OR(J2714="Left Shoulder",J2714="Right Shoulder"),(H2714+I2714)*100*(18/12),"") ->  | L2714: =IF(K2714<>"",(K2714/9),"") -> 
M2716: =IF(AND(OR(J2716="Left Shoulder",J2716="Right Shoulder"),I2716<>""),L2716*0.5*0.13,IF(J2716<>"","0.0","")) -> 
F2778: =IF(D2778<>"",ABS(D2778-E2778),"") ->  | G2778: =IF(F2778<>"",F2778/100,"") ->  | K2778: =IF(OR(J2778="Left Shoulder",J2778="Right Shoulder"),(H2778+I2778)*100*(18/12),"") ->  | L2778: =IF(K2778<>"",(K2778/9),"") -> 
M2780: =IF(AND(OR(J2780="Left Shoulder",J2780="Right Shoulder"),I2780<>""),L2780*0.5*0.13,IF(J2780<>"","0.0","")) -> 
F2842: =IF(D2842<>"",ABS(D2842-E2842),"") ->  | G2842: =IF(F2842<>"",F2842/100,"") ->  | K2842: =IF(OR(J2842="Left Shoulder",J2842="Right Shoulder"),(H2842+I2842)*100*(18/12),"") ->  | L2842: =IF(K2842<>"",(K2842/9),"") -> 
M2844: =IF(AND(OR(J2844="Left Shoulder",J2844="Right Shoulder"),I2844<>""),L2844*0.5*0.13,IF(J2844<>"","0.0","")) -> 
F2906: =IF(D2906<>"",ABS(D2906-E2906),"") ->  | G2906: =IF(F2906<>"",F2906/100,"") ->  | K2906: =IF(OR(J2906="Left Shoulder",J2906="Right Shoulder"),(H2906+I2906)*100*(18/12),"") ->  | L2906: =IF(K2906<>"",(K2906/9),"") -> 
M2908: =IF(AND(OR(J2908="Left Shoulder",J2908="Right Shoulder"),I2908<>""),L2908*0.5*0.13,IF(J2908<>"","0.0","")) -> 
F2970: =IF(D2970<>"",ABS(D2970-E2970),"") ->  | G2970: =IF(F2970<>"",F2970/100,"") ->  | K2970: =IF(OR(J2970="Left Shoulder",J2970="Right Shoulder"),(H2970+I2970)*100*(18/12),"") ->  | L2970: =IF(K2970<>"",(K2970/9),"") -> 
M2972: =IF(AND(OR(J2972="Left Shoulder",J2972="Right Shoulder"),I2972<>""),L2972*0.5*0.13,IF(J2972<>"","0.0","")) -> 
F3034: =IF(D3034<>"",ABS(D3034-E3034),"") ->  | G3034: =IF(F3034<>"",F3034/100,"") ->  | K3034: =IF(OR(J3034="Left Shoulder",J3034="Right Shoulder"),(H3034+I3034)*100*(18/12),"") ->  | L3034: =IF(K3034<>"",(K3034/9),"") -> 
M3036: =IF(AND(OR(J3036="Left Shoulder",J3036="Right Shoulder"),I3036<>""),L3036*0.5*0.13,IF(J3036<>"","0.0","")) -> 
F3098: =IF(D3098<>"",ABS(D3098-E3098),"") ->  | G3098: =IF(F3098<>"",F3098/100,"") ->  | K3098: =IF(OR(J3098="Left Shoulder",J3098="Right Shoulder"),(H3098+I3098)*100*(18/12),"") ->  | L3098: =IF(K3098<>"",(K3098/9),"") -> 
M3100: =IF(AND(OR(J3100="Left Shoulder",J3100="Right Shoulder"),I3100<>""),L3100*0.5*0.13,IF(J3100<>"","0.0","")) -> 
F3162: =IF(D3162<>"",ABS(D3162-E3162),"") ->  | G3162: =IF(F3162<>"",F3162/100,"") ->  | K3162: =IF(OR(J3162="Left Shoulder",J3162="Right Shoulder"),(H3162+I3162)*100*(18/12),"") ->  | L3162: =IF(K3162<>"",(K3162/9),"") -> 
M3164: =IF(AND(OR(J3164="Left Shoulder",J3164="Right Shoulder"),I3164<>""),L3164*0.5*0.13,IF(J3164<>"","0.0","")) -> 
F3226: =IF(D3226<>"",ABS(D3226-E3226),"") ->  | G3226: =IF(F3226<>"",F3226/100,"") ->  | K3226: =IF(OR(J3226="Left Shoulder",J3226="Right Shoulder"),(H3226+I3226)*100*(18/12),"") ->  | L3226: =IF(K3226<>"",(K3226/9),"") -> 
M3228: =IF(AND(OR(J3228="Left Shoulder",J3228="Right Shoulder"),I3228<>""),L3228*0.5*0.13,IF(J3228<>"","0.0","")) -> 
F3290: =IF(D3290<>"",ABS(D3290-E3290),"") ->  | G3290: =IF(F3290<>"",F3290/100,"") ->  | K3290: =IF(OR(J3290="Left Shoulder",J3290="Right Shoulder"),(H3290+I3290)*100*(18/12),"") ->  | L3290: =IF(K3290<>"",(K3290/9),"") -> 
M3292: =IF(AND(OR(J3292="Left Shoulder",J3292="Right Shoulder"),I3292<>""),L3292*0.5*0.13,IF(J3292<>"","0.0","")) -> 
F3354: =IF(D3354<>"",ABS(D3354-E3354),"") ->  | G3354: =IF(F3354<>"",F3354/100,"") ->  | K3354: =IF(OR(J3354="Left Shoulder",J3354="Right Shoulder"),(H3354+I3354)*100*(18/12),"") ->  | L3354: =IF(K3354<>"",(K3354/9),"") -> 
M3356: =IF(AND(OR(J3356="Left Shoulder",J3356="Right Shoulder"),I3356<>""),L3356*0.5*0.13,IF(J3356<>"","0.0","")) -> 
F3418: =IF(D3418<>"",ABS(D3418-E3418),"") ->  | G3418: =IF(F3418<>"",F3418/100,"") ->  | K3418: =IF(OR(J3418="Left Shoulder",J3418="Right Shoulder"),(H3418+I3418)*100*(18/12),"") ->  | L3418: =IF(K3418<>"",(K3418/9),"") -> 
M3420: =IF(AND(OR(J3420="Left Shoulder",J3420="Right Shoulder"),I3420<>""),L3420*0.5*0.13,IF(J3420<>"","0.0","")) -> 
F3482: =IF(D3482<>"",ABS(D3482-E3482),"") ->  | G3482: =IF(F3482<>"",F3482/100,"") ->  | K3482: =IF(OR(J3482="Left Shoulder",J3482="Right Shoulder"),(H3482+I3482)*100*(18/12),"") ->  | L3482: =IF(K3482<>"",(K3482/9),"") -> 
M3484: =IF(AND(OR(J3484="Left Shoulder",J3484="Right Shoulder"),I3484<>""),L3484*0.5*0.13,IF(J3484<>"","0.0","")) -> 
F3546: =IF(D3546<>"",ABS(D3546-E3546),"") ->  | G3546: =IF(F3546<>"",F3546/100,"") ->  | K3546: =IF(OR(J3546="Left Shoulder",J3546="Right Shoulder"),(H3546+I3546)*100*(18/12),"") ->  | L3546: =IF(K3546<>"",(K3546/9),"") -> 
M3548: =IF(AND(OR(J3548="Left Shoulder",J3548="Right Shoulder"),I3548<>""),L3548*0.5*0.13,IF(J3548<>"","0.0","")) -> 
F3610: =IF(D3610<>"",ABS(D3610-E3610),"") ->  | G3610: =IF(F3610<>"",F3610/100,"") ->  | K3610: =IF(OR(J3610="Left Shoulder",J3610="Right Shoulder"),(H3610+I3610)*100*(18/12),"") ->  | L3610: =IF(K3610<>"",(K3610/9),"") -> 
M3612: =IF(AND(OR(J3612="Left Shoulder",J3612="Right Shoulder"),I3612<>""),L3612*0.5*0.13,IF(J3612<>"","0.0","")) -> 
F3674: =IF(D3674<>"",ABS(D3674-E3674),"") ->  | G3674: =IF(F3674<>"",F3674/100,"") ->  | K3674: =IF(OR(J3674="Left Shoulder",J3674="Right Shoulder"),(H3674+I3674)*100*(18/12),"") ->  | L3674: =IF(K3674<>"",(K3674/9),"") -> 
M3676: =IF(AND(OR(J3676="Left Shoulder",J3676="Right Shoulder"),I3676<>""),L3676*0.5*0.13,IF(J3676<>"","0.0","")) -> 
F3738: =IF(D3738<>"",ABS(D3738-E3738),"") ->  | G3738: =IF(F3738<>"",F3738/100,"") ->  | K3738: =IF(OR(J3738="Left Shoulder",J3738="Right Shoulder"),(H3738+I3738)*100*(18/12),"") ->  | L3738: =IF(K3738<>"",(K3738/9),"") -> 
M3740: =IF(AND(OR(J3740="Left Shoulder",J3740="Right Shoulder"),I3740<>""),L3740*0.5*0.13,IF(J3740<>"","0.0","")) -> 
F3802: =IF(D3802<>"",ABS(D3802-E3802),"") ->  | G3802: =IF(F3802<>"",F3802/100,"") ->  | K3802: =IF(OR(J3802="Left Shoulder",J3802="Right Shoulder"),(H3802+I3802)*100*(18/12),"") ->  | L3802: =IF(K3802<>"",(K3802/9),"") -> 
M3804: =IF(AND(OR(J3804="Left Shoulder",J3804="Right Shoulder"),I3804<>""),L3804*0.5*0.13,IF(J3804<>"","0.0","")) -> 
F3866: =IF(D3866<>"",ABS(D3866-E3866),"") ->  | G3866: =IF(F3866<>"",F3866/100,"") ->  | K3866: =IF(OR(J3866="Left Shoulder",J3866="Right Shoulder"),(H3866+I3866)*100*(18/12),"") ->  | L3866: =IF(K3866<>"",(K3866/9),"") -> 
M3868: =IF(AND(OR(J3868="Left Shoulder",J3868="Right Shoulder"),I3868<>""),L3868*0.5*0.13,IF(J3868<>"","0.0","")) -> 
F3930: =IF(D3930<>"",ABS(D3930-E3930),"") ->  | G3930: =IF(F3930<>"",F3930/100,"") ->  | K3930: =IF(OR(J3930="Left Shoulder",J3930="Right Shoulder"),(H3930+I3930)*100*(18/12),"") ->  | L3930: =IF(K3930<>"",(K3930/9),"") -> 
M3932: =IF(AND(OR(J3932="Left Shoulder",J3932="Right Shoulder"),I3932<>""),L3932*0.5*0.13,IF(J3932<>"","0.0","")) -> 
F3994: =IF(D3994<>"",ABS(D3994-E3994),"") ->  | G3994: =IF(F3994<>"",F3994/100,"") ->  | K3994: =IF(OR(J3994="Left Shoulder",J3994="Right Shoulder"),(H3994+I3994)*100*(18/12),"") ->  | L3994: =IF(K3994<>"",(K3994/9),"") -> 
M3996: =IF(AND(OR(J3996="Left Shoulder",J3996="Right Shoulder"),I3996<>""),L3996*0.5*0.13,IF(J3996<>"","0.0","")) -> 
F4058: =IF(D4058<>"",ABS(D4058-E4058),"") ->  | G4058: =IF(F4058<>"",F4058/100,"") ->  | K4058: =IF(OR(J4058="Left Shoulder",J4058="Right Shoulder"),(H4058+I4058)*100*(18/12),"") ->  | L4058: =IF(K4058<>"",(K4058/9),"") -> 
M4060: =IF(AND(OR(J4060="Left Shoulder",J4060="Right Shoulder"),I4060<>""),L4060*0.5*0.13,IF(J4060<>"","0.0","")) -> 
F4122: =IF(D4122<>"",ABS(D4122-E4122),"") ->  | G4122: =IF(F4122<>"",F4122/100,"") ->  | K4122: =IF(OR(J4122="Left Shoulder",J4122="Right Shoulder"),(H4122+I4122)*100*(18/12),"") ->  | L4122: =IF(K4122<>"",(K4122/9),"") -> 
M4124: =IF(AND(OR(J4124="Left Shoulder",J4124="Right Shoulder"),I4124<>""),L4124*0.5*0.13,IF(J4124<>"","0.0","")) -> 
F4186: =IF(D4186<>"",ABS(D4186-E4186),"") ->  | G4186: =IF(F4186<>"",F4186/100,"") ->  | K4186: =IF(OR(J4186="Left Shoulder",J4186="Right Shoulder"),(H4186+I4186)*100*(18/12),"") ->  | L4186: =IF(K4186<>"",(K4186/9),"") -> 
M4188: =IF(AND(OR(J4188="Left Shoulder",J4188="Right Shoulder"),I4188<>""),L4188*0.5*0.13,IF(J4188<>"","0.0","")) -> 
F4250: =IF(D4250<>"",ABS(D4250-E4250),"") ->  | G4250: =IF(F4250<>"",F4250/100,"") ->  | K4250: =IF(OR(J4250="Left Shoulder",J4250="Right Shoulder"),(H4250+I4250)*100*(18/12),"") ->  | L4250: =IF(K4250<>"",(K4250/9),"") -> 
M4252: =IF(AND(OR(J4252="Left Shoulder",J4252="Right Shoulder"),I4252<>""),L4252*0.5*0.13,IF(J4252<>"","0.0","")) -> 
F4314: =IF(D4314<>"",ABS(D4314-E4314),"") ->  | G4314: =IF(F4314<>"",F4314/100,"") ->  | K4314: =IF(OR(J4314="Left Shoulder",J4314="Right Shoulder"),(H4314+I4314)*100*(18/12),"") ->  | L4314: =IF(K4314<>"",(K4314/9),"") -> 
M4316: =IF(AND(OR(J4316="Left Shoulder",J4316="Right Shoulder"),I4316<>""),L4316*0.5*0.13,IF(J4316<>"","0.0","")) -> 
F4378: =IF(D4378<>"",ABS(D4378-E4378),"") ->  | G4378: =IF(F4378<>"",F4378/100,"") ->  | K4378: =IF(OR(J4378="Left Shoulder",J4378="Right Shoulder"),(H4378+I4378)*100*(18/12),"") ->  | L4378: =IF(K4378<>"",(K4378/9),"") -> 
M4380: =IF(AND(OR(J4380="Left Shoulder",J4380="Right Shoulder"),I4380<>""),L4380*0.5*0.13,IF(J4380<>"","0.0","")) -> 
F4442: =IF(D4442<>"",ABS(D4442-E4442),"") ->  | G4442: =IF(F4442<>"",F4442/100,"") ->  | K4442: =IF(OR(J4442="Left Shoulder",J4442="Right Shoulder"),(H4442+I4442)*100*(18/12),"") ->  | L4442: =IF(K4442<>"",(K4442/9),"") -> 
M4444: =IF(AND(OR(J4444="Left Shoulder",J4444="Right Shoulder"),I4444<>""),L4444*0.5*0.13,IF(J4444<>"","0.0","")) -> 
F4506: =IF(D4506<>"",ABS(D4506-E4506),"") ->  | G4506: =IF(F4506<>"",F4506/100,"") ->  | K4506: =IF(OR(J4506="Left Shoulder",J4506="Right Shoulder"),(H4506+I4506)*100*(18/12),"") ->  | L4506: =IF(K4506<>"",(K4506/9),"") -> 
M4508: =IF(AND(OR(J4508="Left Shoulder",J4508="Right Shoulder"),I4508<>""),L4508*0.5*0.13,IF(J4508<>"","0.0","")) -> 
F4570: =IF(D4570<>"",ABS(D4570-E4570),"") ->  | G4570: =IF(F4570<>"",F4570/100,"") ->  | K4570: =IF(OR(J4570="Left Shoulder",J4570="Right Shoulder"),(H4570+I4570)*100*(18/12),"") ->  | L4570: =IF(K4570<>"",(K4570/9),"") -> 
M4572: =IF(AND(OR(J4572="Left Shoulder",J4572="Right Shoulder"),I4572<>""),L4572*0.5*0.13,IF(J4572<>"","0.0","")) -> 
F4634: =IF(D4634<>"",ABS(D4634-E4634),"") ->  | G4634: =IF(F4634<>"",F4634/100,"") ->  | K4634: =IF(OR(J4634="Left Shoulder",J4634="Right Shoulder"),(H4634+I4634)*100*(18/12),"") ->  | L4634: =IF(K4634<>"",(K4634/9),"") -> 
M4636: =IF(AND(OR(J4636="Left Shoulder",J4636="Right Shoulder"),I4636<>""),L4636*0.5*0.13,IF(J4636<>"","0.0","")) -> 
F4698: =IF(D4698<>"",ABS(D4698-E4698),"") ->  | G4698: =IF(F4698<>"",F4698/100,"") ->  | K4698: =IF(OR(J4698="Left Shoulder",J4698="Right Shoulder"),(H4698+I4698)*100*(18/12),"") ->  | L4698: =IF(K4698<>"",(K4698/9),"") -> 
M4700: =IF(AND(OR(J4700="Left Shoulder",J4700="Right Shoulder"),I4700<>""),L4700*0.5*0.13,IF(J4700<>"","0.0","")) -> 
F4762: =IF(D4762<>"",ABS(D4762-E4762),"") ->  | G4762: =IF(F4762<>"",F4762/100,"") ->  | K4762: =IF(OR(J4762="Left Shoulder",J4762="Right Shoulder"),(H4762+I4762)*100*(18/12),"") ->  | L4762: =IF(K4762<>"",(K4762/9),"") -> 
M4764: =IF(AND(OR(J4764="Left Shoulder",J4764="Right Shoulder"),I4764<>""),L4764*0.5*0.13,IF(J4764<>"","0.0","")) -> 
F4826: =IF(D4826<>"",ABS(D4826-E4826),"") ->  | G4826: =IF(F4826<>"",F4826/100,"") ->  | K4826: =IF(OR(J4826="Left Shoulder",J4826="Right Shoulder"),(H4826+I4826)*100*(18/12),"") ->  | L4826: =IF(K4826<>"",(K4826/9),"") -> 
M4828: =IF(AND(OR(J4828="Left Shoulder",J4828="Right Shoulder"),I4828<>""),L4828*0.5*0.13,IF(J4828<>"","0.0","")) -> 
F4890: =IF(D4890<>"",ABS(D4890-E4890),"") ->  | G4890: =IF(F4890<>"",F4890/100,"") ->  | K4890: =IF(OR(J4890="Left Shoulder",J4890="Right Shoulder"),(H4890+I4890)*100*(18/12),"") ->  | L4890: =IF(K4890<>"",(K4890/9),"") -> 
M4892: =IF(AND(OR(J4892="Left Shoulder",J4892="Right Shoulder"),I4892<>""),L4892*0.5*0.13,IF(J4892<>"","0.0","")) -> 
F4954: =IF(D4954<>"",ABS(D4954-E4954),"") ->  | G4954: =IF(F4954<>"",F4954/100,"") ->  | K4954: =IF(OR(J4954="Left Shoulder",J4954="Right Shoulder"),(H4954+I4954)*100*(18/12),"") ->  | L4954: =IF(K4954<>"",(K4954/9),"") -> 
M4956: =IF(AND(OR(J4956="Left Shoulder",J4956="Right Shoulder"),I4956<>""),L4956*0.5*0.13,IF(J4956<>"","0.0","")) -> 
F5018: =IF(D5018<>"",ABS(D5018-E5018),"") ->  | G5018: =IF(F5018<>"",F5018/100,"") ->  | K5018: =IF(OR(J5018="Left Shoulder",J5018="Right Shoulder"),(H5018+I5018)*100*(18/12),"") ->  | L5018: =IF(K5018<>"",(K5018/9),"") -> 
M5020: =IF(AND(OR(J5020="Left Shoulder",J5020="Right Shoulder"),I5020<>""),L5020*0.5*0.13,IF(J5020<>"","0.0","")) -> 
F5082: =IF(D5082<>"",ABS(D5082-E5082),"") ->  | G5082: =IF(F5082<>"",F5082/100,"") ->  | K5082: =IF(OR(J5082="Left Shoulder",J5082="Right Shoulder"),(H5082+I5082)*100*(18/12),"") ->  | L5082: =IF(K5082<>"",(K5082/9),"") -> 
M5084: =IF(AND(OR(J5084="Left Shoulder",J5084="Right Shoulder"),I5084<>""),L5084*0.5*0.13,IF(J5084<>"","0.0","")) -> 
F5146: =IF(D5146<>"",ABS(D5146-E5146),"") ->  | G5146: =IF(F5146<>"",F5146/100,"") ->  | K5146: =IF(OR(J5146="Left Shoulder",J5146="Right Shoulder"),(H5146+I5146)*100*(18/12),"") ->  | L5146: =IF(K5146<>"",(K5146/9),"") -> 
M5148: =IF(AND(OR(J5148="Left Shoulder",J5148="Right Shoulder"),I5148<>""),L5148*0.5*0.13,IF(J5148<>"","0.0","")) -> 
F5210: =IF(D5210<>"",ABS(D5210-E5210),"") ->  | G5210: =IF(F5210<>"",F5210/100,"") ->  | K5210: =IF(OR(J5210="Left Shoulder",J5210="Right Shoulder"),(H5210+I5210)*100*(18/12),"") ->  | L5210: =IF(K5210<>"",(K5210/9),"") -> 
M5212: =IF(AND(OR(J5212="Left Shoulder",J5212="Right Shoulder"),I5212<>""),L5212*0.5*0.13,IF(J5212<>"","0.0","")) -> 
F5274: =IF(D5274<>"",ABS(D5274-E5274),"") ->  | G5274: =IF(F5274<>"",F5274/100,"") ->  | K5274: =IF(OR(J5274="Left Shoulder",J5274="Right Shoulder"),(H5274+I5274)*100*(18/12),"") ->  | L5274: =IF(K5274<>"",(K5274/9),"") -> 
M5276: =IF(AND(OR(J5276="Left Shoulder",J5276="Right Shoulder"),I5276<>""),L5276*0.5*0.13,IF(J5276<>"","0.0","")) -> 
F5338: =IF(D5338<>"",ABS(D5338-E5338),"") ->  | G5338: =IF(F5338<>"",F5338/100,"") ->  | K5338: =IF(OR(J5338="Left Shoulder",J5338="Right Shoulder"),(H5338+I5338)*100*(18/12),"") ->  | L5338: =IF(K5338<>"",(K5338/9),"") -> 
M5340: =IF(AND(OR(J5340="Left Shoulder",J5340="Right Shoulder"),I5340<>""),L5340*0.5*0.13,IF(J5340<>"","0.0","")) -> 
F5402: =IF(D5402<>"",ABS(D5402-E5402),"") ->  | G5402: =IF(F5402<>"",F5402/100,"") ->  | K5402: =IF(OR(J5402="Left Shoulder",J5402="Right Shoulder"),(H5402+I5402)*100*(18/12),"") ->  | L5402: =IF(K5402<>"",(K5402/9),"") -> 
... 19 more rows

Sheet DE232_3A
A1: TabTitle | B1: =C15 -> EROSION CONTROL (RURAL SEEDING)
A2: Number of Tab Columns | B2: 1
A3: DE Starter Row Number | B3: 20
A4: TabSheet Starter Row Number | B4: 7
A5: TabSheet Header Row Count | B5: 6
A6: Top Header Cell | B6: E15
A7: Bottom Header Cell | B7: E20
A8: DESheet Row Count | B8: 13
A9: Fixed Empty Rows | B9: 0
A10: Usable Empty Rows | B10: 0
A11: Total Rows Placed | B11: 13 | C11: xlLeft | E11: =C11 -> xlLeft
A12: Total Rows Needed | B12: =SUM(B8:B10) -> 13 | C12: General | E12: =C12 -> General
A13: Last Tab DE Starter Row | B13: 20 | C13: =CELL("width",C13) -> 78 | E13: =CELL("width",E13) -> 0
A14: Last Tab Tabsheet Starter Row | B14: 7 | C14: A | E14: a
A15: Last Copy Starter Row | B15: 1 | C15: EROSION CONTROL (RURAL SEEDING) | E15: 232-3A
A16: Tab Loop Number | B16: 2 | E16: =B17 -> 2015-10-20
A17: Revision Date | B17: 2015-10-20 | E17: =C15 -> EROSION CONTROL (RURAL SEEDING)
A18: Tabulation Width | B18: 1
A19: Horizontal Grid Lines | B19: No | C19: ="This Data Entry Sheet fills Tab "&E15&" effective "&TEXT(B17,"mm-dd-yy") -> This Data Entry Sheet fills Tab 232-3A effective 10-20-15
C20: Following the completion of work in a disturbed area, place seed,
C21: fertilizer, and mulch on the disturbed area lying 8 feet adjacent
C22: to shoulder and median as follows:
C24: Use seed mix and fertilizer meeting the requirements of Article
C25: 2601.03,C,3 and Section 4169 of the Standard Specifications.
C27: Use mulch meeting the requirements of Articles 2601.03,E,2,a and
C28: 4169.07,A of the Standard Specifications.
C30: Preparing the seedbed and furnishing and applying seed,
C31: fertilizer, and mulch is incidental to mobilization and will not
C32: be paid for separately.

Sheet DE232_11
A1: TabTitle | B1: =C15 -> *****FOR ADDITIONAL QUANTITIES, SEE M SHEETS*****
A2: Number of Tab Columns | B2: 1
A3: DE Starter Row Number | B3: 20
A4: TabSheet Starter Row Number | B4: 7
A5: TabSheet Header Row Count | B5: 6
A6: Top Header Cell | B6: E15
A7: Bottom Header Cell | B7: E20
A8: DESheet Row Count | B8: 0
A9: Fixed Empty Rows | B9: 0
A10: Usable Empty Rows | B10: 0
A11: Total Rows Placed | B11: 0 | C11: xlLeft | E11: =C11 -> xlLeft
A12: Total Rows Needed | B12: =SUM(B8:B10) -> 0 | C12: General | E12: =C12 -> General
A13: Last Tab DE Starter Row | B13: 20 | C13: =CELL("width",C13) -> 144 | E13: 144
A14: Last Tab Tabsheet Starter Row | B14: 7 | C14: A | E14: a
A15: Last Copy Starter Row | B15: 1 | C15: *****FOR ADDITIONAL QUANTITIES, SEE M SHEETS*****
A16: Tab Loop Number | B16: 2
A17: Revision Date | B17: 2015-10-20 | E17: =C15 -> *****FOR ADDITIONAL QUANTITIES, SEE M SHEETS*****
A18: Tabulation Width | B18: 1

Sheet 100_1C
A1: 100-1C
A2: 2012-04-17
A3: ESTIMATED PROJECT QUANTITIES (UP TO A 5 DIVISION PROJECT) | H3: Division 1: | I3: DOT Funded
H4: Division 2: | I4: Marshall County Funded
A8: Item No. | B8: Item Code | C8: Item | D8: Unit | E8: Quantities
E9: Estimated | K9: As Built
A11: =IF(OFFSET(DE100_1C!$C$24,ROWS($C$24:C24)-1,COLUMNS($C$24:C24)-1)<>"",OFFSET(DE100_1C!$C$24,ROWS($C$24:C24)-1,COLUMNS($C$24:C24)-1),"") -> 1 | B11: =IF(OFFSET(DE100_1C!$D$24,ROWS($D$24:D24)-1,COLUMNS($D$24:D24)-1)<>"",OFFSET(DE100_1C!$D$24,ROWS($D$24:D24)-1,COLUMNS($D$24:D24)-1),"") -> 2102-2625001 | C11: =IF(OFFSET(DE100_1C!$E$24,ROWS($E$24:E24)-1,COLUMNS($E$24:E24)-1)<>"",OFFSET(DE100_1C!$E$24,ROWS($E$24:E24)-1,COLUMNS($E$24:E24)-1),"") -> EMBANKMENT-IN-PLACE, CONTRACTOR FURNISHED | D11: =IF(OFFSET(DE100_1C!$F$24,ROWS($F$24:F24)-1,COLUMNS($F$24:F24)-1)<>"",OFFSET(DE100_1C!$F$24,ROWS($F$24:F24)-1,COLUMNS($F$24:F24)-1),"") -> CY | E11: =IF(OFFSET(DE100_1C!$G$24,ROWS($G$24:G24)-1,COLUMNS($G$24:G24)-1)<>"",OFFSET(DE100_1C!$G$24,ROWS($G$24:G24)-1,COLUMNS($G$24:G24)-1),"") -> 185,867.0 | F11: =IF(OFFSET(DE100_1C!$H$24,ROWS($H$24:H24)-1,COLUMNS($H$24:H24)-1)<>"",OFFSET(DE100_1C!$H$24,ROWS($H$24:H24)-1,COLUMNS($H$24:H24)-1),"") ->  | G11: =IF(OFFSET(DE100_1C!$I$24,ROWS($I$24:I24)-1,COLUMNS($I$24:I24)-1)<>"",OFFSET(DE100_1C!$I$24,ROWS($I$24:I24)-1,COLUMNS($I$24:I24)-1),"") ->  | H11: =IF(OFFSET(DE100_1C!$J$24,ROWS($J$24:J24)-1,COLUMNS($J$24:J24)-1)<>"",OFFSET(DE100_1C!$J$24,ROWS($J$24:J24)-1,COLUMNS($J$24:J24)-1),"") ->  | I11: =IF(OFFSET(DE100_1C!$K$24,ROWS($K$24:K24)-1,COLUMNS($K$24:K24)-1)<>"",OFFSET(DE100_1C!$K$24,ROWS($K$24:K24)-1,COLUMNS($K$24:K24)-1),"") ->  | J11: =IF(OFFSET(DE100_1C!$L$24,ROWS($L$24:L24)-1,COLUMNS($L$24:L24)-1)<>"",OFFSET(DE100_1C!$L$24,ROWS($L$24:L24)-1,COLUMNS($L$24:L24)-1),"") -> 185,867.0 | K11: =IF(OFFSET(DE100_1C!$M$24,ROWS($M$24:M24)-1,COLUMNS($M$24:M24)-1)<>"",OFFSET(DE100_1C!$M$24,ROWS($M$24:M24)-1,COLUMNS($M$24:M24)-1),"") ->  | L11: =IF(OFFSET(DE100_1C!$N$24,ROWS($N$24:N24)-1,COLUMNS($N$24:N24)-1)<>"",OFFSET(DE100_1C!$N$24,ROWS($N$24:N24)-1,COLUMNS($N$24:N24)-1),"") ->  | M11: =IF(OFFSET(DE100_1C!$O$24,ROWS($O$24:O24)-1,COLUMNS($O$24:O24)-1)<>"",OFFSET(DE100_1C!$O$24,ROWS($O$24:O24)-1,COLUMNS($O$24:O24)-1),"") ->  | N11: =IF(OFFSET(DE100_1C!$P$24,ROWS($P$24:P24)-1,COLUMNS($P$24:P24)-1)<>"",OFFSET(DE100_1C!$P$24,ROWS($P$24:P24)-1,COLUMNS($P$24:P24)-1),"") ->  | O11: =IF(OFFSET(DE100_1C!$Q$24,ROWS($Q$24:Q24)-1,COLUMNS($Q$24:Q24)-1)<>"",OFFSET(DE100_1C!$Q$24,ROWS($Q$24:Q24)-1,COLUMNS($Q$24:Q24)-1),"") -> 
A12: =IF(OFFSET(DE100_1C!$C$24,ROWS($C$24:C25)-1,COLUMNS($C$24:C25)-1)<>"",OFFSET(DE100_1C!$C$24,ROWS($C$24:C25)-1,COLUMNS($C$24:C25)-1),"") -> 2 | B12: =IF(OFFSET(DE100_1C!$D$24,ROWS($D$24:D25)-1,COLUMNS($D$24:D25)-1)<>"",OFFSET(DE100_1C!$D$24,ROWS($D$24:D25)-1,COLUMNS($D$24:D25)-1),"") -> 2102-2710070 | C12: =IF(OFFSET(DE100_1C!$E$24,ROWS($E$24:E25)-1,COLUMNS($E$24:E25)-1)<>"",OFFSET(DE100_1C!$E$24,ROWS($E$24:E25)-1,COLUMNS($E$24:E25)-1),"") -> EXCAVATION, CLASS 10, ROADWAY AND BORROW | D12: =IF(OFFSET(DE100_1C!$F$24,ROWS($F$24:F25)-1,COLUMNS($F$24:F25)-1)<>"",OFFSET(DE100_1C!$F$24,ROWS($F$24:F25)-1,COLUMNS($F$24:F25)-1),"") -> CY | E12: =IF(OFFSET(DE100_1C!$G$24,ROWS($G$24:G25)-1,COLUMNS($G$24:G25)-1)<>"",OFFSET(DE100_1C!$G$24,ROWS($G$24:G25)-1,COLUMNS($G$24:G25)-1),"") -> 54,995.0 | F12: =IF(OFFSET(DE100_1C!$H$24,ROWS($H$24:H25)-1,COLUMNS($H$24:H25)-1)<>"",OFFSET(DE100_1C!$H$24,ROWS($H$24:H25)-1,COLUMNS($H$24:H25)-1),"") ->  | G12: =IF(OFFSET(DE100_1C!$I$24,ROWS($I$24:I25)-1,COLUMNS($I$24:I25)-1)<>"",OFFSET(DE100_1C!$I$24,ROWS($I$24:I25)-1,COLUMNS($I$24:I25)-1),"") ->  | H12: =IF(OFFSET(DE100_1C!$J$24,ROWS($J$24:J25)-1,COLUMNS($J$24:J25)-1)<>"",OFFSET(DE100_1C!$J$24,ROWS($J$24:J25)-1,COLUMNS($J$24:J25)-1),"") ->  | I12: =IF(OFFSET(DE100_1C!$K$24,ROWS($K$24:K25)-1,COLUMNS($K$24:K25)-1)<>"",OFFSET(DE100_1C!$K$24,ROWS($K$24:K25)-1,COLUMNS($K$24:K25)-1),"") ->  | J12: =IF(OFFSET(DE100_1C!$L$24,ROWS($L$24:L25)-1,COLUMNS($L$24:L25)-1)<>"",OFFSET(DE100_1C!$L$24,ROWS($L$24:L25)-1,COLUMNS($L$24:L25)-1),"") -> 54,995.0 | K12: =IF(OFFSET(DE100_1C!$M$24,ROWS($M$24:M25)-1,COLUMNS($M$24:M25)-1)<>"",OFFSET(DE100_1C!$M$24,ROWS($M$24:M25)-1,COLUMNS($M$24:M25)-1),"") ->  | L12: =IF(OFFSET(DE100_1C!$N$24,ROWS($N$24:N25)-1,COLUMNS($N$24:N25)-1)<>"",OFFSET(DE100_1C!$N$24,ROWS($N$24:N25)-1,COLUMNS($N$24:N25)-1),"") ->  | M12: =IF(OFFSET(DE100_1C!$O$24,ROWS($O$24:O25)-1,COLUMNS($O$24:O25)-1)<>"",OFFSET(DE100_1C!$O$24,ROWS($O$24:O25)-1,COLUMNS($O$24:O25)-1),"") ->  | N12: =IF(OFFSET(DE100_1C!$P$24,ROWS($P$24:P25)-1,COLUMNS($P$24:P25)-1)<>"",OFFSET(DE100_1C!$P$24,ROWS($P$24:P25)-1,COLUMNS($P$24:P25)-1),"") ->  | O12: =IF(OFFSET(DE100_1C!$Q$24,ROWS($Q$24:Q25)-1,COLUMNS($Q$24:Q25)-1)<>"",OFFSET(DE100_1C!$Q$24,ROWS($Q$24:Q25)-1,COLUMNS($Q$24:Q25)-1),"") -> 
A13: =IF(OFFSET(DE100_1C!$C$24,ROWS($C$24:C26)-1,COLUMNS($C$24:C26)-1)<>"",OFFSET(DE100_1C!$C$24,ROWS($C$24:C26)-1,COLUMNS($C$24:C26)-1),"") -> 3 | B13: =IF(OFFSET(DE100_1C!$D$24,ROWS($D$24:D26)-1,COLUMNS($D$24:D26)-1)<>"",OFFSET(DE100_1C!$D$24,ROWS($D$24:D26)-1,COLUMNS($D$24:D26)-1),"") -> 2102-2712015 | C13: =IF(OFFSET(DE100_1C!$E$24,ROWS($E$24:E26)-1,COLUMNS($E$24:E26)-1)<>"",OFFSET(DE100_1C!$E$24,ROWS($E$24:E26)-1,COLUMNS($E$24:E26)-1),"") -> EXCAVATION, CLASS 12, BOULDERS OR ROCK FRAGMENTS | D13: =IF(OFFSET(DE100_1C!$F$24,ROWS($F$24:F26)-1,COLUMNS($F$24:F26)-1)<>"",OFFSET(DE100_1C!$F$24,ROWS($F$24:F26)-1,COLUMNS($F$24:F26)-1),"") -> CY | E13: =IF(OFFSET(DE100_1C!$G$24,ROWS($G$24:G26)-1,COLUMNS($G$24:G26)-1)<>"",OFFSET(DE100_1C!$G$24,ROWS($G$24:G26)-1,COLUMNS($G$24:G26)-1),"") -> 20.0 | F13: =IF(OFFSET(DE100_1C!$H$24,ROWS($H$24:H26)-1,COLUMNS($H$24:H26)-1)<>"",OFFSET(DE100_1C!$H$24,ROWS($H$24:H26)-1,COLUMNS($H$24:H26)-1),"") ->  | G13: =IF(OFFSET(DE100_1C!$I$24,ROWS($I$24:I26)-1,COLUMNS($I$24:I26)-1)<>"",OFFSET(DE100_1C!$I$24,ROWS($I$24:I26)-1,COLUMNS($I$24:I26)-1),"") ->  | H13: =IF(OFFSET(DE100_1C!$J$24,ROWS($J$24:J26)-1,COLUMNS($J$24:J26)-1)<>"",OFFSET(DE100_1C!$J$24,ROWS($J$24:J26)-1,COLUMNS($J$24:J26)-1),"") ->  | I13: =IF(OFFSET(DE100_1C!$K$24,ROWS($K$24:K26)-1,COLUMNS($K$24:K26)-1)<>"",OFFSET(DE100_1C!$K$24,ROWS($K$24:K26)-1,COLUMNS($K$24:K26)-1),"") ->  | J13: =IF(OFFSET(DE100_1C!$L$24,ROWS($L$24:L26)-1,COLUMNS($L$24:L26)-1)<>"",OFFSET(DE100_1C!$L$24,ROWS($L$24:L26)-1,COLUMNS($L$24:L26)-1),"") -> 20.0 | K13: =IF(OFFSET(DE100_1C!$M$24,ROWS($M$24:M26)-1,COLUMNS($M$24:M26)-1)<>"",OFFSET(DE100_1C!$M$24,ROWS($M$24:M26)-1,COLUMNS($M$24:M26)-1),"") ->  | L13: =IF(OFFSET(DE100_1C!$N$24,ROWS($N$24:N26)-1,COLUMNS($N$24:N26)-1)<>"",OFFSET(DE100_1C!$N$24,ROWS($N$24:N26)-1,COLUMNS($N$24:N26)-1),"") ->  | M13: =IF(OFFSET(DE100_1C!$O$24,ROWS($O$24:O26)-1,COLUMNS($O$24:O26)-1)<>"",OFFSET(DE100_1C!$O$24,ROWS($O$24:O26)-1,COLUMNS($O$24:O26)-1),"") ->  | N13: =IF(OFFSET(DE100_1C!$P$24,ROWS($P$24:P26)-1,COLUMNS($P$24:P26)-1)<>"",OFFSET(DE100_1C!$P$24,ROWS($P$24:P26)-1,COLUMNS($P$24:P26)-1),"") ->  | O13: =IF(OFFSET(DE100_1C!$Q$24,ROWS($Q$24:Q26)-1,COLUMNS($Q$24:Q26)-1)<>"",OFFSET(DE100_1C!$Q$24,ROWS($Q$24:Q26)-1,COLUMNS($Q$24:Q26)-1),"") -> 
A14: =IF(OFFSET(DE100_1C!$C$24,ROWS($C$24:C27)-1,COLUMNS($C$24:C27)-1)<>"",OFFSET(DE100_1C!$C$24,ROWS($C$24:C27)-1,COLUMNS($C$24:C27)-1),"") -> 4 | B14: =IF(OFFSET(DE100_1C!$D$24,ROWS($D$24:D27)-1,COLUMNS($D$24:D27)-1)<>"",OFFSET(DE100_1C!$D$24,ROWS($D$24:D27)-1,COLUMNS($D$24:D27)-1),"") -> 2102-2713070 | C14: =IF(OFFSET(DE100_1C!$E$24,ROWS($E$24:E27)-1,COLUMNS($E$24:E27)-1)<>"",OFFSET(DE100_1C!$E$24,ROWS($E$24:E27)-1,COLUMNS($E$24:E27)-1),"") -> EXCAVATION, CLASS 13, ROADWAY AND BORROW | D14: =IF(OFFSET(DE100_1C!$F$24,ROWS($F$24:F27)-1,COLUMNS($F$24:F27)-1)<>"",OFFSET(DE100_1C!$F$24,ROWS($F$24:F27)-1,COLUMNS($F$24:F27)-1),"") -> CY | E14: =IF(OFFSET(DE100_1C!$G$24,ROWS($G$24:G27)-1,COLUMNS($G$24:G27)-1)<>"",OFFSET(DE100_1C!$G$24,ROWS($G$24:G27)-1,COLUMNS($G$24:G27)-1),"") -> 8,596.0 | F14: =IF(OFFSET(DE100_1C!$H$24,ROWS($H$24:H27)-1,COLUMNS($H$24:H27)-1)<>"",OFFSET(DE100_1C!$H$24,ROWS($H$24:H27)-1,COLUMNS($H$24:H27)-1),"") ->  | G14: =IF(OFFSET(DE100_1C!$I$24,ROWS($I$24:I27)-1,COLUMNS($I$24:I27)-1)<>"",OFFSET(DE100_1C!$I$24,ROWS($I$24:I27)-1,COLUMNS($I$24:I27)-1),"") ->  | H14: =IF(OFFSET(DE100_1C!$J$24,ROWS($J$24:J27)-1,COLUMNS($J$24:J27)-1)<>"",OFFSET(DE100_1C!$J$24,ROWS($J$24:J27)-1,COLUMNS($J$24:J27)-1),"") ->  | I14: =IF(OFFSET(DE100_1C!$K$24,ROWS($K$24:K27)-1,COLUMNS($K$24:K27)-1)<>"",OFFSET(DE100_1C!$K$24,ROWS($K$24:K27)-1,COLUMNS($K$24:K27)-1),"") ->  | J14: =IF(OFFSET(DE100_1C!$L$24,ROWS($L$24:L27)-1,COLUMNS($L$24:L27)-1)<>"",OFFSET(DE100_1C!$L$24,ROWS($L$24:L27)-1,COLUMNS($L$24:L27)-1),"") -> 8,596.0 | K14: =IF(OFFSET(DE100_1C!$M$24,ROWS($M$24:M27)-1,COLUMNS($M$24:M27)-1)<>"",OFFSET(DE100_1C!$M$24,ROWS($M$24:M27)-1,COLUMNS($M$24:M27)-1),"") ->  | L14: =IF(OFFSET(DE100_1C!$N$24,ROWS($N$24:N27)-1,COLUMNS($N$24:N27)-1)<>"",OFFSET(DE100_1C!$N$24,ROWS($N$24:N27)-1,COLUMNS($N$24:N27)-1),"") ->  | M14: =IF(OFFSET(DE100_1C!$O$24,ROWS($O$24:O27)-1,COLUMNS($O$24:O27)-1)<>"",OFFSET(DE100_1C!$O$24,ROWS($O$24:O27)-1,COLUMNS($O$24:O27)-1),"") ->  | N14: =IF(OFFSET(DE100_1C!$P$24,ROWS($P$24:P27)-1,COLUMNS($P$24:P27)-1)<>"",OFFSET(DE100_1C!$P$24,ROWS($P$24:P27)-1,COLUMNS($P$24:P27)-1),"") ->  | O14: =IF(OFFSET(DE100_1C!$Q$24,ROWS($Q$24:Q27)-1,COLUMNS($Q$24:Q27)-1)<>"",OFFSET(DE100_1C!$Q$24,ROWS($Q$24:Q27)-1,COLUMNS($Q$24:Q27)-1),"") -> 
A15: =IF(OFFSET(DE100_1C!$C$24,ROWS($C$24:C28)-1,COLUMNS($C$24:C28)-1)<>"",OFFSET(DE100_1C!$C$24,ROWS($C$24:C28)-1,COLUMNS($C$24:C28)-1),"") -> 5 | B15: =IF(OFFSET(DE100_1C!$D$24,ROWS($D$24:D28)-1,COLUMNS($D$24:D28)-1)<>"",OFFSET(DE100_1C!$D$24,ROWS($D$24:D28)-1,COLUMNS($D$24:D28)-1),"") -> 2105-8425015 | C15: =IF(OFFSET(DE100_1C!$E$24,ROWS($E$24:E28)-1,COLUMNS($E$24:E28)-1)<>"",OFFSET(DE100_1C!$E$24,ROWS($E$24:E28)-1,COLUMNS($E$24:E28)-1),"") -> TOPSOIL, STRIP, SALVAGE AND SPREAD | D15: =IF(OFFSET(DE100_1C!$F$24,ROWS($F$24:F28)-1,COLUMNS($F$24:F28)-1)<>"",OFFSET(DE100_1C!$F$24,ROWS($F$24:F28)-1,COLUMNS($F$24:F28)-1),"") -> CY | E15: =IF(OFFSET(DE100_1C!$G$24,ROWS($G$24:G28)-1,COLUMNS($G$24:G28)-1)<>"",OFFSET(DE100_1C!$G$24,ROWS($G$24:G28)-1,COLUMNS($G$24:G28)-1),"") -> 36,574.0 | F15: =IF(OFFSET(DE100_1C!$H$24,ROWS($H$24:H28)-1,COLUMNS($H$24:H28)-1)<>"",OFFSET(DE100_1C!$H$24,ROWS($H$24:H28)-1,COLUMNS($H$24:H28)-1),"") ->  | G15: =IF(OFFSET(DE100_1C!$I$24,ROWS($I$24:I28)-1,COLUMNS($I$24:I28)-1)<>"",OFFSET(DE100_1C!$I$24,ROWS($I$24:I28)-1,COLUMNS($I$24:I28)-1),"") ->  | H15: =IF(OFFSET(DE100_1C!$J$24,ROWS($J$24:J28)-1,COLUMNS($J$24:J28)-1)<>"",OFFSET(DE100_1C!$J$24,ROWS($J$24:J28)-1,COLUMNS($J$24:J28)-1),"") ->  | I15: =IF(OFFSET(DE100_1C!$K$24,ROWS($K$24:K28)-1,COLUMNS($K$24:K28)-1)<>"",OFFSET(DE100_1C!$K$24,ROWS($K$24:K28)-1,COLUMNS($K$24:K28)-1),"") ->  | J15: =IF(OFFSET(DE100_1C!$L$24,ROWS($L$24:L28)-1,COLUMNS($L$24:L28)-1)<>"",OFFSET(DE100_1C!$L$24,ROWS($L$24:L28)-1,COLUMNS($L$24:L28)-1),"") -> 36,574.0 | K15: =IF(OFFSET(DE100_1C!$M$24,ROWS($M$24:M28)-1,COLUMNS($M$24:M28)-1)<>"",OFFSET(DE100_1C!$M$24,ROWS($M$24:M28)-1,COLUMNS($M$24:M28)-1),"") ->  | L15: =IF(OFFSET(DE100_1C!$N$24,ROWS($N$24:N28)-1,COLUMNS($N$24:N28)-1)<>"",OFFSET(DE100_1C!$N$24,ROWS($N$24:N28)-1,COLUMNS($N$24:N28)-1),"") ->  | M15: =IF(OFFSET(DE100_1C!$O$24,ROWS($O$24:O28)-1,COLUMNS($O$24:O28)-1)<>"",OFFSET(DE100_1C!$O$24,ROWS($O$24:O28)-1,COLUMNS($O$24:O28)-1),"") ->  | N15: =IF(OFFSET(DE100_1C!$P$24,ROWS($P$24:P28)-1,COLUMNS($P$24:P28)-1)<>"",OFFSET(DE100_1C!$P$24,ROWS($P$24:P28)-1,COLUMNS($P$24:P28)-1),"") ->  | O15: =IF(OFFSET(DE100_1C!$Q$24,ROWS($Q$24:Q28)-1,COLUMNS($Q$24:Q28)-1)<>"",OFFSET(DE100_1C!$Q$24,ROWS($Q$24:Q28)-1,COLUMNS($Q$24:Q28)-1),"") -> 
A16: =IF(OFFSET(DE100_1C!$C$24,ROWS($C$24:C29)-1,COLUMNS($C$24:C29)-1)<>"",OFFSET(DE100_1C!$C$24,ROWS($C$24:C29)-1,COLUMNS($C$24:C29)-1),"") -> 6 | B16: =IF(OFFSET(DE100_1C!$D$24,ROWS($D$24:D29)-1,COLUMNS($D$24:D29)-1)<>"",OFFSET(DE100_1C!$D$24,ROWS($D$24:D29)-1,COLUMNS($D$24:D29)-1),"") -> 2107-0875100 | C16: =IF(OFFSET(DE100_1C!$E$24,ROWS($E$24:E29)-1,COLUMNS($E$24:E29)-1)<>"",OFFSET(DE100_1C!$E$24,ROWS($E$24:E29)-1,COLUMNS($E$24:E29)-1),"") -> COMPACTION WITH MOISTURE CONTROL | D16: =IF(OFFSET(DE100_1C!$F$24,ROWS($F$24:F29)-1,COLUMNS($F$24:F29)-1)<>"",OFFSET(DE100_1C!$F$24,ROWS($F$24:F29)-1,COLUMNS($F$24:F29)-1),"") -> CY | E16: =IF(OFFSET(DE100_1C!$G$24,ROWS($G$24:G29)-1,COLUMNS($G$24:G29)-1)<>"",OFFSET(DE100_1C!$G$24,ROWS($G$24:G29)-1,COLUMNS($G$24:G29)-1),"") -> 228,171.0 | F16: =IF(OFFSET(DE100_1C!$H$24,ROWS($H$24:H29)-1,COLUMNS($H$24:H29)-1)<>"",OFFSET(DE100_1C!$H$24,ROWS($H$24:H29)-1,COLUMNS($H$24:H29)-1),"") ->  | G16: =IF(OFFSET(DE100_1C!$I$24,ROWS($I$24:I29)-1,COLUMNS($I$24:I29)-1)<>"",OFFSET(DE100_1C!$I$24,ROWS($I$24:I29)-1,COLUMNS($I$24:I29)-1),"") ->  | H16: =IF(OFFSET(DE100_1C!$J$24,ROWS($J$24:J29)-1,COLUMNS($J$24:J29)-1)<>"",OFFSET(DE100_1C!$J$24,ROWS($J$24:J29)-1,COLUMNS($J$24:J29)-1),"") ->  | I16: =IF(OFFSET(DE100_1C!$K$24,ROWS($K$24:K29)-1,COLUMNS($K$24:K29)-1)<>"",OFFSET(DE100_1C!$K$24,ROWS($K$24:K29)-1,COLUMNS($K$24:K29)-1),"") ->  | J16: =IF(OFFSET(DE100_1C!$L$24,ROWS($L$24:L29)-1,COLUMNS($L$24:L29)-1)<>"",OFFSET(DE100_1C!$L$24,ROWS($L$24:L29)-1,COLUMNS($L$24:L29)-1),"") -> 228,171.0 | K16: =IF(OFFSET(DE100_1C!$M$24,ROWS($M$24:M29)-1,COLUMNS($M$24:M29)-1)<>"",OFFSET(DE100_1C!$M$24,ROWS($M$24:M29)-1,COLUMNS($M$24:M29)-1),"") ->  | L16: =IF(OFFSET(DE100_1C!$N$24,ROWS($N$24:N29)-1,COLUMNS($N$24:N29)-1)<>"",OFFSET(DE100_1C!$N$24,ROWS($N$24:N29)-1,COLUMNS($N$24:N29)-1),"") ->  | M16: =IF(OFFSET(DE100_1C!$O$24,ROWS($O$24:O29)-1,COLUMNS($O$24:O29)-1)<>"",OFFSET(DE100_1C!$O$24,ROWS($O$24:O29)-1,COLUMNS($O$24:O29)-1),"") ->  | N16: =IF(OFFSET(DE100_1C!$P$24,ROWS($P$24:P29)-1,COLUMNS($P$24:P29)-1)<>"",OFFSET(DE100_1C!$P$24,ROWS($P$24:P29)-1,COLUMNS($P$24:P29)-1),"") ->  | O16: =IF(OFFSET(DE100_1C!$Q$24,ROWS($Q$24:Q29)-1,COLUMNS($Q$24:Q29)-1)<>"",OFFSET(DE100_1C!$Q$24,ROWS($Q$24:Q29)-1,COLUMNS($Q$24:Q29)-1),"") -> 
A17: =IF(OFFSET(DE100_1C!$C$24,ROWS($C$24:C30)-1,COLUMNS($C$24:C30)-1)<>"",OFFSET(DE100_1C!$C$24,ROWS($C$24:C30)-1,COLUMNS($C$24:C30)-1),"") -> 7 | B17: =IF(OFFSET(DE100_1C!$D$24,ROWS($D$24:D30)-1,COLUMNS($D$24:D30)-1)<>"",OFFSET(DE100_1C!$D$24,ROWS($D$24:D30)-1,COLUMNS($D$24:D30)-1),"") -> 2115-0100000 | C17: =IF(OFFSET(DE100_1C!$E$24,ROWS($E$24:E30)-1,COLUMNS($E$24:E30)-1)<>"",OFFSET(DE100_1C!$E$24,ROWS($E$24:E30)-1,COLUMNS($E$24:E30)-1),"") -> MODIFIED SUBBASE | D17: =IF(OFFSET(DE100_1C!$F$24,ROWS($F$24:F30)-1,COLUMNS($F$24:F30)-1)<>"",OFFSET(DE100_1C!$F$24,ROWS($F$24:F30)-1,COLUMNS($F$24:F30)-1),"") -> CY | E17: =IF(OFFSET(DE100_1C!$G$24,ROWS($G$24:G30)-1,COLUMNS($G$24:G30)-1)<>"",OFFSET(DE100_1C!$G$24,ROWS($G$24:G30)-1,COLUMNS($G$24:G30)-1),"") -> 13,365.9 | F17: =IF(OFFSET(DE100_1C!$H$24,ROWS($H$24:H30)-1,COLUMNS($H$24:H30)-1)<>"",OFFSET(DE100_1C!$H$24,ROWS($H$24:H30)-1,COLUMNS($H$24:H30)-1),"") -> 334.2 | G17: =IF(OFFSET(DE100_1C!$I$24,ROWS($I$24:I30)-1,COLUMNS($I$24:I30)-1)<>"",OFFSET(DE100_1C!$I$24,ROWS($I$24:I30)-1,COLUMNS($I$24:I30)-1),"") ->  | H17: =IF(OFFSET(DE100_1C!$J$24,ROWS($J$24:J30)-1,COLUMNS($J$24:J30)-1)<>"",OFFSET(DE100_1C!$J$24,ROWS($J$24:J30)-1,COLUMNS($J$24:J30)-1),"") ->  | I17: =IF(OFFSET(DE100_1C!$K$24,ROWS($K$24:K30)-1,COLUMNS($K$24:K30)-1)<>"",OFFSET(DE100_1C!$K$24,ROWS($K$24:K30)-1,COLUMNS($K$24:K30)-1),"") ->  | J17: =IF(OFFSET(DE100_1C!$L$24,ROWS($L$24:L30)-1,COLUMNS($L$24:L30)-1)<>"",OFFSET(DE100_1C!$L$24,ROWS($L$24:L30)-1,COLUMNS($L$24:L30)-1),"") -> 13,700.1 | K17: =IF(OFFSET(DE100_1C!$M$24,ROWS($M$24:M30)-1,COLUMNS($M$24:M30)-1)<>"",OFFSET(DE100_1C!$M$24,ROWS($M$24:M30)-1,COLUMNS($M$24:M30)-1),"") ->  | L17: =IF(OFFSET(DE100_1C!$N$24,ROWS($N$24:N30)-1,COLUMNS($N$24:N30)-1)<>"",OFFSET(DE100_1C!$N$24,ROWS($N$24:N30)-1,COLUMNS($N$24:N30)-1),"") ->  | M17: =IF(OFFSET(DE100_1C!$O$24,ROWS($O$24:O30)-1,COLUMNS($O$24:O30)-1)<>"",OFFSET(DE100_1C!$O$24,ROWS($O$24:O30)-1,COLUMNS($O$24:O30)-1),"") ->  | N17: =IF(OFFSET(DE100_1C!$P$24,ROWS($P$24:P30)-1,COLUMNS($P$24:P30)-1)<>"",OFFSET(DE100_1C!$P$24,ROWS($P$24:P30)-1,COLUMNS($P$24:P30)-1),"") ->  | O17: =IF(OFFSET(DE100_1C!$Q$24,ROWS($Q$24:Q30)-1,COLUMNS($Q$24:Q30)-1)<>"",OFFSET(DE100_1C!$Q$24,ROWS($Q$24:Q30)-1,COLUMNS($Q$24:Q30)-1),"") -> 
A18: =IF(OFFSET(DE100_1C!$C$24,ROWS($C$24:C31)-1,COLUMNS($C$24:C31)-1)<>"",OFFSET(DE100_1C!$C$24,ROWS($C$24:C31)-1,COLUMNS($C$24:C31)-1),"") -> 8 | B18: =IF(OFFSET(DE100_1C!$D$24,ROWS($D$24:D31)-1,COLUMNS($D$24:D31)-1)<>"",OFFSET(DE100_1C!$D$24,ROWS($D$24:D31)-1,COLUMNS($D$24:D31)-1),"") -> 2121-7425010 | C18: =IF(OFFSET(DE100_1C!$E$24,ROWS($E$24:E31)-1,COLUMNS($E$24:E31)-1)<>"",OFFSET(DE100_1C!$E$24,ROWS($E$24:E31)-1,COLUMNS($E$24:E31)-1),"") -> GRANULAR SHOULDERS, TYPE A | D18: =IF(OFFSET(DE100_1C!$F$24,ROWS($F$24:F31)-1,COLUMNS($F$24:F31)-1)<>"",OFFSET(DE100_1C!$F$24,ROWS($F$24:F31)-1,COLUMNS($F$24:F31)-1),"") -> TON | E18: =IF(OFFSET(DE100_1C!$G$24,ROWS($G$24:G31)-1,COLUMNS($G$24:G31)-1)<>"",OFFSET(DE100_1C!$G$24,ROWS($G$24:G31)-1,COLUMNS($G$24:G31)-1),"") -> 10,656.9 | F18: =IF(OFFSET(DE100_1C!$H$24,ROWS($H$24:H31)-1,COLUMNS($H$24:H31)-1)<>"",OFFSET(DE100_1C!$H$24,ROWS($H$24:H31)-1,COLUMNS($H$24:H31)-1),"") ->  | G18: =IF(OFFSET(DE100_1C!$I$24,ROWS($I$24:I31)-1,COLUMNS($I$24:I31)-1)<>"",OFFSET(DE100_1C!$I$24,ROWS($I$24:I31)-1,COLUMNS($I$24:I31)-1),"") ->  | H18: =IF(OFFSET(DE100_1C!$J$24,ROWS($J$24:J31)-1,COLUMNS($J$24:J31)-1)<>"",OFFSET(DE100_1C!$J$24,ROWS($J$24:J31)-1,COLUMNS($J$24:J31)-1),"") ->  | I18: =IF(OFFSET(DE100_1C!$K$24,ROWS($K$24:K31)-1,COLUMNS($K$24:K31)-1)<>"",OFFSET(DE100_1C!$K$24,ROWS($K$24:K31)-1,COLUMNS($K$24:K31)-1),"") ->  | J18: =IF(OFFSET(DE100_1C!$L$24,ROWS($L$24:L31)-1,COLUMNS($L$24:L31)-1)<>"",OFFSET(DE100_1C!$L$24,ROWS($L$24:L31)-1,COLUMNS($L$24:L31)-1),"") -> 10,656.9 | K18: =IF(OFFSET(DE100_1C!$M$24,ROWS($M$24:M31)-1,COLUMNS($M$24:M31)-1)<>"",OFFSET(DE100_1C!$M$24,ROWS($M$24:M31)-1,COLUMNS($M$24:M31)-1),"") ->  | L18: =IF(OFFSET(DE100_1C!$N$24,ROWS($N$24:N31)-1,COLUMNS($N$24:N31)-1)<>"",OFFSET(DE100_1C!$N$24,ROWS($N$24:N31)-1,COLUMNS($N$24:N31)-1),"") ->  | M18: =IF(OFFSET(DE100_1C!$O$24,ROWS($O$24:O31)-1,COLUMNS($O$24:O31)-1)<>"",OFFSET(DE100_1C!$O$24,ROWS($O$24:O31)-1,COLUMNS($O$24:O31)-1),"") ->  | N18: =IF(OFFSET(DE100_1C!$P$24,ROWS($P$24:P31)-1,COLUMNS($P$24:P31)-1)<>"",OFFSET(DE100_1C!$P$24,ROWS($P$24:P31)-1,COLUMNS($P$24:P31)-1),"") ->  | O18: =IF(OFFSET(DE100_1C!$Q$24,ROWS($Q$24:Q31)-1,COLUMNS($Q$24:Q31)-1)<>"",OFFSET(DE100_1C!$Q$24,ROWS($Q$24:Q31)-1,COLUMNS($Q$24:Q31)-1),"") -> 
A19: =IF(OFFSET(DE100_1C!$C$24,ROWS($C$24:C32)-1,COLUMNS($C$24:C32)-1)<>"",OFFSET(DE100_1C!$C$24,ROWS($C$24:C32)-1,COLUMNS($C$24:C32)-1),"") -> 9 | B19: =IF(OFFSET(DE100_1C!$D$24,ROWS($D$24:D32)-1,COLUMNS($D$24:D32)-1)<>"",OFFSET(DE100_1C!$D$24,ROWS($D$24:D32)-1,COLUMNS($D$24:D32)-1),"") -> 2122-5190008 | C19: =IF(OFFSET(DE100_1C!$E$24,ROWS($E$24:E32)-1,COLUMNS($E$24:E32)-1)<>"",OFFSET(DE100_1C!$E$24,ROWS($E$24:E32)-1,COLUMNS($E$24:E32)-1),"") -> PAVED SHOULDER, P.C. CONCRETE, 8 IN. | D19: =IF(OFFSET(DE100_1C!$F$24,ROWS($F$24:F32)-1,COLUMNS($F$24:F32)-1)<>"",OFFSET(DE100_1C!$F$24,ROWS($F$24:F32)-1,COLUMNS($F$24:F32)-1),"") -> SY | E19: =IF(OFFSET(DE100_1C!$G$24,ROWS($G$24:G32)-1,COLUMNS($G$24:G32)-1)<>"",OFFSET(DE100_1C!$G$24,ROWS($G$24:G32)-1,COLUMNS($G$24:G32)-1),"") -> 449.6 | F19: =IF(OFFSET(DE100_1C!$H$24,ROWS($H$24:H32)-1,COLUMNS($H$24:H32)-1)<>"",OFFSET(DE100_1C!$H$24,ROWS($H$24:H32)-1,COLUMNS($H$24:H32)-1),"") ->  | G19: =IF(OFFSET(DE100_1C!$I$24,ROWS($I$24:I32)-1,COLUMNS($I$24:I32)-1)<>"",OFFSET(DE100_1C!$I$24,ROWS($I$24:I32)-1,COLUMNS($I$24:I32)-1),"") ->  | H19: =IF(OFFSET(DE100_1C!$J$24,ROWS($J$24:J32)-1,COLUMNS($J$24:J32)-1)<>"",OFFSET(DE100_1C!$J$24,ROWS($J$24:J32)-1,COLUMNS($J$24:J32)-1),"") ->  | I19: =IF(OFFSET(DE100_1C!$K$24,ROWS($K$24:K32)-1,COLUMNS($K$24:K32)-1)<>"",OFFSET(DE100_1C!$K$24,ROWS($K$24:K32)-1,COLUMNS($K$24:K32)-1),"") ->  | J19: =IF(OFFSET(DE100_1C!$L$24,ROWS($L$24:L32)-1,COLUMNS($L$24:L32)-1)<>"",OFFSET(DE100_1C!$L$24,ROWS($L$24:L32)-1,COLUMNS($L$24:L32)-1),"") -> 449.6 | K19: =IF(OFFSET(DE100_1C!$M$24,ROWS($M$24:M32)-1,COLUMNS($M$24:M32)-1)<>"",OFFSET(DE100_1C!$M$24,ROWS($M$24:M32)-1,COLUMNS($M$24:M32)-1),"") ->  | L19: =IF(OFFSET(DE100_1C!$N$24,ROWS($N$24:N32)-1,COLUMNS($N$24:N32)-1)<>"",OFFSET(DE100_1C!$N$24,ROWS($N$24:N32)-1,COLUMNS($N$24:N32)-1),"") ->  | M19: =IF(OFFSET(DE100_1C!$O$24,ROWS($O$24:O32)-1,COLUMNS($O$24:O32)-1)<>"",OFFSET(DE100_1C!$O$24,ROWS($O$24:O32)-1,COLUMNS($O$24:O32)-1),"") ->  | N19: =IF(OFFSET(DE100_1C!$P$24,ROWS($P$24:P32)-1,COLUMNS($P$24:P32)-1)<>"",OFFSET(DE100_1C!$P$24,ROWS($P$24:P32)-1,COLUMNS($P$24:P32)-1),"") ->  | O19: =IF(OFFSET(DE100_1C!$Q$24,ROWS($Q$24:Q32)-1,COLUMNS($Q$24:Q32)-1)<>"",OFFSET(DE100_1C!$Q$24,ROWS($Q$24:Q32)-1,COLUMNS($Q$24:Q32)-1),"") -> 
A20: =IF(OFFSET(DE100_1C!$C$24,ROWS($C$24:C33)-1,COLUMNS($C$24:C33)-1)<>"",OFFSET(DE100_1C!$C$24,ROWS($C$24:C33)-1,COLUMNS($C$24:C33)-1),"") -> 10 | B20: =IF(OFFSET(DE100_1C!$D$24,ROWS($D$24:D33)-1,COLUMNS($D$24:D33)-1)<>"",OFFSET(DE100_1C!$D$24,ROWS($D$24:D33)-1,COLUMNS($D$24:D33)-1),"") -> 2122-5190501 | C20: =IF(OFFSET(DE100_1C!$E$24,ROWS($E$24:E33)-1,COLUMNS($E$24:E33)-1)<>"",OFFSET(DE100_1C!$E$24,ROWS($E$24:E33)-1,COLUMNS($E$24:E33)-1),"") -> PAVED SHOULDER, PORTLAND CEMENT CONCRETE (PAVED SHOULDER PANEL FOR | D20: =IF(OFFSET(DE100_1C!$F$24,ROWS($F$24:F33)-1,COLUMNS($F$24:F33)-1)<>"",OFFSET(DE100_1C!$F$24,ROWS($F$24:F33)-1,COLUMNS($F$24:F33)-1),"") -> SY | E20: =IF(OFFSET(DE100_1C!$G$24,ROWS($G$24:G33)-1,COLUMNS($G$24:G33)-1)<>"",OFFSET(DE100_1C!$G$24,ROWS($G$24:G33)-1,COLUMNS($G$24:G33)-1),"") -> 93.3 | F20: =IF(OFFSET(DE100_1C!$H$24,ROWS($H$24:H33)-1,COLUMNS($H$24:H33)-1)<>"",OFFSET(DE100_1C!$H$24,ROWS($H$24:H33)-1,COLUMNS($H$24:H33)-1),"") ->  | G20: =IF(OFFSET(DE100_1C!$I$24,ROWS($I$24:I33)-1,COLUMNS($I$24:I33)-1)<>"",OFFSET(DE100_1C!$I$24,ROWS($I$24:I33)-1,COLUMNS($I$24:I33)-1),"") ->  | H20: =IF(OFFSET(DE100_1C!$J$24,ROWS($J$24:J33)-1,COLUMNS($J$24:J33)-1)<>"",OFFSET(DE100_1C!$J$24,ROWS($J$24:J33)-1,COLUMNS($J$24:J33)-1),"") ->  | I20: =IF(OFFSET(DE100_1C!$K$24,ROWS($K$24:K33)-1,COLUMNS($K$24:K33)-1)<>"",OFFSET(DE100_1C!$K$24,ROWS($K$24:K33)-1,COLUMNS($K$24:K33)-1),"") ->  | J20: =IF(OFFSET(DE100_1C!$L$24,ROWS($L$24:L33)-1,COLUMNS($L$24:L33)-1)<>"",OFFSET(DE100_1C!$L$24,ROWS($L$24:L33)-1,COLUMNS($L$24:L33)-1),"") -> 93.3 | K20: =IF(OFFSET(DE100_1C!$M$24,ROWS($M$24:M33)-1,COLUMNS($M$24:M33)-1)<>"",OFFSET(DE100_1C!$M$24,ROWS($M$24:M33)-1,COLUMNS($M$24:M33)-1),"") ->  | L20: =IF(OFFSET(DE100_1C!$N$24,ROWS($N$24:N33)-1,COLUMNS($N$24:N33)-1)<>"",OFFSET(DE100_1C!$N$24,ROWS($N$24:N33)-1,COLUMNS($N$24:N33)-1),"") ->  | M20: =IF(OFFSET(DE100_1C!$O$24,ROWS($O$24:O33)-1,COLUMNS($O$24:O33)-1)<>"",OFFSET(DE100_1C!$O$24,ROWS($O$24:O33)-1,COLUMNS($O$24:O33)-1),"") ->  | N20: =IF(OFFSET(DE100_1C!$P$24,ROWS($P$24:P33)-1,COLUMNS($P$24:P33)-1)<>"",OFFSET(DE100_1C!$P$24,ROWS($P$24:P33)-1,COLUMNS($P$24:P33)-1),"") ->  | O20: =IF(OFFSET(DE100_1C!$Q$24,ROWS($Q$24:Q33)-1,COLUMNS($Q$24:Q33)-1)<>"",OFFSET(DE100_1C!$Q$24,ROWS($Q$24:Q33)-1,COLUMNS($Q$24:Q33)-1),"") -> 
A21: =IF(OFFSET(DE100_1C!$C$24,ROWS($C$24:C34)-1,COLUMNS($C$24:C34)-1)<>"",OFFSET(DE100_1C!$C$24,ROWS($C$24:C34)-1,COLUMNS($C$24:C34)-1),"") ->  | B21: =IF(OFFSET(DE100_1C!$D$24,ROWS($D$24:D34)-1,COLUMNS($D$24:D34)-1)<>"",OFFSET(DE100_1C!$D$24,ROWS($D$24:D34)-1,COLUMNS($D$24:D34)-1),"") ->  | C21: =IF(OFFSET(DE100_1C!$E$24,ROWS($E$24:E34)-1,COLUMNS($E$24:E34)-1)<>"",OFFSET(DE100_1C!$E$24,ROWS($E$24:E34)-1,COLUMNS($E$24:E34)-1),"") -> BRIDGE END DRAIN) | D21: =IF(OFFSET(DE100_1C!$F$24,ROWS($F$24:F34)-1,COLUMNS($F$24:F34)-1)<>"",OFFSET(DE100_1C!$F$24,ROWS($F$24:F34)-1,COLUMNS($F$24:F34)-1),"") ->  | E21: =IF(OFFSET(DE100_1C!$G$24,ROWS($G$24:G34)-1,COLUMNS($G$24:G34)-1)<>"",OFFSET(DE100_1C!$G$24,ROWS($G$24:G34)-1,COLUMNS($G$24:G34)-1),"") ->  | F21: =IF(OFFSET(DE100_1C!$H$24,ROWS($H$24:H34)-1,COLUMNS($H$24:H34)-1)<>"",OFFSET(DE100_1C!$H$24,ROWS($H$24:H34)-1,COLUMNS($H$24:H34)-1),"") ->  | G21: =IF(OFFSET(DE100_1C!$I$24,ROWS($I$24:I34)-1,COLUMNS($I$24:I34)-1)<>"",OFFSET(DE100_1C!$I$24,ROWS($I$24:I34)-1,COLUMNS($I$24:I34)-1),"") ->  | H21: =IF(OFFSET(DE100_1C!$J$24,ROWS($J$24:J34)-1,COLUMNS($J$24:J34)-1)<>"",OFFSET(DE100_1C!$J$24,ROWS($J$24:J34)-1,COLUMNS($J$24:J34)-1),"") ->  | I21: =IF(OFFSET(DE100_1C!$K$24,ROWS($K$24:K34)-1,COLUMNS($K$24:K34)-1)<>"",OFFSET(DE100_1C!$K$24,ROWS($K$24:K34)-1,COLUMNS($K$24:K34)-1),"") ->  | J21: =IF(OFFSET(DE100_1C!$L$24,ROWS($L$24:L34)-1,COLUMNS($L$24:L34)-1)<>"",OFFSET(DE100_1C!$L$24,ROWS($L$24:L34)-1,COLUMNS($L$24:L34)-1),"") ->  | K21: =IF(OFFSET(DE100_1C!$M$24,ROWS($M$24:M34)-1,COLUMNS($M$24:M34)-1)<>"",OFFSET(DE100_1C!$M$24,ROWS($M$24:M34)-1,COLUMNS($M$24:M34)-1),"") ->  | L21: =IF(OFFSET(DE100_1C!$N$24,ROWS($N$24:N34)-1,COLUMNS($N$24:N34)-1)<>"",OFFSET(DE100_1C!$N$24,ROWS($N$24:N34)-1,COLUMNS($N$24:N34)-1),"") ->  | M21: =IF(OFFSET(DE100_1C!$O$24,ROWS($O$24:O34)-1,COLUMNS($O$24:O34)-1)<>"",OFFSET(DE100_1C!$O$24,ROWS($O$24:O34)-1,COLUMNS($O$24:O34)-1),"") ->  | N21: =IF(OFFSET(DE100_1C!$P$24,ROWS($P$24:P34)-1,COLUMNS($P$24:P34)-1)<>"",OFFSET(DE100_1C!$P$24,ROWS($P$24:P34)-1,COLUMNS($P$24:P34)-1),"") ->  | O21: =IF(OFFSET(DE100_1C!$Q$24,ROWS($Q$24:Q34)-1,COLUMNS($Q$24:Q34)-1)<>"",OFFSET(DE100_1C!$Q$24,ROWS($Q$24:Q34)-1,COLUMNS($Q$24:Q34)-1),"") -> 
A22: =IF(OFFSET(DE100_1C!$C$24,ROWS($C$24:C35)-1,COLUMNS($C$24:C35)-1)<>"",OFFSET(DE100_1C!$C$24,ROWS($C$24:C35)-1,COLUMNS($C$24:C35)-1),"") -> 11 | B22: =IF(OFFSET(DE100_1C!$D$24,ROWS($D$24:D35)-1,COLUMNS($D$24:D35)-1)<>"",OFFSET(DE100_1C!$D$24,ROWS($D$24:D35)-1,COLUMNS($D$24:D35)-1),"") -> 2123-7450000 | C22: =IF(OFFSET(DE100_1C!$E$24,ROWS($E$24:E35)-1,COLUMNS($E$24:E35)-1)<>"",OFFSET(DE100_1C!$E$24,ROWS($E$24:E35)-1,COLUMNS($E$24:E35)-1),"") -> SHOULDER CONSTRUCTION, EARTH | D22: =IF(OFFSET(DE100_1C!$F$24,ROWS($F$24:F35)-1,COLUMNS($F$24:F35)-1)<>"",OFFSET(DE100_1C!$F$24,ROWS($F$24:F35)-1,COLUMNS($F$24:F35)-1),"") -> STA | E22: =IF(OFFSET(DE100_1C!$G$24,ROWS($G$24:G35)-1,COLUMNS($G$24:G35)-1)<>"",OFFSET(DE100_1C!$G$24,ROWS($G$24:G35)-1,COLUMNS($G$24:G35)-1),"") -> 194.60 | F22: =IF(OFFSET(DE100_1C!$H$24,ROWS($H$24:H35)-1,COLUMNS($H$24:H35)-1)<>"",OFFSET(DE100_1C!$H$24,ROWS($H$24:H35)-1,COLUMNS($H$24:H35)-1),"") ->  | G22: =IF(OFFSET(DE100_1C!$I$24,ROWS($I$24:I35)-1,COLUMNS($I$24:I35)-1)<>"",OFFSET(DE100_1C!$I$24,ROWS($I$24:I35)-1,COLUMNS($I$24:I35)-1),"") ->  | H22: =IF(OFFSET(DE100_1C!$J$24,ROWS($J$24:J35)-1,COLUMNS($J$24:J35)-1)<>"",OFFSET(DE100_1C!$J$24,ROWS($J$24:J35)-1,COLUMNS($J$24:J35)-1),"") ->  | I22: =IF(OFFSET(DE100_1C!$K$24,ROWS($K$24:K35)-1,COLUMNS($K$24:K35)-1)<>"",OFFSET(DE100_1C!$K$24,ROWS($K$24:K35)-1,COLUMNS($K$24:K35)-1),"") ->  | J22: =IF(OFFSET(DE100_1C!$L$24,ROWS($L$24:L35)-1,COLUMNS($L$24:L35)-1)<>"",OFFSET(DE100_1C!$L$24,ROWS($L$24:L35)-1,COLUMNS($L$24:L35)-1),"") -> 194.60 | K22: =IF(OFFSET(DE100_1C!$M$24,ROWS($M$24:M35)-1,COLUMNS($M$24:M35)-1)<>"",OFFSET(DE100_1C!$M$24,ROWS($M$24:M35)-1,COLUMNS($M$24:M35)-1),"") ->  | L22: =IF(OFFSET(DE100_1C!$N$24,ROWS($N$24:N35)-1,COLUMNS($N$24:N35)-1)<>"",OFFSET(DE100_1C!$N$24,ROWS($N$24:N35)-1,COLUMNS($N$24:N35)-1),"") ->  | M22: =IF(OFFSET(DE100_1C!$O$24,ROWS($O$24:O35)-1,COLUMNS($O$24:O35)-1)<>"",OFFSET(DE100_1C!$O$24,ROWS($O$24:O35)-1,COLUMNS($O$24:O35)-1),"") ->  | N22: =IF(OFFSET(DE100_1C!$P$24,ROWS($P$24:P35)-1,COLUMNS($P$24:P35)-1)<>"",OFFSET(DE100_1C!$P$24,ROWS($P$24:P35)-1,COLUMNS($P$24:P35)-1),"") ->  | O22: =IF(OFFSET(DE100_1C!$Q$24,ROWS($Q$24:Q35)-1,COLUMNS($Q$24:Q35)-1)<>"",OFFSET(DE100_1C!$Q$24,ROWS($Q$24:Q35)-1,COLUMNS($Q$24:Q35)-1),"") -> 
A23: =IF(OFFSET(DE100_1C!$C$24,ROWS($C$24:C36)-1,COLUMNS($C$24:C36)-1)<>"",OFFSET(DE100_1C!$C$24,ROWS($C$24:C36)-1,COLUMNS($C$24:C36)-1),"") -> 12 | B23: =IF(OFFSET(DE100_1C!$D$24,ROWS($D$24:D36)-1,COLUMNS($D$24:D36)-1)<>"",OFFSET(DE100_1C!$D$24,ROWS($D$24:D36)-1,COLUMNS($D$24:D36)-1),"") -> 2123-7450020 | C23: =IF(OFFSET(DE100_1C!$E$24,ROWS($E$24:E36)-1,COLUMNS($E$24:E36)-1)<>"",OFFSET(DE100_1C!$E$24,ROWS($E$24:E36)-1,COLUMNS($E$24:E36)-1),"") -> SHOULDER FINISHING, EARTH | D23: =IF(OFFSET(DE100_1C!$F$24,ROWS($F$24:F36)-1,COLUMNS($F$24:F36)-1)<>"",OFFSET(DE100_1C!$F$24,ROWS($F$24:F36)-1,COLUMNS($F$24:F36)-1),"") -> STA | E23: =IF(OFFSET(DE100_1C!$G$24,ROWS($G$24:G36)-1,COLUMNS($G$24:G36)-1)<>"",OFFSET(DE100_1C!$G$24,ROWS($G$24:G36)-1,COLUMNS($G$24:G36)-1),"") -> 5.62 | F23: =IF(OFFSET(DE100_1C!$H$24,ROWS($H$24:H36)-1,COLUMNS($H$24:H36)-1)<>"",OFFSET(DE100_1C!$H$24,ROWS($H$24:H36)-1,COLUMNS($H$24:H36)-1),"") ->  | G23: =IF(OFFSET(DE100_1C!$I$24,ROWS($I$24:I36)-1,COLUMNS($I$24:I36)-1)<>"",OFFSET(DE100_1C!$I$24,ROWS($I$24:I36)-1,COLUMNS($I$24:I36)-1),"") ->  | H23: =IF(OFFSET(DE100_1C!$J$24,ROWS($J$24:J36)-1,COLUMNS($J$24:J36)-1)<>"",OFFSET(DE100_1C!$J$24,ROWS($J$24:J36)-1,COLUMNS($J$24:J36)-1),"") ->  | I23: =IF(OFFSET(DE100_1C!$K$24,ROWS($K$24:K36)-1,COLUMNS($K$24:K36)-1)<>"",OFFSET(DE100_1C!$K$24,ROWS($K$24:K36)-1,COLUMNS($K$24:K36)-1),"") ->  | J23: =IF(OFFSET(DE100_1C!$L$24,ROWS($L$24:L36)-1,COLUMNS($L$24:L36)-1)<>"",OFFSET(DE100_1C!$L$24,ROWS($L$24:L36)-1,COLUMNS($L$24:L36)-1),"") -> 5.62 | K23: =IF(OFFSET(DE100_1C!$M$24,ROWS($M$24:M36)-1,COLUMNS($M$24:M36)-1)<>"",OFFSET(DE100_1C!$M$24,ROWS($M$24:M36)-1,COLUMNS($M$24:M36)-1),"") ->  | L23: =IF(OFFSET(DE100_1C!$N$24,ROWS($N$24:N36)-1,COLUMNS($N$24:N36)-1)<>"",OFFSET(DE100_1C!$N$24,ROWS($N$24:N36)-1,COLUMNS($N$24:N36)-1),"") ->  | M23: =IF(OFFSET(DE100_1C!$O$24,ROWS($O$24:O36)-1,COLUMNS($O$24:O36)-1)<>"",OFFSET(DE100_1C!$O$24,ROWS($O$24:O36)-1,COLUMNS($O$24:O36)-1),"") ->  | N23: =IF(OFFSET(DE100_1C!$P$24,ROWS($P$24:P36)-1,COLUMNS($P$24:P36)-1)<>"",OFFSET(DE100_1C!$P$24,ROWS($P$24:P36)-1,COLUMNS($P$24:P36)-1),"") ->  | O23: =IF(OFFSET(DE100_1C!$Q$24,ROWS($Q$24:Q36)-1,COLUMNS($Q$24:Q36)-1)<>"",OFFSET(DE100_1C!$Q$24,ROWS($Q$24:Q36)-1,COLUMNS($Q$24:Q36)-1),"") -> 
A24: =IF(OFFSET(DE100_1C!$C$24,ROWS($C$24:C37)-1,COLUMNS($C$24:C37)-1)<>"",OFFSET(DE100_1C!$C$24,ROWS($C$24:C37)-1,COLUMNS($C$24:C37)-1),"") -> 13 | B24: =IF(OFFSET(DE100_1C!$D$24,ROWS($D$24:D37)-1,COLUMNS($D$24:D37)-1)<>"",OFFSET(DE100_1C!$D$24,ROWS($D$24:D37)-1,COLUMNS($D$24:D37)-1),"") -> 2301-0690203 | C24: =IF(OFFSET(DE100_1C!$E$24,ROWS($E$24:E37)-1,COLUMNS($E$24:E37)-1)<>"",OFFSET(DE100_1C!$E$24,ROWS($E$24:E37)-1,COLUMNS($E$24:E37)-1),"") -> BRIDGE APPROACH, BR-203 | D24: =IF(OFFSET(DE100_1C!$F$24,ROWS($F$24:F37)-1,COLUMNS($F$24:F37)-1)<>"",OFFSET(DE100_1C!$F$24,ROWS($F$24:F37)-1,COLUMNS($F$24:F37)-1),"") -> SY | E24: =IF(OFFSET(DE100_1C!$G$24,ROWS($G$24:G37)-1,COLUMNS($G$24:G37)-1)<>"",OFFSET(DE100_1C!$G$24,ROWS($G$24:G37)-1,COLUMNS($G$24:G37)-1),"") -> 604.6 | F24: =IF(OFFSET(DE100_1C!$H$24,ROWS($H$24:H37)-1,COLUMNS($H$24:H37)-1)<>"",OFFSET(DE100_1C!$H$24,ROWS($H$24:H37)-1,COLUMNS($H$24:H37)-1),"") ->  | G24: =IF(OFFSET(DE100_1C!$I$24,ROWS($I$24:I37)-1,COLUMNS($I$24:I37)-1)<>"",OFFSET(DE100_1C!$I$24,ROWS($I$24:I37)-1,COLUMNS($I$24:I37)-1),"") ->  | H24: =IF(OFFSET(DE100_1C!$J$24,ROWS($J$24:J37)-1,COLUMNS($J$24:J37)-1)<>"",OFFSET(DE100_1C!$J$24,ROWS($J$24:J37)-1,COLUMNS($J$24:J37)-1),"") ->  | I24: =IF(OFFSET(DE100_1C!$K$24,ROWS($K$24:K37)-1,COLUMNS($K$24:K37)-1)<>"",OFFSET(DE100_1C!$K$24,ROWS($K$24:K37)-1,COLUMNS($K$24:K37)-1),"") ->  | J24: =IF(OFFSET(DE100_1C!$L$24,ROWS($L$24:L37)-1,COLUMNS($L$24:L37)-1)<>"",OFFSET(DE100_1C!$L$24,ROWS($L$24:L37)-1,COLUMNS($L$24:L37)-1),"") -> 604.6 | K24: =IF(OFFSET(DE100_1C!$M$24,ROWS($M$24:M37)-1,COLUMNS($M$24:M37)-1)<>"",OFFSET(DE100_1C!$M$24,ROWS($M$24:M37)-1,COLUMNS($M$24:M37)-1),"") ->  | L24: =IF(OFFSET(DE100_1C!$N$24,ROWS($N$24:N37)-1,COLUMNS($N$24:N37)-1)<>"",OFFSET(DE100_1C!$N$24,ROWS($N$24:N37)-1,COLUMNS($N$24:N37)-1),"") ->  | M24: =IF(OFFSET(DE100_1C!$O$24,ROWS($O$24:O37)-1,COLUMNS($O$24:O37)-1)<>"",OFFSET(DE100_1C!$O$24,ROWS($O$24:O37)-1,COLUMNS($O$24:O37)-1),"") ->  | N24: =IF(OFFSET(DE100_1C!$P$24,ROWS($P$24:P37)-1,COLUMNS($P$24:P37)-1)<>"",OFFSET(DE100_1C!$P$24,ROWS($P$24:P37)-1,COLUMNS($P$24:P37)-1),"") ->  | O24: =IF(OFFSET(DE100_1C!$Q$24,ROWS($Q$24:Q37)-1,COLUMNS($Q$24:Q37)-1)<>"",OFFSET(DE100_1C!$Q$24,ROWS($Q$24:Q37)-1,COLUMNS($Q$24:Q37)-1),"") -> 
A25: =IF(OFFSET(DE100_1C!$C$24,ROWS($C$24:C38)-1,COLUMNS($C$24:C38)-1)<>"",OFFSET(DE100_1C!$C$24,ROWS($C$24:C38)-1,COLUMNS($C$24:C38)-1),"") -> 14 | B25: =IF(OFFSET(DE100_1C!$D$24,ROWS($D$24:D38)-1,COLUMNS($D$24:D38)-1)<>"",OFFSET(DE100_1C!$D$24,ROWS($D$24:D38)-1,COLUMNS($D$24:D38)-1),"") -> 2301-1003080 | C25: =IF(OFFSET(DE100_1C!$E$24,ROWS($E$24:E38)-1,COLUMNS($E$24:E38)-1)<>"",OFFSET(DE100_1C!$E$24,ROWS($E$24:E38)-1,COLUMNS($E$24:E38)-1),"") -> STANDARD OR SLIP-FORM PORTLAND CEMENT CONCRETE PAVEMENT, QM-C, CLASS | D25: =IF(OFFSET(DE100_1C!$F$24,ROWS($F$24:F38)-1,COLUMNS($F$24:F38)-1)<>"",OFFSET(DE100_1C!$F$24,ROWS($F$24:F38)-1,COLUMNS($F$24:F38)-1),"") -> SY | E25: =IF(OFFSET(DE100_1C!$G$24,ROWS($G$24:G38)-1,COLUMNS($G$24:G38)-1)<>"",OFFSET(DE100_1C!$G$24,ROWS($G$24:G38)-1,COLUMNS($G$24:G38)-1),"") ->  | F25: =IF(OFFSET(DE100_1C!$H$24,ROWS($H$24:H38)-1,COLUMNS($H$24:H38)-1)<>"",OFFSET(DE100_1C!$H$24,ROWS($H$24:H38)-1,COLUMNS($H$24:H38)-1),"") -> 668.4 | G25: =IF(OFFSET(DE100_1C!$I$24,ROWS($I$24:I38)-1,COLUMNS($I$24:I38)-1)<>"",OFFSET(DE100_1C!$I$24,ROWS($I$24:I38)-1,COLUMNS($I$24:I38)-1),"") ->  | H25: =IF(OFFSET(DE100_1C!$J$24,ROWS($J$24:J38)-1,COLUMNS($J$24:J38)-1)<>"",OFFSET(DE100_1C!$J$24,ROWS($J$24:J38)-1,COLUMNS($J$24:J38)-1),"") ->  | I25: =IF(OFFSET(DE100_1C!$K$24,ROWS($K$24:K38)-1,COLUMNS($K$24:K38)-1)<>"",OFFSET(DE100_1C!$K$24,ROWS($K$24:K38)-1,COLUMNS($K$24:K38)-1),"") ->  | J25: =IF(OFFSET(DE100_1C!$L$24,ROWS($L$24:L38)-1,COLUMNS($L$24:L38)-1)<>"",OFFSET(DE100_1C!$L$24,ROWS($L$24:L38)-1,COLUMNS($L$24:L38)-1),"") -> 668.4 | K25: =IF(OFFSET(DE100_1C!$M$24,ROWS($M$24:M38)-1,COLUMNS($M$24:M38)-1)<>"",OFFSET(DE100_1C!$M$24,ROWS($M$24:M38)-1,COLUMNS($M$24:M38)-1),"") ->  | L25: =IF(OFFSET(DE100_1C!$N$24,ROWS($N$24:N38)-1,COLUMNS($N$24:N38)-1)<>"",OFFSET(DE100_1C!$N$24,ROWS($N$24:N38)-1,COLUMNS($N$24:N38)-1),"") ->  | M25: =IF(OFFSET(DE100_1C!$O$24,ROWS($O$24:O38)-1,COLUMNS($O$24:O38)-1)<>"",OFFSET(DE100_1C!$O$24,ROWS($O$24:O38)-1,COLUMNS($O$24:O38)-1),"") ->  | N25: =IF(OFFSET(DE100_1C!$P$24,ROWS($P$24:P38)-1,COLUMNS($P$24:P38)-1)<>"",OFFSET(DE100_1C!$P$24,ROWS($P$24:P38)-1,COLUMNS($P$24:P38)-1),"") ->  | O25: =IF(OFFSET(DE100_1C!$Q$24,ROWS($Q$24:Q38)-1,COLUMNS($Q$24:Q38)-1)<>"",OFFSET(DE100_1C!$Q$24,ROWS($Q$24:Q38)-1,COLUMNS($Q$24:Q38)-1),"") -> 
A26: =IF(OFFSET(DE100_1C!$C$24,ROWS($C$24:C39)-1,COLUMNS($C$24:C39)-1)<>"",OFFSET(DE100_1C!$C$24,ROWS($C$24:C39)-1,COLUMNS($C$24:C39)-1),"") ->  | B26: =IF(OFFSET(DE100_1C!$D$24,ROWS($D$24:D39)-1,COLUMNS($D$24:D39)-1)<>"",OFFSET(DE100_1C!$D$24,ROWS($D$24:D39)-1,COLUMNS($D$24:D39)-1),"") ->  | C26: =IF(OFFSET(DE100_1C!$E$24,ROWS($E$24:E39)-1,COLUMNS($E$24:E39)-1)<>"",OFFSET(DE100_1C!$E$24,ROWS($E$24:E39)-1,COLUMNS($E$24:E39)-1),"") -> 3 DURABILITY, 8 IN. | D26: =IF(OFFSET(DE100_1C!$F$24,ROWS($F$24:F39)-1,COLUMNS($F$24:F39)-1)<>"",OFFSET(DE100_1C!$F$24,ROWS($F$24:F39)-1,COLUMNS($F$24:F39)-1),"") ->  | E26: =IF(OFFSET(DE100_1C!$G$24,ROWS($G$24:G39)-1,COLUMNS($G$24:G39)-1)<>"",OFFSET(DE100_1C!$G$24,ROWS($G$24:G39)-1,COLUMNS($G$24:G39)-1),"") ->  | F26: =IF(OFFSET(DE100_1C!$H$24,ROWS($H$24:H39)-1,COLUMNS($H$24:H39)-1)<>"",OFFSET(DE100_1C!$H$24,ROWS($H$24:H39)-1,COLUMNS($H$24:H39)-1),"") ->  | G26: =IF(OFFSET(DE100_1C!$I$24,ROWS($I$24:I39)-1,COLUMNS($I$24:I39)-1)<>"",OFFSET(DE100_1C!$I$24,ROWS($I$24:I39)-1,COLUMNS($I$24:I39)-1),"") ->  | H26: =IF(OFFSET(DE100_1C!$J$24,ROWS($J$24:J39)-1,COLUMNS($J$24:J39)-1)<>"",OFFSET(DE100_1C!$J$24,ROWS($J$24:J39)-1,COLUMNS($J$24:J39)-1),"") ->  | I26: =IF(OFFSET(DE100_1C!$K$24,ROWS($K$24:K39)-1,COLUMNS($K$24:K39)-1)<>"",OFFSET(DE100_1C!$K$24,ROWS($K$24:K39)-1,COLUMNS($K$24:K39)-1),"") ->  | J26: =IF(OFFSET(DE100_1C!$L$24,ROWS($L$24:L39)-1,COLUMNS($L$24:L39)-1)<>"",OFFSET(DE100_1C!$L$24,ROWS($L$24:L39)-1,COLUMNS($L$24:L39)-1),"") ->  | K26: =IF(OFFSET(DE100_1C!$M$24,ROWS($M$24:M39)-1,COLUMNS($M$24:M39)-1)<>"",OFFSET(DE100_1C!$M$24,ROWS($M$24:M39)-1,COLUMNS($M$24:M39)-1),"") ->  | L26: =IF(OFFSET(DE100_1C!$N$24,ROWS($N$24:N39)-1,COLUMNS($N$24:N39)-1)<>"",OFFSET(DE100_1C!$N$24,ROWS($N$24:N39)-1,COLUMNS($N$24:N39)-1),"") ->  | M26: =IF(OFFSET(DE100_1C!$O$24,ROWS($O$24:O39)-1,COLUMNS($O$24:O39)-1)<>"",OFFSET(DE100_1C!$O$24,ROWS($O$24:O39)-1,COLUMNS($O$24:O39)-1),"") ->  | N26: =IF(OFFSET(DE100_1C!$P$24,ROWS($P$24:P39)-1,COLUMNS($P$24:P39)-1)<>"",OFFSET(DE100_1C!$P$24,ROWS($P$24:P39)-1,COLUMNS($P$24:P39)-1),"") ->  | O26: =IF(OFFSET(DE100_1C!$Q$24,ROWS($Q$24:Q39)-1,COLUMNS($Q$24:Q39)-1)<>"",OFFSET(DE100_1C!$Q$24,ROWS($Q$24:Q39)-1,COLUMNS($Q$24:Q39)-1),"") -> 
A27: =IF(OFFSET(DE100_1C!$C$24,ROWS($C$24:C40)-1,COLUMNS($C$24:C40)-1)<>"",OFFSET(DE100_1C!$C$24,ROWS($C$24:C40)-1,COLUMNS($C$24:C40)-1),"") -> 15 | B27: =IF(OFFSET(DE100_1C!$D$24,ROWS($D$24:D40)-1,COLUMNS($D$24:D40)-1)<>"",OFFSET(DE100_1C!$D$24,ROWS($D$24:D40)-1,COLUMNS($D$24:D40)-1),"") -> 2301-1003095 | C27: =IF(OFFSET(DE100_1C!$E$24,ROWS($E$24:E40)-1,COLUMNS($E$24:E40)-1)<>"",OFFSET(DE100_1C!$E$24,ROWS($E$24:E40)-1,COLUMNS($E$24:E40)-1),"") -> STANDARD OR SLIP-FORM PORTLAND CEMENT CONCRETE PAVEMENT, QM-C, CLASS | D27: =IF(OFFSET(DE100_1C!$F$24,ROWS($F$24:F40)-1,COLUMNS($F$24:F40)-1)<>"",OFFSET(DE100_1C!$F$24,ROWS($F$24:F40)-1,COLUMNS($F$24:F40)-1),"") -> SY | E27: =IF(OFFSET(DE100_1C!$G$24,ROWS($G$24:G40)-1,COLUMNS($G$24:G40)-1)<>"",OFFSET(DE100_1C!$G$24,ROWS($G$24:G40)-1,COLUMNS($G$24:G40)-1),"") -> 33,267.9 | F27: =IF(OFFSET(DE100_1C!$H$24,ROWS($H$24:H40)-1,COLUMNS($H$24:H40)-1)<>"",OFFSET(DE100_1C!$H$24,ROWS($H$24:H40)-1,COLUMNS($H$24:H40)-1),"") ->  | G27: =IF(OFFSET(DE100_1C!$I$24,ROWS($I$24:I40)-1,COLUMNS($I$24:I40)-1)<>"",OFFSET(DE100_1C!$I$24,ROWS($I$24:I40)-1,COLUMNS($I$24:I40)-1),"") ->  | H27: =IF(OFFSET(DE100_1C!$J$24,ROWS($J$24:J40)-1,COLUMNS($J$24:J40)-1)<>"",OFFSET(DE100_1C!$J$24,ROWS($J$24:J40)-1,COLUMNS($J$24:J40)-1),"") ->  | I27: =IF(OFFSET(DE100_1C!$K$24,ROWS($K$24:K40)-1,COLUMNS($K$24:K40)-1)<>"",OFFSET(DE100_1C!$K$24,ROWS($K$24:K40)-1,COLUMNS($K$24:K40)-1),"") ->  | J27: =IF(OFFSET(DE100_1C!$L$24,ROWS($L$24:L40)-1,COLUMNS($L$24:L40)-1)<>"",OFFSET(DE100_1C!$L$24,ROWS($L$24:L40)-1,COLUMNS($L$24:L40)-1),"") -> 33,267.9 | K27: =IF(OFFSET(DE100_1C!$M$24,ROWS($M$24:M40)-1,COLUMNS($M$24:M40)-1)<>"",OFFSET(DE100_1C!$M$24,ROWS($M$24:M40)-1,COLUMNS($M$24:M40)-1),"") ->  | L27: =IF(OFFSET(DE100_1C!$N$24,ROWS($N$24:N40)-1,COLUMNS($N$24:N40)-1)<>"",OFFSET(DE100_1C!$N$24,ROWS($N$24:N40)-1,COLUMNS($N$24:N40)-1),"") ->  | M27: =IF(OFFSET(DE100_1C!$O$24,ROWS($O$24:O40)-1,COLUMNS($O$24:O40)-1)<>"",OFFSET(DE100_1C!$O$24,ROWS($O$24:O40)-1,COLUMNS($O$24:O40)-1),"") ->  | N27: =IF(OFFSET(DE100_1C!$P$24,ROWS($P$24:P40)-1,COLUMNS($P$24:P40)-1)<>"",OFFSET(DE100_1C!$P$24,ROWS($P$24:P40)-1,COLUMNS($P$24:P40)-1),"") ->  | O27: =IF(OFFSET(DE100_1C!$Q$24,ROWS($Q$24:Q40)-1,COLUMNS($Q$24:Q40)-1)<>"",OFFSET(DE100_1C!$Q$24,ROWS($Q$24:Q40)-1,COLUMNS($Q$24:Q40)-1),"") -> 
A28: =IF(OFFSET(DE100_1C!$C$24,ROWS($C$24:C41)-1,COLUMNS($C$24:C41)-1)<>"",OFFSET(DE100_1C!$C$24,ROWS($C$24:C41)-1,COLUMNS($C$24:C41)-1),"") ->  | B28: =IF(OFFSET(DE100_1C!$D$24,ROWS($D$24:D41)-1,COLUMNS($D$24:D41)-1)<>"",OFFSET(DE100_1C!$D$24,ROWS($D$24:D41)-1,COLUMNS($D$24:D41)-1),"") ->  | C28: =IF(OFFSET(DE100_1C!$E$24,ROWS($E$24:E41)-1,COLUMNS($E$24:E41)-1)<>"",OFFSET(DE100_1C!$E$24,ROWS($E$24:E41)-1,COLUMNS($E$24:E41)-1),"") -> 3 DURABILITY, 9.5 IN. | D28: =IF(OFFSET(DE100_1C!$F$24,ROWS($F$24:F41)-1,COLUMNS($F$24:F41)-1)<>"",OFFSET(DE100_1C!$F$24,ROWS($F$24:F41)-1,COLUMNS($F$24:F41)-1),"") ->  | E28: =IF(OFFSET(DE100_1C!$G$24,ROWS($G$24:G41)-1,COLUMNS($G$24:G41)-1)<>"",OFFSET(DE100_1C!$G$24,ROWS($G$24:G41)-1,COLUMNS($G$24:G41)-1),"") ->  | F28: =IF(OFFSET(DE100_1C!$H$24,ROWS($H$24:H41)-1,COLUMNS($H$24:H41)-1)<>"",OFFSET(DE100_1C!$H$24,ROWS($H$24:H41)-1,COLUMNS($H$24:H41)-1),"") ->  | G28: =IF(OFFSET(DE100_1C!$I$24,ROWS($I$24:I41)-1,COLUMNS($I$24:I41)-1)<>"",OFFSET(DE100_1C!$I$24,ROWS($I$24:I41)-1,COLUMNS($I$24:I41)-1),"") ->  | H28: =IF(OFFSET(DE100_1C!$J$24,ROWS($J$24:J41)-1,COLUMNS($J$24:J41)-1)<>"",OFFSET(DE100_1C!$J$24,ROWS($J$24:J41)-1,COLUMNS($J$24:J41)-1),"") ->  | I28: =IF(OFFSET(DE100_1C!$K$24,ROWS($K$24:K41)-1,COLUMNS($K$24:K41)-1)<>"",OFFSET(DE100_1C!$K$24,ROWS($K$24:K41)-1,COLUMNS($K$24:K41)-1),"") ->  | J28: =IF(OFFSET(DE100_1C!$L$24,ROWS($L$24:L41)-1,COLUMNS($L$24:L41)-1)<>"",OFFSET(DE100_1C!$L$24,ROWS($L$24:L41)-1,COLUMNS($L$24:L41)-1),"") ->  | K28: =IF(OFFSET(DE100_1C!$M$24,ROWS($M$24:M41)-1,COLUMNS($M$24:M41)-1)<>"",OFFSET(DE100_1C!$M$24,ROWS($M$24:M41)-1,COLUMNS($M$24:M41)-1),"") ->  | L28: =IF(OFFSET(DE100_1C!$N$24,ROWS($N$24:N41)-1,COLUMNS($N$24:N41)-1)<>"",OFFSET(DE100_1C!$N$24,ROWS($N$24:N41)-1,COLUMNS($N$24:N41)-1),"") ->  | M28: =IF(OFFSET(DE100_1C!$O$24,ROWS($O$24:O41)-1,COLUMNS($O$24:O41)-1)<>"",OFFSET(DE100_1C!$O$24,ROWS($O$24:O41)-1,COLUMNS($O$24:O41)-1),"") ->  | N28: =IF(OFFSET(DE100_1C!$P$24,ROWS($P$24:P41)-1,COLUMNS($P$24:P41)-1)<>"",OFFSET(DE100_1C!$P$24,ROWS($P$24:P41)-1,COLUMNS($P$24:P41)-1),"") ->  | O28: =IF(OFFSET(DE100_1C!$Q$24,ROWS($Q$24:Q41)-1,COLUMNS($Q$24:Q41)-1)<>"",OFFSET(DE100_1C!$Q$24,ROWS($Q$24:Q41)-1,COLUMNS($Q$24:Q41)-1),"") -> 
A29: =IF(OFFSET(DE100_1C!$C$24,ROWS($C$24:C42)-1,COLUMNS($C$24:C42)-1)<>"",OFFSET(DE100_1C!$C$24,ROWS($C$24:C42)-1,COLUMNS($C$24:C42)-1),"") -> 16 | B29: =IF(OFFSET(DE100_1C!$D$24,ROWS($D$24:D42)-1,COLUMNS($D$24:D42)-1)<>"",OFFSET(DE100_1C!$D$24,ROWS($D$24:D42)-1,COLUMNS($D$24:D42)-1),"") -> 2312-8260051 | C29: =IF(OFFSET(DE100_1C!$E$24,ROWS($E$24:E42)-1,COLUMNS($E$24:E42)-1)<>"",OFFSET(DE100_1C!$E$24,ROWS($E$24:E42)-1,COLUMNS($E$24:E42)-1),"") -> GRANULAR SURFACING ON ROAD, CLASS A CRUSHED STONE | D29: =IF(OFFSET(DE100_1C!$F$24,ROWS($F$24:F42)-1,COLUMNS($F$24:F42)-1)<>"",OFFSET(DE100_1C!$F$24,ROWS($F$24:F42)-1,COLUMNS($F$24:F42)-1),"") -> TON | E29: =IF(OFFSET(DE100_1C!$G$24,ROWS($G$24:G42)-1,COLUMNS($G$24:G42)-1)<>"",OFFSET(DE100_1C!$G$24,ROWS($G$24:G42)-1,COLUMNS($G$24:G42)-1),"") -> 774.8 | F29: =IF(OFFSET(DE100_1C!$H$24,ROWS($H$24:H42)-1,COLUMNS($H$24:H42)-1)<>"",OFFSET(DE100_1C!$H$24,ROWS($H$24:H42)-1,COLUMNS($H$24:H42)-1),"") ->  | G29: =IF(OFFSET(DE100_1C!$I$24,ROWS($I$24:I42)-1,COLUMNS($I$24:I42)-1)<>"",OFFSET(DE100_1C!$I$24,ROWS($I$24:I42)-1,COLUMNS($I$24:I42)-1),"") ->  | H29: =IF(OFFSET(DE100_1C!$J$24,ROWS($J$24:J42)-1,COLUMNS($J$24:J42)-1)<>"",OFFSET(DE100_1C!$J$24,ROWS($J$24:J42)-1,COLUMNS($J$24:J42)-1),"") ->  | I29: =IF(OFFSET(DE100_1C!$K$24,ROWS($K$24:K42)-1,COLUMNS($K$24:K42)-1)<>"",OFFSET(DE100_1C!$K$24,ROWS($K$24:K42)-1,COLUMNS($K$24:K42)-1),"") ->  | J29: =IF(OFFSET(DE100_1C!$L$24,ROWS($L$24:L42)-1,COLUMNS($L$24:L42)-1)<>"",OFFSET(DE100_1C!$L$24,ROWS($L$24:L42)-1,COLUMNS($L$24:L42)-1),"") -> 774.8 | K29: =IF(OFFSET(DE100_1C!$M$24,ROWS($M$24:M42)-1,COLUMNS($M$24:M42)-1)<>"",OFFSET(DE100_1C!$M$24,ROWS($M$24:M42)-1,COLUMNS($M$24:M42)-1),"") ->  | L29: =IF(OFFSET(DE100_1C!$N$24,ROWS($N$24:N42)-1,COLUMNS($N$24:N42)-1)<>"",OFFSET(DE100_1C!$N$24,ROWS($N$24:N42)-1,COLUMNS($N$24:N42)-1),"") ->  | M29: =IF(OFFSET(DE100_1C!$O$24,ROWS($O$24:O42)-1,COLUMNS($O$24:O42)-1)<>"",OFFSET(DE100_1C!$O$24,ROWS($O$24:O42)-1,COLUMNS($O$24:O42)-1),"") ->  | N29: =IF(OFFSET(DE100_1C!$P$24,ROWS($P$24:P42)-1,COLUMNS($P$24:P42)-1)<>"",OFFSET(DE100_1C!$P$24,ROWS($P$24:P42)-1,COLUMNS($P$24:P42)-1),"") ->  | O29: =IF(OFFSET(DE100_1C!$Q$24,ROWS($Q$24:Q42)-1,COLUMNS($Q$24:Q42)-1)<>"",OFFSET(DE100_1C!$Q$24,ROWS($Q$24:Q42)-1,COLUMNS($Q$24:Q42)-1),"") -> 
A30: =IF(OFFSET(DE100_1C!$C$24,ROWS($C$24:C43)-1,COLUMNS($C$24:C43)-1)<>"",OFFSET(DE100_1C!$C$24,ROWS($C$24:C43)-1,COLUMNS($C$24:C43)-1),"") -> 17 | B30: =IF(OFFSET(DE100_1C!$D$24,ROWS($D$24:D43)-1,COLUMNS($D$24:D43)-1)<>"",OFFSET(DE100_1C!$D$24,ROWS($D$24:D43)-1,COLUMNS($D$24:D43)-1),"") -> 2315-8275055 | C30: =IF(OFFSET(DE100_1C!$E$24,ROWS($E$24:E43)-1,COLUMNS($E$24:E43)-1)<>"",OFFSET(DE100_1C!$E$24,ROWS($E$24:E43)-1,COLUMNS($E$24:E43)-1),"") -> SURFACING, DRIVEWAY | D30: =IF(OFFSET(DE100_1C!$F$24,ROWS($F$24:F43)-1,COLUMNS($F$24:F43)-1)<>"",OFFSET(DE100_1C!$F$24,ROWS($F$24:F43)-1,COLUMNS($F$24:F43)-1),"") -> TON | E30: =IF(OFFSET(DE100_1C!$G$24,ROWS($G$24:G43)-1,COLUMNS($G$24:G43)-1)<>"",OFFSET(DE100_1C!$G$24,ROWS($G$24:G43)-1,COLUMNS($G$24:G43)-1),"") -> 823.3 | F30: =IF(OFFSET(DE100_1C!$H$24,ROWS($H$24:H43)-1,COLUMNS($H$24:H43)-1)<>"",OFFSET(DE100_1C!$H$24,ROWS($H$24:H43)-1,COLUMNS($H$24:H43)-1),"") ->  | G30: =IF(OFFSET(DE100_1C!$I$24,ROWS($I$24:I43)-1,COLUMNS($I$24:I43)-1)<>"",OFFSET(DE100_1C!$I$24,ROWS($I$24:I43)-1,COLUMNS($I$24:I43)-1),"") ->  | H30: =IF(OFFSET(DE100_1C!$J$24,ROWS($J$24:J43)-1,COLUMNS($J$24:J43)-1)<>"",OFFSET(DE100_1C!$J$24,ROWS($J$24:J43)-1,COLUMNS($J$24:J43)-1),"") ->  | I30: =IF(OFFSET(DE100_1C!$K$24,ROWS($K$24:K43)-1,COLUMNS($K$24:K43)-1)<>"",OFFSET(DE100_1C!$K$24,ROWS($K$24:K43)-1,COLUMNS($K$24:K43)-1),"") ->  | J30: =IF(OFFSET(DE100_1C!$L$24,ROWS($L$24:L43)-1,COLUMNS($L$24:L43)-1)<>"",OFFSET(DE100_1C!$L$24,ROWS($L$24:L43)-1,COLUMNS($L$24:L43)-1),"") -> 823.3 | K30: =IF(OFFSET(DE100_1C!$M$24,ROWS($M$24:M43)-1,COLUMNS($M$24:M43)-1)<>"",OFFSET(DE100_1C!$M$24,ROWS($M$24:M43)-1,COLUMNS($M$24:M43)-1),"") ->  | L30: =IF(OFFSET(DE100_1C!$N$24,ROWS($N$24:N43)-1,COLUMNS($N$24:N43)-1)<>"",OFFSET(DE100_1C!$N$24,ROWS($N$24:N43)-1,COLUMNS($N$24:N43)-1),"") ->  | M30: =IF(OFFSET(DE100_1C!$O$24,ROWS($O$24:O43)-1,COLUMNS($O$24:O43)-1)<>"",OFFSET(DE100_1C!$O$24,ROWS($O$24:O43)-1,COLUMNS($O$24:O43)-1),"") ->  | N30: =IF(OFFSET(DE100_1C!$P$24,ROWS($P$24:P43)-1,COLUMNS($P$24:P43)-1)<>"",OFFSET(DE100_1C!$P$24,ROWS($P$24:P43)-1,COLUMNS($P$24:P43)-1),"") ->  | O30: =IF(OFFSET(DE100_1C!$Q$24,ROWS($Q$24:Q43)-1,COLUMNS($Q$24:Q43)-1)<>"",OFFSET(DE100_1C!$Q$24,ROWS($Q$24:Q43)-1,COLUMNS($Q$24:Q43)-1),"") -> 
A31: =IF(OFFSET(DE100_1C!$C$24,ROWS($C$24:C44)-1,COLUMNS($C$24:C44)-1)<>"",OFFSET(DE100_1C!$C$24,ROWS($C$24:C44)-1,COLUMNS($C$24:C44)-1),"") -> 18 | B31: =IF(OFFSET(DE100_1C!$D$24,ROWS($D$24:D44)-1,COLUMNS($D$24:D44)-1)<>"",OFFSET(DE100_1C!$D$24,ROWS($D$24:D44)-1,COLUMNS($D$24:D44)-1),"") -> 2402-0425040 | C31: =IF(OFFSET(DE100_1C!$E$24,ROWS($E$24:E44)-1,COLUMNS($E$24:E44)-1)<>"",OFFSET(DE100_1C!$E$24,ROWS($E$24:E44)-1,COLUMNS($E$24:E44)-1),"") -> FLOODED BACKFILL | D31: =IF(OFFSET(DE100_1C!$F$24,ROWS($F$24:F44)-1,COLUMNS($F$24:F44)-1)<>"",OFFSET(DE100_1C!$F$24,ROWS($F$24:F44)-1,COLUMNS($F$24:F44)-1),"") -> CY | E31: =IF(OFFSET(DE100_1C!$G$24,ROWS($G$24:G44)-1,COLUMNS($G$24:G44)-1)<>"",OFFSET(DE100_1C!$G$24,ROWS($G$24:G44)-1,COLUMNS($G$24:G44)-1),"") -> 5,688.2 | F31: =IF(OFFSET(DE100_1C!$H$24,ROWS($H$24:H44)-1,COLUMNS($H$24:H44)-1)<>"",OFFSET(DE100_1C!$H$24,ROWS($H$24:H44)-1,COLUMNS($H$24:H44)-1),"") ->  | G31: =IF(OFFSET(DE100_1C!$I$24,ROWS($I$24:I44)-1,COLUMNS($I$24:I44)-1)<>"",OFFSET(DE100_1C!$I$24,ROWS($I$24:I44)-1,COLUMNS($I$24:I44)-1),"") ->  | H31: =IF(OFFSET(DE100_1C!$J$24,ROWS($J$24:J44)-1,COLUMNS($J$24:J44)-1)<>"",OFFSET(DE100_1C!$J$24,ROWS($J$24:J44)-1,COLUMNS($J$24:J44)-1),"") ->  | I31: =IF(OFFSET(DE100_1C!$K$24,ROWS($K$24:K44)-1,COLUMNS($K$24:K44)-1)<>"",OFFSET(DE100_1C!$K$24,ROWS($K$24:K44)-1,COLUMNS($K$24:K44)-1),"") ->  | J31: =IF(OFFSET(DE100_1C!$L$24,ROWS($L$24:L44)-1,COLUMNS($L$24:L44)-1)<>"",OFFSET(DE100_1C!$L$24,ROWS($L$24:L44)-1,COLUMNS($L$24:L44)-1),"") -> 5,688.2 | K31: =IF(OFFSET(DE100_1C!$M$24,ROWS($M$24:M44)-1,COLUMNS($M$24:M44)-1)<>"",OFFSET(DE100_1C!$M$24,ROWS($M$24:M44)-1,COLUMNS($M$24:M44)-1),"") ->  | L31: =IF(OFFSET(DE100_1C!$N$24,ROWS($N$24:N44)-1,COLUMNS($N$24:N44)-1)<>"",OFFSET(DE100_1C!$N$24,ROWS($N$24:N44)-1,COLUMNS($N$24:N44)-1),"") ->  | M31: =IF(OFFSET(DE100_1C!$O$24,ROWS($O$24:O44)-1,COLUMNS($O$24:O44)-1)<>"",OFFSET(DE100_1C!$O$24,ROWS($O$24:O44)-1,COLUMNS($O$24:O44)-1),"") ->  | N31: =IF(OFFSET(DE100_1C!$P$24,ROWS($P$24:P44)-1,COLUMNS($P$24:P44)-1)<>"",OFFSET(DE100_1C!$P$24,ROWS($P$24:P44)-1,COLUMNS($P$24:P44)-1),"") ->  | O31: =IF(OFFSET(DE100_1C!$Q$24,ROWS($Q$24:Q44)-1,COLUMNS($Q$24:Q44)-1)<>"",OFFSET(DE100_1C!$Q$24,ROWS($Q$24:Q44)-1,COLUMNS($Q$24:Q44)-1),"") -> 
A32: =IF(OFFSET(DE100_1C!$C$24,ROWS($C$24:C45)-1,COLUMNS($C$24:C45)-1)<>"",OFFSET(DE100_1C!$C$24,ROWS($C$24:C45)-1,COLUMNS($C$24:C45)-1),"") -> 19 | B32: =IF(OFFSET(DE100_1C!$D$24,ROWS($D$24:D45)-1,COLUMNS($D$24:D45)-1)<>"",OFFSET(DE100_1C!$D$24,ROWS($D$24:D45)-1,COLUMNS($D$24:D45)-1),"") -> 2402-2720100 | C32: =IF(OFFSET(DE100_1C!$E$24,ROWS($E$24:E45)-1,COLUMNS($E$24:E45)-1)<>"",OFFSET(DE100_1C!$E$24,ROWS($E$24:E45)-1,COLUMNS($E$24:E45)-1),"") -> EXCAVATION, CLASS 20, FOR ROADWAY PIPE CULVERT | D32: =IF(OFFSET(DE100_1C!$F$24,ROWS($F$24:F45)-1,COLUMNS($F$24:F45)-1)<>"",OFFSET(DE100_1C!$F$24,ROWS($F$24:F45)-1,COLUMNS($F$24:F45)-1),"") -> CY | E32: =IF(OFFSET(DE100_1C!$G$24,ROWS($G$24:G45)-1,COLUMNS($G$24:G45)-1)<>"",OFFSET(DE100_1C!$G$24,ROWS($G$24:G45)-1,COLUMNS($G$24:G45)-1),"") -> 543.9 | F32: =IF(OFFSET(DE100_1C!$H$24,ROWS($H$24:H45)-1,COLUMNS($H$24:H45)-1)<>"",OFFSET(DE100_1C!$H$24,ROWS($H$24:H45)-1,COLUMNS($H$24:H45)-1),"") ->  | G32: =IF(OFFSET(DE100_1C!$I$24,ROWS($I$24:I45)-1,COLUMNS($I$24:I45)-1)<>"",OFFSET(DE100_1C!$I$24,ROWS($I$24:I45)-1,COLUMNS($I$24:I45)-1),"") ->  | H32: =IF(OFFSET(DE100_1C!$J$24,ROWS($J$24:J45)-1,COLUMNS($J$24:J45)-1)<>"",OFFSET(DE100_1C!$J$24,ROWS($J$24:J45)-1,COLUMNS($J$24:J45)-1),"") ->  | I32: =IF(OFFSET(DE100_1C!$K$24,ROWS($K$24:K45)-1,COLUMNS($K$24:K45)-1)<>"",OFFSET(DE100_1C!$K$24,ROWS($K$24:K45)-1,COLUMNS($K$24:K45)-1),"") ->  | J32: =IF(OFFSET(DE100_1C!$L$24,ROWS($L$24:L45)-1,COLUMNS($L$24:L45)-1)<>"",OFFSET(DE100_1C!$L$24,ROWS($L$24:L45)-1,COLUMNS($L$24:L45)-1),"") -> 543.9 | K32: =IF(OFFSET(DE100_1C!$M$24,ROWS($M$24:M45)-1,COLUMNS($M$24:M45)-1)<>"",OFFSET(DE100_1C!$M$24,ROWS($M$24:M45)-1,COLUMNS($M$24:M45)-1),"") ->  | L32: =IF(OFFSET(DE100_1C!$N$24,ROWS($N$24:N45)-1,COLUMNS($N$24:N45)-1)<>"",OFFSET(DE100_1C!$N$24,ROWS($N$24:N45)-1,COLUMNS($N$24:N45)-1),"") ->  | M32: =IF(OFFSET(DE100_1C!$O$24,ROWS($O$24:O45)-1,COLUMNS($O$24:O45)-1)<>"",OFFSET(DE100_1C!$O$24,ROWS($O$24:O45)-1,COLUMNS($O$24:O45)-1),"") ->  | N32: =IF(OFFSET(DE100_1C!$P$24,ROWS($P$24:P45)-1,COLUMNS($P$24:P45)-1)<>"",OFFSET(DE100_1C!$P$24,ROWS($P$24:P45)-1,COLUMNS($P$24:P45)-1),"") ->  | O32: =IF(OFFSET(DE100_1C!$Q$24,ROWS($Q$24:Q45)-1,COLUMNS($Q$24:Q45)-1)<>"",OFFSET(DE100_1C!$Q$24,ROWS($Q$24:Q45)-1,COLUMNS($Q$24:Q45)-1),"") -> 
A33: =IF(OFFSET(DE100_1C!$C$24,ROWS($C$24:C46)-1,COLUMNS($C$24:C46)-1)<>"",OFFSET(DE100_1C!$C$24,ROWS($C$24:C46)-1,COLUMNS($C$24:C46)-1),"") -> 20 | B33: =IF(OFFSET(DE100_1C!$D$24,ROWS($D$24:D46)-1,COLUMNS($D$24:D46)-1)<>"",OFFSET(DE100_1C!$D$24,ROWS($D$24:D46)-1,COLUMNS($D$24:D46)-1),"") -> 2412-0000100 | C33: =IF(OFFSET(DE100_1C!$E$24,ROWS($E$24:E46)-1,COLUMNS($E$24:E46)-1)<>"",OFFSET(DE100_1C!$E$24,ROWS($E$24:E46)-1,COLUMNS($E$24:E46)-1),"") -> LONGITUDINAL GROOVING IN CONCRETE | D33: =IF(OFFSET(DE100_1C!$F$24,ROWS($F$24:F46)-1,COLUMNS($F$24:F46)-1)<>"",OFFSET(DE100_1C!$F$24,ROWS($F$24:F46)-1,COLUMNS($F$24:F46)-1),"") -> SY | E33: =IF(OFFSET(DE100_1C!$G$24,ROWS($G$24:G46)-1,COLUMNS($G$24:G46)-1)<>"",OFFSET(DE100_1C!$G$24,ROWS($G$24:G46)-1,COLUMNS($G$24:G46)-1),"") -> 1,780.0 | F33: =IF(OFFSET(DE100_1C!$H$24,ROWS($H$24:H46)-1,COLUMNS($H$24:H46)-1)<>"",OFFSET(DE100_1C!$H$24,ROWS($H$24:H46)-1,COLUMNS($H$24:H46)-1),"") ->  | G33: =IF(OFFSET(DE100_1C!$I$24,ROWS($I$24:I46)-1,COLUMNS($I$24:I46)-1)<>"",OFFSET(DE100_1C!$I$24,ROWS($I$24:I46)-1,COLUMNS($I$24:I46)-1),"") ->  | H33: =IF(OFFSET(DE100_1C!$J$24,ROWS($J$24:J46)-1,COLUMNS($J$24:J46)-1)<>"",OFFSET(DE100_1C!$J$24,ROWS($J$24:J46)-1,COLUMNS($J$24:J46)-1),"") ->  | I33: =IF(OFFSET(DE100_1C!$K$24,ROWS($K$24:K46)-1,COLUMNS($K$24:K46)-1)<>"",OFFSET(DE100_1C!$K$24,ROWS($K$24:K46)-1,COLUMNS($K$24:K46)-1),"") ->  | J33: =IF(OFFSET(DE100_1C!$L$24,ROWS($L$24:L46)-1,COLUMNS($L$24:L46)-1)<>"",OFFSET(DE100_1C!$L$24,ROWS($L$24:L46)-1,COLUMNS($L$24:L46)-1),"") -> 1,780.0 | K33: =IF(OFFSET(DE100_1C!$M$24,ROWS($M$24:M46)-1,COLUMNS($M$24:M46)-1)<>"",OFFSET(DE100_1C!$M$24,ROWS($M$24:M46)-1,COLUMNS($M$24:M46)-1),"") ->  | L33: =IF(OFFSET(DE100_1C!$N$24,ROWS($N$24:N46)-1,COLUMNS($N$24:N46)-1)<>"",OFFSET(DE100_1C!$N$24,ROWS($N$24:N46)-1,COLUMNS($N$24:N46)-1),"") ->  | M33: =IF(OFFSET(DE100_1C!$O$24,ROWS($O$24:O46)-1,COLUMNS($O$24:O46)-1)<>"",OFFSET(DE100_1C!$O$24,ROWS($O$24:O46)-1,COLUMNS($O$24:O46)-1),"") ->  | N33: =IF(OFFSET(DE100_1C!$P$24,ROWS($P$24:P46)-1,COLUMNS($P$24:P46)-1)<>"",OFFSET(DE100_1C!$P$24,ROWS($P$24:P46)-1,COLUMNS($P$24:P46)-1),"") ->  | O33: =IF(OFFSET(DE100_1C!$Q$24,ROWS($Q$24:Q46)-1,COLUMNS($Q$24:Q46)-1)<>"",OFFSET(DE100_1C!$Q$24,ROWS($Q$24:Q46)-1,COLUMNS($Q$24:Q46)-1),"") -> 
A34: =IF(OFFSET(DE100_1C!$C$24,ROWS($C$24:C47)-1,COLUMNS($C$24:C47)-1)<>"",OFFSET(DE100_1C!$C$24,ROWS($C$24:C47)-1,COLUMNS($C$24:C47)-1),"") -> 21 | B34: =IF(OFFSET(DE100_1C!$D$24,ROWS($D$24:D47)-1,COLUMNS($D$24:D47)-1)<>"",OFFSET(DE100_1C!$D$24,ROWS($D$24:D47)-1,COLUMNS($D$24:D47)-1),"") -> 2416-0100024 | C34: =IF(OFFSET(DE100_1C!$E$24,ROWS($E$24:E47)-1,COLUMNS($E$24:E47)-1)<>"",OFFSET(DE100_1C!$E$24,ROWS($E$24:E47)-1,COLUMNS($E$24:E47)-1),"") -> APRONS, CONCRETE, 24 IN. DIA. | D34: =IF(OFFSET(DE100_1C!$F$24,ROWS($F$24:F47)-1,COLUMNS($F$24:F47)-1)<>"",OFFSET(DE100_1C!$F$24,ROWS($F$24:F47)-1,COLUMNS($F$24:F47)-1),"") -> EACH | E34: =IF(OFFSET(DE100_1C!$G$24,ROWS($G$24:G47)-1,COLUMNS($G$24:G47)-1)<>"",OFFSET(DE100_1C!$G$24,ROWS($G$24:G47)-1,COLUMNS($G$24:G47)-1),"") -> 4 | F34: =IF(OFFSET(DE100_1C!$H$24,ROWS($H$24:H47)-1,COLUMNS($H$24:H47)-1)<>"",OFFSET(DE100_1C!$H$24,ROWS($H$24:H47)-1,COLUMNS($H$24:H47)-1),"") ->  | G34: =IF(OFFSET(DE100_1C!$I$24,ROWS($I$24:I47)-1,COLUMNS($I$24:I47)-1)<>"",OFFSET(DE100_1C!$I$24,ROWS($I$24:I47)-1,COLUMNS($I$24:I47)-1),"") ->  | H34: =IF(OFFSET(DE100_1C!$J$24,ROWS($J$24:J47)-1,COLUMNS($J$24:J47)-1)<>"",OFFSET(DE100_1C!$J$24,ROWS($J$24:J47)-1,COLUMNS($J$24:J47)-1),"") ->  | I34: =IF(OFFSET(DE100_1C!$K$24,ROWS($K$24:K47)-1,COLUMNS($K$24:K47)-1)<>"",OFFSET(DE100_1C!$K$24,ROWS($K$24:K47)-1,COLUMNS($K$24:K47)-1),"") ->  | J34: =IF(OFFSET(DE100_1C!$L$24,ROWS($L$24:L47)-1,COLUMNS($L$24:L47)-1)<>"",OFFSET(DE100_1C!$L$24,ROWS($L$24:L47)-1,COLUMNS($L$24:L47)-1),"") -> 4 | K34: =IF(OFFSET(DE100_1C!$M$24,ROWS($M$24:M47)-1,COLUMNS($M$24:M47)-1)<>"",OFFSET(DE100_1C!$M$24,ROWS($M$24:M47)-1,COLUMNS($M$24:M47)-1),"") ->  | L34: =IF(OFFSET(DE100_1C!$N$24,ROWS($N$24:N47)-1,COLUMNS($N$24:N47)-1)<>"",OFFSET(DE100_1C!$N$24,ROWS($N$24:N47)-1,COLUMNS($N$24:N47)-1),"") ->  | M34: =IF(OFFSET(DE100_1C!$O$24,ROWS($O$24:O47)-1,COLUMNS($O$24:O47)-1)<>"",OFFSET(DE100_1C!$O$24,ROWS($O$24:O47)-1,COLUMNS($O$24:O47)-1),"") ->  | N34: =IF(OFFSET(DE100_1C!$P$24,ROWS($P$24:P47)-1,COLUMNS($P$24:P47)-1)<>"",OFFSET(DE100_1C!$P$24,ROWS($P$24:P47)-1,COLUMNS($P$24:P47)-1),"") ->  | O34: =IF(OFFSET(DE100_1C!$Q$24,ROWS($Q$24:Q47)-1,COLUMNS($Q$24:Q47)-1)<>"",OFFSET(DE100_1C!$Q$24,ROWS($Q$24:Q47)-1,COLUMNS($Q$24:Q47)-1),"") -> 
A35: =IF(OFFSET(DE100_1C!$C$24,ROWS($C$24:C48)-1,COLUMNS($C$24:C48)-1)<>"",OFFSET(DE100_1C!$C$24,ROWS($C$24:C48)-1,COLUMNS($C$24:C48)-1),"") -> 22 | B35: =IF(OFFSET(DE100_1C!$D$24,ROWS($D$24:D48)-1,COLUMNS($D$24:D48)-1)<>"",OFFSET(DE100_1C!$D$24,ROWS($D$24:D48)-1,COLUMNS($D$24:D48)-1),"") -> 2416-0100036 | C35: =IF(OFFSET(DE100_1C!$E$24,ROWS($E$24:E48)-1,COLUMNS($E$24:E48)-1)<>"",OFFSET(DE100_1C!$E$24,ROWS($E$24:E48)-1,COLUMNS($E$24:E48)-1),"") -> APRONS, CONCRETE, 36 IN. DIA. | D35: =IF(OFFSET(DE100_1C!$F$24,ROWS($F$24:F48)-1,COLUMNS($F$24:F48)-1)<>"",OFFSET(DE100_1C!$F$24,ROWS($F$24:F48)-1,COLUMNS($F$24:F48)-1),"") -> EACH | E35: =IF(OFFSET(DE100_1C!$G$24,ROWS($G$24:G48)-1,COLUMNS($G$24:G48)-1)<>"",OFFSET(DE100_1C!$G$24,ROWS($G$24:G48)-1,COLUMNS($G$24:G48)-1),"") -> 2 | F35: =IF(OFFSET(DE100_1C!$H$24,ROWS($H$24:H48)-1,COLUMNS($H$24:H48)-1)<>"",OFFSET(DE100_1C!$H$24,ROWS($H$24:H48)-1,COLUMNS($H$24:H48)-1),"") ->  | G35: =IF(OFFSET(DE100_1C!$I$24,ROWS($I$24:I48)-1,COLUMNS($I$24:I48)-1)<>"",OFFSET(DE100_1C!$I$24,ROWS($I$24:I48)-1,COLUMNS($I$24:I48)-1),"") ->  | H35: =IF(OFFSET(DE100_1C!$J$24,ROWS($J$24:J48)-1,COLUMNS($J$24:J48)-1)<>"",OFFSET(DE100_1C!$J$24,ROWS($J$24:J48)-1,COLUMNS($J$24:J48)-1),"") ->  | I35: =IF(OFFSET(DE100_1C!$K$24,ROWS($K$24:K48)-1,COLUMNS($K$24:K48)-1)<>"",OFFSET(DE100_1C!$K$24,ROWS($K$24:K48)-1,COLUMNS($K$24:K48)-1),"") ->  | J35: =IF(OFFSET(DE100_1C!$L$24,ROWS($L$24:L48)-1,COLUMNS($L$24:L48)-1)<>"",OFFSET(DE100_1C!$L$24,ROWS($L$24:L48)-1,COLUMNS($L$24:L48)-1),"") -> 2 | K35: =IF(OFFSET(DE100_1C!$M$24,ROWS($M$24:M48)-1,COLUMNS($M$24:M48)-1)<>"",OFFSET(DE100_1C!$M$24,ROWS($M$24:M48)-1,COLUMNS($M$24:M48)-1),"") ->  | L35: =IF(OFFSET(DE100_1C!$N$24,ROWS($N$24:N48)-1,COLUMNS($N$24:N48)-1)<>"",OFFSET(DE100_1C!$N$24,ROWS($N$24:N48)-1,COLUMNS($N$24:N48)-1),"") ->  | M35: =IF(OFFSET(DE100_1C!$O$24,ROWS($O$24:O48)-1,COLUMNS($O$24:O48)-1)<>"",OFFSET(DE100_1C!$O$24,ROWS($O$24:O48)-1,COLUMNS($O$24:O48)-1),"") ->  | N35: =IF(OFFSET(DE100_1C!$P$24,ROWS($P$24:P48)-1,COLUMNS($P$24:P48)-1)<>"",OFFSET(DE100_1C!$P$24,ROWS($P$24:P48)-1,COLUMNS($P$24:P48)-1),"") ->  | O35: =IF(OFFSET(DE100_1C!$Q$24,ROWS($Q$24:Q48)-1,COLUMNS($Q$24:Q48)-1)<>"",OFFSET(DE100_1C!$Q$24,ROWS($Q$24:Q48)-1,COLUMNS($Q$24:Q48)-1),"") -> 
A36: =IF(OFFSET(DE100_1C!$C$24,ROWS($C$24:C49)-1,COLUMNS($C$24:C49)-1)<>"",OFFSET(DE100_1C!$C$24,ROWS($C$24:C49)-1,COLUMNS($C$24:C49)-1),"") -> 23 | B36: =IF(OFFSET(DE100_1C!$D$24,ROWS($D$24:D49)-1,COLUMNS($D$24:D49)-1)<>"",OFFSET(DE100_1C!$D$24,ROWS($D$24:D49)-1,COLUMNS($D$24:D49)-1),"") -> 2416-0100042 | C36: =IF(OFFSET(DE100_1C!$E$24,ROWS($E$24:E49)-1,COLUMNS($E$24:E49)-1)<>"",OFFSET(DE100_1C!$E$24,ROWS($E$24:E49)-1,COLUMNS($E$24:E49)-1),"") -> APRONS, CONCRETE, 42 IN. DIA. | D36: =IF(OFFSET(DE100_1C!$F$24,ROWS($F$24:F49)-1,COLUMNS($F$24:F49)-1)<>"",OFFSET(DE100_1C!$F$24,ROWS($F$24:F49)-1,COLUMNS($F$24:F49)-1),"") -> EACH | E36: =IF(OFFSET(DE100_1C!$G$24,ROWS($G$24:G49)-1,COLUMNS($G$24:G49)-1)<>"",OFFSET(DE100_1C!$G$24,ROWS($G$24:G49)-1,COLUMNS($G$24:G49)-1),"") -> 5 | F36: =IF(OFFSET(DE100_1C!$H$24,ROWS($H$24:H49)-1,COLUMNS($H$24:H49)-1)<>"",OFFSET(DE100_1C!$H$24,ROWS($H$24:H49)-1,COLUMNS($H$24:H49)-1),"") ->  | G36: =IF(OFFSET(DE100_1C!$I$24,ROWS($I$24:I49)-1,COLUMNS($I$24:I49)-1)<>"",OFFSET(DE100_1C!$I$24,ROWS($I$24:I49)-1,COLUMNS($I$24:I49)-1),"") ->  | H36: =IF(OFFSET(DE100_1C!$J$24,ROWS($J$24:J49)-1,COLUMNS($J$24:J49)-1)<>"",OFFSET(DE100_1C!$J$24,ROWS($J$24:J49)-1,COLUMNS($J$24:J49)-1),"") ->  | I36: =IF(OFFSET(DE100_1C!$K$24,ROWS($K$24:K49)-1,COLUMNS($K$24:K49)-1)<>"",OFFSET(DE100_1C!$K$24,ROWS($K$24:K49)-1,COLUMNS($K$24:K49)-1),"") ->  | J36: =IF(OFFSET(DE100_1C!$L$24,ROWS($L$24:L49)-1,COLUMNS($L$24:L49)-1)<>"",OFFSET(DE100_1C!$L$24,ROWS($L$24:L49)-1,COLUMNS($L$24:L49)-1),"") -> 5 | K36: =IF(OFFSET(DE100_1C!$M$24,ROWS($M$24:M49)-1,COLUMNS($M$24:M49)-1)<>"",OFFSET(DE100_1C!$M$24,ROWS($M$24:M49)-1,COLUMNS($M$24:M49)-1),"") ->  | L36: =IF(OFFSET(DE100_1C!$N$24,ROWS($N$24:N49)-1,COLUMNS($N$24:N49)-1)<>"",OFFSET(DE100_1C!$N$24,ROWS($N$24:N49)-1,COLUMNS($N$24:N49)-1),"") ->  | M36: =IF(OFFSET(DE100_1C!$O$24,ROWS($O$24:O49)-1,COLUMNS($O$24:O49)-1)<>"",OFFSET(DE100_1C!$O$24,ROWS($O$24:O49)-1,COLUMNS($O$24:O49)-1),"") ->  | N36: =IF(OFFSET(DE100_1C!$P$24,ROWS($P$24:P49)-1,COLUMNS($P$24:P49)-1)<>"",OFFSET(DE100_1C!$P$24,ROWS($P$24:P49)-1,COLUMNS($P$24:P49)-1),"") ->  | O36: =IF(OFFSET(DE100_1C!$Q$24,ROWS($Q$24:Q49)-1,COLUMNS($Q$24:Q49)-1)<>"",OFFSET(DE100_1C!$Q$24,ROWS($Q$24:Q49)-1,COLUMNS($Q$24:Q49)-1),"") -> 
A37: =IF(OFFSET(DE100_1C!$C$24,ROWS($C$24:C50)-1,COLUMNS($C$24:C50)-1)<>"",OFFSET(DE100_1C!$C$24,ROWS($C$24:C50)-1,COLUMNS($C$24:C50)-1),"") -> 24 | B37: =IF(OFFSET(DE100_1C!$D$24,ROWS($D$24:D50)-1,COLUMNS($D$24:D50)-1)<>"",OFFSET(DE100_1C!$D$24,ROWS($D$24:D50)-1,COLUMNS($D$24:D50)-1),"") -> 2416-0100054 | C37: =IF(OFFSET(DE100_1C!$E$24,ROWS($E$24:E50)-1,COLUMNS($E$24:E50)-1)<>"",OFFSET(DE100_1C!$E$24,ROWS($E$24:E50)-1,COLUMNS($E$24:E50)-1),"") -> APRONS, CONCRETE, 54 IN. DIA. | D37: =IF(OFFSET(DE100_1C!$F$24,ROWS($F$24:F50)-1,COLUMNS($F$24:F50)-1)<>"",OFFSET(DE100_1C!$F$24,ROWS($F$24:F50)-1,COLUMNS($F$24:F50)-1),"") -> EACH | E37: =IF(OFFSET(DE100_1C!$G$24,ROWS($G$24:G50)-1,COLUMNS($G$24:G50)-1)<>"",OFFSET(DE100_1C!$G$24,ROWS($G$24:G50)-1,COLUMNS($G$24:G50)-1),"") -> 2 | F37: =IF(OFFSET(DE100_1C!$H$24,ROWS($H$24:H50)-1,COLUMNS($H$24:H50)-1)<>"",OFFSET(DE100_1C!$H$24,ROWS($H$24:H50)-1,COLUMNS($H$24:H50)-1),"") ->  | G37: =IF(OFFSET(DE100_1C!$I$24,ROWS($I$24:I50)-1,COLUMNS($I$24:I50)-1)<>"",OFFSET(DE100_1C!$I$24,ROWS($I$24:I50)-1,COLUMNS($I$24:I50)-1),"") ->  | H37: =IF(OFFSET(DE100_1C!$J$24,ROWS($J$24:J50)-1,COLUMNS($J$24:J50)-1)<>"",OFFSET(DE100_1C!$J$24,ROWS($J$24:J50)-1,COLUMNS($J$24:J50)-1),"") ->  | I37: =IF(OFFSET(DE100_1C!$K$24,ROWS($K$24:K50)-1,COLUMNS($K$24:K50)-1)<>"",OFFSET(DE100_1C!$K$24,ROWS($K$24:K50)-1,COLUMNS($K$24:K50)-1),"") ->  | J37: =IF(OFFSET(DE100_1C!$L$24,ROWS($L$24:L50)-1,COLUMNS($L$24:L50)-1)<>"",OFFSET(DE100_1C!$L$24,ROWS($L$24:L50)-1,COLUMNS($L$24:L50)-1),"") -> 2 | K37: =IF(OFFSET(DE100_1C!$M$24,ROWS($M$24:M50)-1,COLUMNS($M$24:M50)-1)<>"",OFFSET(DE100_1C!$M$24,ROWS($M$24:M50)-1,COLUMNS($M$24:M50)-1),"") ->  | L37: =IF(OFFSET(DE100_1C!$N$24,ROWS($N$24:N50)-1,COLUMNS($N$24:N50)-1)<>"",OFFSET(DE100_1C!$N$24,ROWS($N$24:N50)-1,COLUMNS($N$24:N50)-1),"") ->  | M37: =IF(OFFSET(DE100_1C!$O$24,ROWS($O$24:O50)-1,COLUMNS($O$24:O50)-1)<>"",OFFSET(DE100_1C!$O$24,ROWS($O$24:O50)-1,COLUMNS($O$24:O50)-1),"") ->  | N37: =IF(OFFSET(DE100_1C!$P$24,ROWS($P$24:P50)-1,COLUMNS($P$24:P50)-1)<>"",OFFSET(DE100_1C!$P$24,ROWS($P$24:P50)-1,COLUMNS($P$24:P50)-1),"") ->  | O37: =IF(OFFSET(DE100_1C!$Q$24,ROWS($Q$24:Q50)-1,COLUMNS($Q$24:Q50)-1)<>"",OFFSET(DE100_1C!$Q$24,ROWS($Q$24:Q50)-1,COLUMNS($Q$24:Q50)-1),"") -> 
A38: =IF(OFFSET(DE100_1C!$C$24,ROWS($C$24:C51)-1,COLUMNS($C$24:C51)-1)<>"",OFFSET(DE100_1C!$C$24,ROWS($C$24:C51)-1,COLUMNS($C$24:C51)-1),"") -> 25 | B38: =IF(OFFSET(DE100_1C!$D$24,ROWS($D$24:D51)-1,COLUMNS($D$24:D51)-1)<>"",OFFSET(DE100_1C!$D$24,ROWS($D$24:D51)-1,COLUMNS($D$24:D51)-1),"") -> 2416-0100072 | C38: =IF(OFFSET(DE100_1C!$E$24,ROWS($E$24:E51)-1,COLUMNS($E$24:E51)-1)<>"",OFFSET(DE100_1C!$E$24,ROWS($E$24:E51)-1,COLUMNS($E$24:E51)-1),"") -> APRONS, CONCRETE, 72 IN. DIA. | D38: =IF(OFFSET(DE100_1C!$F$24,ROWS($F$24:F51)-1,COLUMNS($F$24:F51)-1)<>"",OFFSET(DE100_1C!$F$24,ROWS($F$24:F51)-1,COLUMNS($F$24:F51)-1),"") -> EACH | E38: =IF(OFFSET(DE100_1C!$G$24,ROWS($G$24:G51)-1,COLUMNS($G$24:G51)-1)<>"",OFFSET(DE100_1C!$G$24,ROWS($G$24:G51)-1,COLUMNS($G$24:G51)-1),"") -> 2 | F38: =IF(OFFSET(DE100_1C!$H$24,ROWS($H$24:H51)-1,COLUMNS($H$24:H51)-1)<>"",OFFSET(DE100_1C!$H$24,ROWS($H$24:H51)-1,COLUMNS($H$24:H51)-1),"") ->  | G38: =IF(OFFSET(DE100_1C!$I$24,ROWS($I$24:I51)-1,COLUMNS($I$24:I51)-1)<>"",OFFSET(DE100_1C!$I$24,ROWS($I$24:I51)-1,COLUMNS($I$24:I51)-1),"") ->  | H38: =IF(OFFSET(DE100_1C!$J$24,ROWS($J$24:J51)-1,COLUMNS($J$24:J51)-1)<>"",OFFSET(DE100_1C!$J$24,ROWS($J$24:J51)-1,COLUMNS($J$24:J51)-1),"") ->  | I38: =IF(OFFSET(DE100_1C!$K$24,ROWS($K$24:K51)-1,COLUMNS($K$24:K51)-1)<>"",OFFSET(DE100_1C!$K$24,ROWS($K$24:K51)-1,COLUMNS($K$24:K51)-1),"") ->  | J38: =IF(OFFSET(DE100_1C!$L$24,ROWS($L$24:L51)-1,COLUMNS($L$24:L51)-1)<>"",OFFSET(DE100_1C!$L$24,ROWS($L$24:L51)-1,COLUMNS($L$24:L51)-1),"") -> 2 | K38: =IF(OFFSET(DE100_1C!$M$24,ROWS($M$24:M51)-1,COLUMNS($M$24:M51)-1)<>"",OFFSET(DE100_1C!$M$24,ROWS($M$24:M51)-1,COLUMNS($M$24:M51)-1),"") ->  | L38: =IF(OFFSET(DE100_1C!$N$24,ROWS($N$24:N51)-1,COLUMNS($N$24:N51)-1)<>"",OFFSET(DE100_1C!$N$24,ROWS($N$24:N51)-1,COLUMNS($N$24:N51)-1),"") ->  | M38: =IF(OFFSET(DE100_1C!$O$24,ROWS($O$24:O51)-1,COLUMNS($O$24:O51)-1)<>"",OFFSET(DE100_1C!$O$24,ROWS($O$24:O51)-1,COLUMNS($O$24:O51)-1),"") ->  | N38: =IF(OFFSET(DE100_1C!$P$24,ROWS($P$24:P51)-1,COLUMNS($P$24:P51)-1)<>"",OFFSET(DE100_1C!$P$24,ROWS($P$24:P51)-1,COLUMNS($P$24:P51)-1),"") ->  | O38: =IF(OFFSET(DE100_1C!$Q$24,ROWS($Q$24:Q51)-1,COLUMNS($Q$24:Q51)-1)<>"",OFFSET(DE100_1C!$Q$24,ROWS($Q$24:Q51)-1,COLUMNS($Q$24:Q51)-1),"") -> 
